Workbook

Sheet PI vs x
A1: Measurement | B1: Hall
A2: Type | B2: Off-axis
A4: Project | B4: ='10 y=-0.2'!B5 -> 504314
A5: PS serial no | B5: ='10 y=-0.2'!B7 -> 2410096
A7: Measurement date | B7: =LEFT('10 y=-0.2'!B4,10) -> 13-09-2024
C11: Nominal gap [mm] | D11: Encoder [counts] | E11: Encoder [mm] | F11: PI [T^2mm^3] | G11: y [mm] | H11: Encoder value at 10 mm gap:
B12: ='PI vs x'!$C$12 & "mm gap" -> 10mm gap | C12: ='10 y=-0.2'!B48 -> 10 | D12: ='10 y=-0.2'!$B$50 -> 19.73485 | E12: =D12-$H$12+10 -> 9.99865 | F12: ='10 y=-0.2'!$K$3 -> 10685.68892 | G12: -0.2 | H12: 19.7362
C13: =C12 -> 10 | D13: ='10 y=-0.1'!$B$50 -> 19.73485 | E13: =D13-$H$12+10 -> 9.99865 | F13: ='10 y=-0.1'!$K$3 -> 10683.50796 | G13: -0.1
C14: =C13 -> 10 | D14: ='10 y=0'!$B$50 -> 19.73485 | E14: 9.99865 | F14: ='10 y=0'!$K$3 -> 10683.26469 | G14: 0
C15: 10 | D15: ='10 y=0.1'!$B$50 -> 19.73485 | E15: 9.99865 | F15: ='10 y=0.1'!$K$3 -> 10686.95788 | G15: 0.1
C16: 10 | D16: ='10 y=0.2'!$B$50 -> 19.73485 | E16: 9.99865 | F16: ='10 y=0.2'!$K$3 -> 10689.41437 | G16: 0.2
B17: ='PI vs x'!$C$17 & "mm gap" -> mm gap

Sheet 10 y=-0.2
A1: =IF('DF raw data'!A1="","",'DF raw data'!A1) -> Number of header lines | B1: =IF('DF raw data'!B1="","",'DF raw data'!B1) -> 54 | C1: =IF('DF raw data'!C1="","",'DF raw data'!C1) ->  | D1: =IF('DF raw data'!D1="","",'DF raw data'!D1) ->  | F1: T_coeff | G1: -0.001 | H1: /degC | J1: IBy total | K1: =J1262*1000 -> 0.3055504883 | L1: muTm | M1: =L1262*1000 -> 131.4262771 | R1: DF ref | S1: 1
A2: =IF('DF raw data'!A2="","",'DF raw data'!A2) -> Measured by | B2: =IF('DF raw data'!B2="","",'DF raw data'!B2) -> Danfysik | C2: =IF('DF raw data'!C2="","",'DF raw data'!C2) ->  | D2: =IF('DF raw data'!D2="","",'DF raw data'!D2) ->  | F2: Tcorr | G2: 20 | H2: degC | J2: JBy total | K2: =K1262 -> -12.65251382 | L2: muTm^2 | M2: =M1262 -> 41.408631
A3: =IF('DF raw data'!A3="","",'DF raw data'!A3) -> Operator | B3: =IF('DF raw data'!B3="","",'DF raw data'!B3) -> PMHA | C3: =IF('DF raw data'!C3="","",'DF raw data'!C3) ->  | D3: =IF('DF raw data'!D3="","",'DF raw data'!D3) ->  | F3: Step | G3: =A63-A62 -> 0.5 | H3: mm | J3: PI total | K3: =N1262 -> 10685.68892 | L3: T^2mm^3
A4: =IF('DF raw data'!A4="","",'DF raw data'!A4) -> Data-time | B4: =IF('DF raw data'!B4="","",'DF raw data'!B4) -> 13-09-2024, 11:10:13 | C4: =IF('DF raw data'!C4="","",'DF raw data'!C4) ->  | D4: =IF('DF raw data'!D4="","",'DF raw data'!D4) -> 
A5: =IF('DF raw data'!A5="","",'DF raw data'!A5) -> Project | B5: =IF('DF raw data'!B5="","",'DF raw data'!B5) -> 504314 | C5: =IF('DF raw data'!C5="","",'DF raw data'!C5) ->  | D5: =IF('DF raw data'!D5="","",'DF raw data'!D5) -> 
A6: =IF('DF raw data'!A6="","",'DF raw data'!A6) -> Magnet type | B6: =IF('DF raw data'!B6="","",'DF raw data'!B6) -> Dipole | C6: =IF('DF raw data'!C6="","",'DF raw data'!C6) ->  | D6: =IF('DF raw data'!D6="","",'DF raw data'!D6) -> 
A7: =IF('DF raw data'!A7="","",'DF raw data'!A7) -> Magnet nr. | B7: =IF('DF raw data'!B7="","",'DF raw data'!B7) -> 2410096 | C7: =IF('DF raw data'!C7="","",'DF raw data'!C7) ->  | D7: =IF('DF raw data'!D7="","",'DF raw data'!D7) -> 
A8: =IF('DF raw data'!A8="","",'DF raw data'!A8) -> Meas. number | B8: =IF('DF raw data'!B8="","",'DF raw data'!B8) -> 451 | C8: =IF('DF raw data'!C8="","",'DF raw data'!C8) ->  | D8: =IF('DF raw data'!D8="","",'DF raw data'!D8) -> 
A9: =IF('DF raw data'!A9="","",'DF raw data'!A9) -> Add. info | B9: =IF('DF raw data'!B9="","",'DF raw data'!B9) -> Y-alignment scan 1) | C9: =IF('DF raw data'!C9="","",'DF raw data'!C9) ->  | D9: =IF('DF raw data'!D9="","",'DF raw data'!D9) -> 
A10: =IF('DF raw data'!A10="","",'DF raw data'!A10) -> Device | B10: =IF('DF raw data'!B10="","",'DF raw data'!B10) -> (HAL) HALL-PROBE | C10: =IF('DF raw data'!C10="","",'DF raw data'!C10) ->  | D10: =IF('DF raw data'!D10="","",'DF raw data'!D10) -> 
A11: =IF('DF raw data'!A11="","",'DF raw data'!A11) -> Goal | B11: =IF('DF raw data'!B11="","",'DF raw data'!B11) -> (AXI) AXis Integral (Line, EFB) | C11: =IF('DF raw data'!C11="","",'DF raw data'!C11) ->  | D11: =IF('DF raw data'!D11="","",'DF raw data'!D11) -> 
A12: =IF('DF raw data'!A12="","",'DF raw data'!A12) -> Power supply mode | B12: =IF('DF raw data'!B12="","",'DF raw data'!B12) -> (PM) Permanent Magnet (no MPS in use) | C12: =IF('DF raw data'!C12="","",'DF raw data'!C12) ->  | D12: =IF('DF raw data'!D12="","",'DF raw data'!D12) -> 
A13: =IF('DF raw data'!A13="","",'DF raw data'!A13) -> Data format | B13: =IF('DF raw data'!B13="","",'DF raw data'!B13) -> Raw data text file | C13: =IF('DF raw data'!C13="","",'DF raw data'!C13) ->  | D13: =IF('DF raw data'!D13="","",'DF raw data'!D13) -> 
A14: =IF('DF raw data'!A14="","",'DF raw data'!A14) -> Direction of the pos. x-axis | B14: =IF('DF raw data'!B14="","",'DF raw data'!B14) -> See test program | C14: =IF('DF raw data'!C14="","",'DF raw data'!C14) ->  | D14: =IF('DF raw data'!D14="","",'DF raw data'!D14) -> 
A15: =IF('DF raw data'!A15="","",'DF raw data'!A15) -> Direction of the pos. y-axis | B15: =IF('DF raw data'!B15="","",'DF raw data'!B15) -> Vertical up | C15: =IF('DF raw data'!C15="","",'DF raw data'!C15) ->  | D15: =IF('DF raw data'!D15="","",'DF raw data'!D15) -> 
A16: =IF('DF raw data'!A16="","",'DF raw data'!A16) -> Direction of the pos. z-axis | B16: =IF('DF raw data'!B16="","",'DF raw data'!B16) -> See test program | C16: =IF('DF raw data'!C16="","",'DF raw data'!C16) ->  | D16: =IF('DF raw data'!D16="","",'DF raw data'!D16) -> 
A17: =IF('DF raw data'!A17="","",'DF raw data'!A17) -> Mapper type | B17: =IF('DF raw data'!B17="","",'DF raw data'!B17) -> Precision Hall Mapper | C17: =IF('DF raw data'!C17="","",'DF raw data'!C17) ->  | D17: =IF('DF raw data'!D17="","",'DF raw data'!D17) -> 
A18: =IF('DF raw data'!A18="","",'DF raw data'!A18) -> Mapper Danfysik Reg. Number | B18: =IF('DF raw data'!B18="","",'DF raw data'!B18) -> 2033-D (mapper 1) | C18: =IF('DF raw data'!C18="","",'DF raw data'!C18) ->  | D18: =IF('DF raw data'!D18="","",'DF raw data'!D18) -> 
A19: =IF('DF raw data'!A19="","",'DF raw data'!A19) -> Measurement consept | B19: =IF('DF raw data'!B19="","",'DF raw data'!B19) -> Square line grid | C19: =IF('DF raw data'!C19="","",'DF raw data'!C19) ->  | D19: =IF('DF raw data'!D19="","",'DF raw data'!D19) -> 
A20: =IF('DF raw data'!A20="","",'DF raw data'!A20) -> Mode | B20: =IF('DF raw data'!B20="","",'DF raw data'!B20) -> On-the-fly measurement | C20: =IF('DF raw data'!C20="","",'DF raw data'!C20) ->  | D20: =IF('DF raw data'!D20="","",'DF raw data'!D20) -> 
A21: =IF('DF raw data'!A21="","",'DF raw data'!A21) ->  | B21: =IF('DF raw data'!B21="","",'DF raw data'!B21) ->  | C21: =IF('DF raw data'!C21="","",'DF raw data'!C21) ->  | D21: =IF('DF raw data'!D21="","",'DF raw data'!D21) -> 
A22: =IF('DF raw data'!A22="","",'DF raw data'!A22) -> Probe Name | B22: =IF('DF raw data'!B22="","",'DF raw data'!B22) -> ID12_By | C22: =IF('DF raw data'!C22="","",'DF raw data'!C22) ->  | D22: =IF('DF raw data'!D22="","",'DF raw data'!D22) -> 
A23: =IF('DF raw data'!A23="","",'DF raw data'!A23) -> Probe Type | B23: =IF('DF raw data'!B23="","",'DF raw data'!B23) -> DF_ID_3D_Bxyz | C23: =IF('DF raw data'!C23="","",'DF raw data'!C23) ->  | D23: =IF('DF raw data'!D23="","",'DF raw data'!D23) -> 
A24: =IF('DF raw data'!A24="","",'DF raw data'!A24) -> Probe Danfysik Reg. Number | B24: =IF('DF raw data'!B24="","",'DF raw data'!B24) -> 2277 | C24: =IF('DF raw data'!C24="","",'DF raw data'!C24) ->  | D24: =IF('DF raw data'!D24="","",'DF raw data'!D24) -> 
A25: =IF('DF raw data'!A25="","",'DF raw data'!A25) -> Probe Axis | B25: =IF('DF raw data'!B25="","",'DF raw data'!B25) -> By | C25: =IF('DF raw data'!C25="","",'DF raw data'!C25) ->  | D25: =IF('DF raw data'!D25="","",'DF raw data'!D25) -> 
A26: =IF('DF raw data'!A26="","",'DF raw data'!A26) -> Probe Current Supply | B26: =IF('DF raw data'!B26="","",'DF raw data'!B26) -> 1825-D | C26: =IF('DF raw data'!C26="","",'DF raw data'!C26) ->  | D26: =IF('DF raw data'!D26="","",'DF raw data'!D26) -> 
A27: =IF('DF raw data'!A27="","",'DF raw data'!A27) -> Probe Gain Correction | B27: =IF('DF raw data'!B27="","",'DF raw data'!B27) -> 0.99619 | C27: =IF('DF raw data'!C27="","",'DF raw data'!C27) ->  | D27: =IF('DF raw data'!D27="","",'DF raw data'!D27) -> 
A28: =IF('DF raw data'!A28="","",'DF raw data'!A28) -> Probe Offset Correction | B28: =IF('DF raw data'!B28="","",'DF raw data'!B28) -> 0.002767 | C28: =IF('DF raw data'!C28="","",'DF raw data'!C28) ->  | D28: =IF('DF raw data'!D28="","",'DF raw data'!D28) -> 
A29: =IF('DF raw data'!A29="","",'DF raw data'!A29) -> DVM Number | B29: =IF('DF raw data'!B29="","",'DF raw data'!B29) -> 2 | C29: =IF('DF raw data'!C29="","",'DF raw data'!C29) ->  | D29: =IF('DF raw data'!D29="","",'DF raw data'!D29) -> 
A30: =IF('DF raw data'!A30="","",'DF raw data'!A30) -> DVM Type | B30: =IF('DF raw data'!B30="","",'DF raw data'!B30) -> K2701 | C30: =IF('DF raw data'!C30="","",'DF raw data'!C30) ->  | D30: =IF('DF raw data'!D30="","",'DF raw data'!D30) -> 
A31: =IF('DF raw data'!A31="","",'DF raw data'!A31) -> DVM Danfysik Reg. Number | B31: =IF('DF raw data'!B31="","",'DF raw data'!B31) -> 1743-D | C31: =IF('DF raw data'!C31="","",'DF raw data'!C31) ->  | D31: =IF('DF raw data'!D31="","",'DF raw data'!D31) -> 
A32: =IF('DF raw data'!A32="","",'DF raw data'!A32) -> Probe Name | B32: =IF('DF raw data'!B32="","",'DF raw data'!B32) -> ID12_Bx | C32: =IF('DF raw data'!C32="","",'DF raw data'!C32) ->  | D32: =IF('DF raw data'!D32="","",'DF raw data'!D32) -> 
A33: =IF('DF raw data'!A33="","",'DF raw data'!A33) -> Probe Type | B33: =IF('DF raw data'!B33="","",'DF raw data'!B33) -> DF_ID_3D_Bxyz | C33: =IF('DF raw data'!C33="","",'DF raw data'!C33) ->  | D33: =IF('DF raw data'!D33="","",'DF raw data'!D33) -> 
A34: =IF('DF raw data'!A34="","",'DF raw data'!A34) -> Probe Danfysik Reg. Number | B34: =IF('DF raw data'!B34="","",'DF raw data'!B34) -> 2277 | C34: =IF('DF raw data'!C34="","",'DF raw data'!C34) ->  | D34: =IF('DF raw data'!D34="","",'DF raw data'!D34) -> 
A35: =IF('DF raw data'!A35="","",'DF raw data'!A35) -> Probe Axis | B35: =IF('DF raw data'!B35="","",'DF raw data'!B35) -> Bx | C35: =IF('DF raw data'!C35="","",'DF raw data'!C35) ->  | D35: =IF('DF raw data'!D35="","",'DF raw data'!D35) -> 
A36: =IF('DF raw data'!A36="","",'DF raw data'!A36) -> Probe Current Supply | B36: =IF('DF raw data'!B36="","",'DF raw data'!B36) -> 1825-D | C36: =IF('DF raw data'!C36="","",'DF raw data'!C36) ->  | D36: =IF('DF raw data'!D36="","",'DF raw data'!D36) -> 
A37: =IF('DF raw data'!A37="","",'DF raw data'!A37) -> Probe Gain Correction | B37: =IF('DF raw data'!B37="","",'DF raw data'!B37) -> 1 | C37: =IF('DF raw data'!C37="","",'DF raw data'!C37) ->  | D37: =IF('DF raw data'!D37="","",'DF raw data'!D37) -> 
A38: =IF('DF raw data'!A38="","",'DF raw data'!A38) -> Probe Offset Correction | B38: =IF('DF raw data'!B38="","",'DF raw data'!B38) -> -0.17549 | C38: =IF('DF raw data'!C38="","",'DF raw data'!C38) ->  | D38: =IF('DF raw data'!D38="","",'DF raw data'!D38) -> 
A39: =IF('DF raw data'!A39="","",'DF raw data'!A39) -> DVM Number | B39: =IF('DF raw data'!B39="","",'DF raw data'!B39) -> 3 | C39: =IF('DF raw data'!C39="","",'DF raw data'!C39) ->  | D39: =IF('DF raw data'!D39="","",'DF raw data'!D39) -> 
A40: =IF('DF raw data'!A40="","",'DF raw data'!A40) -> DVM Type | B40: =IF('DF raw data'!B40="","",'DF raw data'!B40) -> K2701 | C40: =IF('DF raw data'!C40="","",'DF raw data'!C40) ->  | D40: =IF('DF raw data'!D40="","",'DF raw data'!D40) -> 
A41: =IF('DF raw data'!A41="","",'DF raw data'!A41) -> DVM Danfysik Reg. Number | B41: =IF('DF raw data'!B41="","",'DF raw data'!B41) -> 1744-D | C41: =IF('DF raw data'!C41="","",'DF raw data'!C41) ->  | D41: =IF('DF raw data'!D41="","",'DF raw data'!D41) -> 
A42: =IF('DF raw data'!A42="","",'DF raw data'!A42) -> Probe Name | B42: =IF('DF raw data'!B42="","",'DF raw data'!B42) -> ID12_Bz | C42: =IF('DF raw data'!C42="","",'DF raw data'!C42) ->  | D42: =IF('DF raw data'!D42="","",'DF raw data'!D42) -> 
A43: =IF('DF raw data'!A43="","",'DF raw data'!A43) -> Probe Type | B43: =IF('DF raw data'!B43="","",'DF raw data'!B43) -> DF_ID_3D_Bxyz | C43: =IF('DF raw data'!C43="","",'DF raw data'!C43) ->  | D43: =IF('DF raw data'!D43="","",'DF raw data'!D43) -> 
A44: =IF('DF raw data'!A44="","",'DF raw data'!A44) -> Probe Danfysik Reg. Number | B44: =IF('DF raw data'!B44="","",'DF raw data'!B44) -> 2277 | C44: =IF('DF raw data'!C44="","",'DF raw data'!C44) ->  | D44: =IF('DF raw data'!D44="","",'DF raw data'!D44) -> 
A45: =IF('DF raw data'!A45="","",'DF raw data'!A45) -> Probe Axis | B45: =IF('DF raw data'!B45="","",'DF raw data'!B45) -> Bz | C45: =IF('DF raw data'!C45="","",'DF raw data'!C45) ->  | D45: =IF('DF raw data'!D45="","",'DF raw data'!D45) -> 
A46: =IF('DF raw data'!A46="","",'DF raw data'!A46) -> Probe Current Supply | B46: =IF('DF raw data'!B46="","",'DF raw data'!B46) -> 1825-D | C46: =IF('DF raw data'!C46="","",'DF raw data'!C46) ->  | D46: =IF('DF raw data'!D46="","",'DF raw data'!D46) -> 
A47: =IF('DF raw data'!A47="","",'DF raw data'!A47) -> Probe Gain Correction | B47: =IF('DF raw data'!B47="","",'DF raw data'!B47) -> 1 | C47: =IF('DF raw data'!C47="","",'DF raw data'!C47) ->  | D47: =IF('DF raw data'!D47="","",'DF raw data'!D47) -> 
A48: =IF('DF raw data'!A53="","",'DF raw data'!A53) -> PS-Gap: | B48: =IF('DF raw data'!B53="","",'DF raw data'!B53) -> 10 | C48: =IF('DF raw data'!C53="","",'DF raw data'!C53) ->  | D48: =IF('DF raw data'!D53="","",'DF raw data'!D53) -> 
A49: =IF('DF raw data'!A54="","",'DF raw data'!A54) -> PS-Temperature: | B49: =IF('DF raw data'!B54="","",'DF raw data'!B54) -> 24.5 | C49: =IF('DF raw data'!C54="","",'DF raw data'!C54) ->  | D49: =IF('DF raw data'!D54="","",'DF raw data'!D54) -> 
A50: =IF('DF raw data'!A55="","",'DF raw data'!A55) -> PS-Encoder: | B50: =IF('DF raw data'!B55="","",'DF raw data'!B55) -> 19.73485 | C50: =IF('DF raw data'!C55="","",'DF raw data'!C55) ->  | D50: =IF('DF raw data'!D55="","",'DF raw data'!D55) -> 
A51: =IF('DF raw data'!A56="","",'DF raw data'!A56) ->  | B51: =IF('DF raw data'!B56="","",'DF raw data'!B56) ->  | C51: =IF('DF raw data'!C56="","",'DF raw data'!C56) ->  | D51: =IF('DF raw data'!D56="","",'DF raw data'!D56) -> 
A52: =IF('DF raw data'!A57="","",'DF raw data'!A57) -> Monitor-Index | B52: =IF('DF raw data'!B57="","",'DF raw data'!B57) -> [1,1,4] | C52: =IF('DF raw data'!C57="","",'DF raw data'!C57) ->  | D52: =IF('DF raw data'!D57="","",'DF raw data'!D57) -> 
A53: =IF('DF raw data'!A58="","",'DF raw data'!A58) ->  | B53: =IF('DF raw data'!B58="","",'DF raw data'!B58) ->  | C53: =IF('DF raw data'!C58="","",'DF raw data'!C58) ->  | D53: =IF('DF raw data'!D58="","",'DF raw data'!D58) -> 
A54: =IF('DF raw data'!A59="","",'DF raw data'!A59) -> Time [s] | B54: =IF('DF raw data'!B59="","",'DF raw data'!B59) -> Y [mm] | C54: =IF('DF raw data'!C59="","",'DF raw data'!C59) -> X [mm] | D54: =IF('DF raw data'!D59="","",'DF raw data'!D59) -> Nominal current [A]
A55: =IF('DF raw data'!A60="","",'DF raw data'!A60) ->  | B55: =IF('DF raw data'!B60="","",'DF raw data'!B60) ->  | C55: =IF('DF raw data'!C60="","",'DF raw data'!C60) ->  | D55: =IF('DF raw data'!D60="","",'DF raw data'!D60) -> 
A56: =IF('DF raw data'!A61="","",'DF raw data'!A61) -> 208.6 | B56: =IF('DF raw data'!B61="","",'DF raw data'!B61) -> 31.56 | C56: =IF('DF raw data'!C61="","",'DF raw data'!C61) -> 302.3 | D56: =IF('DF raw data'!D61="","",'DF raw data'!D61) -> 0
A57: =IF('DF raw data'!A62="","",'DF raw data'!A62) ->  | B57: =IF('DF raw data'!B62="","",'DF raw data'!B62) ->  | C57: =IF('DF raw data'!C62="","",'DF raw data'!C62) ->  | D57: =IF('DF raw data'!D62="","",'DF raw data'!D62) -> 
A58: =IF('DF raw data'!A63="","",'DF raw data'!A63) -> Measurement-Index | B58: =IF('DF raw data'!B63="","",'DF raw data'!B63) -> [1,1,1201,2] | C58: =IF('DF raw data'!C63="","",'DF raw data'!C63) ->  | D58: =IF('DF raw data'!D63="","",'DF raw data'!D63) -> 
A59: =IF('DF raw data'!A64="","",'DF raw data'!A64) ->  | B59: =IF('DF raw data'!B64="","",'DF raw data'!B64) ->  | C59: =IF('DF raw data'!C64="","",'DF raw data'!C64) ->  | D59: =IF('DF raw data'!D64="","",'DF raw data'!D64) -> 
A60: =IF('DF raw data'!A65="","",'DF raw data'!A65) -> Z [mm] | B60: =IF('DF raw data'!B65="","",'DF raw data'!B65) -> By [T] | C60: =IF('DF raw data'!C65="","",'DF raw data'!C65) -> Bx [T] | D60: =IF('DF raw data'!D65="","",'DF raw data'!D65) -> Bz [T] | F60: By_corr | G60: Bx_corr | H60: Bz_corr | J60: Iy | K60: Jy | L60: Ix | M60: Jx | N60: PI
A62: =IF('DF raw data'!A67="","",'DF raw data'!A67) -> -300 | B62: =IF('DF raw data'!B67="","",'DF raw data'!B67) -> 7.12575e-06 | C62: =IF('DF raw data'!C67="","",'DF raw data'!C67) -> 0.000281959 | D62: =IF('DF raw data'!D67="","",'DF raw data'!D67) -> -1.83491e-05 | F62: =(1-$G$1*($B$49))*B62 -> 7.300330875e-06 | G62: =(1-$G$1*($B$49-$G$2))*C62 -> 0.0002832278155 | H62: =(1-$G$1*($B$49-$G$2))*D62 -> -1.843167095e-05 | J62: =F62*$G$3 -> 3.650165438e-06 | K62: =J62*$G$3 -> 1.825082719e-06 | L62: =G62*$G$3 -> 0.0001416139077 | M62: =L62*$G$3 -> 7.080695387e-05 | N62: =(J62^2+L62^2)*$G$3 -> 1.003391129e-08
A63: =IF('DF raw data'!A68="","",'DF raw data'!A68) -> -299.5 | B63: =IF('DF raw data'!B68="","",'DF raw data'!B68) -> -4.47159e-06 | C63: =IF('DF raw data'!C68="","",'DF raw data'!C68) -> 0.00028089 | D63: =IF('DF raw data'!D68="","",'DF raw data'!D68) -> -1.81743e-05 | F63: =(1-$G$1*($B$49-$G$2))*B63 -> -4.491712155e-06 | G63: =(1-$G$1*($B$49-$G$2))*C63 -> 0.000282154005 | H63: -1.825608435e-05 | J63: =F63*$G$3+J62 -> 1.40430936e-06 | K63: =J63*$G$3+K62 -> 2.527237399e-06 | L63: =G63*$G$3+L62 -> 0.0002826909102 | M63: =L63*$G$3+M62 -> 0.000212152409 | N63: =(J63^2+L63^2)*$G$3+N62 -> 4.99919727e-08
A64: =IF('DF raw data'!A69="","",'DF raw data'!A69) -> -299 | B64: =IF('DF raw data'!B69="","",'DF raw data'!B69) -> -8.82883e-06 | C64: =IF('DF raw data'!C69="","",'DF raw data'!C69) -> 0.000278996 | D64: =IF('DF raw data'!D69="","",'DF raw data'!D69) -> -1.76727e-05 | F64: =(1-$G$1*($B$49-$G$2))*B64 -> -8.868559735e-06 | G64: 0.000280251482 | H64: -1.775222715e-05 | J64: =F64*$G$3+J63 -> -3.029970507e-06 | K64: =J64*$G$3+K63 -> 1.012252145e-06 | L64: =G64*$G$3+L63 -> 0.0004228166513 | M64: =L64*$G$3+M63 -> 0.0004235607346 | N64: =(J64^2+L64^2)*$G$3+N63 -> 1.393835233e-07
A65: =IF('DF raw data'!A70="","",'DF raw data'!A70) -> -298.5 | B65: =IF('DF raw data'!B70="","",'DF raw data'!B70) -> -2.17724e-05 | C65: =IF('DF raw data'!C70="","",'DF raw data'!C70) -> 0.000289141 | D65: =IF('DF raw data'!D70="","",'DF raw data'!D70) -> -1.65714e-05 | F65: -2.18703758e-05 | G65: 0.0002904421345 | H65: -1.66459713e-05 | J65: -1.396515841e-05 | K65: -5.970327059e-06 | L65: 0.0005680377185 | M65: 0.0007075795939 | N65: 3.00814461e-07
A66: =IF('DF raw data'!A71="","",'DF raw data'!A71) -> -298 | B66: =IF('DF raw data'!B71="","",'DF raw data'!B71) -> -2.27979e-05 | C66: =IF('DF raw data'!C71="","",'DF raw data'!C71) -> 0.000281638 | D66: =IF('DF raw data'!D71="","",'DF raw data'!D71) -> -1.52957e-05 | F66: -2.290049055e-05 | G66: 0.000282905371 | H66: -1.536453065e-05 | J66: -2.541540368e-05 | K66: -1.86780289e-05 | L66: 0.000709490404 | M66: 0.001062324796 | N66: 5.52825749e-07
A67: =IF('DF raw data'!A72="","",'DF raw data'!A72) -> -297.5 | B67: =IF('DF raw data'!B72="","",'DF raw data'!B72) -> -1.42131e-05 | C67: =IF('DF raw data'!C72="","",'DF raw data'!C72) -> 0.000275866 | D67: =IF('DF raw data'!D72="","",'DF raw data'!D72) -> -1.47301e-05 | F67: -1.427705895e-05 | G67: 0.000277107397 | H67: -1.479638545e-05 | J67: -3.255393316e-05 | K67: -3.495499548e-05 | L67: 0.0008480441025 | M67: 0.001486346847 | N67: 9.129450282e-07
A68: =IF('DF raw data'!A73="","",'DF raw data'!A73) -> -297 | B68: =IF('DF raw data'!B73="","",'DF raw data'!B73) -> -1.77366e-05 | C68: =IF('DF raw data'!C73="","",'DF raw data'!C73) -> 0.000280799 | D68: =IF('DF raw data'!D73="","",'DF raw data'!D73) -> -1.47353e-05 | F68: -1.78164147e-05 | G68: 0.0002820625955 | H68: -1.480160885e-05 | J68: -4.146214051e-05 | K68: -5.568606573e-05 | L68: 0.0009890754003 | M68: 0.001980884547 | N68: 1.402939656e-06
A69: =IF('DF raw data'!A74="","",'DF raw data'!A74) -> -296.5 | B69: =IF('DF raw data'!B74="","",'DF raw data'!B74) -> -1.38287e-05 | C69: =IF('DF raw data'!C74="","",'DF raw data'!C74) -> 0.000277804 | D69: =IF('DF raw data'!D74="","",'DF raw data'!D74) -> -1.47552e-05 | F69: -1.389092915e-05 | G69: 0.000279054118 | H69: -1.48215984e-05 | J69: -4.840760508e-05 | K69: -7.988986827e-05 | L69: 0.001128602459 | M69: 0.002545185777 | N69: 2.04098306e-06
A70: =IF('DF raw data'!A75="","",'DF raw data'!A75) -> -296 | B70: =IF('DF raw data'!B75="","",'DF raw data'!B75) -> -1.42126e-05 | C70: =IF('DF raw data'!C75="","",'DF raw data'!C75) -> 0.000271142 | D70: =IF('DF raw data'!D75="","",'DF raw data'!D75) -> -1.48694e-05 | F70: -1.42765567e-05 | G70: 0.000272362139 | H70: -1.49363123e-05 | J70: -5.554588343e-05 | K70: -0.00010766281 | L70: 0.001264783529 | M70: 0.003177577541 | N70: 2.84236442e-06
A71: =IF('DF raw data'!A76="","",'DF raw data'!A76) -> -295.5 | B71: =IF('DF raw data'!B76="","",'DF raw data'!B76) -> -7.93369e-06 | C71: =IF('DF raw data'!C76="","",'DF raw data'!C76) -> 0.000271077 | D71: =IF('DF raw data'!D76="","",'DF raw data'!D76) -> -1.52377e-05 | F71: -7.969391605e-06 | G71: 0.0002722968465 | H71: -1.530626965e-05 | J71: -5.953057924e-05 | K71: -0.0001374280996 | L71: 0.001400931952 | M71: 0.003878043517 | N71: 3.825441532e-06
A72: =IF('DF raw data'!A77="","",'DF raw data'!A77) -> -295 | B72: =IF('DF raw data'!B77="","",'DF raw data'!B77) -> -1.61985e-05 | C72: =IF('DF raw data'!C77="","",'DF raw data'!C77) -> 0.000280791 | D72: =IF('DF raw data'!D77="","",'DF raw data'!D77) -> -1.54201e-05 | F72: -1.627139325e-05 | G72: 0.0002820545595 | H72: -1.548949045e-05 | J72: -6.766627586e-05 | K72: -0.0001712612375 | L72: 0.001541959232 | M72: 0.004649023133 | N72: 5.016550031e-06
A73: =IF('DF raw data'!A78="","",'DF raw data'!A78) -> -294.5 | B73: =IF('DF raw data'!B78="","",'DF raw data'!B78) -> -1.197e-05 | C73: =IF('DF raw data'!C78="","",'DF raw data'!C78) -> 0.000279638 | D73: =IF('DF raw data'!D78="","",'DF raw data'!D78) -> -1.56337e-05 | F73: -1.2023865e-05 | G73: 0.000280896371 | H73: -1.570405165e-05 | J73: -7.367820836e-05 | K73: -0.0002081003417 | L73: 0.001682407417 | M73: 0.005490226842 | N73: 6.434511629e-06
A74: =IF('DF raw data'!A79="","",'DF raw data'!A79) -> -294 | B74: =IF('DF raw data'!B79="","",'DF raw data'!B79) -> -1.20333e-05 | C74: =IF('DF raw data'!C79="","",'DF raw data'!C79) -> 0.000277566 | D74: =IF('DF raw data'!D79="","",'DF raw data'!D79) -> -1.60332e-05 | F74: -1.208744985e-05 | G74: 0.000278815047 | H74: -1.61053494e-05 | J74: -7.972193329e-05 | K74: -0.0002479613084 | L74: 0.001821814941 | M74: 0.006401134312 | N74: 8.097194261e-06
A75: =IF('DF raw data'!A80="","",'DF raw data'!A80) -> -293.5 | B75: =IF('DF raw data'!B80="","",'DF raw data'!B80) -> -1.98508e-05 | C75: =IF('DF raw data'!C80="","",'DF raw data'!C80) -> 0.000278906 | D75: =IF('DF raw data'!D80="","",'DF raw data'!D80) -> -1.58805e-05 | F75: -1.99401286e-05 | G75: 0.000280161077 | H75: -1.595196225e-05 | J75: -8.969199759e-05 | K75: -0.0002928073072 | L75: 0.001961895479 | M75: 0.007382082052 | N75: 1.002573352e-05
A76: =IF('DF raw data'!A81="","",'DF raw data'!A81) -> -293 | B76: =IF('DF raw data'!B81="","",'DF raw data'!B81) -> -2.47839e-05 | C76: =IF('DF raw data'!C81="","",'DF raw data'!C81) -> 0.000285015 | D76: =IF('DF raw data'!D81="","",'DF raw data'!D81) -> -1.51542e-05 | F76: -2.489542755e-05 | G76: 0.0002862975675 | H76: -1.52223939e-05 | J76: -0.0001021397114 | K76: -0.0003438771628 | L76: 0.002105044263 | M76: 0.008434604183 | N76: 1.224655546e-05
A77: =IF('DF raw data'!A82="","",'DF raw data'!A82) -> -292.5 | B77: =IF('DF raw data'!B82="","",'DF raw data'!B82) -> -1.13298e-05 | C77: =IF('DF raw data'!C82="","",'DF raw data'!C82) -> 0.000278077 | D77: =IF('DF raw data'!D82="","",'DF raw data'!D82) -> -1.48809e-05 | F77: -1.13807841e-05 | G77: 0.0002793283465 | H77: -1.494786405e-05 | J77: -0.0001078301034 | K77: -0.0003977922145 | L77: 0.002244708436 | M77: 0.009556958401 | N77: 1.477172711e-05
A78: =IF('DF raw data'!A83="","",'DF raw data'!A83) -> -292 | B78: =IF('DF raw data'!B83="","",'DF raw data'!B83) -> -1.94023e-05 | C78: =IF('DF raw data'!C83="","",'DF raw data'!C83) -> 0.00027496 | D78: =IF('DF raw data'!D83="","",'DF raw data'!D83) -> -1.47024e-05 | F78: -1.948961035e-05 | G78: 0.00027619732 | H78: -1.47685608e-05 | J78: -0.0001175749086 | K78: -0.0004565796688 | L78: 0.002382807096 | M78: 0.01074836195 | N78: 1.761752386e-05
A79: =IF('DF raw data'!A84="","",'DF raw data'!A84) -> -291.5 | B79: =IF('DF raw data'!B84="","",'DF raw data'!B84) -> -1.88272e-05 | C79: =IF('DF raw data'!C84="","",'DF raw data'!C84) -> 0.000276525 | D79: =IF('DF raw data'!D84="","",'DF raw data'!D84) -> -1.3353e-05 | F79: -1.89119224e-05 | G79: 0.0002777693625 | H79: -1.34130885e-05 | J79: -0.0001270308698 | K79: -0.0005200951037 | L79: 0.002521691778 | M79: 0.01200920784 | N79: 2.0805057e-05
A80: =IF('DF raw data'!A85="","",'DF raw data'!A85) -> -291 | B80: =IF('DF raw data'!B85="","",'DF raw data'!B85) -> -5.44165e-06 | C80: =IF('DF raw data'!C85="","",'DF raw data'!C85) -> 0.000281652 | D80: =IF('DF raw data'!D85="","",'DF raw data'!D85) -> -4.50737e-06 | F80: -5.466137425e-06 | G80: 0.000282919434 | H80: -4.527653165e-06 | J80: -0.0001297639385 | K80: -0.000584977073 | L80: 0.002663151495 | M80: 0.01334078359 | N80: 2.435966428e-05
A81: =IF('DF raw data'!A86="","",'DF raw data'!A86) -> -290.5 | B81: =IF('DF raw data'!B86="","",'DF raw data'!B86) -> -6.92146e-06 | C81: =IF('DF raw data'!C86="","",'DF raw data'!C86) -> 0.000273092 | D81: =IF('DF raw data'!D86="","",'DF raw data'!D86) -> 4.68107e-06 | F81: -6.95260657e-06 | G81: 0.000274320914 | H81: 4.702134815e-06 | J81: -0.0001332402418 | K81: -0.0006515971939 | L81: 0.002800311952 | M81: 0.01474093956 | N81: 2.828941427e-05
A82: =IF('DF raw data'!A87="","",'DF raw data'!A87) -> -290 | B82: =IF('DF raw data'!B87="","",'DF raw data'!B87) -> -6.52576e-06 | C82: =IF('DF raw data'!C87="","",'DF raw data'!C87) -> 0.000269997 | D82: =IF('DF raw data'!D87="","",'DF raw data'!D87) -> -1.21163e-05 | F82: -6.55512592e-06 | G82: 0.0002712119865 | H82: -1.217082335e-05 | J82: -0.0001365178047 | K82: -0.0007198560962 | L82: 0.002935917945 | M82: 0.01620889853 | N82: 3.260853992e-05
A83: =IF('DF raw data'!A88="","",'DF raw data'!A88) -> -289.5 | B83: =IF('DF raw data'!B88="","",'DF raw data'!B88) -> -2.69702e-05 | C83: =IF('DF raw data'!C88="","",'DF raw data'!C88) -> 0.000269483 | D83: =IF('DF raw data'!D88="","",'DF raw data'!D88) -> -4.33375e-06 | F83: -2.70915659e-05 | G83: 0.0002706956735 | H83: -4.353251875e-06 | J83: -0.0001500635877 | K83: -0.0007948878901 | L83: 0.003071265782 | M83: 0.01774453142 | N83: 3.733613621e-05
A84: =IF('DF raw data'!A89="","",'DF raw data'!A89) -> -289 | B84: =IF('DF raw data'!B89="","",'DF raw data'!B89) -> -2.64518e-05 | C84: =IF('DF raw data'!C89="","",'DF raw data'!C89) -> 0.000268616 | D84: =IF('DF raw data'!D89="","",'DF raw data'!D89) -> -1.25527e-05 | F84: -2.65708331e-05 | G84: 0.000269824772 | H84: -1.260918715e-05 | J84: -0.0001633490042 | K84: -0.0008765623922 | L84: 0.003206178168 | M84: 0.01934762051 | N84: 4.248926688e-05
A85: =IF('DF raw data'!A90="","",'DF raw data'!A90) -> -288.5 | B85: =IF('DF raw data'!B90="","",'DF raw data'!B90) -> -2.05643e-05 | C85: =IF('DF raw data'!C90="","",'DF raw data'!C90) -> 0.00027519 | D85: =IF('DF raw data'!D90="","",'DF raw data'!D90) -> -2.32482e-06 | F85: -2.065683935e-05 | G85: 0.000276428355 | H85: -2.33528169e-06 | J85: -0.0001736774239 | K85: -0.0009634011042 | L85: 0.003344392345 | M85: 0.02101981668 | N85: 4.809682888e-05
A86: =IF('DF raw data'!A91="","",'DF raw data'!A91) -> -288 | B86: =IF('DF raw data'!B91="","",'DF raw data'!B91) -> -1.42195e-05 | C86: =IF('DF raw data'!C91="","",'DF raw data'!C91) -> 0.000276547 | D86: =IF('DF raw data'!D91="","",'DF raw data'!D91) -> -4.32693e-06 | F86: -1.428348775e-05 | G86: 0.0002777914615 | H86: -4.346401185e-06 | J86: -0.0001808191678 | K86: -0.001053810688 | L86: 0.003483288076 | M86: 0.02276146072 | N86: 5.417982457e-05
A87: =IF('DF raw data'!A92="","",'DF raw data'!A92) -> -287.5 | B87: =IF('DF raw data'!B92="","",'DF raw data'!B92) -> -7.23853e-06 | C87: =IF('DF raw data'!C92="","",'DF raw data'!C92) -> 0.000273396 | D87: =IF('DF raw data'!D92="","",'DF raw data'!D92) -> -1.80403e-07 | F87: -7.271103385e-06 | G87: 0.000274626282 | H87: -1.812148135e-07 | J87: -0.0001844547195 | K87: -0.001146038048 | L87: 0.003620601217 | M87: 0.02457176133 | N87: 6.075121293e-05
A88: =IF('DF raw data'!A93="","",'DF raw data'!A93) -> -287 | B88: =IF('DF raw data'!B93="","",'DF raw data'!B93) -> -1.4031e-05 | C88: =IF('DF raw data'!C93="","",'DF raw data'!C93) -> 0.000274698 | D88: =IF('DF raw data'!D93="","",'DF raw data'!D93) -> 1.57572e-06 | F88: -1.40941395e-05 | G88: 0.000275934141 | H88: 1.58281074e-06 | J88: -0.0001915017892 | K88: -0.001241788942 | L88: 0.003758568287 | M88: 0.02645104547 | N88: 6.783296718e-05
A89: =IF('DF raw data'!A94="","",'DF raw data'!A94) -> -286.5 | B89: =IF('DF raw data'!B94="","",'DF raw data'!B94) -> -1.19775e-05 | C89: =IF('DF raw data'!C94="","",'DF raw data'!C94) -> 0.000282549 | D89: =IF('DF raw data'!D94="","",'DF raw data'!D94) -> -3.93718e-06 | F89: -1.203139875e-05 | G89: 0.0002838204705 | H89: -3.95489731e-06 | J89: -0.0001975174886 | K89: -0.001340547687 | L89: 0.003900478523 | M89: 0.02840128473 | N89: 7.545934011e-05
A90: =IF('DF raw data'!A95="","",'DF raw data'!A95) -> -286 | B90: =IF('DF raw data'!B95="","",'DF raw data'!B95) -> -9.09739e-06 | C90: =IF('DF raw data'!C95="","",'DF raw data'!C95) -> 0.000285585 | D90: =IF('DF raw data'!D95="","",'DF raw data'!D95) -> 1.21969e-06 | F90: -9.138328255e-06 | G90: 0.0002868701325 | H90: 1.225178605e-06 | J90: -0.0002020866527 | K90: -0.001441591013 | L90: 0.004043913589 | M90: 0.03042324153 | N90: 8.365637818e-05
A91: =IF('DF raw data'!A96="","",'DF raw data'!A96) -> -285.5 | B91: =IF('DF raw data'!B96="","",'DF raw data'!B96) -> -1.29341e-05 | C91: =IF('DF raw data'!C96="","",'DF raw data'!C96) -> 0.00027838 | D91: =IF('DF raw data'!D96="","",'DF raw data'!D96) -> -1.10015e-05 | F91: -1.299230345e-05 | G91: 0.00027963271 | H91: -1.105100675e-05 | J91: -0.0002085828045 | K91: -0.001545882415 | L91: 0.004183729944 | M91: 0.0325151065 | N91: 9.242992969e-05
A92: =IF('DF raw data'!A97="","",'DF raw data'!A97) -> -285 | B92: =IF('DF raw data'!B97="","",'DF raw data'!B97) -> -8.57804e-06 | C92: =IF('DF raw data'!C97="","",'DF raw data'!C97) -> 0.000275899 | D92: =IF('DF raw data'!D97="","",'DF raw data'!D97) -> -9.31126e-06 | F92: -8.61664118e-06 | G92: 0.0002771405455 | H92: -9.35316067e-06 | J92: -0.0002128911251 | K92: -0.001652327978 | L92: 0.004322300216 | M92: 0.03467625661 | N92: 0.0001017937306
A93: =IF('DF raw data'!A98="","",'DF raw data'!A98) -> -284.5 | B93: =IF('DF raw data'!B98="","",'DF raw data'!B98) -> -1.04311e-05 | C93: =IF('DF raw data'!C98="","",'DF raw data'!C98) -> 0.000273363 | D93: =IF('DF raw data'!D98="","",'DF raw data'!D98) -> -1.73645e-05 | F93: -1.047803995e-05 | G93: 0.0002745931335 | H93: -1.744264025e-05 | J93: -0.000218130145 | K93: -0.00176139305 | L93: 0.004459596783 | M93: 0.036906055 | N93: 0.0001117615227
A94: =IF('DF raw data'!A99="","",'DF raw data'!A99) -> -284 | B94: =IF('DF raw data'!B99="","",'DF raw data'!B99) -> -8.32563e-06 | C94: =IF('DF raw data'!C99="","",'DF raw data'!C99) -> 0.000273027 | D94: =IF('DF raw data'!D99="","",'DF raw data'!D99) -> -3.3635e-06 | F94: -8.363095335e-06 | G94: 0.0002742556215 | H94: -3.37863575e-06 | J94: -0.0002223116927 | K94: -0.001872548897 | L94: 0.004596724594 | M94: 0.03920441729 | N94: 0.0001223511724
A95: =IF('DF raw data'!A100="","",'DF raw data'!A100) -> -283.5 | B95: =IF('DF raw data'!B100="","",'DF raw data'!B100) -> -1.92792e-05 | C95: =IF('DF raw data'!C100="","",'DF raw data'!C100) -> 0.000269036 | D95: =IF('DF raw data'!D100="","",'DF raw data'!D100) -> -7.64338e-06 | F95: -1.93659564e-05 | G95: 0.000270246662 | H95: -7.67777521e-06 | J95: -0.0002319946709 | K95: -0.001988546232 | L95: 0.004731847925 | M95: 0.04157034126 | N95: 0.0001335732756
A96: =IF('DF raw data'!A101="","",'DF raw data'!A101) -> -283 | B96: =IF('DF raw data'!B101="","",'DF raw data'!B101) -> -1.19121e-05 | C96: =IF('DF raw data'!C101="","",'DF raw data'!C101) -> 0.000268631 | D96: =IF('DF raw data'!D101="","",'DF raw data'!D101) -> -5.4513e-06 | F96: -1.196570445e-05 | G96: 0.0002698398395 | H96: -5.47583085e-06 | J96: -0.0002379775231 | K96: -0.002107534994 | L96: 0.004866767845 | M96: 0.04400372518 | N96: 0.0001454443069
A97: =IF('DF raw data'!A102="","",'DF raw data'!A102) -> -282.5 | B97: =IF('DF raw data'!B102="","",'DF raw data'!B102) -> -1.67109e-05 | C97: =IF('DF raw data'!C102="","",'DF raw data'!C102) -> 0.000277687 | D97: =IF('DF raw data'!D102="","",'DF raw data'!D102) -> -1.60902e-05 | F97: -1.678609905e-05 | G97: 0.0002789365915 | H97: -1.61626059e-05 | J97: -0.0002463705726 | K97: -0.00223072028 | L97: 0.00500623614 | M97: 0.04650684325 | N97: 0.0001580058563
A98: =IF('DF raw data'!A103="","",'DF raw data'!A103) -> -282 | B98: =IF('DF raw data'!B103="","",'DF raw data'!B103) -> -1.12052e-05 | C98: =IF('DF raw data'!C103="","",'DF raw data'!C103) -> 0.000275659 | D98: =IF('DF raw data'!D103="","",'DF raw data'!D103) -> -8.95519e-06 | F98: -1.12556234e-05 | G98: 0.0002768994655 | H98: -8.995488355e-06 | J98: -0.0002519983843 | K98: -0.002356719472 | L98: 0.005144685873 | M98: 0.04907918619 | N98: 0.0001712715042
A99: =IF('DF raw data'!A104="","",'DF raw data'!A104) -> -281.5 | B99: =IF('DF raw data'!B104="","",'DF raw data'!B104) -> -2.63246e-05 | C99: =IF('DF raw data'!C104="","",'DF raw data'!C104) -> 0.000277486 | D99: =IF('DF raw data'!D104="","",'DF raw data'!D104) -> -1.17637e-05 | F99: -2.64430607e-05 | G99: 0.000278734687 | H99: -1.181663665e-05 | J99: -0.0002652199147 | K99: -0.00248932943 | L99: 0.005284053217 | M99: 0.0517212128 | N99: 0.0001852672842
A100: =IF('DF raw data'!A105="","",'DF raw data'!A105) -> -281 | B100: =IF('DF raw data'!B105="","",'DF raw data'!B105) -> -1.03697e-05 | C100: =IF('DF raw data'!C105="","",'DF raw data'!C105) -> 0.000279498 | D100: =IF('DF raw data'!D105="","",'DF raw data'!D105) -> -1.28722e-05 | F100: -1.041636365e-05 | G100: 0.000280755741 | H100: -1.29301249e-05 | J100: -0.0002704280965 | K100: -0.002624543478 | L100: 0.005424431087 | M100: 0.05443342834 | N100: 0.0002000160762
A101: =IF('DF raw data'!A106="","",'DF raw data'!A106) -> -280.5 | B101: =IF('DF raw data'!B106="","",'DF raw data'!B106) -> -1.58184e-05 | C101: =IF('DF raw data'!C106="","",'DF raw data'!C106) -> 0.000279956 | D101: =IF('DF raw data'!D106="","",'DF raw data'!D106) -> -9.1057e-06 | F101: -1.58895828e-05 | G101: 0.000281215802 | H101: -9.14667565e-06 | J101: -0.0002783728879 | K101: -0.002763729922 | L101: 0.005565038988 | M101: 0.05721594783 | N101: 0.0002155396514
A102: =IF('DF raw data'!A107="","",'DF raw data'!A107) -> -280 | B102: =IF('DF raw data'!B107="","",'DF raw data'!B107) -> -1.90163e-05 | C102: =IF('DF raw data'!C107="","",'DF raw data'!C107) -> 0.000282503 | D102: =IF('DF raw data'!D107="","",'DF raw data'!D107) -> -1.75566e-05 | F102: -1.910187335e-05 | G102: 0.0002837742635 | H102: -1.76356047e-05 | J102: -0.0002879238246 | K102: -0.002907691834 | L102: 0.00570692612 | M102: 0.06006941089 | N102: 0.0002318656043
A103: =IF('DF raw data'!A108="","",'DF raw data'!A108) -> -279.5 | B103: =IF('DF raw data'!B108="","",'DF raw data'!B108) -> -1.22847e-05 | C103: =IF('DF raw data'!C108="","",'DF raw data'!C108) -> 0.000278096 | D103: =IF('DF raw data'!D108="","",'DF raw data'!D108) -> -2.42511e-05 | F103: -1.233998115e-05 | G103: 0.000279347432 | H103: -2.436022995e-05 | J103: -0.0002940938152 | K103: -0.003054738742 | L103: 0.005846599836 | M103: 0.06299271081 | N103: 0.0002490002147
A104: =IF('DF raw data'!A109="","",'DF raw data'!A109) -> -279 | B104: =IF('DF raw data'!B109="","",'DF raw data'!B109) -> -1.90861e-05 | C104: =IF('DF raw data'!C109="","",'DF raw data'!C109) -> 0.000275729 | D104: =IF('DF raw data'!D109="","",'DF raw data'!D109) -> -8.969e-06 | F104: -1.917198745e-05 | G104: 0.0002769697805 | H104: -9.0093605e-06 | J104: -0.0003036798089 | K104: -0.003206578646 | L104: 0.005985084726 | M104: 0.06598525317 | N104: 0.0002669569451
A105: =IF('DF raw data'!A110="","",'DF raw data'!A110) -> -278.5 | B105: =IF('DF raw data'!B110="","",'DF raw data'!B110) -> -1.915e-05 | C105: =IF('DF raw data'!C110="","",'DF raw data'!C110) -> 0.000280877 | D105: =IF('DF raw data'!D110="","",'DF raw data'!D110) -> -9.00362e-06 | F105: -1.9236175e-05 | G105: 0.0002821409465 | H105: -9.04413629e-06 | J105: -0.0003132978964 | K105: -0.003363227594 | L105: 0.006126155199 | M105: 0.06904833077 | N105: 0.0002857709116
A106: =IF('DF raw data'!A111="","",'DF raw data'!A111) -> -278 | B106: =IF('DF raw data'!B111="","",'DF raw data'!B111) -> -8.00366e-06 | C106: =IF('DF raw data'!C111="","",'DF raw data'!C111) -> 0.000285052 | D106: =IF('DF raw data'!D111="","",'DF raw data'!D111) -> -5.74702e-06 | F106: -8.03967647e-06 | G106: 0.000286334734 | H106: -5.77288159e-06 | J106: -0.0003173177346 | K106: -0.003521886462 | L106: 0.006269322566 | M106: 0.07218299206 | N106: 0.0003054734596
A107: =IF('DF raw data'!A112="","",'DF raw data'!A112) -> -277.5 | B107: =IF('DF raw data'!B112="","",'DF raw data'!B112) -> -1.12728e-05 | C107: =IF('DF raw data'!C112="","",'DF raw data'!C112) -> 0.000279747 | D107: =IF('DF raw data'!D112="","",'DF raw data'!D112) -> -3.49891e-06 | F107: -1.13235276e-05 | G107: 0.0002810058615 | H107: -3.514655095e-06 | J107: -0.0003229794984 | K107: -0.003683376211 | L107: 0.006409825497 | M107: 0.07538790481 | N107: 0.0003260685489
A108: =IF('DF raw data'!A113="","",'DF raw data'!A113) -> -277 | B108: =IF('DF raw data'!B113="","",'DF raw data'!B113) -> -9.92643e-06 | C108: =IF('DF raw data'!C113="","",'DF raw data'!C113) -> 0.000276528 | D108: =IF('DF raw data'!D113="","",'DF raw data'!D113) -> -5.06656e-06 | F108: -9.971098935e-06 | G108: 0.000277772376 | H108: -5.08935952e-06 | J108: -0.0003279650479 | K108: -0.003847358735 | L108: 0.006548711685 | M108: 0.07866226065 | N108: 0.0003475651418
A109: =IF('DF raw data'!A114="","",'DF raw data'!A114) -> -276.5 | B109: =IF('DF raw data'!B114="","",'DF raw data'!B114) -> -6.52219e-06 | C109: =IF('DF raw data'!C114="","",'DF raw data'!C114) -> 0.000277268 | D109: =IF('DF raw data'!D114="","",'DF raw data'!D114) -> -1.77125e-05 | F109: -6.551539855e-06 | G109: 0.000278515706 | H109: -1.779220625e-05 | J109: -0.0003312408178 | K109: -0.004012979144 | L109: 0.006687969538 | M109: 0.08200624542 | N109: 0.0003699844703
A110: =IF('DF raw data'!A115="","",'DF raw data'!A115) -> -276 | B110: =IF('DF raw data'!B115="","",'DF raw data'!B115) -> -1.01105e-05 | C110: =IF('DF raw data'!C115="","",'DF raw data'!C115) -> 0.000281959 | D110: =IF('DF raw data'!D115="","",'DF raw data'!D115) -> -1.7448e-05 | F110: -1.015599725e-05 | G110: 0.0002832278155 | H110: -1.7526516e-05 | J110: -0.0003363188165 | K110: -0.004181138552 | L110: 0.006829583446 | M110: 0.08542103714 | N110: 0.0003933626305
A111: =IF('DF raw data'!A116="","",'DF raw data'!A116) -> -275.5 | B111: =IF('DF raw data'!B116="","",'DF raw data'!B116) -> -2.23521e-05 | C111: =IF('DF raw data'!C116="","",'DF raw data'!C116) -> 0.000279719 | D111: =IF('DF raw data'!D116="","",'DF raw data'!D116) -> -1.15615e-05 | F111: -2.245268445e-05 | G111: 0.0002809777355 | H111: -1.161352675e-05 | J111: -0.0003475451587 | K111: -0.004354911131 | L111: 0.006970072314 | M111: 0.0889060733 | N111: 0.0004177139784
A112: =IF('DF raw data'!A117="","",'DF raw data'!A117) -> -275 | B112: =IF('DF raw data'!B117="","",'DF raw data'!B117) -> -1.31911e-05 | C112: =IF('DF raw data'!C117="","",'DF raw data'!C117) -> 0.0002787 | D112: =IF('DF raw data'!D117="","",'DF raw data'!D117) -> -9.61823e-06 | F112: -1.325045995e-05 | G112: 0.00027995415 | H112: -9.661512035e-06 | J112: -0.0003541703887 | K112: -0.004531996326 | L112: 0.007110049389 | M112: 0.09246109799 | N112: 0.0004430530979
A113: =IF('DF raw data'!A118="","",'DF raw data'!A118) -> -274.5 | B113: =IF('DF raw data'!B118="","",'DF raw data'!B118) -> -2.01695e-05 | C113: =IF('DF raw data'!C118="","",'DF raw data'!C118) -> 0.000270928 | D113: =IF('DF raw data'!D118="","",'DF raw data'!D118) -> -1.81074e-05 | F113: -2.026026275e-05 | G113: 0.000272147176 | H113: -1.81888833e-05 | J113: -0.00036430052 | K113: -0.004714146586 | L113: 0.007246122977 | M113: 0.09608415948 | N113: 0.0004693726044
A114: =IF('DF raw data'!A119="","",'DF raw data'!A119) -> -274 | B114: =IF('DF raw data'!B119="","",'DF raw data'!B119) -> -2.19067e-05 | C114: =IF('DF raw data'!C119="","",'DF raw data'!C119) -> 0.000270661 | D114: =IF('DF raw data'!D119="","",'DF raw data'!D119) -> -6.64929e-06 | F114: -2.200528015e-05 | G114: 0.0002718789745 | H114: -6.679211805e-06 | J114: -0.0003753031601 | K114: -0.004901798166 | L114: 0.007382062464 | M114: 0.09977519071 | N114: 0.0004966904537
A115: =IF('DF raw data'!A120="","",'DF raw data'!A120) -> -273.5 | B115: =IF('DF raw data'!B120="","",'DF raw data'!B120) -> -1.00521e-05 | C115: =IF('DF raw data'!C120="","",'DF raw data'!C120) -> 0.000273338 | D115: =IF('DF raw data'!D120="","",'DF raw data'!D120) -> -8.89354e-06 | F115: -1.009733445e-05 | G115: 0.000274568021 | H115: -8.93356093e-06 | J115: -0.0003803518273 | K115: -0.005091974079 | L115: 0.007519346474 | M115: 0.1035348639 | N115: 0.0005250330732
A116: =IF('DF raw data'!A121="","",'DF raw data'!A121) -> -273 | B116: =IF('DF raw data'!B121="","",'DF raw data'!B121) -> -9.66417e-06 | C116: =IF('DF raw data'!C121="","",'DF raw data'!C121) -> 0.000274257 | D116: =IF('DF raw data'!D121="","",'DF raw data'!D121) -> -1.43068e-05 | F116: -9.707658765e-06 | G116: 0.0002754911565 | H116: -1.43711806e-05 | J116: -0.0003852056567 | K116: -0.005284576908 | L116: 0.007657092053 | M116: 0.10736341 | N116: 0.0005544227943
A117: =IF('DF raw data'!A122="","",'DF raw data'!A122) -> -272.5 | B117: =IF('DF raw data'!B122="","",'DF raw data'!B122) -> -1.30606e-05 | C117: =IF('DF raw data'!C122="","",'DF raw data'!C122) -> 0.000271553 | D117: =IF('DF raw data'!D122="","",'DF raw data'!D122) -> -1.33377e-05 | F117: -1.31193727e-05 | G117: 0.0002727749885 | H117: -1.339771965e-05 | J117: -0.0003917653431 | K117: -0.005480459579 | L117: 0.007793479547 | M117: 0.1112601497 | N117: 0.000584868696
A118: =IF('DF raw data'!A123="","",'DF raw data'!A123) -> -272 | B118: =IF('DF raw data'!B123="","",'DF raw data'!B123) -> -1.21664e-05 | C118: =IF('DF raw data'!C123="","",'DF raw data'!C123) -> 0.000268849 | D118: =IF('DF raw data'!D123="","",'DF raw data'!D123) -> -9.0141e-06 | F118: -1.22211488e-05 | G118: 0.0002700588205 | H118: -9.05466345e-06 | J118: -0.0003978759175 | K118: -0.005679397538 | L118: 0.007928508957 | M118: 0.1152244042 | N118: 0.0006163784758
A119: =IF('DF raw data'!A124="","",'DF raw data'!A124) -> -271.5 | B119: =IF('DF raw data'!B124="","",'DF raw data'!B124) -> -1.7103e-05 | C119: =IF('DF raw data'!C124="","",'DF raw data'!C124) -> 0.000272854 | D119: =IF('DF raw data'!D124="","",'DF raw data'!D124) -> -4.08081e-06 | F119: -1.71799635e-05 | G119: 0.000274081843 | H119: -4.099173645e-06 | J119: -0.0004064658992 | K119: -0.005882630488 | L119: 0.008065549879 | M119: 0.1192571792 | N119: 0.0006489876305
A120: =IF('DF raw data'!A125="","",'DF raw data'!A125) -> -271 | B120: =IF('DF raw data'!B125="","",'DF raw data'!B125) -> -1.37642e-05 | C120: =IF('DF raw data'!C125="","",'DF raw data'!C125) -> 0.000279061 | D120: =IF('DF raw data'!D125="","",'DF raw data'!D125) -> -1.4839e-05 | F120: -1.38261389e-05 | G120: 0.0002803167745 | H120: -1.49057755e-05 | J120: -0.0004133789687 | K120: -0.006089319972 | L120: 0.008205708266 | M120: 0.1233600333 | N120: 0.0006827398956
A121: =IF('DF raw data'!A126="","",'DF raw data'!A126) -> -270.5 | B121: =IF('DF raw data'!B126="","",'DF raw data'!B126) -> -6.64719e-06 | C121: =IF('DF raw data'!C126="","",'DF raw data'!C126) -> 0.000274545 | D121: =IF('DF raw data'!D126="","",'DF raw data'!D126) -> -2.25507e-05 | F121: -6.677102355e-06 | G121: 0.0002757804525 | H121: -2.265217815e-05 | J121: -0.0004167175198 | K121: -0.006297678732 | L121: 0.008343598492 | M121: 0.1275318325 | N121: 0.0007176345403
A122: =IF('DF raw data'!A127="","",'DF raw data'!A127) -> -270 | B122: =IF('DF raw data'!B127="","",'DF raw data'!B127) -> -1.81837e-05 | C122: =IF('DF raw data'!C127="","",'DF raw data'!C127) -> 0.000268537 | D122: =IF('DF raw data'!D127="","",'DF raw data'!D127) -> -1.73479e-05 | F122: -1.826552665e-05 | G122: 0.0002697454165 | H122: -1.742596555e-05 | J122: -0.0004258502832 | K122: -0.006510603873 | L122: 0.0084784712 | M122: 0.1317710681 | N122: 0.0007536674515
A123: =IF('DF raw data'!A128="","",'DF raw data'!A128) -> -269.5 | B123: =IF('DF raw data'!B128="","",'DF raw data'!B128) -> -2.81404e-06 | C123: =IF('DF raw data'!C128="","",'DF raw data'!C128) -> 0.000272771 | D123: =IF('DF raw data'!D128="","",'DF raw data'!D128) -> -5.64113e-06 | F123: -2.82670318e-06 | G123: 0.0002739984695 | H123: -5.666515085e-06 | J123: -0.0004272636347 | K123: -0.006724235691 | L123: 0.008615470435 | M123: 0.1360788034 | N123: 0.000790871894
A124: =IF('DF raw data'!A129="","",'DF raw data'!A129) -> -269 | B124: =IF('DF raw data'!B129="","",'DF raw data'!B129) -> -1.69743e-05 | C124: =IF('DF raw data'!C129="","",'DF raw data'!C129) -> 0.00027284 | D124: =IF('DF raw data'!D129="","",'DF raw data'!D129) -> -4.92031e-06 | F124: -1.705068435e-05 | G124: 0.00027406778 | H124: -4.942451395e-06 | J124: -0.0004357889769 | K124: -0.006942130179 | L124: 0.008752504325 | M124: 0.1404550555 | N124: 0.000829270016
A125: =IF('DF raw data'!A130="","",'DF raw data'!A130) -> -268.5 | B125: =IF('DF raw data'!B130="","",'DF raw data'!B130) -> -1.3763e-05 | C125: =IF('DF raw data'!C130="","",'DF raw data'!C130) -> 0.000274299 | D125: =IF('DF raw data'!D130="","",'DF raw data'!D130) -> -1.66566e-05 | F125: -1.38249335e-05 | G125: 0.0002755333455 | H125: -1.67315547e-05 | J125: -0.0004427014437 | K125: -0.007163480901 | L125: 0.008890270998 | M125: 0.144900191 | N125: 0.0008688864675
A126: =IF('DF raw data'!A131="","",'DF raw data'!A131) -> -268 | B126: =IF('DF raw data'!B131="","",'DF raw data'!B131) -> -1.39623e-05 | C126: =IF('DF raw data'!C131="","",'DF raw data'!C131) -> 0.000272834 | D126: =IF('DF raw data'!D131="","",'DF raw data'!D131) -> -6.05477e-06 | F126: -1.402513035e-05 | G126: 0.000274061753 | H126: -6.082016465e-06 | J126: -0.0004497140088 | K126: -0.007388337905 | L126: 0.009027301874 | M126: 0.149413842 | N126: 0.0009097336784
A127: =IF('DF raw data'!A132="","",'DF raw data'!A132) -> -267.5 | B127: =IF('DF raw data'!B132="","",'DF raw data'!B132) -> -2.0886e-05 | C127: =IF('DF raw data'!C132="","",'DF raw data'!C132) -> 0.000263315 | D127: =IF('DF raw data'!D132="","",'DF raw data'!D132) -> 3.02492e-07 | F127: -2.0979987e-05 | G127: 0.0002644999175 | H127: 3.03853214e-07 | J127: -0.0004602040023 | K127: -0.007618439907 | L127: 0.009159551833 | M127: 0.1539936179 | N127: 0.0009517882671
A128: =IF('DF raw data'!A133="","",'DF raw data'!A133) -> -267 | B128: =IF('DF raw data'!B133="","",'DF raw data'!B133) -> -7.23341e-06 | C128: =IF('DF raw data'!C133="","",'DF raw data'!C133) -> 0.000271766 | D128: =IF('DF raw data'!D133="","",'DF raw data'!D133) -> -7.96314e-06 | F128: =(1-$G$1*($B$49-$G$2))*B128 -> -7.265960345e-06 | G128: 0.000272988947 | H128: -7.99897413e-06 | J128: =F128*$G$3+J127 -> -0.0004638369825 | K128: =J128*$G$3+K127 -> -0.007850358398 | L128: =G128*$G$3+L127 -> 0.009296046307 | M128: =L128*$G$3+M127 -> 0.158641641 | N128: =(J128^2+L128^2)*$G$3+N127 -> 0.000995104078
A129: =IF('DF raw data'!A134="","",'DF raw data'!A134) -> -266.5 | B129: =IF('DF raw data'!B134="","",'DF raw data'!B134) -> -1.56981e-05 | C129: =IF('DF raw data'!C134="","",'DF raw data'!C134) -> 0.00027027 | D129: =IF('DF raw data'!D134="","",'DF raw data'!D134) -> 3.08367e-06 | F129: -1.576874145e-05 | G129: 0.000271486215 | H129: 3.097546515e-06 | J129: -0.0004717213532 | K129: -0.008086219075 | L129: 0.009431789414 | M129: 0.1633575357 | N129: 0.001039694664
A130: =IF('DF raw data'!A135="","",'DF raw data'!A135) -> -266 | B130: =IF('DF raw data'!B135="","",'DF raw data'!B135) -> -3.17093e-05 | C130: =IF('DF raw data'!C135="","",'DF raw data'!C135) -> 0.000263967 | D130: =IF('DF raw data'!D135="","",'DF raw data'!D135) -> -7.42413e-06 | F130: -3.185199185e-05 | G130: 0.0002651548515 | H130: -7.457538585e-06 | J130: -0.0004876473492 | K130: -0.008330042749 | L130: 0.00956436684 | M130: 0.1681397192 | N130: 0.001085552121
A131: =IF('DF raw data'!A136="","",'DF raw data'!A136) -> -265.5 | B131: =IF('DF raw data'!B136="","",'DF raw data'!B136) -> -2.77337e-05 | C131: =IF('DF raw data'!C136="","",'DF raw data'!C136) -> 0.000266313 | D131: =IF('DF raw data'!D136="","",'DF raw data'!D136) -> -1.22094e-05 | F131: -2.785850165e-05 | G131: 0.0002675114085 | H131: -1.22643423e-05 | J131: -0.0005015766 | K131: -0.008580831049 | L131: 0.009698122544 | M131: 0.1729887804 | N131: 0.001132704701
A132: =IF('DF raw data'!A137="","",'DF raw data'!A137) -> -265 | B132: =IF('DF raw data'!B137="","",'DF raw data'!B137) -> -2.22232e-05 | C132: =IF('DF raw data'!C137="","",'DF raw data'!C137) -> 0.000268615 | D132: =IF('DF raw data'!D137="","",'DF raw data'!D137) -> -1.27424e-05 | F132: -2.23232044e-05 | G132: 0.0002698237675 | H132: -1.27997408e-05 | J132: -0.0005127382022 | K132: -0.00883720015 | L132: 0.009833034428 | M132: 0.1779052976 | N132: 0.001181180434
A133: =IF('DF raw data'!A138="","",'DF raw data'!A138) -> -264.5 | B133: =IF('DF raw data'!B138="","",'DF raw data'!B138) -> -2.67067e-05 | C133: =IF('DF raw data'!C138="","",'DF raw data'!C138) -> 0.000265491 | D133: =IF('DF raw data'!D138="","",'DF raw data'!D138) -> -1.50131e-05 | F133: -2.682688015e-05 | G133: 0.0002666857095 | H133: -1.508065895e-05 | J133: -0.0005261516423 | K133: -0.009100275971 | L133: 0.009966377283 | M133: 0.1828884863 | N133: 0.00123098319
A134: =IF('DF raw data'!A139="","",'DF raw data'!A139) -> -264 | B134: =IF('DF raw data'!B139="","",'DF raw data'!B139) -> -2.93952e-06 | C134: =IF('DF raw data'!C139="","",'DF raw data'!C139) -> 0.000265898 | D134: =IF('DF raw data'!D139="","",'DF raw data'!D139) -> -9.74291e-06 | F134: -2.95274784e-06 | G134: 0.000267094541 | H134: -9.786753095e-06 | J134: -0.0005276280162 | K134: -0.009364089979 | L134: 0.01009992455 | M134: 0.1879384486 | N134: 0.001282126624
A135: =IF('DF raw data'!A140="","",'DF raw data'!A140) -> -263.5 | B135: =IF('DF raw data'!B140="","",'DF raw data'!B140) -> -9.91803e-06 | C135: =IF('DF raw data'!C140="","",'DF raw data'!C140) -> 0.000266321 | D135: =IF('DF raw data'!D140="","",'DF raw data'!D140) -> -1.80122e-05 | F135: -9.962661135e-06 | G135: 0.0002675194445 | H135: -1.80932549e-05 | J135: -0.0005326093468 | K135: -0.009630394653 | L135: 0.01023368428 | M135: 0.1930552907 | N135: 0.001334632607
A136: =IF('DF raw data'!A141="","",'DF raw data'!A141) -> -263 | B136: =IF('DF raw data'!B141="","",'DF raw data'!B141) -> -6.90953e-06 | C136: =IF('DF raw data'!C141="","",'DF raw data'!C141) -> 0.000270436 | D136: =IF('DF raw data'!D141="","",'DF raw data'!D141) -> -1.36158e-05 | F136: -6.940622885e-06 | G136: 0.000271652962 | H136: -1.36770711e-05 | J136: -0.0005360796582 | K136: -0.009898434482 | L136: 0.01036951076 | M136: 0.1982400461 | N136: 0.001388539674
A137: =IF('DF raw data'!A142="","",'DF raw data'!A142) -> -262.5 | B137: =IF('DF raw data'!B142="","",'DF raw data'!B142) -> -2.18997e-05 | C137: =IF('DF raw data'!C142="","",'DF raw data'!C142) -> 0.000263823 | D137: =IF('DF raw data'!D142="","",'DF raw data'!D142) -> -1.73437e-05 | F137: -2.199824865e-05 | G137: 0.0002650102035 | H137: -1.742174665e-05 | J137: -0.0005470787825 | K137: -0.01017197387 | L137: 0.01050201586 | M137: 0.203491054 | N137: 0.00144383549
A138: =IF('DF raw data'!A143="","",'DF raw data'!A143) -> -262 | B138: =IF('DF raw data'!B143="","",'DF raw data'!B143) -> -1.53723e-05 | C138: =IF('DF raw data'!C143="","",'DF raw data'!C143) -> 0.000262531 | D138: =IF('DF raw data'!D143="","",'DF raw data'!D143) -> -5.27714e-06 | F138: -1.544147535e-05 | G138: 0.0002637123895 | H138: -5.30088713e-06 | J138: -0.0005547995202 | K138: -0.01044937363 | L138: 0.01063387205 | M138: 0.20880799 | N138: 0.001500529009
A139: =IF('DF raw data'!A144="","",'DF raw data'!A144) -> -261.5 | B139: =IF('DF raw data'!B144="","",'DF raw data'!B144) -> -2.1644e-05 | C139: =IF('DF raw data'!C144="","",'DF raw data'!C144) -> 0.000267492 | D139: =IF('DF raw data'!D144="","",'DF raw data'!D144) -> -1.64089e-05 | F139: -2.1741398e-05 | G139: 0.000268695714 | H139: -1.648274005e-05 | J139: -0.0005656702192 | K139: -0.01073220874 | L139: 0.01076821991 | M139: 0.2141921 | N139: 0.00155866628
A140: =IF('DF raw data'!A145="","",'DF raw data'!A145) -> -261 | B140: =IF('DF raw data'!B145="","",'DF raw data'!B145) -> -1.06285e-05 | C140: =IF('DF raw data'!C145="","",'DF raw data'!C145) -> 0.000264713 | D140: =IF('DF raw data'!D145="","",'DF raw data'!D145) -> -9.05554e-06 | F140: -1.067632825e-05 | G140: 0.0002659042085 | H140: -9.09628993e-06 | J140: -0.0005710083833 | K140: -0.01101771293 | L140: 0.01090117201 | M140: 0.219642686 | N140: 0.001618247081
A141: =IF('DF raw data'!A146="","",'DF raw data'!A146) -> -260.5 | B141: =IF('DF raw data'!B146="","",'DF raw data'!B146) -> -6.39651e-06 | C141: =IF('DF raw data'!C146="","",'DF raw data'!C146) -> 0.000251567 | D141: =IF('DF raw data'!D146="","",'DF raw data'!D146) -> -1.39261e-05 | F141: -6.425294295e-06 | G141: 0.0002526990515 | H141: -1.398876745e-05 | J141: -0.0005742210305 | K141: -0.01130482345 | L141: 0.01102752154 | M141: 0.2251564468 | N141: 0.001679215062
A142: =IF('DF raw data'!A147="","",'DF raw data'!A147) -> -260 | B142: =IF('DF raw data'!B147="","",'DF raw data'!B147) -> -6.39964e-06 | C142: =IF('DF raw data'!C147="","",'DF raw data'!C147) -> 0.000262121 | D142: =IF('DF raw data'!D147="","",'DF raw data'!D147) -> -9.10348e-06 | F142: -6.42843838e-06 | G142: 0.0002633005445 | H142: -9.14444566e-06 | J142: -0.0005774352497 | K142: -0.01159354107 | L142: 0.01115917181 | M142: 0.2307360327 | N142: 0.001741645335
A143: =IF('DF raw data'!A148="","",'DF raw data'!A148) -> -259.5 | B143: =IF('DF raw data'!B148="","",'DF raw data'!B148) -> -1.52409e-05 | C143: =IF('DF raw data'!C148="","",'DF raw data'!C148) -> 0.00026942 | D143: =IF('DF raw data'!D148="","",'DF raw data'!D148) -> -1.02392e-05 | F143: -1.530948405e-05 | G143: 0.00027063239 | H143: -1.02852764e-05 | J143: -0.0005850899917 | K143: -0.01188608607 | L143: 0.01129448801 | M143: 0.2363832767 | N143: 0.00180559923
A144: =IF('DF raw data'!A149="","",'DF raw data'!A149) -> -259 | B144: =IF('DF raw data'!B149="","",'DF raw data'!B149) -> -1.57503e-05 | C144: =IF('DF raw data'!C149="","",'DF raw data'!C149) -> 0.000270109 | D144: =IF('DF raw data'!D149="","",'DF raw data'!D149) -> -1.51886e-05 | F144: -1.582117635e-05 | G144: 0.0002713244905 | H144: -1.52569487e-05 | J144: -0.0005930005799 | K144: -0.01218258636 | L144: 0.01143015025 | M144: 0.2420983518 | N144: 0.001871099222
A145: =IF('DF raw data'!A150="","",'DF raw data'!A150) -> -258.5 | B145: =IF('DF raw data'!B150="","",'DF raw data'!B150) -> -1.47295e-05 | C145: =IF('DF raw data'!C150="","",'DF raw data'!C150) -> 0.000263661 | D145: =IF('DF raw data'!D150="","",'DF raw data'!D150) -> -8.50474e-06 | F145: -1.479578275e-05 | G145: 0.0002648474745 | H145: -8.54301133e-06 | J145: -0.0006003984712 | K145: -0.0124827856 | L145: 0.01156257399 | M145: 0.2478796388 | N145: 0.00193812602
A146: =IF('DF raw data'!A151="","",'DF raw data'!A151) -> -258 | B146: =IF('DF raw data'!B151="","",'DF raw data'!B151) -> -1.25527e-05 | C146: =IF('DF raw data'!C151="","",'DF raw data'!C151) -> 0.000264507 | D146: =IF('DF raw data'!D151="","",'DF raw data'!D151) -> -6.12755e-06 | F146: -1.260918715e-05 | G146: 0.0002656972815 | H146: -6.155123975e-06 | J146: -0.0006067030648 | K146: -0.01278613713 | L146: 0.01169542263 | M146: 0.2537273501 | N146: 0.00200670152
A147: =IF('DF raw data'!A152="","",'DF raw data'!A152) -> -257.5 | B147: =IF('DF raw data'!B152="","",'DF raw data'!B152) -> -2.10676e-05 | C147: =IF('DF raw data'!C152="","",'DF raw data'!C152) -> 0.000270303 | D147: =IF('DF raw data'!D152="","",'DF raw data'!D152) -> -1.6226e-05 | F147: -2.11624042e-05 | G147: 0.0002715193635 | H147: -1.6299017e-05 | J147: -0.0006172842669 | K147: -0.01309477926 | L147: 0.01183118231 | M147: 0.2596429413 | N147: 0.002076880477
A148: =IF('DF raw data'!A153="","",'DF raw data'!A153) -> -257 | B148: =IF('DF raw data'!B153="","",'DF raw data'!B153) -> -8.38577e-06 | C148: =IF('DF raw data'!C153="","",'DF raw data'!C153) -> 0.00026615 | D148: =IF('DF raw data'!D153="","",'DF raw data'!D153) -> -9.35346e-06 | F148: -8.423505965e-06 | G148: 0.000267347675 | H148: -9.39555057e-06 | J148: -0.0006214960199 | K148: -0.01340552727 | L148: 0.01196485615 | M148: 0.2656253693 | N148: 0.002148652497
A149: =IF('DF raw data'!A154="","",'DF raw data'!A154) -> -256.5 | B149: =IF('DF raw data'!B154="","",'DF raw data'!B154) -> -1.13385e-05 | C149: =IF('DF raw data'!C154="","",'DF raw data'!C154) -> 0.00026581 | D149: =IF('DF raw data'!D154="","",'DF raw data'!D154) -> -1.01538e-06 | F149: -1.138952325e-05 | G149: 0.000267006145 | H149: -1.01994921e-06 | J149: -0.0006271907815 | K149: -0.01371912266 | L149: 0.01209835922 | M149: 0.271674549 | N149: 0.002222034329
A150: =IF('DF raw data'!A155="","",'DF raw data'!A155) -> -256 | B150: =IF('DF raw data'!B155="","",'DF raw data'!B155) -> -1.06951e-05 | C150: =IF('DF raw data'!C155="","",'DF raw data'!C155) -> 0.000264256 | D150: =IF('DF raw data'!D155="","",'DF raw data'!D155) -> -5.41932e-06 | F150: -1.074322795e-05 | G150: 0.000265445152 | H150: -5.44370694e-06 | J150: -0.0006325623955 | K150: -0.01403540386 | L150: 0.0122310818 | M150: 0.2777900899 | N150: 0.002297034078
A151: =IF('DF raw data'!A156="","",'DF raw data'!A156) -> -255.5 | B151: =IF('DF raw data'!B156="","",'DF raw data'!B156) -> 2.24763e-06 | C151: =IF('DF raw data'!C156="","",'DF raw data'!C156) -> 0.000266598 | D151: =IF('DF raw data'!D156="","",'DF raw data'!D156) -> -5.41292e-06 | F151: 2.257744335e-06 | G151: 0.000267797691 | H151: -5.43727814e-06 | J151: -0.0006314335233 | K151: -0.01435112062 | L151: 0.01236498064 | M151: 0.2839725802 | N151: 0.002373679805
A152: =IF('DF raw data'!A157="","",'DF raw data'!A157) -> -255 | B152: =IF('DF raw data'!B157="","",'DF raw data'!B157) -> -1.49865e-05 | C152: =IF('DF raw data'!C157="","",'DF raw data'!C157) -> 0.000270094 | D152: =IF('DF raw data'!D157="","",'DF raw data'!D157) -> -7.54587e-06 | F152: -1.505393925e-05 | G152: 0.000271309423 | H152: -7.579826415e-06 | J152: -0.000638960493 | K152: -0.01467060087 | L152: 0.01250063536 | M152: 0.2902228979 | N152: 0.002452016883
A153: =IF('DF raw data'!A158="","",'DF raw data'!A158) -> -254.5 | B153: =IF('DF raw data'!B158="","",'DF raw data'!B158) -> -2.08186e-05 | C153: =IF('DF raw data'!C158="","",'DF raw data'!C158) -> 0.000267623 | D153: =IF('DF raw data'!D158="","",'DF raw data'!D158) -> -4.89618e-06 | F153: -2.09122837e-05 | G153: 0.0002688273035 | H153: -4.91821281e-06 | J153: -0.0006494166348 | K153: -0.01499530919 | L153: 0.01263504901 | M153: 0.2965404224 | N153: 0.002532049985
A154: =IF('DF raw data'!A159="","",'DF raw data'!A159) -> -254 | B154: =IF('DF raw data'!B159="","",'DF raw data'!B159) -> -1.09466e-05 | C154: =IF('DF raw data'!C159="","",'DF raw data'!C159) -> 0.000265004 | D154: =IF('DF raw data'!D159="","",'DF raw data'!D159) -> -1.27388e-05 | F154: -1.09958597e-05 | G154: 0.000266196518 | H154: -1.27961246e-05 | J154: -0.0006549145647 | K154: -0.01532276647 | L154: 0.01276814727 | M154: 0.302924496 | N154: 0.002613777234
A155: =IF('DF raw data'!A160="","",'DF raw data'!A160) -> -253.5 | B155: =IF('DF raw data'!B160="","",'DF raw data'!B160) -> -2.12698e-05 | C155: =IF('DF raw data'!C160="","",'DF raw data'!C160) -> 0.000270245 | D155: =IF('DF raw data'!D160="","",'DF raw data'!D160) -> -4.41277e-07 | F155: -2.13655141e-05 | G155: 0.0002714611025 | H155: -4.432627465e-07 | J155: -0.0006655973217 | K155: -0.01565556513 | L155: 0.01290387782 | M155: 0.3093764349 | N155: 0.002697253775
A156: =IF('DF raw data'!A161="","",'DF raw data'!A161) -> -253 | B156: =IF('DF raw data'!B161="","",'DF raw data'!B161) -> -1.10156e-05 | C156: =IF('DF raw data'!C161="","",'DF raw data'!C161) -> 0.000279387 | D156: =IF('DF raw data'!D161="","",'DF raw data'!D161) -> -4.99748e-06 | F156: -1.10651702e-05 | G156: 0.0002806442415 | H156: -5.01996866e-06 | J156: -0.0006711299068 | K156: -0.01599113008 | L156: 0.01304419994 | M156: 0.3158985349 | N156: 0.002782554559
A157: =IF('DF raw data'!A162="","",'DF raw data'!A162) -> -252.5 | B157: =IF('DF raw data'!B162="","",'DF raw data'!B162) -> -6.40539e-06 | C157: =IF('DF raw data'!C162="","",'DF raw data'!C162) -> 0.000277367 | D157: =IF('DF raw data'!D162="","",'DF raw data'!D162) -> -1.50837e-07 | F157: -6.434214255e-06 | G157: 0.0002786151515 | H157: -1.515157665e-07 | J157: -0.0006743470139 | K157: -0.01632830359 | L157: 0.01318350751 | M157: 0.3224902886 | N157: 0.002869684366
A158: =IF('DF raw data'!A163="","",'DF raw data'!A163) -> -252 | B158: =IF('DF raw data'!B163="","",'DF raw data'!B163) -> -1.91967e-06 | C158: =IF('DF raw data'!C163="","",'DF raw data'!C163) -> 0.000262737 | D158: =IF('DF raw data'!D163="","",'DF raw data'!D163) -> -1.67019e-06 | F158: -1.928308515e-06 | G158: 0.0002639193165 | H158: -1.677705855e-06 | J158: -0.0006753111682 | K158: -0.01666595917 | L158: 0.01331546717 | M158: 0.3291480222 | N158: 0.002958563222
A159: =IF('DF raw data'!A164="","",'DF raw data'!A164) -> -251.5 | B159: =IF('DF raw data'!B164="","",'DF raw data'!B164) -> -1.30006e-05 | C159: =IF('DF raw data'!C164="","",'DF raw data'!C164) -> 0.00025917 | D159: =IF('DF raw data'!D164="","",'DF raw data'!D164) -> -6.52771e-06 | F159: -1.30591027e-05 | G159: 0.000260336265 | H159: -6.557084695e-06 | J159: -0.0006818407195 | K159: -0.01700687953 | L159: 0.0134456353 | M159: 0.3358708399 | N159: 0.003049188229
A160: =IF('DF raw data'!A165="","",'DF raw data'!A165) -> -251 | B160: =IF('DF raw data'!B165="","",'DF raw data'!B165) -> -1.14625e-05 | C160: =IF('DF raw data'!C165="","",'DF raw data'!C165) -> 0.000266834 | D160: =IF('DF raw data'!D165="","",'DF raw data'!D165) -> -7.88866e-06 | F160: -1.151408125e-05 | G160: 0.000268034753 | H160: -7.92415897e-06 | J160: -0.0006875977602 | K160: -0.01735067841 | L160: 0.01357965268 | M160: 0.3426606662 | N160: 0.003141628108
A161: =IF('DF raw data'!A166="","",'DF raw data'!A166) -> -250.5 | B161: =IF('DF raw data'!B166="","",'DF raw data'!B166) -> -2.10816e-05 | C161: =IF('DF raw data'!C166="","",'DF raw data'!C166) -> 0.000267965 | D161: =IF('DF raw data'!D166="","",'DF raw data'!D166) -> 5.88429e-06 | F161: -2.11764672e-05 | G161: 0.0002691708425 | H161: 5.910769305e-06 | J161: -0.0006981859938 | K161: -0.01769977141 | L161: 0.0137142381 | M161: 0.3495177853 | N161: 0.003235912003
A162: =IF('DF raw data'!A167="","",'DF raw data'!A167) -> -250 | B162: =IF('DF raw data'!B167="","",'DF raw data'!B167) -> -8.13777e-06 | C162: =IF('DF raw data'!C167="","",'DF raw data'!C167) -> 0.000276661 | D162: =IF('DF raw data'!D167="","",'DF raw data'!D167) -> 3.16763e-06 | F162: -8.174389965e-06 | G162: 0.0002779059745 | H162: 3.181884335e-06 | J162: -0.0007022731887 | K162: -0.018050908 | L162: 0.01385319109 | M162: 0.3564443808 | N162: 0.003332114049
A163: =IF('DF raw data'!A168="","",'DF raw data'!A168) -> -249.5 | B163: =IF('DF raw data'!B168="","",'DF raw data'!B168) -> -1.20378e-05 | C163: =IF('DF raw data'!C168="","",'DF raw data'!C168) -> 0.00027404 | D163: =IF('DF raw data'!D168="","",'DF raw data'!D168) -> -8.8678e-06 | F163: -1.20919701e-05 | G163: 0.00027527318 | H163: -8.9077051e-06 | J163: -0.0007083191738 | K163: -0.01840506759 | L163: 0.01399082768 | M163: 0.3634397946 | N163: 0.003430236537
A164: =IF('DF raw data'!A169="","",'DF raw data'!A169) -> -249 | B164: =IF('DF raw data'!B169="","",'DF raw data'!B169) -> -1.80665e-05 | C164: =IF('DF raw data'!C169="","",'DF raw data'!C169) -> 0.000278751 | D164: =IF('DF raw data'!D169="","",'DF raw data'!D169) -> -1.22299e-06 | F164: -1.814779925e-05 | G164: 0.0002800053795 | H164: -1.228493455e-06 | J164: -0.0007173930734 | K164: -0.01876376413 | L164: 0.01413083037 | M164: 0.3705052098 | N164: 0.003530334046
A165: =IF('DF raw data'!A170="","",'DF raw data'!A170) -> -248.5 | B165: =IF('DF raw data'!B170="","",'DF raw data'!B170) -> -2.24172e-05 | C165: =IF('DF raw data'!C170="","",'DF raw data'!C170) -> 0.00027924 | D165: =IF('DF raw data'!D170="","",'DF raw data'!D170) -> -8.84375e-06 | F165: -2.25180774e-05 | G165: 0.00028049658 | H165: -8.883546875e-06 | J165: -0.0007286521121 | K165: -0.01912809018 | L165: 0.01427107866 | M165: 0.3776407492 | N165: 0.003632431356
A166: =IF('DF raw data'!A171="","",'DF raw data'!A171) -> -248 | B166: =IF('DF raw data'!B171="","",'DF raw data'!B171) -> 3.98834e-07 | C166: =IF('DF raw data'!C171="","",'DF raw data'!C171) -> 0.000289555 | D166: =IF('DF raw data'!D171="","",'DF raw data'!D171) -> -1.97693e-05 | F166: 4.00628753e-07 | G166: 0.0002908579975 | H166: -1.985826185e-05 | J166: -0.0007284517977 | K166: -0.01949231608 | L166: 0.01441650766 | M166: 0.384849003 | N166: 0.003736614524
A167: =IF('DF raw data'!A172="","",'DF raw data'!A172) -> -247.5 | B167: =IF('DF raw data'!B172="","",'DF raw data'!B172) -> -1.2936e-05 | C167: =IF('DF raw data'!C172="","",'DF raw data'!C172) -> 0.000287141 | D167: =IF('DF raw data'!D172="","",'DF raw data'!D172) -> -7.26675e-06 | F167: -1.2994212e-05 | G167: 0.0002884331345 | H167: -7.299450375e-06 | J167: -0.0007349489037 | K167: -0.01985979054 | L167: 0.01456072423 | M167: 0.3921293651 | N167: 0.003842891944
A168: =IF('DF raw data'!A173="","",'DF raw data'!A173) -> -247 | B168: =IF('DF raw data'!B173="","",'DF raw data'!B173) -> -1.44728e-05 | C168: =IF('DF raw data'!C173="","",'DF raw data'!C173) -> 0.00027474 | D168: =IF('DF raw data'!D173="","",'DF raw data'!D173) -> -9.81379e-06 | F168: -1.45379276e-05 | G168: 0.00027597633 | H168: -9.857952055e-06 | J168: -0.0007422178675 | K168: -0.02023089947 | L168: 0.01469871239 | M168: 0.3994787213 | N168: 0.003951193461
A169: =IF('DF raw data'!A174="","",'DF raw data'!A174) -> -246.5 | B169: =IF('DF raw data'!B174="","",'DF raw data'!B174) -> -2.74089e-05 | C169: =IF('DF raw data'!C174="","",'DF raw data'!C174) -> 0.000269529 | D169: =IF('DF raw data'!D174="","",'DF raw data'!D174) -> -1.75609e-05 | F169: -2.753224005e-05 | G169: 0.0002707418805 | H169: -1.763992405e-05 | J169: -0.0007559839876 | K169: -0.02060889146 | L169: 0.01483408333 | M169: 0.406895763 | N169: 0.004061504231
A170: =IF('DF raw data'!A175="","",'DF raw data'!A175) -> -246 | B170: =IF('DF raw data'!B175="","",'DF raw data'!B175) -> -1.7167e-05 | C170: =IF('DF raw data'!C175="","",'DF raw data'!C175) -> 0.000263929 | D170: =IF('DF raw data'!D175="","",'DF raw data'!D175) -> -5.04986e-06 | F170: -1.72442515e-05 | G170: 0.0002651166805 | H170: -5.07258437e-06 | J170: -0.0007646061133 | K170: -0.02099119452 | L170: 0.01496664167 | M170: 0.4143790838 | N170: 0.004173796723
A171: =IF('DF raw data'!A176="","",'DF raw data'!A176) -> -245.5 | B171: =IF('DF raw data'!B176="","",'DF raw data'!B176) -> -1.80009e-05 | C171: =IF('DF raw data'!C176="","",'DF raw data'!C176) -> 0.000260701 | D171: =IF('DF raw data'!D176="","",'DF raw data'!D176) -> -1.80008e-06 | F171: -1.808190405e-05 | G171: 0.0002618741545 | H171: -1.80818036e-06 | J171: -0.0007736470653 | K171: -0.02137801805 | L171: 0.01509757875 | M171: 0.4219278732 | N171: 0.00428806443
A172: =IF('DF raw data'!A177="","",'DF raw data'!A177) -> -245 | B172: =IF('DF raw data'!B177="","",'DF raw data'!B177) -> -9.59532e-06 | C172: =IF('DF raw data'!C177="","",'DF raw data'!C177) -> 0.00025643 | D172: =IF('DF raw data'!D177="","",'DF raw data'!D177) -> -2.20155e-05 | F172: -9.63849894e-06 | G172: 0.000257583935 | H172: -2.211456975e-05 | J172: -0.0007784663148 | K172: -0.02176725121 | L172: 0.01522637072 | M172: 0.4295410585 | N172: 0.004404288618
A173: =IF('DF raw data'!A178="","",'DF raw data'!A178) -> -244.5 | B173: =IF('DF raw data'!B178="","",'DF raw data'!B178) -> -1.43437e-05 | C173: =IF('DF raw data'!C178="","",'DF raw data'!C178) -> 0.000255241 | D173: =IF('DF raw data'!D178="","",'DF raw data'!D178) -> -9.80923e-06 | F173: -1.440824665e-05 | G173: 0.0002563895845 | H173: -9.853371535e-06 | J173: -0.0007856704381 | K173: -0.02216008643 | L173: 0.01535456551 | M173: 0.4372183413 | N173: 0.004522478598
A174: =IF('DF raw data'!A179="","",'DF raw data'!A179) -> -244 | B174: =IF('DF raw data'!B179="","",'DF raw data'!B179) -> -1.3194e-05 | C174: =IF('DF raw data'!C179="","",'DF raw data'!C179) -> 0.000262889 | D174: =IF('DF raw data'!D179="","",'DF raw data'!D179) -> -5.98594e-06 | F174: -1.3253373e-05 | G174: 0.0002640720005 | H174: -6.01287673e-06 | J174: -0.0007922971246 | K174: -0.02255623499 | L174: 0.01548660151 | M174: 0.444961642 | N174: 0.004642709878
A175: =IF('DF raw data'!A180="","",'DF raw data'!A180) -> -243.5 | B175: =IF('DF raw data'!B180="","",'DF raw data'!B180) -> -2.95295e-05 | C175: =IF('DF raw data'!C180="","",'DF raw data'!C180) -> 0.000271562 | D175: =IF('DF raw data'!D180="","",'DF raw data'!D180) -> -7.71026e-06 | F175: -2.966238275e-05 | G175: 0.000272784029 | H175: -7.74495617e-06 | J175: -0.000807128316 | K175: -0.02295979915 | L175: 0.01562299352 | M175: 0.4527731388 | N175: 0.00476507457
A176: =IF('DF raw data'!A181="","",'DF raw data'!A181) -> -243 | B176: =IF('DF raw data'!B181="","",'DF raw data'!B181) -> -3.13125e-06 | C176: =IF('DF raw data'!C181="","",'DF raw data'!C181) -> 0.000269927 | D176: =IF('DF raw data'!D181="","",'DF raw data'!D181) -> -1.0453e-05 | F176: -3.145340625e-06 | G176: 0.0002711416715 | H176: -1.05000385e-05 | J176: -0.0008087009863 | K176: -0.02336414964 | L176: 0.01575856436 | M176: 0.460652421 | N176: 0.004889567744
A177: =IF('DF raw data'!A182="","",'DF raw data'!A182) -> -242.5 | B177: =IF('DF raw data'!B182="","",'DF raw data'!B182) -> -1.97238e-05 | C177: =IF('DF raw data'!C182="","",'DF raw data'!C182) -> 0.000261463 | D177: =IF('DF raw data'!D182="","",'DF raw data'!D182) -> -1.2601e-05 | F177: -1.98125571e-05 | G177: 0.0002626395835 | H177: -1.26577045e-05 | J177: -0.0008186072649 | K177: -0.02377345327 | L177: 0.01588988415 | M177: 0.468597363 | N177: 0.005016147012
A178: =IF('DF raw data'!A183="","",'DF raw data'!A183) -> -242 | B178: =IF('DF raw data'!B183="","",'DF raw data'!B183) -> -1.31915e-05 | C178: =IF('DF raw data'!C183="","",'DF raw data'!C183) -> 0.000261734 | D178: =IF('DF raw data'!D183="","",'DF raw data'!D183) -> -9.92698e-06 | F178: -1.325086175e-05 | G178: 0.000262911803 | H178: -9.97165141e-06 | J178: -0.0008252326958 | K178: -0.02418606962 | L178: 0.01602134005 | M178: 0.4766080331 | N178: 0.005144829185
A179: =IF('DF raw data'!A184="","",'DF raw data'!A184) -> -241.5 | B179: =IF('DF raw data'!B184="","",'DF raw data'!B184) -> -1.69103e-05 | C179: =IF('DF raw data'!C184="","",'DF raw data'!C184) -> 0.00025496 | D179: =IF('DF raw data'!D184="","",'DF raw data'!D184) -> -3.66453e-06 | F179: -1.698639635e-05 | G179: 0.00025610732 | H179: -3.681020385e-06 | J179: -0.0008337258939 | K179: -0.02460293257 | L179: 0.01614939371 | M179: 0.4846827299 | N179: 0.005275578193
A180: =IF('DF raw data'!A185="","",'DF raw data'!A185) -> -241 | B180: =IF('DF raw data'!B185="","",'DF raw data'!B185) -> -2.2226e-05 | C180: =IF('DF raw data'!C185="","",'DF raw data'!C185) -> 0.000264316 | D180: =IF('DF raw data'!D185="","",'DF raw data'!D185) -> -9.75655e-06 | F180: -2.2326017e-05 | G180: 0.000265505422 | H180: -9.800454475e-06 | J180: -0.0008448889024 | K180: -0.02502537702 | L180: 0.01628214642 | M180: 0.4928238031 | N180: 0.005408489257
A181: =IF('DF raw data'!A186="","",'DF raw data'!A186) -> -240.5 | B181: =IF('DF raw data'!B186="","",'DF raw data'!B186) -> -1.76123e-05 | C181: =IF('DF raw data'!C186="","",'DF raw data'!C186) -> 0.000263359 | D181: =IF('DF raw data'!D186="","",'DF raw data'!D186) -> -8.18891e-06 | F181: -1.769155535e-05 | G181: 0.0002645441155 | H181: -8.225760095e-06 | J181: -0.0008537346801 | K181: -0.02545224436 | L181: 0.01641441848 | M181: 0.5010310124 | N181: 0.005543570256
A182: =IF('DF raw data'!A187="","",'DF raw data'!A187) -> -240 | B182: =IF('DF raw data'!B187="","",'DF raw data'!B187) -> -1.52404e-05 | C182: =IF('DF raw data'!C187="","",'DF raw data'!C187) -> 0.000267144 | D182: =IF('DF raw data'!D187="","",'DF raw data'!D187) -> -1.1967e-05 | F182: -1.53089818e-05 | G182: 0.000268346148 | H182: -1.20208515e-05 | J182: -0.000861389171 | K182: -0.02588293895 | L182: 0.01654859155 | M182: 0.5093053082 | N182: 0.005680869193
A183: =IF('DF raw data'!A188="","",'DF raw data'!A188) -> -239.5 | B183: =IF('DF raw data'!B188="","",'DF raw data'!B188) -> -2.5689e-05 | C183: =IF('DF raw data'!C188="","",'DF raw data'!C188) -> 0.000264191 | D183: =IF('DF raw data'!D188="","",'DF raw data'!D188) -> -2.09058e-06 | F183: -2.58046005e-05 | G183: 0.0002653798595 | H183: -2.09998761e-06 | J183: -0.0008742914713 | K183: -0.02632008468 | L183: 0.01668128148 | M183: 0.5176459489 | N183: 0.005820383961
A184: =IF('DF raw data'!A189="","",'DF raw data'!A189) -> -239 | B184: =IF('DF raw data'!B189="","",'DF raw data'!B189) -> -1.14469e-06 | C184: =IF('DF raw data'!C189="","",'DF raw data'!C189) -> 0.000266066 | D184: =IF('DF raw data'!D189="","",'DF raw data'!D189) -> -1.08012e-05 | F184: -1.149841105e-06 | G184: 0.000267263297 | H184: -1.08498054e-05 | J184: -0.0008748663918 | K184: -0.02675751788 | L184: 0.01681491313 | M184: 0.5260534055 | N184: 0.005962137309
A185: =IF('DF raw data'!A190="","",'DF raw data'!A190) -> -238.5 | B185: =IF('DF raw data'!B190="","",'DF raw data'!B190) -> -2.34986e-05 | C185: =IF('DF raw data'!C190="","",'DF raw data'!C190) -> 0.000267685 | D185: =IF('DF raw data'!D190="","",'DF raw data'!D190) -> -2.05198e-05 | F185: -2.36043437e-05 | G185: 0.0002688895825 | H185: -2.06121391e-05 | J185: -0.0008866685637 | K185: -0.02720085216 | L185: 0.01694935792 | M185: 0.5345280844 | N185: 0.006106170766
A186: =IF('DF raw data'!A191="","",'DF raw data'!A191) -> -238 | B186: =IF('DF raw data'!B191="","",'DF raw data'!B191) -> -1.20392e-05 | C186: =IF('DF raw data'!C191="","",'DF raw data'!C191) -> 0.000259544 | D186: =IF('DF raw data'!D191="","",'DF raw data'!D191) -> -8.03982e-06 | F186: -1.20933764e-05 | G186: 0.000260711948 | H186: -8.07599919e-06 | J186: -0.0008927152519 | K186: -0.02764720979 | L186: 0.0170797139 | M186: 0.5430679414 | N186: 0.00625242755
A187: =IF('DF raw data'!A192="","",'DF raw data'!A192) -> -237.5 | B187: =IF('DF raw data'!B192="","",'DF raw data'!B192) -> -2.17163e-05 | C187: =IF('DF raw data'!C192="","",'DF raw data'!C192) -> 0.000263828 | D187: =IF('DF raw data'!D192="","",'DF raw data'!D192) -> -2.60865e-06 | F187: -2.181402335e-05 | G187: 0.000265015226 | H187: -2.620388925e-06 | J187: -0.0009036222635 | K187: -0.02809902092 | L187: 0.01721222151 | M187: 0.5516740521 | N187: 0.006400966101
A188: =IF('DF raw data'!A193="","",'DF raw data'!A193) -> -237 | B188: =IF('DF raw data'!B193="","",'DF raw data'!B193) -> -4.41651e-06 | C188: =IF('DF raw data'!C193="","",'DF raw data'!C193) -> 0.000261601 | D188: =IF('DF raw data'!D193="","",'DF raw data'!D193) -> -5.00895e-06 | F188: -4.436384295e-06 | G188: 0.0002627782045 | H188: -5.031490275e-06 | J188: -0.0009058404557 | K188: -0.02855194114 | L188: 0.01734361061 | M188: 0.5603458574 | N188: 0.006551776789
A189: =IF('DF raw data'!A194="","",'DF raw data'!A194) -> -236.5 | B189: =IF('DF raw data'!B194="","",'DF raw data'!B194) -> -2.31898e-05 | C189: =IF('DF raw data'!C194="","",'DF raw data'!C194) -> 0.0002636 | D189: =IF('DF raw data'!D194="","",'DF raw data'!D194) -> -2.62628e-06 | F189: -2.32941541e-05 | G189: 0.0002647862 | H189: -2.63809826e-06 | J189: -0.0009174875327 | K189: -0.02901068491 | L189: 0.01747600371 | M189: 0.5690838593 | N189: 0.006704903034
A190: =IF('DF raw data'!A195="","",'DF raw data'!A195) -> -236 | B190: =IF('DF raw data'!B195="","",'DF raw data'!B195) -> -2.22289e-05 | C190: =IF('DF raw data'!C195="","",'DF raw data'!C195) -> 0.000265035 | D190: =IF('DF raw data'!D195="","",'DF raw data'!D195) -> -5.71165e-06 | F190: -2.232893005e-05 | G190: 0.0002662276575 | H190: -5.737352425e-06 | J190: -0.0009286519978 | K190: -0.02947501091 | L190: 0.01760911754 | M190: 0.5778884181 | N190: 0.006860374742
A191: =IF('DF raw data'!A196="","",'DF raw data'!A196) -> -235.5 | B191: =IF('DF raw data'!B196="","",'DF raw data'!B196) -> -1.64628e-05 | C191: =IF('DF raw data'!C196="","",'DF raw data'!C196) -> 0.00026899 | D191: =IF('DF raw data'!D196="","",'DF raw data'!D196) -> -2.25346e-06 | F191: -1.65368826e-05 | G191: 0.000270200455 | H191: -2.26360057e-06 | J191: -0.0009369204391 | K191: -0.02994347113 | L191: 0.01774421777 | M191: 0.5867605269 | N191: 0.007018242284
A192: =IF('DF raw data'!A197="","",'DF raw data'!A197) -> -235 | B192: =IF('DF raw data'!B197="","",'DF raw data'!B197) -> -1.299e-05 | C192: =IF('DF raw data'!C197="","",'DF raw data'!C197) -> 0.000268728 | D192: =IF('DF raw data'!D197="","",'DF raw data'!D197) -> -2.42226e-05 | F192: =(1-$G$1*($B$49-$G$2))*B192 -> -1.3048455e-05 | G192: 0.000269937276 | H192: -2.43316017e-05 | J192: =F192*$G$3+J191 -> -0.0009434446666 | K192: =J192*$G$3+K191 -> -0.03041519346 | L192: =G192*$G$3+L191 -> 0.01787918641 | M192: =L192*$G$3+M191 -> 0.5957001202 | N192: =(J192^2+L192^2)*$G$3+N191 -> 0.007178519981
A193: =IF('DF raw data'!A198="","",'DF raw data'!A198) -> -234.5 | B193: =IF('DF raw data'!B198="","",'DF raw data'!B198) -> -1.4475e-05 | C193: =IF('DF raw data'!C198="","",'DF raw data'!C198) -> 0.000259804 | D193: =IF('DF raw data'!D198="","",'DF raw data'!D198) -> -4.6708e-06 | F193: -1.45401375e-05 | G193: 0.000260973118 | H193: -4.6918186e-06 | J193: -0.0009507147353 | K193: -0.03089055083 | L193: 0.01800967297 | M193: 0.6047049566 | N193: 0.00734114607
A194: =IF('DF raw data'!A199="","",'DF raw data'!A199) -> -234 | B194: =IF('DF raw data'!B199="","",'DF raw data'!B199) -> -7.87374e-06 | C194: =IF('DF raw data'!C199="","",'DF raw data'!C199) -> 0.000266445 | D194: =IF('DF raw data'!D199="","",'DF raw data'!D199) -> -9.18761e-06 | F194: -7.90917183e-06 | G194: 0.0002676440025 | H194: -9.228954245e-06 | J194: -0.0009546693212 | K194: -0.03136788549 | L194: 0.01814349497 | M194: 0.6137767041 | N194: 0.007506194972
A195: =IF('DF raw data'!A200="","",'DF raw data'!A200) -> -233.5 | B195: =IF('DF raw data'!B200="","",'DF raw data'!B200) -> -1.60136e-05 | C195: =IF('DF raw data'!C200="","",'DF raw data'!C200) -> 0.000261787 | D195: =IF('DF raw data'!D200="","",'DF raw data'!D200) -> -2.9304e-06 | F195: -1.60856612e-05 | G195: 0.0002629650415 | H195: -2.9435868e-06 | J195: -0.0009627121518 | K195: -0.03184924157 | L195: 0.01827497749 | M195: 0.6229141929 | N195: 0.00767364578
A196: =IF('DF raw data'!A201="","",'DF raw data'!A201) -> -233 | B196: =IF('DF raw data'!B201="","",'DF raw data'!B201) -> -1.22971e-05 | C196: =IF('DF raw data'!C201="","",'DF raw data'!C201) -> 0.000264773 | D196: =IF('DF raw data'!D201="","",'DF raw data'!D201) -> -6.15278e-06 | F196: -1.235243695e-05 | G196: 0.0002659644785 | H196: -6.18046751e-06 | J196: -0.0009688883703 | K196: -0.03233368575 | L196: 0.01840795973 | M196: 0.6321181727 | N196: 0.007843541643
A197: =IF('DF raw data'!A202="","",'DF raw data'!A202) -> -232.5 | B197: =IF('DF raw data'!B202="","",'DF raw data'!B202) -> -2.11415e-05 | C197: =IF('DF raw data'!C202="","",'DF raw data'!C202) -> 0.000267384 | D197: =IF('DF raw data'!D202="","",'DF raw data'!D202) -> 8.20774e-07 | F197: -2.123663675e-05 | G197: 0.000268587228 | H197: 8.24467483e-07 | J197: -0.0009795066887 | K197: -0.0328234391 | L197: 0.01854225334 | M197: 0.6413892994 | N197: 0.008015928939
A198: =IF('DF raw data'!A203="","",'DF raw data'!A203) -> -232 | B198: =IF('DF raw data'!B203="","",'DF raw data'!B203) -> -7.87111e-06 | C198: =IF('DF raw data'!C203="","",'DF raw data'!C203) -> 0.000268285 | D198: =IF('DF raw data'!D203="","",'DF raw data'!D203) -> -1.32762e-05 | F198: -7.906529995e-06 | G198: 0.0002694922825 | H198: -1.33359429e-05 | J198: -0.0009834599537 | K198: -0.03331516907 | L198: 0.01867699948 | M198: 0.6507277991 | N198: 0.008190827691
A199: =IF('DF raw data'!A204="","",'DF raw data'!A204) -> -231.5 | B199: =IF('DF raw data'!B204="","",'DF raw data'!B204) -> -1.56987e-05 | C199: =IF('DF raw data'!C204="","",'DF raw data'!C204) -> 0.000267881 | D199: =IF('DF raw data'!D204="","",'DF raw data'!D204) -> 5.17819e-06 | F199: -1.576934415e-05 | G199: 0.0002690864645 | H199: 5.201491855e-06 | J199: -0.0009913446257 | K199: -0.03381084139 | L199: 0.01881154271 | M199: 0.6601335705 | N199: 0.008368256143
A200: =IF('DF raw data'!A205="","",'DF raw data'!A205) -> -231 | B200: =IF('DF raw data'!B205="","",'DF raw data'!B205) -> -2.0686e-05 | C200: =IF('DF raw data'!C205="","",'DF raw data'!C205) -> 0.000263875 | D200: =IF('DF raw data'!D205="","",'DF raw data'!D205) -> -1.38497e-05 | F200: -2.0779087e-05 | G200: 0.0002650624375 | H200: -1.391202365e-05 | J200: -0.001001734169 | K200: -0.03431170847 | L200: 0.01894407393 | M200: 0.6696056075 | N200: 0.008548196847
A201: =IF('DF raw data'!A206="","",'DF raw data'!A206) -> -230.5 | B201: =IF('DF raw data'!B206="","",'DF raw data'!B206) -> -8.7722e-06 | C201: =IF('DF raw data'!C206="","",'DF raw data'!C206) -> 0.000260747 | D201: =IF('DF raw data'!D206="","",'DF raw data'!D206) -> -5.51769e-06 | F201: -8.8116749e-06 | G201: 0.0002619203615 | H201: -5.542519605e-06 | J201: -0.001006140007 | K201: -0.03481477847 | L201: 0.01907503411 | M201: 0.6791431245 | N201: 0.008730631469
... 1061 more rows

Sheet 10 y=-0.1
A1: =IF('DF raw data'!E1="","",'DF raw data'!E1) -> Number of header lines | B1: =IF('DF raw data'!F1="","",'DF raw data'!F1) -> 54 | C1: =IF('DF raw data'!G1="","",'DF raw data'!G1) ->  | D1: =IF('DF raw data'!H1="","",'DF raw data'!H1) ->  | F1: T_coeff | G1: -0.001 | H1: /degC | J1: IBy total | K1: =J1262*1000 -> 1.218554529 | L1: muTm | M1: =L1262*1000 -> 112.2521928 | R1: DF ref | S1: ='10 y=-0.2'!S1 -> 1
A2: =IF('DF raw data'!E2="","",'DF raw data'!E2) -> Measured by | B2: =IF('DF raw data'!F2="","",'DF raw data'!F2) -> Danfysik | C2: =IF('DF raw data'!G2="","",'DF raw data'!G2) ->  | D2: =IF('DF raw data'!H2="","",'DF raw data'!H2) ->  | F2: Tcorr | G2: 20 | H2: degC | J2: JBy total | K2: =K1262 -> -12.58327859 | L2: muTm^2 | M2: =M1262 -> 35.22515115
A3: =IF('DF raw data'!E3="","",'DF raw data'!E3) -> Operator | B3: =IF('DF raw data'!F3="","",'DF raw data'!F3) -> PMHA | C3: =IF('DF raw data'!G3="","",'DF raw data'!G3) ->  | D3: =IF('DF raw data'!H3="","",'DF raw data'!H3) ->  | F3: Step | G3: =A63-A62 -> 0.5 | H3: mm | J3: PI total | K3: =N1262 -> 10683.50796 | L3: T^2mm^3
A4: =IF('DF raw data'!E4="","",'DF raw data'!E4) -> Data-time | B4: =IF('DF raw data'!F4="","",'DF raw data'!F4) -> 13-09-2024, 11:13:41 | C4: =IF('DF raw data'!G4="","",'DF raw data'!G4) ->  | D4: =IF('DF raw data'!H4="","",'DF raw data'!H4) -> 
A5: =IF('DF raw data'!E5="","",'DF raw data'!E5) -> Project | B5: =IF('DF raw data'!F5="","",'DF raw data'!F5) -> 504314 | C5: =IF('DF raw data'!G5="","",'DF raw data'!G5) ->  | D5: =IF('DF raw data'!H5="","",'DF raw data'!H5) -> 
A6: =IF('DF raw data'!E6="","",'DF raw data'!E6) -> Magnet type | B6: =IF('DF raw data'!F6="","",'DF raw data'!F6) -> Dipole | C6: =IF('DF raw data'!G6="","",'DF raw data'!G6) ->  | D6: =IF('DF raw data'!H6="","",'DF raw data'!H6) -> 
A7: =IF('DF raw data'!E7="","",'DF raw data'!E7) -> Magnet nr. | B7: =IF('DF raw data'!F7="","",'DF raw data'!F7) -> 2410096 | C7: =IF('DF raw data'!G7="","",'DF raw data'!G7) ->  | D7: =IF('DF raw data'!H7="","",'DF raw data'!H7) -> 
A8: =IF('DF raw data'!E8="","",'DF raw data'!E8) -> Meas. number | B8: =IF('DF raw data'!F8="","",'DF raw data'!F8) -> 452 | C8: =IF('DF raw data'!G8="","",'DF raw data'!G8) ->  | D8: =IF('DF raw data'!H8="","",'DF raw data'!H8) -> 
A9: =IF('DF raw data'!E9="","",'DF raw data'!E9) -> Add. info | B9: =IF('DF raw data'!F9="","",'DF raw data'!F9) -> Y-alignment scan 2) | C9: =IF('DF raw data'!G9="","",'DF raw data'!G9) ->  | D9: =IF('DF raw data'!H9="","",'DF raw data'!H9) -> 
A10: =IF('DF raw data'!E10="","",'DF raw data'!E10) -> Device | B10: =IF('DF raw data'!F10="","",'DF raw data'!F10) -> (HAL) HALL-PROBE | C10: =IF('DF raw data'!G10="","",'DF raw data'!G10) ->  | D10: =IF('DF raw data'!H10="","",'DF raw data'!H10) -> 
A11: =IF('DF raw data'!E11="","",'DF raw data'!E11) -> Goal | B11: =IF('DF raw data'!F11="","",'DF raw data'!F11) -> (AXI) AXis Integral (Line, EFB) | C11: =IF('DF raw data'!G11="","",'DF raw data'!G11) ->  | D11: =IF('DF raw data'!H11="","",'DF raw data'!H11) -> 
A12: =IF('DF raw data'!E12="","",'DF raw data'!E12) -> Power supply mode | B12: =IF('DF raw data'!F12="","",'DF raw data'!F12) -> (PM) Permanent Magnet (no MPS in use) | C12: =IF('DF raw data'!G12="","",'DF raw data'!G12) ->  | D12: =IF('DF raw data'!H12="","",'DF raw data'!H12) -> 
A13: =IF('DF raw data'!E13="","",'DF raw data'!E13) -> Data format | B13: =IF('DF raw data'!F13="","",'DF raw data'!F13) -> Raw data text file | C13: =IF('DF raw data'!G13="","",'DF raw data'!G13) ->  | D13: =IF('DF raw data'!H13="","",'DF raw data'!H13) -> 
A14: =IF('DF raw data'!E14="","",'DF raw data'!E14) -> Direction of the pos. x-axis | B14: =IF('DF raw data'!F14="","",'DF raw data'!F14) -> See test program | C14: =IF('DF raw data'!G14="","",'DF raw data'!G14) ->  | D14: =IF('DF raw data'!H14="","",'DF raw data'!H14) -> 
A15: =IF('DF raw data'!E15="","",'DF raw data'!E15) -> Direction of the pos. y-axis | B15: =IF('DF raw data'!F15="","",'DF raw data'!F15) -> Vertical up | C15: =IF('DF raw data'!G15="","",'DF raw data'!G15) ->  | D15: =IF('DF raw data'!H15="","",'DF raw data'!H15) -> 
A16: =IF('DF raw data'!E16="","",'DF raw data'!E16) -> Direction of the pos. z-axis | B16: =IF('DF raw data'!F16="","",'DF raw data'!F16) -> See test program | C16: =IF('DF raw data'!G16="","",'DF raw data'!G16) ->  | D16: =IF('DF raw data'!H16="","",'DF raw data'!H16) -> 
A17: =IF('DF raw data'!E17="","",'DF raw data'!E17) -> Mapper type | B17: =IF('DF raw data'!F17="","",'DF raw data'!F17) -> Precision Hall Mapper | C17: =IF('DF raw data'!G17="","",'DF raw data'!G17) ->  | D17: =IF('DF raw data'!H17="","",'DF raw data'!H17) -> 
A18: =IF('DF raw data'!E18="","",'DF raw data'!E18) -> Mapper Danfysik Reg. Number | B18: =IF('DF raw data'!F18="","",'DF raw data'!F18) -> 2033-D (mapper 1) | C18: =IF('DF raw data'!G18="","",'DF raw data'!G18) ->  | D18: =IF('DF raw data'!H18="","",'DF raw data'!H18) -> 
A19: =IF('DF raw data'!E19="","",'DF raw data'!E19) -> Measurement consept | B19: =IF('DF raw data'!F19="","",'DF raw data'!F19) -> Square line grid | C19: =IF('DF raw data'!G19="","",'DF raw data'!G19) ->  | D19: =IF('DF raw data'!H19="","",'DF raw data'!H19) -> 
A20: =IF('DF raw data'!E20="","",'DF raw data'!E20) -> Mode | B20: =IF('DF raw data'!F20="","",'DF raw data'!F20) -> On-the-fly measurement | C20: =IF('DF raw data'!G20="","",'DF raw data'!G20) ->  | D20: =IF('DF raw data'!H20="","",'DF raw data'!H20) -> 
A21: =IF('DF raw data'!E21="","",'DF raw data'!E21) ->  | B21: =IF('DF raw data'!F21="","",'DF raw data'!F21) ->  | C21: =IF('DF raw data'!G21="","",'DF raw data'!G21) ->  | D21: =IF('DF raw data'!H21="","",'DF raw data'!H21) -> 
A22: =IF('DF raw data'!E22="","",'DF raw data'!E22) -> Probe Name | B22: =IF('DF raw data'!F22="","",'DF raw data'!F22) -> ID12_By | C22: =IF('DF raw data'!G22="","",'DF raw data'!G22) ->  | D22: =IF('DF raw data'!H22="","",'DF raw data'!H22) -> 
A23: =IF('DF raw data'!E23="","",'DF raw data'!E23) -> Probe Type | B23: =IF('DF raw data'!F23="","",'DF raw data'!F23) -> DF_ID_3D_Bxyz | C23: =IF('DF raw data'!G23="","",'DF raw data'!G23) ->  | D23: =IF('DF raw data'!H23="","",'DF raw data'!H23) -> 
A24: =IF('DF raw data'!E24="","",'DF raw data'!E24) -> Probe Danfysik Reg. Number | B24: =IF('DF raw data'!F24="","",'DF raw data'!F24) -> 2277 | C24: =IF('DF raw data'!G24="","",'DF raw data'!G24) ->  | D24: =IF('DF raw data'!H24="","",'DF raw data'!H24) -> 
A25: =IF('DF raw data'!E25="","",'DF raw data'!E25) -> Probe Axis | B25: =IF('DF raw data'!F25="","",'DF raw data'!F25) -> By | C25: =IF('DF raw data'!G25="","",'DF raw data'!G25) ->  | D25: =IF('DF raw data'!H25="","",'DF raw data'!H25) -> 
A26: =IF('DF raw data'!E26="","",'DF raw data'!E26) -> Probe Current Supply | B26: =IF('DF raw data'!F26="","",'DF raw data'!F26) -> 1825-D | C26: =IF('DF raw data'!G26="","",'DF raw data'!G26) ->  | D26: =IF('DF raw data'!H26="","",'DF raw data'!H26) -> 
A27: =IF('DF raw data'!E27="","",'DF raw data'!E27) -> Probe Gain Correction | B27: =IF('DF raw data'!F27="","",'DF raw data'!F27) -> 0.99619 | C27: =IF('DF raw data'!G27="","",'DF raw data'!G27) ->  | D27: =IF('DF raw data'!H27="","",'DF raw data'!H27) -> 
A28: =IF('DF raw data'!E28="","",'DF raw data'!E28) -> Probe Offset Correction | B28: =IF('DF raw data'!F28="","",'DF raw data'!F28) -> 0.002767 | C28: =IF('DF raw data'!G28="","",'DF raw data'!G28) ->  | D28: =IF('DF raw data'!H28="","",'DF raw data'!H28) -> 
A29: =IF('DF raw data'!E29="","",'DF raw data'!E29) -> DVM Number | B29: =IF('DF raw data'!F29="","",'DF raw data'!F29) -> 2 | C29: =IF('DF raw data'!G29="","",'DF raw data'!G29) ->  | D29: =IF('DF raw data'!H29="","",'DF raw data'!H29) -> 
A30: =IF('DF raw data'!E30="","",'DF raw data'!E30) -> DVM Type | B30: =IF('DF raw data'!F30="","",'DF raw data'!F30) -> K2701 | C30: =IF('DF raw data'!G30="","",'DF raw data'!G30) ->  | D30: =IF('DF raw data'!H30="","",'DF raw data'!H30) -> 
A31: =IF('DF raw data'!E31="","",'DF raw data'!E31) -> DVM Danfysik Reg. Number | B31: =IF('DF raw data'!F31="","",'DF raw data'!F31) -> 1743-D | C31: =IF('DF raw data'!G31="","",'DF raw data'!G31) ->  | D31: =IF('DF raw data'!H31="","",'DF raw data'!H31) -> 
A32: =IF('DF raw data'!E32="","",'DF raw data'!E32) -> Probe Name | B32: =IF('DF raw data'!F32="","",'DF raw data'!F32) -> ID12_Bx | C32: =IF('DF raw data'!G32="","",'DF raw data'!G32) ->  | D32: =IF('DF raw data'!H32="","",'DF raw data'!H32) -> 
A33: =IF('DF raw data'!E33="","",'DF raw data'!E33) -> Probe Type | B33: =IF('DF raw data'!F33="","",'DF raw data'!F33) -> DF_ID_3D_Bxyz | C33: =IF('DF raw data'!G33="","",'DF raw data'!G33) ->  | D33: =IF('DF raw data'!H33="","",'DF raw data'!H33) -> 
A34: =IF('DF raw data'!E34="","",'DF raw data'!E34) -> Probe Danfysik Reg. Number | B34: =IF('DF raw data'!F34="","",'DF raw data'!F34) -> 2277 | C34: =IF('DF raw data'!G34="","",'DF raw data'!G34) ->  | D34: =IF('DF raw data'!H34="","",'DF raw data'!H34) -> 
A35: =IF('DF raw data'!E35="","",'DF raw data'!E35) -> Probe Axis | B35: =IF('DF raw data'!F35="","",'DF raw data'!F35) -> Bx | C35: =IF('DF raw data'!G35="","",'DF raw data'!G35) ->  | D35: =IF('DF raw data'!H35="","",'DF raw data'!H35) -> 
A36: =IF('DF raw data'!E36="","",'DF raw data'!E36) -> Probe Current Supply | B36: =IF('DF raw data'!F36="","",'DF raw data'!F36) -> 1825-D | C36: =IF('DF raw data'!G36="","",'DF raw data'!G36) ->  | D36: =IF('DF raw data'!H36="","",'DF raw data'!H36) -> 
A37: =IF('DF raw data'!E37="","",'DF raw data'!E37) -> Probe Gain Correction | B37: =IF('DF raw data'!F37="","",'DF raw data'!F37) -> 1 | C37: =IF('DF raw data'!G37="","",'DF raw data'!G37) ->  | D37: =IF('DF raw data'!H37="","",'DF raw data'!H37) -> 
A38: =IF('DF raw data'!E38="","",'DF raw data'!E38) -> Probe Offset Correction | B38: =IF('DF raw data'!F38="","",'DF raw data'!F38) -> -0.17549 | C38: =IF('DF raw data'!G38="","",'DF raw data'!G38) ->  | D38: =IF('DF raw data'!H38="","",'DF raw data'!H38) -> 
A39: =IF('DF raw data'!E39="","",'DF raw data'!E39) -> DVM Number | B39: =IF('DF raw data'!F39="","",'DF raw data'!F39) -> 3 | C39: =IF('DF raw data'!G39="","",'DF raw data'!G39) ->  | D39: =IF('DF raw data'!H39="","",'DF raw data'!H39) -> 
A40: =IF('DF raw data'!E40="","",'DF raw data'!E40) -> DVM Type | B40: =IF('DF raw data'!F40="","",'DF raw data'!F40) -> K2701 | C40: =IF('DF raw data'!G40="","",'DF raw data'!G40) ->  | D40: =IF('DF raw data'!H40="","",'DF raw data'!H40) -> 
A41: =IF('DF raw data'!E41="","",'DF raw data'!E41) -> DVM Danfysik Reg. Number | B41: =IF('DF raw data'!F41="","",'DF raw data'!F41) -> 1744-D | C41: =IF('DF raw data'!G41="","",'DF raw data'!G41) ->  | D41: =IF('DF raw data'!H41="","",'DF raw data'!H41) -> 
A42: =IF('DF raw data'!E42="","",'DF raw data'!E42) -> Probe Name | B42: =IF('DF raw data'!F42="","",'DF raw data'!F42) -> ID12_Bz | C42: =IF('DF raw data'!G42="","",'DF raw data'!G42) ->  | D42: =IF('DF raw data'!H42="","",'DF raw data'!H42) -> 
A43: =IF('DF raw data'!E43="","",'DF raw data'!E43) -> Probe Type | B43: =IF('DF raw data'!F43="","",'DF raw data'!F43) -> DF_ID_3D_Bxyz | C43: =IF('DF raw data'!G43="","",'DF raw data'!G43) ->  | D43: =IF('DF raw data'!H43="","",'DF raw data'!H43) -> 
A44: =IF('DF raw data'!E44="","",'DF raw data'!E44) -> Probe Danfysik Reg. Number | B44: =IF('DF raw data'!F44="","",'DF raw data'!F44) -> 2277 | C44: =IF('DF raw data'!G44="","",'DF raw data'!G44) ->  | D44: =IF('DF raw data'!H44="","",'DF raw data'!H44) -> 
A45: =IF('DF raw data'!E45="","",'DF raw data'!E45) -> Probe Axis | B45: =IF('DF raw data'!F45="","",'DF raw data'!F45) -> Bz | C45: =IF('DF raw data'!G45="","",'DF raw data'!G45) ->  | D45: =IF('DF raw data'!H45="","",'DF raw data'!H45) -> 
A46: =IF('DF raw data'!E46="","",'DF raw data'!E46) -> Probe Current Supply | B46: =IF('DF raw data'!F46="","",'DF raw data'!F46) -> 1825-D | C46: =IF('DF raw data'!G46="","",'DF raw data'!G46) ->  | D46: =IF('DF raw data'!H46="","",'DF raw data'!H46) -> 
A47: =IF('DF raw data'!E47="","",'DF raw data'!E47) -> Probe Gain Correction | B47: =IF('DF raw data'!F47="","",'DF raw data'!F47) -> 1 | C47: =IF('DF raw data'!G47="","",'DF raw data'!G47) ->  | D47: =IF('DF raw data'!H47="","",'DF raw data'!H47) -> 
A48: =IF('DF raw data'!E53="","",'DF raw data'!E53) -> PS-Gap: | B48: =IF('DF raw data'!F53="","",'DF raw data'!F53) -> 10 | C48: =IF('DF raw data'!G53="","",'DF raw data'!G53) ->  | D48: =IF('DF raw data'!H53="","",'DF raw data'!H53) -> 
A49: =IF('DF raw data'!E54="","",'DF raw data'!E54) -> PS-Temperature: | B49: =IF('DF raw data'!F54="","",'DF raw data'!F54) -> 24.5 | C49: =IF('DF raw data'!G54="","",'DF raw data'!G54) ->  | D49: =IF('DF raw data'!H54="","",'DF raw data'!H54) -> 
A50: =IF('DF raw data'!E55="","",'DF raw data'!E55) -> PS-Encoder: | B50: =IF('DF raw data'!F55="","",'DF raw data'!F55) -> 19.73485 | C50: =IF('DF raw data'!G55="","",'DF raw data'!G55) ->  | D50: =IF('DF raw data'!H55="","",'DF raw data'!H55) -> 
A51: =IF('DF raw data'!E56="","",'DF raw data'!E56) ->  | B51: =IF('DF raw data'!F56="","",'DF raw data'!F56) ->  | C51: =IF('DF raw data'!G56="","",'DF raw data'!G56) ->  | D51: =IF('DF raw data'!H56="","",'DF raw data'!H56) -> 
A52: =IF('DF raw data'!E57="","",'DF raw data'!E57) -> Monitor-Index | B52: =IF('DF raw data'!F57="","",'DF raw data'!F57) -> [1,1,4] | C52: =IF('DF raw data'!G57="","",'DF raw data'!G57) ->  | D52: =IF('DF raw data'!H57="","",'DF raw data'!H57) -> 
A53: =IF('DF raw data'!E58="","",'DF raw data'!E58) ->  | B53: =IF('DF raw data'!F58="","",'DF raw data'!F58) ->  | C53: =IF('DF raw data'!G58="","",'DF raw data'!G58) ->  | D53: =IF('DF raw data'!H58="","",'DF raw data'!H58) -> 
A54: =IF('DF raw data'!E59="","",'DF raw data'!E59) -> Time [s] | B54: =IF('DF raw data'!F59="","",'DF raw data'!F59) -> Y [mm] | C54: =IF('DF raw data'!G59="","",'DF raw data'!G59) -> X [mm] | D54: =IF('DF raw data'!H59="","",'DF raw data'!H59) -> Nominal current [A]
A55: =IF('DF raw data'!E60="","",'DF raw data'!E60) ->  | B55: =IF('DF raw data'!F60="","",'DF raw data'!F60) ->  | C55: =IF('DF raw data'!G60="","",'DF raw data'!G60) ->  | D55: =IF('DF raw data'!H60="","",'DF raw data'!H60) -> 
A56: =IF('DF raw data'!E61="","",'DF raw data'!E61) -> 207.4 | B56: =IF('DF raw data'!F61="","",'DF raw data'!F61) -> 31.66 | C56: =IF('DF raw data'!G61="","",'DF raw data'!G61) -> 302.3 | D56: =IF('DF raw data'!H61="","",'DF raw data'!H61) -> 0
A57: =IF('DF raw data'!E62="","",'DF raw data'!E62) ->  | B57: =IF('DF raw data'!F62="","",'DF raw data'!F62) ->  | C57: =IF('DF raw data'!G62="","",'DF raw data'!G62) ->  | D57: =IF('DF raw data'!H62="","",'DF raw data'!H62) -> 
A58: =IF('DF raw data'!E63="","",'DF raw data'!E63) -> Measurement-Index | B58: =IF('DF raw data'!F63="","",'DF raw data'!F63) -> [1,1,1201,2] | C58: =IF('DF raw data'!G63="","",'DF raw data'!G63) ->  | D58: =IF('DF raw data'!H63="","",'DF raw data'!H63) -> 
A59: =IF('DF raw data'!E64="","",'DF raw data'!E64) ->  | B59: =IF('DF raw data'!F64="","",'DF raw data'!F64) ->  | C59: =IF('DF raw data'!G64="","",'DF raw data'!G64) ->  | D59: =IF('DF raw data'!H64="","",'DF raw data'!H64) -> 
A60: =IF('DF raw data'!E65="","",'DF raw data'!E65) -> Z [mm] | B60: By [T] | C60: Bx [T] | D60: Bz [T] | F60: By_corr | G60: Bx_corr | H60: Bz_corr | J60: Iy | K60: Jy | L60: Ix | M60: Jx | N60: PI
A62: =IF('DF raw data'!E67="","",'DF raw data'!E67) -> -300 | B62: =IF('DF raw data'!F67="","",'DF raw data'!F67) -> -2.24425e-05 | C62: =IF('DF raw data'!G67="","",'DF raw data'!G67) -> 0.00024188 | D62: =IF('DF raw data'!H67="","",'DF raw data'!H67) -> -5.42238e-06 | F62: =(1-$G$1*($B$49))*B62 -> -2.299234125e-05 | G62: =(1-$G$1*($B$49-$G$2))*C62 -> 0.00024296846 | H62: =(1-$G$1*($B$49-$G$2))*D62 -> -5.44678071e-06 | J62: =F62*$G$3 -> -1.149617063e-05 | K62: =J62*$G$3 -> -5.748085313e-06 | L62: =G62*$G$3 -> 0.00012148423 | M62: =L62*$G$3 -> 6.0742115e-05 | N62: =(J62^2+L62^2)*$G$3 -> 7.445290039e-09
A63: =IF('DF raw data'!E68="","",'DF raw data'!E68) -> -299.5 | B63: =IF('DF raw data'!F68="","",'DF raw data'!F68) -> -2.20577e-05 | C63: =IF('DF raw data'!G68="","",'DF raw data'!G68) -> 0.000251038 | D63: =IF('DF raw data'!H68="","",'DF raw data'!H68) -> -5.60989e-06 | F63: =(1-$G$1*($B$49-$G$2))*B63 -> -2.215695965e-05 | G63: =(1-$G$1*($B$49-$G$2))*C63 -> 0.000252167671 | H63: -5.635134505e-06 | J63: =F63*$G$3+J62 -> -2.257465045e-05 | K63: =J63*$G$3+K62 -> -1.703541054e-05 | L63: =G63*$G$3+L62 -> 0.0002475680655 | M63: =L63*$G$3+M62 -> 0.0001845261477 | N63: =(J63^2+L63^2)*$G$3+N62 -> 3.834507099e-08
A64: =IF('DF raw data'!E69="","",'DF raw data'!E69) -> -299 | B64: =IF('DF raw data'!F69="","",'DF raw data'!F69) -> -8.09015e-06 | C64: =IF('DF raw data'!G69="","",'DF raw data'!G69) -> 0.000247185 | D64: =IF('DF raw data'!H69="","",'DF raw data'!H69) -> -6.54428e-06 | F64: =(1-$G$1*($B$49-$G$2))*B64 -> -8.126555675e-06 | G64: 0.0002482973325 | H64: -6.57372926e-06 | J64: =F64*$G$3+J63 -> -2.663792829e-05 | K64: =J64*$G$3+K63 -> -3.035437468e-05 | L64: =G64*$G$3+L63 -> 0.0003717167317 | M64: =L64*$G$3+M63 -> 0.0003703845136 | N64: =(J64^2+L64^2)*$G$3+N63 -> 1.077865249e-07
A65: =IF('DF raw data'!E70="","",'DF raw data'!E70) -> -298.5 | B65: =IF('DF raw data'!F70="","",'DF raw data'!F70) -> -1.44332e-05 | C65: =IF('DF raw data'!G70="","",'DF raw data'!G70) -> 0.000242004 | D65: =IF('DF raw data'!H70="","",'DF raw data'!H70) -> -7.3998e-06 | F65: -1.44981494e-05 | G65: 0.000243093018 | H65: -7.4330991e-06 | J65: -3.388700299e-05 | K65: -4.729787618e-05 | L65: 0.0004932632407 | M65: 0.000617016134 | N65: 2.300150018e-07
A66: =IF('DF raw data'!E71="","",'DF raw data'!E71) -> -298 | B66: =IF('DF raw data'!F71="","",'DF raw data'!F71) -> -2.59654e-05 | C66: =IF('DF raw data'!G71="","",'DF raw data'!G71) -> 0.00024679 | D66: =IF('DF raw data'!H71="","",'DF raw data'!H71) -> -6.70893e-06 | F66: -2.60822443e-05 | G66: 0.000247900555 | H66: -6.739120185e-06 | J66: -4.692812514e-05 | K66: -7.076193874e-05 | L66: 0.0006172135182 | M66: 0.0009256228931 | N66: 4.215923898e-07
A67: =IF('DF raw data'!E72="","",'DF raw data'!E72) -> -297.5 | B67: =IF('DF raw data'!F72="","",'DF raw data'!F72) -> -1.92397e-05 | C67: =IF('DF raw data'!G72="","",'DF raw data'!G72) -> 0.000247419 | D67: =IF('DF raw data'!H72="","",'DF raw data'!H72) -> -5.54968e-06 | F67: -1.932627865e-05 | G67: 0.0002485323855 | H67: -5.57465356e-06 | J67: -5.659126446e-05 | K67: -9.905757098e-05 | L67: 0.000741479711 | M67: 0.001296362749 | N67: 6.980897563e-07
A68: =IF('DF raw data'!E73="","",'DF raw data'!E73) -> -297 | B68: =IF('DF raw data'!F73="","",'DF raw data'!F73) -> -3.73371e-06 | C68: =IF('DF raw data'!G73="","",'DF raw data'!G73) -> 0.000251139 | D68: =IF('DF raw data'!H73="","",'DF raw data'!H73) -> -5.98219e-06 | F68: -3.750511695e-06 | G68: 0.0002522691255 | H68: -6.009109855e-06 | J68: -5.846652031e-05 | K68: -0.0001282908311 | L68: 0.0008676142737 | M68: 0.001730169885 | N68: 1.076176187e-06
A69: =IF('DF raw data'!E74="","",'DF raw data'!E74) -> -296.5 | B69: =IF('DF raw data'!F74="","",'DF raw data'!F74) -> -9.75591e-06 | C69: =IF('DF raw data'!G74="","",'DF raw data'!G74) -> 0.000252291 | D69: =IF('DF raw data'!H74="","",'DF raw data'!H74) -> -7.30993e-06 | F69: -9.799811595e-06 | G69: 0.0002534263095 | H69: -7.342824685e-06 | J69: -6.336642611e-05 | K69: -0.0001599740442 | L69: 0.0009943274285 | M69: 0.0022273336 | N69: 1.572527357e-06
A70: =IF('DF raw data'!E75="","",'DF raw data'!E75) -> -296 | B70: =IF('DF raw data'!F75="","",'DF raw data'!F75) -> -1.49447e-05 | C70: =IF('DF raw data'!G75="","",'DF raw data'!G75) -> 0.000259808 | D70: =IF('DF raw data'!H75="","",'DF raw data'!H75) -> -7.68954e-06 | F70: -1.501195115e-05 | G70: 0.000260977136 | H70: -7.72414293e-06 | J70: -7.087240168e-05 | K70: -0.000195410245 | L70: 0.001124815996 | M70: 0.002789741598 | N70: 2.207644318e-06
A71: =IF('DF raw data'!E76="","",'DF raw data'!E76) -> -295.5 | B71: =IF('DF raw data'!F76="","",'DF raw data'!F76) -> -2.10969e-05 | C71: =IF('DF raw data'!G76="","",'DF raw data'!G76) -> 0.000262088 | D71: =IF('DF raw data'!H76="","",'DF raw data'!H76) -> -7.03482e-06 | F71: -2.119183605e-05 | G71: 0.000263267396 | H71: -7.06647669e-06 | J71: -8.146831971e-05 | K71: -0.0002361444049 | L71: 0.001256449694 | M71: 0.003417966445 | N71: 3.000295779e-06
A72: =IF('DF raw data'!E77="","",'DF raw data'!E77) -> -295 | B72: =IF('DF raw data'!F77="","",'DF raw data'!F77) -> -1.1486e-05 | C72: =IF('DF raw data'!G77="","",'DF raw data'!G77) -> 0.000257532 | D72: =IF('DF raw data'!H77="","",'DF raw data'!H77) -> -6.43181e-06 | F72: -1.1537687e-05 | G72: 0.000258690894 | H72: -6.460753145e-06 | J72: -8.723716321e-05 | K72: -0.0002797629865 | L72: 0.001385795141 | M72: 0.004110864016 | N72: 3.964315028e-06
A73: =IF('DF raw data'!E78="","",'DF raw data'!E78) -> -294.5 | B73: =IF('DF raw data'!F78="","",'DF raw data'!F78) -> -1.98803e-05 | C73: =IF('DF raw data'!G78="","",'DF raw data'!G78) -> 0.000253664 | D73: =IF('DF raw data'!H78="","",'DF raw data'!H78) -> -6.30312e-06 | F73: -1.996976135e-05 | G73: 0.000254805488 | H73: -6.33148404e-06 | J73: -9.722204388e-05 | K73: -0.0003283740084 | L73: 0.001513197885 | M73: 0.004867462959 | N73: 5.113925011e-06
A74: =IF('DF raw data'!E79="","",'DF raw data'!E79) -> -294 | B74: =IF('DF raw data'!F79="","",'DF raw data'!F79) -> -5.71938e-06 | C74: =IF('DF raw data'!G79="","",'DF raw data'!G79) -> 0.000250669 | D74: =IF('DF raw data'!H79="","",'DF raw data'!H79) -> -6.80362e-06 | F74: -5.74511721e-06 | G74: 0.0002517970105 | H74: -6.83423629e-06 | J74: -0.0001000946025 | K74: -0.0003784213097 | L74: 0.001639096391 | M74: 0.005687011154 | N74: 6.462252965e-06
A75: =IF('DF raw data'!E80="","",'DF raw data'!E80) -> -293.5 | B75: =IF('DF raw data'!F80="","",'DF raw data'!F80) -> -1.50101e-05 | C75: =IF('DF raw data'!G80="","",'DF raw data'!G80) -> 0.000242246 | D75: =IF('DF raw data'!H80="","",'DF raw data'!H80) -> -7.00475e-06 | F75: -1.507764545e-05 | G75: 0.000243336107 | H75: -7.036271375e-06 | J75: -0.0001076334252 | K75: -0.0004322380223 | L75: 0.001760764444 | M75: 0.006567393376 | N75: 8.018191156e-06
A76: =IF('DF raw data'!E81="","",'DF raw data'!E81) -> -293 | B76: =IF('DF raw data'!F81="","",'DF raw data'!F81) -> -2.01996e-05 | C76: =IF('DF raw data'!G81="","",'DF raw data'!G81) -> 0.000239207 | D76: =IF('DF raw data'!H81="","",'DF raw data'!H81) -> -6.31434e-06 | F76: -2.02904982e-05 | G76: 0.0002402834315 | H76: -6.34275453e-06 | J76: -0.0001177786743 | K76: -0.0004911273594 | L76: 0.00188090616 | M76: 0.007507846456 | N76: 9.794031056e-06
A77: =IF('DF raw data'!E82="","",'DF raw data'!E82) -> -292.5 | B77: =IF('DF raw data'!F82="","",'DF raw data'!F82) -> -8.0268e-06 | C77: =IF('DF raw data'!G82="","",'DF raw data'!G82) -> 0.000248237 | D77: =IF('DF raw data'!H82="","",'DF raw data'!H82) -> -5.79282e-06 | F77: -8.0629206e-06 | G77: 0.0002493540665 | H77: -5.81888769e-06 | J77: -0.0001218101346 | K77: -0.0005520324267 | L77: 0.002005583193 | M77: 0.008510638053 | N77: 1.181263188e-05
A78: =IF('DF raw data'!E83="","",'DF raw data'!E83) -> -292 | B78: =IF('DF raw data'!F83="","",'DF raw data'!F83) -> -6.80873e-06 | C78: =IF('DF raw data'!G83="","",'DF raw data'!G83) -> 0.000244929 | D78: =IF('DF raw data'!H83="","",'DF raw data'!H83) -> -6.39351e-06 | F78: -6.839369285e-06 | G78: 0.0002460311805 | H78: -6.422280795e-06 | J78: -0.0001252298193 | K78: -0.0006146473364 | L78: 0.002128598783 | M78: 0.009574937445 | N78: 1.408593953e-05
A79: =IF('DF raw data'!E84="","",'DF raw data'!E84) -> -291.5 | B79: =IF('DF raw data'!F84="","",'DF raw data'!F84) -> -3.73045e-06 | C79: =IF('DF raw data'!G84="","",'DF raw data'!G84) -> 0.000241035 | D79: =IF('DF raw data'!H84="","",'DF raw data'!H84) -> -1.11791e-05 | F79: -3.747237025e-06 | G79: 0.0002421196575 | H79: -1.122940595e-05 | J79: -0.0001271034378 | K79: -0.0006781990552 | L79: 0.002249658612 | M79: 0.01069976675 | N79: 1.66244991e-05
A80: =IF('DF raw data'!E85="","",'DF raw data'!E85) -> -291 | B80: =IF('DF raw data'!F85="","",'DF raw data'!F85) -> -1.54519e-05 | C80: =IF('DF raw data'!G85="","",'DF raw data'!G85) -> 0.000236669 | D80: =IF('DF raw data'!H85="","",'DF raw data'!H85) -> -1.64159e-05 | F80: -1.552143355e-05 | G80: 0.0002377340105 | H80: -1.648977155e-05 | J80: -0.0001348641545 | K80: -0.0007456311325 | L80: 0.002368525617 | M80: 0.01188402956 | N80: 1.943855008e-05
A81: =IF('DF raw data'!E86="","",'DF raw data'!E86) -> -290.5 | B81: =IF('DF raw data'!F86="","",'DF raw data'!F86) -> -1.24535e-05 | C81: =IF('DF raw data'!G86="","",'DF raw data'!G86) -> 0.000237071 | D81: =IF('DF raw data'!H86="","",'DF raw data'!H86) -> 3.26866e-06 | F81: -1.250954075e-05 | G81: 0.0002381378195 | H81: 3.28336897e-06 | J81: -0.0001411189249 | K81: -0.000816190595 | L81: 0.002487594527 | M81: 0.01312782682 | N81: 2.254257062e-05
A82: =IF('DF raw data'!E87="","",'DF raw data'!E87) -> -290 | B82: =IF('DF raw data'!F87="","",'DF raw data'!F87) -> -1.37196e-05 | C82: =IF('DF raw data'!G87="","",'DF raw data'!G87) -> 0.000244607 | D82: =IF('DF raw data'!H87="","",'DF raw data'!H87) -> -2.04778e-05 | F82: -1.37813382e-05 | G82: 0.0002457077315 | H82: -2.05699501e-05 | J82: -0.000148009594 | K82: -0.000890195392 | L82: 0.002610448393 | M82: 0.01443305102 | N82: 2.596074444e-05
A83: =IF('DF raw data'!E88="","",'DF raw data'!E88) -> -289.5 | B83: =IF('DF raw data'!F88="","",'DF raw data'!F88) -> -1.35971e-05 | C83: =IF('DF raw data'!G88="","",'DF raw data'!G88) -> 0.000252555 | D83: =IF('DF raw data'!H88="","",'DF raw data'!H88) -> -1.16643e-05 | F83: -1.365828695e-05 | G83: 0.0002536914975 | H83: -1.171678935e-05 | J83: -0.0001548387375 | K83: -0.0009676147607 | L83: 0.002737294142 | M83: 0.01580169809 | N83: 2.971912157e-05
A84: =IF('DF raw data'!E89="","",'DF raw data'!E89) -> -289 | B84: =IF('DF raw data'!F89="","",'DF raw data'!F89) -> -1.31425e-05 | C84: =IF('DF raw data'!G89="","",'DF raw data'!G89) -> 0.000251294 | D84: =IF('DF raw data'!H89="","",'DF raw data'!H89) -> -2.10389e-05 | F84: -1.320164125e-05 | G84: 0.000252424823 | H84: -2.113357505e-05 | J84: -0.0001614395581 | K84: -0.00104833454 | L84: 0.002863506553 | M84: 0.01723345137 | N84: 3.383198783e-05
A85: =IF('DF raw data'!E90="","",'DF raw data'!E90) -> -288.5 | B85: =IF('DF raw data'!F90="","",'DF raw data'!F90) -> -1.33463e-05 | C85: =IF('DF raw data'!G90="","",'DF raw data'!G90) -> 0.000253361 | D85: =IF('DF raw data'!H90="","",'DF raw data'!H90) -> -3.15981e-06 | F85: -1.340635835e-05 | G85: 0.0002545011245 | H85: -3.174029145e-06 | J85: -0.0001681427373 | K85: -0.001132405908 | L85: 0.002990757115 | M85: 0.01872882992 | N85: 3.831843788e-05
A86: =IF('DF raw data'!E91="","",'DF raw data'!E91) -> -288 | B86: =IF('DF raw data'!F91="","",'DF raw data'!F91) -> -1.69976e-05 | C86: =IF('DF raw data'!G91="","",'DF raw data'!G91) -> 0.000253342 | D86: =IF('DF raw data'!H91="","",'DF raw data'!H91) -> -4.57857e-06 | F86: -1.70740892e-05 | G86: 0.000254482039 | H86: -4.599173565e-06 | J86: -0.0001766797819 | K86: -0.001220745799 | L86: 0.003117998135 | M86: 0.02028782899 | N86: 4.319500193e-05
A87: =IF('DF raw data'!E92="","",'DF raw data'!E92) -> -287.5 | B87: =IF('DF raw data'!F92="","",'DF raw data'!F92) -> -2.50015e-05 | C87: =IF('DF raw data'!G92="","",'DF raw data'!G92) -> 0.000256964 | D87: =IF('DF raw data'!H92="","",'DF raw data'!H92) -> -1.2362e-05 | F87: -2.511400675e-05 | G87: 0.000258120338 | H87: -1.2417629e-05 | J87: -0.0001892367853 | K87: -0.001315364192 | L87: 0.003247058304 | M87: 0.02191135814 | N87: 4.848460103e-05
A88: =IF('DF raw data'!E93="","",'DF raw data'!E93) -> -287 | B88: =IF('DF raw data'!F93="","",'DF raw data'!F93) -> -9.88222e-06 | C88: =IF('DF raw data'!G93="","",'DF raw data'!G93) -> 0.000245553 | D88: =IF('DF raw data'!H93="","",'DF raw data'!H93) -> -9.70245e-06 | F88: -9.92668999e-06 | G88: 0.0002466579885 | H88: -9.746111025e-06 | J88: -0.0001942001303 | K88: -0.001412464257 | L88: 0.003370387298 | M88: 0.02359655179 | N88: 5.418321315e-05
A89: =IF('DF raw data'!E94="","",'DF raw data'!E94) -> -286.5 | B89: =IF('DF raw data'!F94="","",'DF raw data'!F94) -> -1.56507e-05 | C89: =IF('DF raw data'!G94="","",'DF raw data'!G94) -> 0.000239429 | D89: =IF('DF raw data'!H94="","",'DF raw data'!H94) -> -6.76113e-06 | F89: -1.572112815e-05 | G89: 0.0002405064305 | H89: -6.791555085e-06 | J89: -0.0002020606943 | K89: -0.001513494604 | L89: 0.003490640513 | M89: 0.02534187205 | N89: 6.0295913e-05
A90: =IF('DF raw data'!E95="","",'DF raw data'!E95) -> -286 | B90: =IF('DF raw data'!F95="","",'DF raw data'!F95) -> -1.33436e-05 | C90: =IF('DF raw data'!G95="","",'DF raw data'!G95) -> 0.000243022 | D90: =IF('DF raw data'!H95="","",'DF raw data'!H95) -> -7.17428e-06 | F90: -1.34036462e-05 | G90: 0.000244115599 | H90: -7.20656426e-06 | J90: -0.0002087625174 | K90: -0.001617875863 | L90: 0.003612698313 | M90: 0.02714822121 | N90: 6.684349845e-05
A91: =IF('DF raw data'!E96="","",'DF raw data'!E96) -> -285.5 | B91: =IF('DF raw data'!F96="","",'DF raw data'!F96) -> -7.25855e-06 | C91: =IF('DF raw data'!G96="","",'DF raw data'!G96) -> 0.000237776 | D91: =IF('DF raw data'!H96="","",'DF raw data'!H96) -> -4.71969e-06 | F91: -7.291213475e-06 | G91: 0.000238845992 | H91: -4.740928605e-06 | J91: -0.0002124081242 | K91: -0.001724079925 | L91: 0.003732121309 | M91: 0.02901428186 | N91: 7.383042179e-05
A92: =IF('DF raw data'!E97="","",'DF raw data'!E97) -> -285 | B92: =IF('DF raw data'!F97="","",'DF raw data'!F97) -> -4.88708e-06 | C92: =IF('DF raw data'!G97="","",'DF raw data'!G97) -> 0.000239953 | D92: =IF('DF raw data'!H97="","",'DF raw data'!H97) -> -5.87286e-06 | F92: -4.90907186e-06 | G92: 0.0002410327885 | H92: -5.89928787e-06 | J92: -0.0002148626601 | K92: -0.001831511255 | L92: 0.003852637703 | M92: 0.03094060071 | N92: 8.127491341e-05
A93: =IF('DF raw data'!E98="","",'DF raw data'!E98) -> -284.5 | B93: =IF('DF raw data'!F98="","",'DF raw data'!F98) -> -1.63563e-05 | C93: =IF('DF raw data'!G98="","",'DF raw data'!G98) -> 0.000244738 | D93: =IF('DF raw data'!H98="","",'DF raw data'!H98) -> -5.20869e-06 | F93: -1.642990335e-05 | G93: 0.000245839321 | H93: -5.232129105e-06 | J93: -0.0002230776118 | K93: -0.001943050061 | L93: 0.003975557364 | M93: 0.03292837939 | N93: 8.920232339e-05
A94: =IF('DF raw data'!E99="","",'DF raw data'!E99) -> -284 | B94: =IF('DF raw data'!F99="","",'DF raw data'!F99) -> -1.87239e-05 | C94: =IF('DF raw data'!G99="","",'DF raw data'!G99) -> 0.000247103 | D94: =IF('DF raw data'!H99="","",'DF raw data'!H99) -> -9.84233e-06 | F94: -1.880815755e-05 | G94: 0.0002482149635 | H94: -9.886620485e-06 | J94: -0.0002324816906 | K94: -0.002059290906 | L94: 0.004099664845 | M94: 0.03497821182 | N94: 9.763297318e-05
A95: =IF('DF raw data'!E100="","",'DF raw data'!E100) -> -283.5 | B95: =IF('DF raw data'!F100="","",'DF raw data'!F100) -> -1.69329e-05 | C95: =IF('DF raw data'!G100="","",'DF raw data'!G100) -> 0.000247518 | D95: =IF('DF raw data'!H100="","",'DF raw data'!H100) -> -5.45246e-06 | F95: -1.700909805e-05 | G95: 0.000248631831 | H95: -5.47699607e-06 | J95: -0.0002409862396 | K95: -0.002179784026 | L95: 0.004223980761 | M95: 0.0370902022 | N95: 0.0001065830171
A96: =IF('DF raw data'!E101="","",'DF raw data'!E101) -> -283 | B96: =IF('DF raw data'!F101="","",'DF raw data'!F101) -> -1.34038e-05 | C96: =IF('DF raw data'!G101="","",'DF raw data'!G101) -> 0.000258846 | D96: =IF('DF raw data'!H101="","",'DF raw data'!H101) -> -1.33035e-05 | F96: -1.34641171e-05 | G96: 0.000260010807 | H96: -1.336336575e-05 | J96: -0.0002477182981 | K96: -0.002303643175 | L96: 0.004353986164 | M96: 0.03926719528 | N96: 0.000116092297
A97: =IF('DF raw data'!E102="","",'DF raw data'!E102) -> -282.5 | B97: =IF('DF raw data'!F102="","",'DF raw data'!F102) -> -2.42372e-05 | C97: =IF('DF raw data'!G102="","",'DF raw data'!G102) -> 0.000256323 | D97: =IF('DF raw data'!H102="","",'DF raw data'!H102) -> -5.0905e-06 | F97: -2.43462674e-05 | G97: 0.0002574764535 | H97: -5.11340725e-06 | J97: -0.0002598914318 | K97: -0.002433588891 | L97: 0.004482724391 | M97: 0.04150855748 | N97: 0.0001261734778
A98: =IF('DF raw data'!E103="","",'DF raw data'!E103) -> -282 | B98: =IF('DF raw data'!F103="","",'DF raw data'!F103) -> -2.2438e-05 | C98: =IF('DF raw data'!G103="","",'DF raw data'!G103) -> 0.000249862 | D98: =IF('DF raw data'!H103="","",'DF raw data'!H103) -> -1.32987e-05 | F98: -2.2538971e-05 | G98: 0.000250986379 | H98: -1.335854415e-05 | J98: -0.0002711609173 | K98: -0.00256916935 | L98: 0.004608217581 | M98: 0.04381266627 | N98: 0.0001368280766
A99: =IF('DF raw data'!E104="","",'DF raw data'!E104) -> -281.5 | B99: =IF('DF raw data'!F104="","",'DF raw data'!F104) -> -2.48723e-05 | C99: =IF('DF raw data'!G104="","",'DF raw data'!G104) -> 0.000238961 | D99: =IF('DF raw data'!H104="","",'DF raw data'!H104) -> -1.36678e-05 | F99: -2.498422535e-05 | G99: 0.0002400363245 | H99: -1.37293051e-05 | J99: -0.00028365303 | K99: -0.002710995865 | L99: 0.004728235743 | M99: 0.04617678414 | N99: 0.0001480464127
A100: =IF('DF raw data'!E105="","",'DF raw data'!E105) -> -281 | B100: =IF('DF raw data'!F105="","",'DF raw data'!F105) -> -1.24515e-05 | C100: =IF('DF raw data'!G105="","",'DF raw data'!G105) -> 0.000242152 | D100: =IF('DF raw data'!H105="","",'DF raw data'!H105) -> 3.19751e-07 | F100: -1.250753175e-05 | G100: 0.000243241684 | H100: 3.211898795e-07 | J100: -0.0002899067959 | K100: -0.002855949263 | L100: 0.004849856585 | M100: 0.04860171243 | N100: 0.0001598489901
A101: =IF('DF raw data'!E106="","",'DF raw data'!E106) -> -280.5 | B101: =IF('DF raw data'!F106="","",'DF raw data'!F106) -> -5.65344e-06 | C101: =IF('DF raw data'!G106="","",'DF raw data'!G106) -> 0.000250327 | D101: =IF('DF raw data'!H106="","",'DF raw data'!H106) -> -9.69002e-06 | F101: -5.67888048e-06 | G101: 0.0002514534715 | H101: -9.73362509e-06 | J101: -0.0002927462361 | K101: -0.003002322381 | L101: 0.004975583321 | M101: 0.05108950409 | N101: 0.000172270055
A102: =IF('DF raw data'!E107="","",'DF raw data'!E107) -> -280 | B102: =IF('DF raw data'!F107="","",'DF raw data'!F107) -> -1.06483e-05 | C102: =IF('DF raw data'!G107="","",'DF raw data'!G107) -> 0.000253936 | D102: =IF('DF raw data'!H107="","",'DF raw data'!H107) -> -1.40302e-05 | F102: -1.069621735e-05 | G102: 0.000255078712 | H102: -1.40933359e-05 | J102: -0.0002980943448 | K102: -0.003151369553 | L102: 0.005103122677 | M102: 0.05364106543 | N102: 0.0001853354156
A103: =IF('DF raw data'!E108="","",'DF raw data'!E108) -> -279.5 | B103: =IF('DF raw data'!F108="","",'DF raw data'!F108) -> -1.60955e-05 | C103: =IF('DF raw data'!G108="","",'DF raw data'!G108) -> 0.000242088 | D103: =IF('DF raw data'!H108="","",'DF raw data'!H108) -> -1.20662e-05 | F103: -1.616792975e-05 | G103: 0.000243177396 | H103: -1.21204979e-05 | J103: -0.0003061783097 | K103: -0.003304458708 | L103: 0.005224711375 | M103: 0.05625342112 | N103: 0.0001990310927
A104: =IF('DF raw data'!E109="","",'DF raw data'!E109) -> -279 | B104: =IF('DF raw data'!F109="","",'DF raw data'!F109) -> -1.51982e-05 | C104: =IF('DF raw data'!G109="","",'DF raw data'!G109) -> 0.000249712 | D104: =IF('DF raw data'!H109="","",'DF raw data'!H109) -> -1.27115e-05 | F104: -1.52665919e-05 | G104: 0.000250835704 | H104: -1.276870175e-05 | J104: -0.0003138116056 | K104: -0.003461364511 | L104: 0.005350129227 | M104: 0.05892848573 | N104: 0.0002133922729
A105: =IF('DF raw data'!E110="","",'DF raw data'!E110) -> -278.5 | B105: =IF('DF raw data'!F110="","",'DF raw data'!F110) -> -2.03888e-05 | C105: =IF('DF raw data'!G110="","",'DF raw data'!G110) -> 0.000249285 | D105: =IF('DF raw data'!H110="","",'DF raw data'!H110) -> -1.16811e-05 | F105: -2.04805496e-05 | G105: 0.0002504067825 | H105: -1.173366495e-05 | J105: -0.0003240518804 | K105: -0.003623390451 | L105: 0.005475332618 | M105: 0.06166615204 | N105: 0.0002284344114
A106: =IF('DF raw data'!E111="","",'DF raw data'!E111) -> -278 | B106: =IF('DF raw data'!F111="","",'DF raw data'!F111) -> -2.23075e-05 | C106: =IF('DF raw data'!G111="","",'DF raw data'!G111) -> 0.000239959 | D106: =IF('DF raw data'!H111="","",'DF raw data'!H111) -> -1.69102e-05 | F106: -2.240788375e-05 | G106: 0.0002410388155 | H106: -1.69862959e-05 | J106: -0.0003352558223 | K106: -0.003791018362 | L106: 0.005595852026 | M106: 0.06446407805 | N106: 0.0002441473896
A107: =IF('DF raw data'!E112="","",'DF raw data'!E112) -> -277.5 | B107: =IF('DF raw data'!F112="","",'DF raw data'!F112) -> -1.67333e-05 | C107: =IF('DF raw data'!G112="","",'DF raw data'!G112) -> 0.000230749 | D107: =IF('DF raw data'!H112="","",'DF raw data'!H112) -> -1.65142e-05 | F107: -1.680859985e-05 | G107: 0.0002317873705 | H107: -1.65885139e-05 | J107: -0.0003436601222 | K107: -0.003962848423 | L107: 0.005711745711 | M107: 0.06731995091 | N107: 0.0002605184602
A108: =IF('DF raw data'!E113="","",'DF raw data'!E113) -> -277 | B108: =IF('DF raw data'!F113="","",'DF raw data'!F113) -> -1.42351e-05 | C108: =IF('DF raw data'!G113="","",'DF raw data'!G113) -> 0.00023744 | D108: =IF('DF raw data'!H113="","",'DF raw data'!H113) -> -1.60568e-05 | F108: -1.429915795e-05 | G108: 0.00023850848 | H108: -1.61290556e-05 | J108: -0.0003508097012 | K108: -0.004138253274 | L108: 0.005830999951 | M108: 0.07023545088 | N108: 0.0002775802742
A109: =IF('DF raw data'!E114="","",'DF raw data'!E114) -> -276.5 | B109: =IF('DF raw data'!F114="","",'DF raw data'!F114) -> -1.8717e-05 | C109: =IF('DF raw data'!G114="","",'DF raw data'!G114) -> 0.000234944 | D109: =IF('DF raw data'!H114="","",'DF raw data'!H114) -> -2.04561e-05 | F109: -1.88012265e-05 | G109: 0.000236001248 | H109: -2.054815245e-05 | J109: -0.0003602103144 | K109: -0.004318358431 | L109: 0.005949000575 | M109: 0.07320995117 | N109: 0.0002953404538
A110: =IF('DF raw data'!E115="","",'DF raw data'!E115) -> -276 | B110: =IF('DF raw data'!F115="","",'DF raw data'!F115) -> -1.37907e-05 | C110: =IF('DF raw data'!G115="","",'DF raw data'!G115) -> 0.000240923 | D110: =IF('DF raw data'!H115="","",'DF raw data'!H115) -> -9.5579e-06 | F110: -1.385275815e-05 | G110: 0.0002420071535 | H110: -9.60091055e-06 | J110: -0.0003671366935 | K110: -0.004501926778 | L110: 0.006070004152 | M110: 0.07624495325 | N110: 0.0003138303237
A111: =IF('DF raw data'!E116="","",'DF raw data'!E116) -> -275.5 | B111: =IF('DF raw data'!F116="","",'DF raw data'!F116) -> -2.31463e-05 | C111: =IF('DF raw data'!G116="","",'DF raw data'!G116) -> 0.000238617 | D111: =IF('DF raw data'!H116="","",'DF raw data'!H116) -> -7.9573e-06 | F111: -2.325045835e-05 | G111: 0.0002396907765 | H111: -7.99310785e-06 | J111: -0.0003787619227 | K111: -0.004691307739 | L111: 0.00618984954 | M111: 0.07933987802 | N111: 0.0003330591727
A112: =IF('DF raw data'!E117="","",'DF raw data'!E117) -> -275 | B112: =IF('DF raw data'!F117="","",'DF raw data'!F117) -> -8.7976e-06 | C112: =IF('DF raw data'!G117="","",'DF raw data'!G117) -> 0.000239785 | D112: =IF('DF raw data'!H117="","",'DF raw data'!H117) -> -2.53835e-06 | F112: -8.8371892e-06 | G112: 0.0002408640325 | H112: -2.549772575e-06 | J112: -0.0003831805173 | K112: -0.004882897998 | L112: 0.006310281556 | M112: 0.08249501879 | N112: 0.000353042413
A113: =IF('DF raw data'!E118="","",'DF raw data'!E118) -> -274.5 | B113: =IF('DF raw data'!F118="","",'DF raw data'!F118) -> 1.1348e-06 | C113: =IF('DF raw data'!G118="","",'DF raw data'!G118) -> 0.000240465 | D113: =IF('DF raw data'!H118="","",'DF raw data'!H118) -> -4.55583e-06 | F113: 1.1399066e-06 | G113: 0.0002415470925 | H113: -4.576331235e-06 | J113: -0.000382610564 | K113: -0.00507420328 | L113: 0.006431055102 | M113: 0.08571054635 | N113: 0.0003737948433
A114: =IF('DF raw data'!E119="","",'DF raw data'!E119) -> -274 | B114: =IF('DF raw data'!F119="","",'DF raw data'!F119) -> -1.3338e-05 | C114: =IF('DF raw data'!G119="","",'DF raw data'!G119) -> 0.000243019 | D114: =IF('DF raw data'!H119="","",'DF raw data'!H119) -> -1.58144e-05 | F114: -1.3398021e-05 | G114: 0.0002441125855 | H114: -1.58855648e-05 | J114: -0.0003893095745 | K114: -0.005268858067 | L114: 0.006553111395 | M114: 0.08898710204 | N114: 0.0003953422587
A115: =IF('DF raw data'!E120="","",'DF raw data'!E120) -> -273.5 | B115: =IF('DF raw data'!F120="","",'DF raw data'!F120) -> -9.75601e-06 | C115: =IF('DF raw data'!G120="","",'DF raw data'!G120) -> 0.00024552 | D115: =IF('DF raw data'!H120="","",'DF raw data'!H120) -> -6.77441e-06 | F115: -9.799912045e-06 | G115: 0.00024662484 | H115: -6.804894845e-06 | J115: -0.0003942095305 | K115: -0.005465962832 | L115: 0.006676423815 | M115: 0.09232531395 | N115: 0.0004177072768
A116: =IF('DF raw data'!E121="","",'DF raw data'!E121) -> -273 | B116: =IF('DF raw data'!F121="","",'DF raw data'!F121) -> -1.1679e-05 | C116: =IF('DF raw data'!G121="","",'DF raw data'!G121) -> 0.000248185 | D116: =IF('DF raw data'!H121="","",'DF raw data'!H121) -> -5.41961e-06 | F116: -1.17315555e-05 | G116: 0.0002493018325 | H116: -5.443998245e-06 | J116: -0.0004000753083 | K116: -0.005666000487 | L116: 0.006801074731 | M116: 0.09572585132 | N116: 0.0004409146156
A117: =IF('DF raw data'!E122="","",'DF raw data'!E122) -> -272.5 | B117: =IF('DF raw data'!F122="","",'DF raw data'!F122) -> -5.39265e-06 | C117: =IF('DF raw data'!G122="","",'DF raw data'!G122) -> 0.000234258 | D117: =IF('DF raw data'!H122="","",'DF raw data'!H122) -> -1.6637e-05 | F117: -5.416916925e-06 | G117: 0.000235312161 | H117: -1.67118665e-05 | J117: -0.0004027837667 | K117: -0.00586739237 | L117: 0.006918730812 | M117: 0.09918521672 | N117: 0.0004649301511
A118: =IF('DF raw data'!E123="","",'DF raw data'!E123) -> -272 | B118: =IF('DF raw data'!F123="","",'DF raw data'!F123) -> -9.30689e-06 | C118: =IF('DF raw data'!G123="","",'DF raw data'!G123) -> 0.00023622 | D118: =IF('DF raw data'!H123="","",'DF raw data'!H123) -> -7.57043e-06 | F118: -9.348771005e-06 | G118: 0.00023728299 | H118: -7.604496935e-06 | J118: -0.0004074581522 | K118: -0.006071121446 | L118: 0.007037372307 | M118: 0.1027039029 | N118: 0.0004897754666
A119: =IF('DF raw data'!E124="","",'DF raw data'!E124) -> -271.5 | B119: =IF('DF raw data'!F124="","",'DF raw data'!F124) -> -1.43703e-05 | C119: =IF('DF raw data'!G124="","",'DF raw data'!G124) -> 0.000232173 | D119: =IF('DF raw data'!H124="","",'DF raw data'!H124) -> -5.01289e-06 | F119: -1.443496635e-05 | G119: 0.0002332177785 | H119: -5.035448005e-06 | J119: -0.0004146756354 | K119: -0.006278459264 | L119: 0.007153981196 | M119: 0.1062808935 | N119: 0.000515451168
A120: =IF('DF raw data'!E125="","",'DF raw data'!E125) -> -271 | B120: =IF('DF raw data'!F125="","",'DF raw data'!F125) -> -2.1977e-06 | C120: =IF('DF raw data'!G125="","",'DF raw data'!G125) -> 0.000238817 | D120: =IF('DF raw data'!H125="","",'DF raw data'!H125) -> -3.56913e-06 | F120: -2.20758965e-06 | G120: 0.0002398916765 | H120: -3.585191085e-06 | J120: -0.0004157794302 | K120: -0.006486348979 | L120: 0.007273927034 | M120: 0.109917857 | N120: 0.0005419926116
A121: =IF('DF raw data'!E126="","",'DF raw data'!E126) -> -270.5 | B121: =IF('DF raw data'!F126="","",'DF raw data'!F126) -> -2.75726e-05 | C121: =IF('DF raw data'!G126="","",'DF raw data'!G126) -> 0.00024391 | D121: =IF('DF raw data'!H126="","",'DF raw data'!H126) -> 5.33596e-07 | F121: -2.76966767e-05 | G121: 0.000245007595 | H121: 5.35997182e-07 | J121: -0.0004296277686 | K121: -0.006701162863 | L121: 0.007396430832 | M121: 0.1136160724 | N121: 0.0005694384961
A122: =IF('DF raw data'!E127="","",'DF raw data'!E127) -> -270 | B122: =IF('DF raw data'!F127="","",'DF raw data'!F127) -> -2.45439e-06 | C122: =IF('DF raw data'!G127="","",'DF raw data'!G127) -> 0.000250601 | D122: =IF('DF raw data'!H127="","",'DF raw data'!H127) -> -2.94528e-06 | F122: -2.465434755e-06 | G122: 0.0002517287045 | H122: -2.95853376e-06 | J122: -0.000430860486 | K122: -0.006916593106 | L122: 0.007522295184 | M122: 0.11737722 | N122: 0.0005978237789
A123: =IF('DF raw data'!E128="","",'DF raw data'!E128) -> -269.5 | B123: =IF('DF raw data'!F128="","",'DF raw data'!F128) -> -2.82668e-05 | C123: =IF('DF raw data'!G128="","",'DF raw data'!G128) -> 0.000247453 | D123: =IF('DF raw data'!H128="","",'DF raw data'!H128) -> -1.54003e-05 | F123: -2.83940006e-05 | G123: 0.0002485665385 | H123: -1.546960135e-05 | J123: -0.0004450574863 | K123: -0.007139121849 | L123: 0.007646578453 | M123: 0.1212005092 | N123: 0.000627157898
A124: =IF('DF raw data'!E129="","",'DF raw data'!E129) -> -269 | B124: =IF('DF raw data'!F129="","",'DF raw data'!F129) -> -7.38816e-06 | C124: =IF('DF raw data'!G129="","",'DF raw data'!G129) -> 0.000246481 | D124: =IF('DF raw data'!H129="","",'DF raw data'!H129) -> -2.55686e-06 | F124: -7.42140672e-06 | G124: 0.0002475901645 | H124: -2.56836587e-06 | J124: -0.0004487681896 | K124: -0.007363505944 | L124: 0.007770373536 | M124: 0.125085696 | N124: 0.0006574479469
A125: =IF('DF raw data'!E130="","",'DF raw data'!E130) -> -268.5 | B125: =IF('DF raw data'!F130="","",'DF raw data'!F130) -> -3.19246e-05 | C125: =IF('DF raw data'!G130="","",'DF raw data'!G130) -> 0.000242602 | D125: =IF('DF raw data'!H130="","",'DF raw data'!H130) -> -6.20118e-06 | F125: -3.20682607e-05 | G125: 0.000243693709 | H125: -6.22908531e-06 | J125: -0.00046480232 | K125: -0.007595907104 | L125: 0.00789222039 | M125: 0.1290318062 | N125: 0.0006886995388
A126: =IF('DF raw data'!E131="","",'DF raw data'!E131) -> -268 | B126: =IF('DF raw data'!F131="","",'DF raw data'!F131) -> -8.92724e-06 | C126: =IF('DF raw data'!G131="","",'DF raw data'!G131) -> 0.0002441 | D126: =IF('DF raw data'!H131="","",'DF raw data'!H131) -> -4.61441e-07 | F126: -8.96741258e-06 | G126: 0.00024519845 | H126: -4.635174845e-07 | J126: -0.0004692860263 | K126: -0.007830550117 | L126: 0.008014819615 | M126: 0.133039216 | N126: 0.0007209283202
A127: =IF('DF raw data'!E132="","",'DF raw data'!E132) -> -267.5 | B127: =IF('DF raw data'!F132="","",'DF raw data'!F132) -> -1.29631e-05 | C127: =IF('DF raw data'!G132="","",'DF raw data'!G132) -> 0.000231112 | D127: =IF('DF raw data'!H132="","",'DF raw data'!H132) -> -8.73656e-07 | F127: -1.302143395e-05 | G127: 0.000232152004 | H127: -8.77587452e-07 | J127: -0.0004757967432 | K127: -0.008068448489 | L127: 0.008130895617 | M127: 0.1371046638 | N127: 0.0007540972433
A128: =IF('DF raw data'!E133="","",'DF raw data'!E133) -> -267 | B128: =IF('DF raw data'!F133="","",'DF raw data'!F133) -> 4.02434e-06 | C128: =IF('DF raw data'!G133="","",'DF raw data'!G133) -> 0.000245785 | D128: =IF('DF raw data'!H133="","",'DF raw data'!H133) -> -1.41545e-05 | F128: =(1-$G$1*($B$49-$G$2))*B128 -> 4.04244953e-06 | G128: 0.0002468910325 | H128: -1.421819525e-05 | J128: =F128*$G$3+J127 -> -0.0004737755185 | K128: =J128*$G$3+K127 -> -0.008305336248 | L128: =G128*$G$3+L127 -> 0.008254341133 | M128: =L128*$G$3+M127 -> 0.1412318344 | N128: =(J128^2+L128^2)*$G$3+N127 -> 0.0007882765487
A129: =IF('DF raw data'!E134="","",'DF raw data'!E134) -> -266.5 | B129: =IF('DF raw data'!F134="","",'DF raw data'!F134) -> -2.16019e-05 | C129: =IF('DF raw data'!G134="","",'DF raw data'!G134) -> 0.00025334 | D129: =IF('DF raw data'!H134="","",'DF raw data'!H134) -> -1.72754e-05 | F129: -2.169910855e-05 | G129: 0.00025448003 | H129: -1.73531393e-05 | J129: -0.0004846250727 | K129: -0.008547648784 | L129: 0.008381581148 | M129: 0.1454226249 | N129: 0.0008235194307
A130: =IF('DF raw data'!E135="","",'DF raw data'!E135) -> -266 | B130: =IF('DF raw data'!F135="","",'DF raw data'!F135) -> -3.92673e-06 | C130: =IF('DF raw data'!G135="","",'DF raw data'!G135) -> 0.000249537 | D130: =IF('DF raw data'!H135="","",'DF raw data'!H135) -> -4.78017e-06 | F130: -3.944400285e-06 | G130: 0.0002506599165 | H130: -4.801680765e-06 | J130: -0.0004865972729 | K130: -0.008790947421 | L130: 0.008506911107 | M130: 0.1496760805 | N130: 0.0008598215874
A131: =IF('DF raw data'!E136="","",'DF raw data'!E136) -> -265.5 | B131: =IF('DF raw data'!F136="","",'DF raw data'!F136) -> -1.54528e-05 | C131: =IF('DF raw data'!G136="","",'DF raw data'!G136) -> 0.000235486 | D131: =IF('DF raw data'!H136="","",'DF raw data'!H136) -> -1.44983e-05 | F131: -1.55223376e-05 | G131: 0.000236545687 | H131: -1.456354235e-05 | J131: -0.0004943584417 | K131: -0.009038126642 | L131: 0.00862518395 | M131: 0.1539886725 | N131: 0.0008971406817
A132: =IF('DF raw data'!E137="","",'DF raw data'!E137) -> -265 | B132: =IF('DF raw data'!F137="","",'DF raw data'!F137) -> -5.00781e-06 | C132: =IF('DF raw data'!G137="","",'DF raw data'!G137) -> 0.000236158 | D132: =IF('DF raw data'!H137="","",'DF raw data'!H137) -> -1.75543e-05 | F132: -5.030345145e-06 | G132: 0.000237220711 | H132: -1.763329435e-05 | J132: -0.0004968736143 | K132: -0.009286563449 | L132: 0.008743794306 | M132: 0.1583605696 | N132: 0.0009354910928
A133: =IF('DF raw data'!E138="","",'DF raw data'!E138) -> -264.5 | B133: =IF('DF raw data'!F138="","",'DF raw data'!F138) -> -1.14881e-05 | C133: =IF('DF raw data'!G138="","",'DF raw data'!G138) -> 0.000243289 | D133: =IF('DF raw data'!H138="","",'DF raw data'!H138) -> -2.97559e-06 | F133: -1.153979645e-05 | G133: 0.0002443838005 | H133: -2.988980155e-06 | J133: -0.0005026435125 | K133: -0.009537885205 | L133: 0.008865986206 | M133: 0.1627935627 | N133: 0.0009749202737
A134: =IF('DF raw data'!E139="","",'DF raw data'!E139) -> -264 | B134: =IF('DF raw data'!F139="","",'DF raw data'!F139) -> -8.09533e-06 | C134: =IF('DF raw data'!G139="","",'DF raw data'!G139) -> 0.000247817 | D134: =IF('DF raw data'!H139="","",'DF raw data'!H139) -> 6.63321e-07 | F134: -8.131758985e-06 | G134: 0.0002489321765 | H134: 6.663059445e-07 | J134: -0.000506709392 | K134: -0.009791239901 | L134: 0.008990452294 | M134: 0.1672887889 | N134: 0.001015462767
A135: =IF('DF raw data'!E140="","",'DF raw data'!E140) -> -263.5 | B135: =IF('DF raw data'!F140="","",'DF raw data'!F140) -> -2.54002e-05 | C135: =IF('DF raw data'!G140="","",'DF raw data'!G140) -> 0.000242682 | D135: =IF('DF raw data'!H140="","",'DF raw data'!H140) -> 1.13792e-05 | F135: -2.55145009e-05 | G135: 0.000243774069 | H135: 1.14304064e-05 | J135: -0.0005194666424 | K135: -0.01005097322 | L135: 0.009112339329 | M135: 0.1718449585 | N135: 0.001057115054
A136: =IF('DF raw data'!E141="","",'DF raw data'!E141) -> -263 | B136: =IF('DF raw data'!F141="","",'DF raw data'!F141) -> -3.53651e-06 | C136: =IF('DF raw data'!G141="","",'DF raw data'!G141) -> 0.000245035 | D136: =IF('DF raw data'!H141="","",'DF raw data'!H141) -> -1.38127e-05 | F136: -3.552424295e-06 | G136: 0.0002461376575 | H136: -1.387485715e-05 | J136: -0.0005212428546 | K136: -0.01031159465 | L136: 0.009235408157 | M136: 0.1764626626 | N136: 0.001099897283
A137: =IF('DF raw data'!E142="","",'DF raw data'!E142) -> -262.5 | B137: =IF('DF raw data'!F142="","",'DF raw data'!F142) -> -2.60313e-05 | C137: =IF('DF raw data'!G142="","",'DF raw data'!G142) -> 0.000241837 | D137: =IF('DF raw data'!H142="","",'DF raw data'!H142) -> -3.47457e-06 | F137: -2.614844085e-05 | G137: 0.0002429252665 | H137: -3.490205565e-06 | J137: -0.000534317075 | K137: -0.01057875319 | L137: 0.009356870791 | M137: 0.181141098 | N137: 0.001143815546
A138: =IF('DF raw data'!E143="","",'DF raw data'!E143) -> -262 | B138: =IF('DF raw data'!F143="","",'DF raw data'!F143) -> -1.48573e-06 | C138: =IF('DF raw data'!G143="","",'DF raw data'!G143) -> 0.000239697 | D138: =IF('DF raw data'!H143="","",'DF raw data'!H143) -> -1.45766e-05 | F138: -1.492415785e-06 | G138: 0.0002407756365 | H138: -1.46421947e-05 | J138: -0.0005350632829 | K138: -0.01084628483 | L138: 0.009477258609 | M138: 0.1858797273 | N138: 0.001188867908
A139: =IF('DF raw data'!E144="","",'DF raw data'!E144) -> -261.5 | B139: =IF('DF raw data'!F144="","",'DF raw data'!F144) -> -1.98724e-05 | C139: =IF('DF raw data'!G144="","",'DF raw data'!G144) -> 0.000230659 | D139: =IF('DF raw data'!H144="","",'DF raw data'!H144) -> -1.6096e-05 | F139: -1.99618258e-05 | G139: 0.0002316969655 | H139: -1.6168432e-05 | J139: -0.0005450441958 | K139: -0.01111880693 | L139: 0.009593107092 | M139: 0.1906762809 | N139: 0.001235030296
A140: =IF('DF raw data'!E145="","",'DF raw data'!E145) -> -261 | B140: =IF('DF raw data'!F145="","",'DF raw data'!F145) -> -4.74583e-06 | C140: =IF('DF raw data'!G145="","",'DF raw data'!G145) -> 0.000240478 | D140: =IF('DF raw data'!H145="","",'DF raw data'!H145) -> -2.64743e-05 | F140: -4.767186235e-06 | G140: 0.000241560151 | H140: -2.659343435e-05 | J140: -0.0005474277889 | K140: -0.01139252082 | L140: 0.009713887167 | M140: 0.1955332245 | N140: 0.001282359937
A141: =IF('DF raw data'!E146="","",'DF raw data'!E146) -> -260.5 | B141: =IF('DF raw data'!F146="","",'DF raw data'!F146) -> -2.53231e-05 | C141: =IF('DF raw data'!G146="","",'DF raw data'!G146) -> 0.000242233 | D141: =IF('DF raw data'!H146="","",'DF raw data'!H146) -> -8.42575e-06 | F141: -2.543705395e-05 | G141: 0.0002433230485 | H141: -8.463665875e-06 | J141: -0.0005601463159 | K141: -0.01167259398 | L141: 0.009835548691 | M141: 0.2004509988 | N141: 0.001330885827
A142: =IF('DF raw data'!E147="","",'DF raw data'!E147) -> -260 | B142: =IF('DF raw data'!F147="","",'DF raw data'!F147) -> -1.78303e-05 | C142: =IF('DF raw data'!G147="","",'DF raw data'!G147) -> 0.000246674 | D142: =IF('DF raw data'!H147="","",'DF raw data'!H147) -> -6.11398e-06 | F142: -1.791053635e-05 | G142: 0.000247784033 | H142: -6.14149291e-06 | J142: -0.0005691015841 | K142: -0.01195714477 | L142: 0.009959440708 | M142: 0.2054307192 | N142: 0.001380642995
A143: =IF('DF raw data'!E148="","",'DF raw data'!E148) -> -259.5 | B143: =IF('DF raw data'!F148="","",'DF raw data'!F148) -> -2.8658e-05 | C143: =IF('DF raw data'!G148="","",'DF raw data'!G148) -> 0.000240457 | D143: =IF('DF raw data'!H148="","",'DF raw data'!H148) -> -2.93873e-06 | F143: -2.8786961e-05 | G143: 0.0002415390565 | H143: -2.951954285e-06 | J143: -0.0005834950646 | K143: -0.0122488923 | L143: 0.01008021024 | M143: 0.2104708243 | N143: 0.001431618548
A144: =IF('DF raw data'!E149="","",'DF raw data'!E149) -> -259 | B144: =IF('DF raw data'!F149="","",'DF raw data'!F149) -> -1.82112e-05 | C144: =IF('DF raw data'!G149="","",'DF raw data'!G149) -> 0.000239244 | D144: =IF('DF raw data'!H149="","",'DF raw data'!H149) -> -1.15961e-05 | F144: -1.82931504e-05 | G144: 0.000240320598 | H144: -1.164828245e-05 | J144: -0.0005926416398 | K144: -0.01254521312 | L144: 0.01020037054 | M144: 0.2155710095 | N144: 0.001483817939
A145: =IF('DF raw data'!E150="","",'DF raw data'!E150) -> -258.5 | B145: =IF('DF raw data'!F150="","",'DF raw data'!F150) -> -2.07139e-05 | C145: =IF('DF raw data'!G150="","",'DF raw data'!G150) -> 0.000238135 | D145: =IF('DF raw data'!H150="","",'DF raw data'!H150) -> -2.34154e-06 | F145: -2.080711255e-05 | G145: 0.0002392066075 | H145: -2.35207693e-06 | J145: -0.000603045196 | K145: -0.01284673572 | L145: 0.01031997384 | M145: 0.2207309965 | N145: 0.001537250701
A146: =IF('DF raw data'!E151="","",'DF raw data'!E151) -> -258 | B146: =IF('DF raw data'!F151="","",'DF raw data'!F151) -> -1.07139e-05 | C146: =IF('DF raw data'!G151="","",'DF raw data'!G151) -> 0.000235111 | D146: =IF('DF raw data'!H151="","",'DF raw data'!H151) -> -1.27644e-05 | F146: -1.076211255e-05 | G146: 0.0002361689995 | H146: -1.28218398e-05 | J146: -0.0006084262523 | K146: -0.01315094885 | L146: 0.01043805834 | M146: 0.2259500256 | N146: 0.001591912323
A147: =IF('DF raw data'!E152="","",'DF raw data'!E152) -> -257.5 | B147: =IF('DF raw data'!F152="","",'DF raw data'!F152) -> -1.52696e-05 | C147: =IF('DF raw data'!G152="","",'DF raw data'!G152) -> 0.00024277 | D147: =IF('DF raw data'!H152="","",'DF raw data'!H152) -> -1.63514e-07 | F147: -1.53383132e-05 | G147: 0.000243862465 | H147: -1.64249813e-07 | J147: -0.0006160954089 | K147: -0.01345899655 | L147: 0.01055998957 | M147: 0.2312300204 | N147: 0.0016478588
A148: =IF('DF raw data'!E153="","",'DF raw data'!E153) -> -257 | B148: =IF('DF raw data'!F153="","",'DF raw data'!F153) -> -1.6674e-05 | C148: =IF('DF raw data'!G153="","",'DF raw data'!G153) -> 0.000241103 | D148: =IF('DF raw data'!H153="","",'DF raw data'!H153) -> -1.08323e-05 | F148: -1.6749033e-05 | G148: 0.0002421879635 | H148: -1.088104535e-05 | J148: -0.0006244699254 | K148: -0.01377123151 | L148: 0.01068108355 | M148: 0.2365705622 | N148: 0.001705096554
A149: =IF('DF raw data'!E154="","",'DF raw data'!E154) -> -256.5 | B149: =IF('DF raw data'!F154="","",'DF raw data'!F154) -> -2.99459e-05 | C149: =IF('DF raw data'!G154="","",'DF raw data'!G154) -> 0.000241324 | D149: =IF('DF raw data'!H154="","",'DF raw data'!H154) -> 6.9905e-06 | F149: -3.008065655e-05 | G149: 0.000242409958 | H149: 7.02195725e-06 | J149: -0.0006395102537 | K149: -0.01409098664 | L149: 0.01080228853 | M149: 0.2419717065 | N149: 0.00176364576
A150: =IF('DF raw data'!E155="","",'DF raw data'!E155) -> -256 | B150: =IF('DF raw data'!F155="","",'DF raw data'!F155) -> 3.69942e-06 | C150: =IF('DF raw data'!G155="","",'DF raw data'!G155) -> 0.000245167 | D150: =IF('DF raw data'!H155="","",'DF raw data'!H155) -> -7.10125e-06 | F150: 3.71606739e-06 | G150: 0.0002462702515 | H150: -7.133205625e-06 | J150: -0.00063765222 | K150: -0.01440981275 | L150: 0.01092542366 | M150: 0.2474344183 | N150: 0.001823531501
A151: =IF('DF raw data'!E156="","",'DF raw data'!E156) -> -255.5 | B151: =IF('DF raw data'!F156="","",'DF raw data'!F156) -> -1.04627e-05 | C151: =IF('DF raw data'!G156="","",'DF raw data'!G156) -> 0.000243671 | D151: =IF('DF raw data'!H156="","",'DF raw data'!H156) -> -2.69273e-06 | F151: -1.050978215e-05 | G151: 0.0002447675195 | H151: -2.704847285e-06 | J151: -0.0006429071111 | K151: -0.01473126631 | L151: 0.01104780742 | M151: 0.252958322 | N151: 0.00188476519
A152: =IF('DF raw data'!E157="","",'DF raw data'!E157) -> -255 | B152: =IF('DF raw data'!F157="","",'DF raw data'!F157) -> -6.35685e-06 | C152: =IF('DF raw data'!G157="","",'DF raw data'!G157) -> 0.000249371 | D152: =IF('DF raw data'!H157="","",'DF raw data'!H157) -> -1.25214e-05 | F152: -6.385455825e-06 | G152: 0.0002504931695 | H152: -1.25777463e-05 | J152: -0.000646099839 | K152: -0.01505431623 | L152: 0.011173054 | M152: 0.258544849 | N152: 0.001947392481
A153: =IF('DF raw data'!E158="","",'DF raw data'!E158) -> -254.5 | B153: =IF('DF raw data'!F158="","",'DF raw data'!F158) -> -3.26936e-05 | C153: =IF('DF raw data'!G158="","",'DF raw data'!G158) -> 0.000249976 | D153: =IF('DF raw data'!H158="","",'DF raw data'!H158) -> -4.20271e-06 | F153: -3.28407212e-05 | G153: 0.000251100892 | H153: -4.221622195e-06 | J153: -0.0006625201996 | K153: -0.01538557633 | L153: 0.01129860445 | M153: 0.2641941512 | N153: 0.002011441178
A154: =IF('DF raw data'!E159="","",'DF raw data'!E159) -> -254 | B154: =IF('DF raw data'!F159="","",'DF raw data'!F159) -> -1.16092e-05 | C154: =IF('DF raw data'!G159="","",'DF raw data'!G159) -> 0.000245261 | D154: =IF('DF raw data'!H159="","",'DF raw data'!H159) -> -1.53754e-05 | F154: -1.16614414e-05 | G154: 0.0002463646745 | H154: -1.54445893e-05 | J154: -0.0006683509203 | K154: -0.01571975179 | L154: 0.01142178679 | M154: 0.2699050446 | N154: 0.002076893131
A155: =IF('DF raw data'!E160="","",'DF raw data'!E160) -> -253.5 | B155: =IF('DF raw data'!F160="","",'DF raw data'!F160) -> -1.52059e-05 | C155: =IF('DF raw data'!G160="","",'DF raw data'!G160) -> 0.000242829 | D155: =IF('DF raw data'!H160="","",'DF raw data'!H160) -> 5.20389e-07 | F155: -1.527432655e-05 | G155: 0.0002439217305 | H155: 5.227307505e-07 | J155: -0.0006759880836 | K155: -0.01605774583 | L155: 0.01154374765 | M155: 0.2756769184 | N155: 0.002143750666
A156: =IF('DF raw data'!E161="","",'DF raw data'!E161) -> -253 | B156: =IF('DF raw data'!F161="","",'DF raw data'!F161) -> -1.64766e-05 | C156: =IF('DF raw data'!G161="","",'DF raw data'!G161) -> 0.000244778 | D156: =IF('DF raw data'!H161="","",'DF raw data'!H161) -> -1.85272e-05 | F156: -1.65507447e-05 | G156: 0.000245879501 | H156: -1.86105724e-05 | J156: -0.0006842634559 | K156: -0.01639987756 | L156: 0.0116666874 | M156: 0.2815102621 | N156: 0.002212040572
A157: =IF('DF raw data'!E162="","",'DF raw data'!E162) -> -252.5 | B157: =IF('DF raw data'!F162="","",'DF raw data'!F162) -> -9.43441e-06 | C157: =IF('DF raw data'!G162="","",'DF raw data'!G162) -> 0.000248824 | D157: =IF('DF raw data'!H162="","",'DF raw data'!H162) -> -7.79475e-06 | F157: -9.476864845e-06 | G157: 0.000249943708 | H157: -7.829826375e-06 | J157: -0.0006890018883 | K157: -0.0167443785 | L157: 0.01179165926 | M157: 0.2874060918 | N157: 0.002281799548
A158: =IF('DF raw data'!E163="","",'DF raw data'!E163) -> -252 | B158: =IF('DF raw data'!F163="","",'DF raw data'!F163) -> -9.95491e-06 | C158: =IF('DF raw data'!G163="","",'DF raw data'!G163) -> 0.000252835 | D158: =IF('DF raw data'!H163="","",'DF raw data'!H163) -> 3.00975e-06 | F158: -9.999707095e-06 | G158: 0.0002539727575 | H158: 3.023293875e-06 | J158: -0.0006940017419 | K158: -0.01709137937 | L158: 0.01191864563 | M158: 0.2933654146 | N158: 0.002353067424
A159: =IF('DF raw data'!E164="","",'DF raw data'!E164) -> -251.5 | B159: =IF('DF raw data'!F164="","",'DF raw data'!F164) -> -2.41077e-05 | C159: =IF('DF raw data'!G164="","",'DF raw data'!G164) -> 0.000254495 | D159: =IF('DF raw data'!H164="","",'DF raw data'!H164) -> -5.60315e-06 | F159: -2.421618465e-05 | G159: 0.0002556402275 | H159: -5.628364175e-06 | J159: -0.0007061098342 | K159: -0.01744443429 | L159: 0.01204646575 | M159: 0.2993886475 | N159: 0.002425875388
A160: =IF('DF raw data'!E165="","",'DF raw data'!E165) -> -251 | B160: =IF('DF raw data'!F165="","",'DF raw data'!F165) -> -2.54408e-05 | C160: =IF('DF raw data'!G165="","",'DF raw data'!G165) -> 0.000251583 | D160: =IF('DF raw data'!H165="","",'DF raw data'!H165) -> -2.80329e-05 | F160: -2.55552836e-05 | G160: 0.0002527151235 | H160: -2.815904805e-05 | J160: -0.000718887476 | K160: -0.01780387803 | L160: 0.01217282331 | M160: 0.3054750591 | N160: 0.002500222601
A161: =IF('DF raw data'!E166="","",'DF raw data'!E166) -> -250.5 | B161: =IF('DF raw data'!F166="","",'DF raw data'!F166) -> -2.10342e-05 | C161: =IF('DF raw data'!G166="","",'DF raw data'!G166) -> 0.000247489 | D161: =IF('DF raw data'!H166="","",'DF raw data'!H166) -> -3.19326e-06 | F161: -2.11288539e-05 | G161: 0.0002486027005 | H161: -3.20762967e-06 | J161: -0.0007294519029 | K161: -0.01816860398 | L161: 0.01229712466 | M161: 0.3116236214 | N161: 0.002576098289
A162: =IF('DF raw data'!E167="","",'DF raw data'!E167) -> -250 | B162: =IF('DF raw data'!F167="","",'DF raw data'!F167) -> -1.93701e-05 | C162: =IF('DF raw data'!G167="","",'DF raw data'!G167) -> 0.000254838 | D162: =IF('DF raw data'!H167="","",'DF raw data'!H167) -> -2.42647e-06 | F162: -1.945726545e-05 | G162: 0.000255984771 | H162: -2.437389115e-06 | J162: -0.0007391805357 | K162: -0.01853819425 | L162: 0.01242511705 | M162: 0.31783618 | N162: 0.002653563249
A163: =IF('DF raw data'!E168="","",'DF raw data'!E168) -> -249.5 | B163: =IF('DF raw data'!F168="","",'DF raw data'!F168) -> -2.82119e-05 | C163: =IF('DF raw data'!G168="","",'DF raw data'!G168) -> 0.000255026 | D163: =IF('DF raw data'!H168="","",'DF raw data'!H168) -> -2.20331e-07 | F163: -2.833885355e-05 | G163: 0.000256173617 | H163: -2.213224895e-07 | J163: -0.0007533499624 | K163: -0.01891486923 | L163: 0.01255320385 | M163: 0.3241127819 | N163: 0.002732638481
A164: =IF('DF raw data'!E169="","",'DF raw data'!E169) -> -249 | B164: =IF('DF raw data'!F169="","",'DF raw data'!F169) -> -1.24442e-05 | C164: =IF('DF raw data'!G169="","",'DF raw data'!G169) -> 0.000252375 | D164: =IF('DF raw data'!H169="","",'DF raw data'!H169) -> -1.16115e-05 | F164: -1.25001989e-05 | G164: 0.0002535106875 | H164: -1.166375175e-05 | J164: -0.0007596000619 | K164: -0.01929466926 | L164: 0.0126799592 | M164: 0.3304527615 | N164: 0.00281331766
A165: =IF('DF raw data'!E170="","",'DF raw data'!E170) -> -248.5 | B165: =IF('DF raw data'!F170="","",'DF raw data'!F170) -> -2.911e-05 | C165: =IF('DF raw data'!G170="","",'DF raw data'!G170) -> 0.00025189 | D165: =IF('DF raw data'!H170="","",'DF raw data'!H170) -> 1.386e-06 | F165: -2.9240995e-05 | G165: 0.000253023505 | H165: 1.392237e-06 | J165: -0.0007742205594 | K165: -0.01968177954 | L165: 0.01280647095 | M165: 0.336855997 | N165: 0.002895620218
A166: =IF('DF raw data'!E171="","",'DF raw data'!E171) -> -248 | B166: =IF('DF raw data'!F171="","",'DF raw data'!F171) -> -1.39194e-05 | C166: =IF('DF raw data'!G171="","",'DF raw data'!G171) -> 0.000254688 | D166: =IF('DF raw data'!H171="","",'DF raw data'!H171) -> -9.31753e-06 | F166: -1.39820373e-05 | G166: 0.000255834096 | H166: -9.359458885e-06 | J166: -0.000781211578 | K166: -0.02007238533 | L166: 0.012934388 | M166: 0.343323191 | N166: 0.00297957456
A167: =IF('DF raw data'!E172="","",'DF raw data'!E172) -> -247.5 | B167: =IF('DF raw data'!F172="","",'DF raw data'!F172) -> -9.04803e-08 | C167: =IF('DF raw data'!G172="","",'DF raw data'!G172) -> 0.00024272 | D167: =IF('DF raw data'!H172="","",'DF raw data'!H172) -> 7.53546e-06 | F167: -9.088746135e-08 | G167: 0.00024381224 | H167: 7.56936957e-06 | J167: -0.0007812570218 | K167: -0.02046301384 | L167: 0.01305629412 | M167: 0.349851338 | N167: 0.003065113149
A168: =IF('DF raw data'!E173="","",'DF raw data'!E173) -> -247 | B168: =IF('DF raw data'!F173="","",'DF raw data'!F173) -> -2.59034e-05 | C168: =IF('DF raw data'!G173="","",'DF raw data'!G173) -> 0.000246921 | D168: =IF('DF raw data'!H173="","",'DF raw data'!H173) -> -5.4298e-06 | F168: -2.60199653e-05 | G168: 0.0002480321445 | H168: -5.4542341e-06 | J168: -0.0007942670044 | K168: -0.02086014734 | L168: 0.01318031019 | M168: 0.3564414931 | N168: 0.003152288867
A169: =IF('DF raw data'!E174="","",'DF raw data'!E174) -> -246.5 | B169: =IF('DF raw data'!F174="","",'DF raw data'!F174) -> -1.41782e-05 | C169: =IF('DF raw data'!G174="","",'DF raw data'!G174) -> 0.000260905 | D169: =IF('DF raw data'!H174="","",'DF raw data'!H174) -> -4.26545e-06 | F169: -1.42420019e-05 | G169: 0.0002620790725 | H169: -4.284644525e-06 | J169: -0.0008013880054 | K169: -0.02126084134 | L169: 0.01331134973 | M169: 0.363097168 | N169: 0.003241205995
A170: =IF('DF raw data'!E175="","",'DF raw data'!E175) -> -246 | B170: =IF('DF raw data'!F175="","",'DF raw data'!F175) -> -1.77044e-05 | C170: =IF('DF raw data'!G175="","",'DF raw data'!G175) -> 0.00025591 | D170: =IF('DF raw data'!H175="","",'DF raw data'!H175) -> -1.72705e-06 | F170: -1.77840698e-05 | G170: 0.000257061595 | H170: -1.734821725e-06 | J170: -0.0008102800403 | K170: -0.02166598136 | L170: 0.01343988052 | M170: 0.3698171082 | N170: 0.003331849466
A171: =IF('DF raw data'!E176="","",'DF raw data'!E176) -> -245.5 | B171: =IF('DF raw data'!F176="","",'DF raw data'!F176) -> -1.51355e-05 | C171: =IF('DF raw data'!G176="","",'DF raw data'!G176) -> 0.000248879 | D171: =IF('DF raw data'!H176="","",'DF raw data'!H176) -> -1.02653e-05 | F171: -1.520360975e-05 | G171: 0.0002499989555 | H171: -1.031149385e-05 | J171: -0.0008178818452 | K171: -0.02207492228 | L171: 0.01356488 | M171: 0.3765995482 | N171: 0.003424186916
A172: =IF('DF raw data'!E177="","",'DF raw data'!E177) -> -245 | B172: =IF('DF raw data'!F177="","",'DF raw data'!F177) -> -5.08266e-06 | C172: =IF('DF raw data'!G177="","",'DF raw data'!G177) -> 0.000248347 | D172: =IF('DF raw data'!H177="","",'DF raw data'!H177) -> -1.00825e-06 | F172: -5.10553197e-06 | G172: 0.0002494645615 | H172: -1.012787125e-06 | J172: -0.0008204346111 | K172: -0.02248513959 | L172: 0.01368961228 | M172: 0.3834443544 | N172: 0.003518226215
A173: =IF('DF raw data'!E178="","",'DF raw data'!E178) -> -244.5 | B173: =IF('DF raw data'!F178="","",'DF raw data'!F178) -> -1.05306e-05 | C173: =IF('DF raw data'!G178="","",'DF raw data'!G178) -> 0.000252992 | D173: =IF('DF raw data'!H178="","",'DF raw data'!H178) -> 2.35839e-06 | F173: -1.05779877e-05 | G173: 0.000254130464 | H173: 2.369002755e-06 | J173: -0.000825723605 | K173: -0.02289800139 | L173: 0.01381667751 | M173: 0.3903526931 | N173: 0.003614017413
A174: =IF('DF raw data'!E179="","",'DF raw data'!E179) -> -244 | B174: =IF('DF raw data'!F179="","",'DF raw data'!F179) -> -1.80786e-05 | C174: =IF('DF raw data'!G179="","",'DF raw data'!G179) -> 0.000253743 | D174: =IF('DF raw data'!H179="","",'DF raw data'!H179) -> -1.74203e-05 | F174: -1.81599537e-05 | G174: 0.0002548848435 | H174: -1.749869135e-05 | J174: -0.0008348035818 | K174: -0.02331540318 | L174: 0.01394411994 | M174: 0.3973247531 | N174: 0.003711585102
A175: =IF('DF raw data'!E180="","",'DF raw data'!E180) -> -243.5 | B175: =IF('DF raw data'!F180="","",'DF raw data'!F180) -> -6.03822e-06 | C175: =IF('DF raw data'!G180="","",'DF raw data'!G180) -> 0.000246805 | D175: =IF('DF raw data'!H180="","",'DF raw data'!H180) -> -9.01176e-06 | F175: -6.06539199e-06 | G175: 0.0002479156225 | H175: -9.05231292e-06 | J175: -0.0008378362778 | K175: -0.02373432132 | L175: 0.01406807775 | M175: 0.404358792 | N175: 0.003810891493
A176: =IF('DF raw data'!E181="","",'DF raw data'!E181) -> -243 | B176: =IF('DF raw data'!F181="","",'DF raw data'!F181) -> -1.6735e-05 | C176: =IF('DF raw data'!G181="","",'DF raw data'!G181) -> 0.000252436 | D176: =IF('DF raw data'!H181="","",'DF raw data'!H181) -> -1.42027e-05 | F176: -1.68103075e-05 | G176: 0.000253571962 | H176: -1.426661215e-05 | J176: -0.0008462414316 | K176: -0.02415744204 | L176: 0.01419486373 | M176: 0.4114562238 | N176: 0.003911996633
A177: =IF('DF raw data'!E182="","",'DF raw data'!E182) -> -242.5 | B177: =IF('DF raw data'!F182="","",'DF raw data'!F182) -> -5.97844e-06 | C177: =IF('DF raw data'!G182="","",'DF raw data'!G182) -> 0.000255859 | D177: =IF('DF raw data'!H182="","",'DF raw data'!H182) -> -2.60295e-06 | F177: -6.00534298e-06 | G177: 0.0002570103655 | H177: -2.614663275e-06 | J177: -0.0008492441031 | K177: -0.02458206409 | L177: 0.01432336891 | M177: 0.4186179083 | N177: 0.004014936689
A178: =IF('DF raw data'!E183="","",'DF raw data'!E183) -> -242 | B178: =IF('DF raw data'!F183="","",'DF raw data'!F183) -> -9.11275e-06 | C178: =IF('DF raw data'!G183="","",'DF raw data'!G183) -> 0.000253366 | D178: =IF('DF raw data'!H183="","",'DF raw data'!H183) -> -1.08834e-05 | F178: -9.153757375e-06 | G178: 0.000254506147 | H178: -1.09323753e-05 | J178: -0.0008538209818 | K178: -0.02500897458 | L178: 0.01445062198 | M178: 0.4258432193 | N178: 0.004119711432
A179: =IF('DF raw data'!E184="","",'DF raw data'!E184) -> -241.5 | B179: =IF('DF raw data'!F184="","",'DF raw data'!F184) -> -2.30227e-05 | C179: =IF('DF raw data'!G184="","",'DF raw data'!G184) -> 0.000245588 | D179: =IF('DF raw data'!H184="","",'DF raw data'!H184) -> -7.01849e-07 | F179: -2.312630215e-05 | G179: 0.000246693146 | H179: -7.050073205e-07 | J179: -0.0008653841328 | K179: -0.02544166665 | L179: 0.01457396856 | M179: 0.4331302036 | N179: 0.004226286157
A180: =IF('DF raw data'!E185="","",'DF raw data'!E185) -> -241 | B180: =IF('DF raw data'!F185="","",'DF raw data'!F185) -> -2.21232e-05 | C180: =IF('DF raw data'!G185="","",'DF raw data'!G185) -> 0.000245081 | D180: =IF('DF raw data'!H185="","",'DF raw data'!H185) -> -4.76478e-06 | F180: -2.22227544e-05 | G180: 0.0002461838645 | H180: -4.78622151e-06 | J180: -0.00087649551 | K180: -0.0258799144 | L180: 0.01469706049 | M180: 0.4404787338 | N180: 0.004334672073
A181: =IF('DF raw data'!E186="","",'DF raw data'!E186) -> -240.5 | B181: =IF('DF raw data'!F186="","",'DF raw data'!F186) -> -1.85359e-05 | C181: =IF('DF raw data'!G186="","",'DF raw data'!G186) -> 0.00026343 | D181: =IF('DF raw data'!H186="","",'DF raw data'!H186) -> -3.30397e-06 | F181: -1.861931155e-05 | G181: 0.000264615435 | H181: -3.318837865e-06 | J181: -0.0008858051658 | K181: -0.02632281699 | L181: 0.01482936821 | M181: 0.4478934179 | N181: 0.004445019479
A182: =IF('DF raw data'!E187="","",'DF raw data'!E187) -> -240 | B182: =IF('DF raw data'!F187="","",'DF raw data'!F187) -> -7.38014e-06 | C182: =IF('DF raw data'!G187="","",'DF raw data'!G187) -> 0.000255516 | D182: =IF('DF raw data'!H187="","",'DF raw data'!H187) -> -1.48528e-05 | F182: -7.41335063e-06 | G182: 0.000256665822 | H182: -1.49196376e-05 | J182: -0.0008895118411 | K182: -0.02676757291 | L182: 0.01495770112 | M182: 0.4553722685 | N182: 0.004557281506
A183: =IF('DF raw data'!E188="","",'DF raw data'!E188) -> -239.5 | B183: =IF('DF raw data'!F188="","",'DF raw data'!F188) -> -1.28843e-05 | C183: =IF('DF raw data'!G188="","",'DF raw data'!G188) -> 0.00024959 | D183: =IF('DF raw data'!H188="","",'DF raw data'!H188) -> -2.38908e-05 | F183: -1.294227935e-05 | G183: 0.000250713155 | H183: -2.39983086e-05 | J183: -0.0008959829808 | K183: -0.0272155644 | L183: 0.0150830577 | M183: 0.4629137973 | N183: 0.004671432213
A184: =IF('DF raw data'!E189="","",'DF raw data'!E189) -> -239 | B184: =IF('DF raw data'!F189="","",'DF raw data'!F189) -> -1.77737e-05 | C184: =IF('DF raw data'!G189="","",'DF raw data'!G189) -> 0.000240634 | D184: =IF('DF raw data'!H189="","",'DF raw data'!H189) -> 6.39162e-06 | F184: -1.785368165e-05 | G184: 0.000241716853 | H184: 6.42038229e-06 | J184: -0.0009049098216 | K184: -0.02766801931 | L184: 0.01520391612 | M184: 0.4705157554 | N184: 0.004787421177
A185: =IF('DF raw data'!E190="","",'DF raw data'!E190) -> -238.5 | B185: =IF('DF raw data'!F190="","",'DF raw data'!F190) -> -1.75724e-05 | C185: =IF('DF raw data'!G190="","",'DF raw data'!G190) -> 0.000253048 | D185: =IF('DF raw data'!H190="","",'DF raw data'!H190) -> -7.08711e-06 | F185: -1.76514758e-05 | G185: 0.000254186716 | H185: -7.119001995e-06 | J185: -0.0009137355595 | K185: -0.02812488709 | L185: 0.01533100948 | M185: 0.4781812601 | N185: 0.004905358559
A186: =IF('DF raw data'!E191="","",'DF raw data'!E191) -> -238 | B186: =IF('DF raw data'!F191="","",'DF raw data'!F191) -> -1.66747e-05 | C186: =IF('DF raw data'!G191="","",'DF raw data'!G191) -> 0.000255879 | D186: =IF('DF raw data'!H191="","",'DF raw data'!H191) -> -8.43251e-06 | F186: -1.674973615e-05 | G186: 0.0002570304555 | H186: -8.470456295e-06 | J186: -0.0009221104276 | K186: -0.0285859423 | L186: 0.01545952471 | M186: 0.4859110225 | N186: 0.005025282155
A187: =IF('DF raw data'!E192="","",'DF raw data'!E192) -> -237.5 | B187: =IF('DF raw data'!F192="","",'DF raw data'!F192) -> -1.87244e-05 | C187: =IF('DF raw data'!G192="","",'DF raw data'!G192) -> 0.000245639 | D187: =IF('DF raw data'!H192="","",'DF raw data'!H192) -> -9.05451e-06 | F187: -1.88086598e-05 | G187: 0.0002467443755 | H187: -9.095255295e-06 | J187: -0.0009315147575 | K187: -0.02905169968 | L187: 0.0155828969 | M187: 0.4937024709 | N187: 0.005147129353
A188: =IF('DF raw data'!E193="","",'DF raw data'!E193) -> -237 | B188: =IF('DF raw data'!F193="","",'DF raw data'!F193) -> -2.13592e-05 | C188: =IF('DF raw data'!G193="","",'DF raw data'!G193) -> 0.000233064 | D188: =IF('DF raw data'!H193="","",'DF raw data'!H193) -> 2.96683e-06 | F188: -2.14553164e-05 | G188: 0.000234112788 | H188: 2.980180735e-06 | J188: -0.0009422424157 | K188: -0.02952282089 | L188: 0.01569995329 | M188: 0.5015524476 | N188: 0.00527081753
A189: =IF('DF raw data'!E194="","",'DF raw data'!E194) -> -236.5 | B189: =IF('DF raw data'!F194="","",'DF raw data'!F194) -> -2.68669e-05 | C189: =IF('DF raw data'!G194="","",'DF raw data'!G194) -> 0.000240864 | D189: =IF('DF raw data'!H194="","",'DF raw data'!H194) -> -8.6692e-07 | F189: -2.698780105e-05 | G189: 0.000241947888 | H189: -8.7082114e-07 | J189: -0.0009557363162 | K189: -0.03000068905 | L189: 0.01582092723 | M189: 0.5094629112 | N189: 0.005396425115
A190: =IF('DF raw data'!E195="","",'DF raw data'!E195) -> -236 | B190: =IF('DF raw data'!F195="","",'DF raw data'!F195) -> -1.73791e-05 | C190: =IF('DF raw data'!G195="","",'DF raw data'!G195) -> 0.000253398 | D190: =IF('DF raw data'!H195="","",'DF raw data'!H195) -> -9.123e-06 | F190: -1.745730595e-05 | G190: 0.000254538291 | H190: -9.1640535e-06 | J190: -0.0009644649692 | K190: -0.03048292153 | L190: 0.01594819638 | M190: 0.5174370094 | N190: 0.005524062695
A191: =IF('DF raw data'!E196="","",'DF raw data'!E196) -> -235.5 | B191: =IF('DF raw data'!F196="","",'DF raw data'!F196) -> -1.61503e-05 | C191: =IF('DF raw data'!G196="","",'DF raw data'!G196) -> 0.000249264 | D191: =IF('DF raw data'!H196="","",'DF raw data'!H196) -> -2.65989e-05 | F191: -1.622297635e-05 | G191: 0.000250385688 | H191: -2.671859505e-05 | J191: -0.0009725764574 | K191: -0.03096920976 | L191: 0.01607338922 | M191: 0.525473704 | N191: 0.005653712568
A192: =IF('DF raw data'!E197="","",'DF raw data'!E197) -> -235 | B192: =IF('DF raw data'!F197="","",'DF raw data'!F197) -> -1.23823e-05 | C192: =IF('DF raw data'!G197="","",'DF raw data'!G197) -> 0.000252925 | D192: =IF('DF raw data'!H197="","",'DF raw data'!H197) -> -7.73689e-06 | F192: =(1-$G$1*($B$49-$G$2))*B192 -> -1.243802035e-05 | G192: 0.0002540631625 | H192: -7.771706005e-06 | J192: =F192*$G$3+J191 -> -0.0009787954676 | K192: =J192*$G$3+K191 -> -0.03145860749 | L192: =G192*$G$3+L191 -> 0.0162004208 | M192: =L192*$G$3+M191 -> 0.5335739144 | N192: =(J192^2+L192^2)*$G$3+N191 -> 0.005785418406
A193: =IF('DF raw data'!E198="","",'DF raw data'!E198) -> -234.5 | B193: =IF('DF raw data'!F198="","",'DF raw data'!F198) -> -1.85335e-05 | C193: =IF('DF raw data'!G198="","",'DF raw data'!G198) -> 0.000248476 | D193: =IF('DF raw data'!H198="","",'DF raw data'!H198) -> -7.28149e-06 | F193: -1.861690075e-05 | G193: 0.000249594142 | H193: -7.314256705e-06 | J193: -0.0009881039179 | K193: -0.03195265945 | L193: 0.01632521788 | M193: 0.5417365233 | N193: 0.00591916295
A194: =IF('DF raw data'!E199="","",'DF raw data'!E199) -> -234 | B194: =IF('DF raw data'!F199="","",'DF raw data'!F199) -> -2.68723e-05 | C194: =IF('DF raw data'!G199="","",'DF raw data'!G199) -> 0.000243924 | D194: =IF('DF raw data'!H199="","",'DF raw data'!H199) -> 7.49885e-06 | F194: -2.699322535e-05 | G194: 0.000245021658 | H194: 7.532594825e-06 | J194: -0.001001600531 | K194: -0.03245345972 | L194: 0.0164477287 | M194: 0.5499603877 | N194: 0.006054928441
A195: =IF('DF raw data'!E200="","",'DF raw data'!E200) -> -233.5 | B195: =IF('DF raw data'!F200="","",'DF raw data'!F200) -> -8.29612e-06 | C195: =IF('DF raw data'!G200="","",'DF raw data'!G200) -> 0.000242051 | D195: =IF('DF raw data'!H200="","",'DF raw data'!H200) -> 1.45511e-05 | F195: -8.33345254e-06 | G195: 0.0002431402295 | H195: 1.461657995e-05 | J195: -0.001005767257 | K195: -0.03295634334 | L195: 0.01656929882 | M195: 0.5582450371 | N195: 0.006192705057
A196: =IF('DF raw data'!E201="","",'DF raw data'!E201) -> -233 | B196: =IF('DF raw data'!F201="","",'DF raw data'!F201) -> -1.3155e-05 | C196: =IF('DF raw data'!G201="","",'DF raw data'!G201) -> 0.000254513 | D196: =IF('DF raw data'!H201="","",'DF raw data'!H201) -> -1.85475e-06 | F196: -1.32141975e-05 | G196: 0.0002556583085 | H196: -1.863096375e-06 | J196: -0.001012374356 | K196: -0.03346253052 | L196: 0.01669712797 | M196: 0.5665936011 | N196: 0.006332614549
A197: =IF('DF raw data'!E202="","",'DF raw data'!E202) -> -232.5 | B197: =IF('DF raw data'!F202="","",'DF raw data'!F202) -> -1.55236e-05 | C197: =IF('DF raw data'!G202="","",'DF raw data'!G202) -> 0.000255359 | D197: =IF('DF raw data'!H202="","",'DF raw data'!H202) -> -4.98665e-06 | F197: -1.55934562e-05 | G197: 0.0002565081155 | H197: -5.009089925e-06 | J197: -0.001020171084 | K197: -0.03397261606 | L197: 0.01682538203 | M197: 0.5750062921 | N197: 0.006474681664
A198: =IF('DF raw data'!E203="","",'DF raw data'!E203) -> -232 | B198: =IF('DF raw data'!F203="","",'DF raw data'!F203) -> -6.93675e-06 | C198: =IF('DF raw data'!G203="","",'DF raw data'!G203) -> 0.000247888 | D198: =IF('DF raw data'!H203="","",'DF raw data'!H203) -> -6.6994e-06 | F198: -6.967965375e-06 | G198: 0.000249003496 | H198: -6.7295473e-06 | J198: -0.001023655066 | K198: -0.0344844436 | L198: 0.01694988378 | M198: 0.583481234 | N198: 0.006618854879
A199: =IF('DF raw data'!E204="","",'DF raw data'!E204) -> -231.5 | B199: =IF('DF raw data'!F204="","",'DF raw data'!F204) -> -2.21221e-05 | C199: =IF('DF raw data'!G204="","",'DF raw data'!G204) -> 0.000247623 | D199: =IF('DF raw data'!H204="","",'DF raw data'!H204) -> -6.16504e-06 | F199: -2.222164945e-05 | G199: 0.0002487373035 | H199: -6.19278268e-06 | J199: -0.001034765891 | K199: -0.03500182654 | L199: 0.01707425243 | M199: 0.5920183602 | N199: 0.006765155297
A200: =IF('DF raw data'!E205="","",'DF raw data'!E205) -> -231 | B200: =IF('DF raw data'!F205="","",'DF raw data'!F205) -> -2.42414e-05 | C200: =IF('DF raw data'!G205="","",'DF raw data'!G205) -> 0.00024614 | D200: =IF('DF raw data'!H205="","",'DF raw data'!H205) -> 1.35215e-06 | F200: -2.43504863e-05 | G200: 0.00024724763 | H200: 1.358234675e-06 | J200: -0.001046941134 | K200: -0.03552529711 | L200: 0.01719787625 | M200: 0.6006172983 | N200: 0.006913586813
A201: =IF('DF raw data'!E206="","",'DF raw data'!E206) -> -230.5 | B201: =IF('DF raw data'!F206="","",'DF raw data'!F206) -> -2.35982e-05 | C201: =IF('DF raw data'!G206="","",'DF raw data'!G206) -> 0.000236458 | D201: =IF('DF raw data'!H206="","",'DF raw data'!H206) -> -2.54562e-06 | F201: -2.37043919e-05 | G201: 0.000237522061 | H201: -2.55707529e-06 | J201: -0.00105879333 | K201: -0.03605469378 | L201: 0.01731663728 | M201: 0.609275617 | N201: 0.007064080298
... 1061 more rows

Sheet 10 y=0
A1: =IF('DF raw data'!I1="","",'DF raw data'!I1) -> Number of header lines | B1: =IF('DF raw data'!J1="","",'DF raw data'!J1) -> 54 | C1: =IF('DF raw data'!K1="","",'DF raw data'!K1) ->  | D1: =IF('DF raw data'!L1="","",'DF raw data'!L1) ->  | F1: T_coeff | G1: -0.001 | H1: /degC | J1: IBy total | K1: =J1262*1000 -> 0.7419483546 | L1: muTm | M1: =L1262*1000 -> 107.6399114 | R1: DF ref | S1: ='10 y=-0.2'!S1 -> 1
A2: =IF('DF raw data'!I2="","",'DF raw data'!I2) -> Measured by | B2: =IF('DF raw data'!J2="","",'DF raw data'!J2) -> Danfysik | C2: =IF('DF raw data'!K2="","",'DF raw data'!K2) ->  | D2: =IF('DF raw data'!L2="","",'DF raw data'!L2) ->  | F2: Tcorr | G2: 20 | H2: degC | J2: JBy total | K2: =K1262 -> -12.76945715 | L2: muTm^2 | M2: =M1262 -> 30.50339674
A3: =IF('DF raw data'!I3="","",'DF raw data'!I3) -> Operator | B3: =IF('DF raw data'!J3="","",'DF raw data'!J3) -> PMHA | C3: =IF('DF raw data'!K3="","",'DF raw data'!K3) ->  | D3: =IF('DF raw data'!L3="","",'DF raw data'!L3) ->  | F3: Step | G3: =A63-A62 -> 0.5 | H3: mm | J3: PI total | K3: =N1262 -> 10683.26469 | L3: T^2mm^3
A4: =IF('DF raw data'!I4="","",'DF raw data'!I4) -> Data-time | B4: =IF('DF raw data'!J4="","",'DF raw data'!J4) -> 13-09-2024, 11:17:08 | C4: =IF('DF raw data'!K4="","",'DF raw data'!K4) ->  | D4: =IF('DF raw data'!L4="","",'DF raw data'!L4) -> 
A5: =IF('DF raw data'!I5="","",'DF raw data'!I5) -> Project | B5: =IF('DF raw data'!J5="","",'DF raw data'!J5) -> 504314 | C5: =IF('DF raw data'!K5="","",'DF raw data'!K5) ->  | D5: =IF('DF raw data'!L5="","",'DF raw data'!L5) -> 
A6: =IF('DF raw data'!I6="","",'DF raw data'!I6) -> Magnet type | B6: =IF('DF raw data'!J6="","",'DF raw data'!J6) -> Dipole | C6: =IF('DF raw data'!K6="","",'DF raw data'!K6) ->  | D6: =IF('DF raw data'!L6="","",'DF raw data'!L6) -> 
A7: =IF('DF raw data'!I7="","",'DF raw data'!I7) -> Magnet nr. | B7: =IF('DF raw data'!J7="","",'DF raw data'!J7) -> 2410096 | C7: =IF('DF raw data'!K7="","",'DF raw data'!K7) ->  | D7: =IF('DF raw data'!L7="","",'DF raw data'!L7) -> 
A8: =IF('DF raw data'!I8="","",'DF raw data'!I8) -> Meas. number | B8: =IF('DF raw data'!J8="","",'DF raw data'!J8) -> 453 | C8: =IF('DF raw data'!K8="","",'DF raw data'!K8) ->  | D8: =IF('DF raw data'!L8="","",'DF raw data'!L8) -> 
A9: =IF('DF raw data'!I9="","",'DF raw data'!I9) -> Add. info | B9: =IF('DF raw data'!J9="","",'DF raw data'!J9) -> Y-alignment scan 3) | C9: =IF('DF raw data'!K9="","",'DF raw data'!K9) ->  | D9: =IF('DF raw data'!L9="","",'DF raw data'!L9) -> 
A10: =IF('DF raw data'!I10="","",'DF raw data'!I10) -> Device | B10: =IF('DF raw data'!J10="","",'DF raw data'!J10) -> (HAL) HALL-PROBE | C10: =IF('DF raw data'!K10="","",'DF raw data'!K10) ->  | D10: =IF('DF raw data'!L10="","",'DF raw data'!L10) -> 
A11: =IF('DF raw data'!I11="","",'DF raw data'!I11) -> Goal | B11: =IF('DF raw data'!J11="","",'DF raw data'!J11) -> (AXI) AXis Integral (Line, EFB) | C11: =IF('DF raw data'!K11="","",'DF raw data'!K11) ->  | D11: =IF('DF raw data'!L11="","",'DF raw data'!L11) -> 
A12: =IF('DF raw data'!I12="","",'DF raw data'!I12) -> Power supply mode | B12: =IF('DF raw data'!J12="","",'DF raw data'!J12) -> (PM) Permanent Magnet (no MPS in use) | C12: =IF('DF raw data'!K12="","",'DF raw data'!K12) ->  | D12: =IF('DF raw data'!L12="","",'DF raw data'!L12) -> 
A13: =IF('DF raw data'!I13="","",'DF raw data'!I13) -> Data format | B13: =IF('DF raw data'!J13="","",'DF raw data'!J13) -> Raw data text file | C13: =IF('DF raw data'!K13="","",'DF raw data'!K13) ->  | D13: =IF('DF raw data'!L13="","",'DF raw data'!L13) -> 
A14: =IF('DF raw data'!I14="","",'DF raw data'!I14) -> Direction of the pos. x-axis | B14: =IF('DF raw data'!J14="","",'DF raw data'!J14) -> See test program | C14: =IF('DF raw data'!K14="","",'DF raw data'!K14) ->  | D14: =IF('DF raw data'!L14="","",'DF raw data'!L14) -> 
A15: =IF('DF raw data'!I15="","",'DF raw data'!I15) -> Direction of the pos. y-axis | B15: =IF('DF raw data'!J15="","",'DF raw data'!J15) -> Vertical up | C15: =IF('DF raw data'!K15="","",'DF raw data'!K15) ->  | D15: =IF('DF raw data'!L15="","",'DF raw data'!L15) -> 
A16: =IF('DF raw data'!I16="","",'DF raw data'!I16) -> Direction of the pos. z-axis | B16: =IF('DF raw data'!J16="","",'DF raw data'!J16) -> See test program | C16: =IF('DF raw data'!K16="","",'DF raw data'!K16) ->  | D16: =IF('DF raw data'!L16="","",'DF raw data'!L16) -> 
A17: =IF('DF raw data'!I17="","",'DF raw data'!I17) -> Mapper type | B17: =IF('DF raw data'!J17="","",'DF raw data'!J17) -> Precision Hall Mapper | C17: =IF('DF raw data'!K17="","",'DF raw data'!K17) ->  | D17: =IF('DF raw data'!L17="","",'DF raw data'!L17) -> 
A18: =IF('DF raw data'!I18="","",'DF raw data'!I18) -> Mapper Danfysik Reg. Number | B18: =IF('DF raw data'!J18="","",'DF raw data'!J18) -> 2033-D (mapper 1) | C18: =IF('DF raw data'!K18="","",'DF raw data'!K18) ->  | D18: =IF('DF raw data'!L18="","",'DF raw data'!L18) -> 
A19: =IF('DF raw data'!I19="","",'DF raw data'!I19) -> Measurement consept | B19: =IF('DF raw data'!J19="","",'DF raw data'!J19) -> Square line grid | C19: =IF('DF raw data'!K19="","",'DF raw data'!K19) ->  | D19: =IF('DF raw data'!L19="","",'DF raw data'!L19) -> 
A20: =IF('DF raw data'!I20="","",'DF raw data'!I20) -> Mode | B20: =IF('DF raw data'!J20="","",'DF raw data'!J20) -> On-the-fly measurement | C20: =IF('DF raw data'!K20="","",'DF raw data'!K20) ->  | D20: =IF('DF raw data'!L20="","",'DF raw data'!L20) -> 
A21: =IF('DF raw data'!I21="","",'DF raw data'!I21) ->  | B21: =IF('DF raw data'!J21="","",'DF raw data'!J21) ->  | C21: =IF('DF raw data'!K21="","",'DF raw data'!K21) ->  | D21: =IF('DF raw data'!L21="","",'DF raw data'!L21) -> 
A22: =IF('DF raw data'!I22="","",'DF raw data'!I22) -> Probe Name | B22: =IF('DF raw data'!J22="","",'DF raw data'!J22) -> ID12_By | C22: =IF('DF raw data'!K22="","",'DF raw data'!K22) ->  | D22: =IF('DF raw data'!L22="","",'DF raw data'!L22) -> 
A23: =IF('DF raw data'!I23="","",'DF raw data'!I23) -> Probe Type | B23: =IF('DF raw data'!J23="","",'DF raw data'!J23) -> DF_ID_3D_Bxyz | C23: =IF('DF raw data'!K23="","",'DF raw data'!K23) ->  | D23: =IF('DF raw data'!L23="","",'DF raw data'!L23) -> 
A24: =IF('DF raw data'!I24="","",'DF raw data'!I24) -> Probe Danfysik Reg. Number | B24: =IF('DF raw data'!J24="","",'DF raw data'!J24) -> 2277 | C24: =IF('DF raw data'!K24="","",'DF raw data'!K24) ->  | D24: =IF('DF raw data'!L24="","",'DF raw data'!L24) -> 
A25: =IF('DF raw data'!I25="","",'DF raw data'!I25) -> Probe Axis | B25: =IF('DF raw data'!J25="","",'DF raw data'!J25) -> By | C25: =IF('DF raw data'!K25="","",'DF raw data'!K25) ->  | D25: =IF('DF raw data'!L25="","",'DF raw data'!L25) -> 
A26: =IF('DF raw data'!I26="","",'DF raw data'!I26) -> Probe Current Supply | B26: =IF('DF raw data'!J26="","",'DF raw data'!J26) -> 1825-D | C26: =IF('DF raw data'!K26="","",'DF raw data'!K26) ->  | D26: =IF('DF raw data'!L26="","",'DF raw data'!L26) -> 
A27: =IF('DF raw data'!I27="","",'DF raw data'!I27) -> Probe Gain Correction | B27: =IF('DF raw data'!J27="","",'DF raw data'!J27) -> 0.99619 | C27: =IF('DF raw data'!K27="","",'DF raw data'!K27) ->  | D27: =IF('DF raw data'!L27="","",'DF raw data'!L27) -> 
A28: =IF('DF raw data'!I28="","",'DF raw data'!I28) -> Probe Offset Correction | B28: =IF('DF raw data'!J28="","",'DF raw data'!J28) -> 0.002767 | C28: =IF('DF raw data'!K28="","",'DF raw data'!K28) ->  | D28: =IF('DF raw data'!L28="","",'DF raw data'!L28) -> 
A29: =IF('DF raw data'!I29="","",'DF raw data'!I29) -> DVM Number | B29: =IF('DF raw data'!J29="","",'DF raw data'!J29) -> 2 | C29: =IF('DF raw data'!K29="","",'DF raw data'!K29) ->  | D29: =IF('DF raw data'!L29="","",'DF raw data'!L29) -> 
A30: =IF('DF raw data'!I30="","",'DF raw data'!I30) -> DVM Type | B30: =IF('DF raw data'!J30="","",'DF raw data'!J30) -> K2701 | C30: =IF('DF raw data'!K30="","",'DF raw data'!K30) ->  | D30: =IF('DF raw data'!L30="","",'DF raw data'!L30) -> 
A31: =IF('DF raw data'!I31="","",'DF raw data'!I31) -> DVM Danfysik Reg. Number | B31: =IF('DF raw data'!J31="","",'DF raw data'!J31) -> 1743-D | C31: =IF('DF raw data'!K31="","",'DF raw data'!K31) ->  | D31: =IF('DF raw data'!L31="","",'DF raw data'!L31) -> 
A32: =IF('DF raw data'!I32="","",'DF raw data'!I32) -> Probe Name | B32: =IF('DF raw data'!J32="","",'DF raw data'!J32) -> ID12_Bx | C32: =IF('DF raw data'!K32="","",'DF raw data'!K32) ->  | D32: =IF('DF raw data'!L32="","",'DF raw data'!L32) -> 
A33: =IF('DF raw data'!I33="","",'DF raw data'!I33) -> Probe Type | B33: =IF('DF raw data'!J33="","",'DF raw data'!J33) -> DF_ID_3D_Bxyz | C33: =IF('DF raw data'!K33="","",'DF raw data'!K33) ->  | D33: =IF('DF raw data'!L33="","",'DF raw data'!L33) -> 
A34: =IF('DF raw data'!I34="","",'DF raw data'!I34) -> Probe Danfysik Reg. Number | B34: =IF('DF raw data'!J34="","",'DF raw data'!J34) -> 2277 | C34: =IF('DF raw data'!K34="","",'DF raw data'!K34) ->  | D34: =IF('DF raw data'!L34="","",'DF raw data'!L34) -> 
A35: =IF('DF raw data'!I35="","",'DF raw data'!I35) -> Probe Axis | B35: =IF('DF raw data'!J35="","",'DF raw data'!J35) -> Bx | C35: =IF('DF raw data'!K35="","",'DF raw data'!K35) ->  | D35: =IF('DF raw data'!L35="","",'DF raw data'!L35) -> 
A36: =IF('DF raw data'!I36="","",'DF raw data'!I36) -> Probe Current Supply | B36: =IF('DF raw data'!J36="","",'DF raw data'!J36) -> 1825-D | C36: =IF('DF raw data'!K36="","",'DF raw data'!K36) ->  | D36: =IF('DF raw data'!L36="","",'DF raw data'!L36) -> 
A37: =IF('DF raw data'!I37="","",'DF raw data'!I37) -> Probe Gain Correction | B37: =IF('DF raw data'!J37="","",'DF raw data'!J37) -> 1 | C37: =IF('DF raw data'!K37="","",'DF raw data'!K37) ->  | D37: =IF('DF raw data'!L37="","",'DF raw data'!L37) -> 
A38: =IF('DF raw data'!I38="","",'DF raw data'!I38) -> Probe Offset Correction | B38: =IF('DF raw data'!J38="","",'DF raw data'!J38) -> -0.17549 | C38: =IF('DF raw data'!K38="","",'DF raw data'!K38) ->  | D38: =IF('DF raw data'!L38="","",'DF raw data'!L38) -> 
A39: =IF('DF raw data'!I39="","",'DF raw data'!I39) -> DVM Number | B39: =IF('DF raw data'!J39="","",'DF raw data'!J39) -> 3 | C39: =IF('DF raw data'!K39="","",'DF raw data'!K39) ->  | D39: =IF('DF raw data'!L39="","",'DF raw data'!L39) -> 
A40: =IF('DF raw data'!I40="","",'DF raw data'!I40) -> DVM Type | B40: =IF('DF raw data'!J40="","",'DF raw data'!J40) -> K2701 | C40: =IF('DF raw data'!K40="","",'DF raw data'!K40) ->  | D40: =IF('DF raw data'!L40="","",'DF raw data'!L40) -> 
A41: =IF('DF raw data'!I41="","",'DF raw data'!I41) -> DVM Danfysik Reg. Number | B41: =IF('DF raw data'!J41="","",'DF raw data'!J41) -> 1744-D | C41: =IF('DF raw data'!K41="","",'DF raw data'!K41) ->  | D41: =IF('DF raw data'!L41="","",'DF raw data'!L41) -> 
A42: =IF('DF raw data'!I42="","",'DF raw data'!I42) -> Probe Name | B42: =IF('DF raw data'!J42="","",'DF raw data'!J42) -> ID12_Bz | C42: =IF('DF raw data'!K42="","",'DF raw data'!K42) ->  | D42: =IF('DF raw data'!L42="","",'DF raw data'!L42) -> 
A43: =IF('DF raw data'!I43="","",'DF raw data'!I43) -> Probe Type | B43: =IF('DF raw data'!J43="","",'DF raw data'!J43) -> DF_ID_3D_Bxyz | C43: =IF('DF raw data'!K43="","",'DF raw data'!K43) ->  | D43: =IF('DF raw data'!L43="","",'DF raw data'!L43) -> 
A44: =IF('DF raw data'!I44="","",'DF raw data'!I44) -> Probe Danfysik Reg. Number | B44: =IF('DF raw data'!J44="","",'DF raw data'!J44) -> 2277 | C44: =IF('DF raw data'!K44="","",'DF raw data'!K44) ->  | D44: =IF('DF raw data'!L44="","",'DF raw data'!L44) -> 
A45: =IF('DF raw data'!I45="","",'DF raw data'!I45) -> Probe Axis | B45: =IF('DF raw data'!J45="","",'DF raw data'!J45) -> Bz | C45: =IF('DF raw data'!K45="","",'DF raw data'!K45) ->  | D45: =IF('DF raw data'!L45="","",'DF raw data'!L45) -> 
A46: =IF('DF raw data'!I46="","",'DF raw data'!I46) -> Probe Current Supply | B46: =IF('DF raw data'!J46="","",'DF raw data'!J46) -> 1825-D | C46: =IF('DF raw data'!K46="","",'DF raw data'!K46) ->  | D46: =IF('DF raw data'!L46="","",'DF raw data'!L46) -> 
A47: =IF('DF raw data'!I47="","",'DF raw data'!I47) -> Probe Gain Correction | B47: =IF('DF raw data'!J47="","",'DF raw data'!J47) -> 1 | C47: =IF('DF raw data'!K47="","",'DF raw data'!K47) ->  | D47: =IF('DF raw data'!L47="","",'DF raw data'!L47) -> 
A48: =IF('DF raw data'!I53="","",'DF raw data'!I53) -> PS-Gap: | B48: =IF('DF raw data'!J53="","",'DF raw data'!J53) -> 10 | C48: =IF('DF raw data'!K53="","",'DF raw data'!K53) ->  | D48: =IF('DF raw data'!L53="","",'DF raw data'!L53) -> 
A49: =IF('DF raw data'!I54="","",'DF raw data'!I54) -> PS-Temperature: | B49: =IF('DF raw data'!J54="","",'DF raw data'!J54) -> 24.5 | C49: =IF('DF raw data'!K54="","",'DF raw data'!K54) ->  | D49: =IF('DF raw data'!L54="","",'DF raw data'!L54) -> 
A50: =IF('DF raw data'!I55="","",'DF raw data'!I55) -> PS-Encoder: | B50: =IF('DF raw data'!J55="","",'DF raw data'!J55) -> 19.73485 | C50: =IF('DF raw data'!K55="","",'DF raw data'!K55) ->  | D50: =IF('DF raw data'!L55="","",'DF raw data'!L55) -> 
A51: =IF('DF raw data'!I56="","",'DF raw data'!I56) ->  | B51: =IF('DF raw data'!J56="","",'DF raw data'!J56) ->  | C51: =IF('DF raw data'!K56="","",'DF raw data'!K56) ->  | D51: =IF('DF raw data'!L56="","",'DF raw data'!L56) -> 
A52: =IF('DF raw data'!I57="","",'DF raw data'!I57) -> Monitor-Index | B52: =IF('DF raw data'!J57="","",'DF raw data'!J57) -> [1,1,4] | C52: =IF('DF raw data'!K57="","",'DF raw data'!K57) ->  | D52: =IF('DF raw data'!L57="","",'DF raw data'!L57) -> 
A53: =IF('DF raw data'!I58="","",'DF raw data'!I58) ->  | B53: =IF('DF raw data'!J58="","",'DF raw data'!J58) ->  | C53: =IF('DF raw data'!K58="","",'DF raw data'!K58) ->  | D53: =IF('DF raw data'!L58="","",'DF raw data'!L58) -> 
A54: =IF('DF raw data'!I59="","",'DF raw data'!I59) -> Time [s] | B54: =IF('DF raw data'!J59="","",'DF raw data'!J59) -> Y [mm] | C54: =IF('DF raw data'!K59="","",'DF raw data'!K59) -> X [mm] | D54: =IF('DF raw data'!L59="","",'DF raw data'!L59) -> Nominal current [A]
A55: =IF('DF raw data'!I60="","",'DF raw data'!I60) ->  | B55: =IF('DF raw data'!J60="","",'DF raw data'!J60) ->  | C55: =IF('DF raw data'!K60="","",'DF raw data'!K60) ->  | D55: =IF('DF raw data'!L60="","",'DF raw data'!L60) -> 
A56: =IF('DF raw data'!I61="","",'DF raw data'!I61) -> 207.3 | B56: =IF('DF raw data'!J61="","",'DF raw data'!J61) -> 31.76 | C56: =IF('DF raw data'!K61="","",'DF raw data'!K61) -> 302.3 | D56: =IF('DF raw data'!L61="","",'DF raw data'!L61) -> 0
A57: =IF('DF raw data'!I62="","",'DF raw data'!I62) ->  | B57: =IF('DF raw data'!J62="","",'DF raw data'!J62) ->  | C57: =IF('DF raw data'!K62="","",'DF raw data'!K62) ->  | D57: =IF('DF raw data'!L62="","",'DF raw data'!L62) -> 
A58: =IF('DF raw data'!I63="","",'DF raw data'!I63) -> Measurement-Index | B58: =IF('DF raw data'!J63="","",'DF raw data'!J63) -> [1,1,1201,2] | C58: =IF('DF raw data'!K63="","",'DF raw data'!K63) ->  | D58: =IF('DF raw data'!L63="","",'DF raw data'!L63) -> 
A59: =IF('DF raw data'!I64="","",'DF raw data'!I64) ->  | B59: =IF('DF raw data'!J64="","",'DF raw data'!J64) ->  | C59: =IF('DF raw data'!K64="","",'DF raw data'!K64) ->  | D59: =IF('DF raw data'!L64="","",'DF raw data'!L64) -> 
A60: =IF('DF raw data'!I65="","",'DF raw data'!I65) -> Z [mm] | B60: By [T] | C60: Bx [T] | D60: Bz [T] | F60: By_corr | G60: Bx_corr | H60: Bz_corr | J60: Iy | K60: Jy | L60: Ix | M60: Jx | N60: PI
A62: =IF('DF raw data'!I67="","",'DF raw data'!I67) -> -300 | B62: =IF('DF raw data'!J67="","",'DF raw data'!J67) -> -1.33269e-05 | C62: =IF('DF raw data'!K67="","",'DF raw data'!K67) -> 0.000202992 | D62: =IF('DF raw data'!L67="","",'DF raw data'!L67) -> -5.1606e-06 | F62: =(1-$G$1*($B$49))*B62 -> -1.365340905e-05 | G62: =(1-$G$1*($B$49-$G$2))*C62 -> 0.000203905464 | H62: =(1-$G$1*($B$49-$G$2))*D62 -> -5.1838227e-06 | J62: =F62*$G$3 -> -6.826704525e-06 | K62: =J62*$G$3 -> -3.413352262e-06 | L62: =G62*$G$3 -> 0.000101952732 | M62: =L62*$G$3 -> 5.0976366e-05 | N62: =(J62^2+L62^2)*$G$3 -> 5.220481728e-09
A63: =IF('DF raw data'!I68="","",'DF raw data'!I68) -> -299.5 | B63: =IF('DF raw data'!J68="","",'DF raw data'!J68) -> -2.0056e-05 | C63: =IF('DF raw data'!K68="","",'DF raw data'!K68) -> 0.000200347 | D63: =IF('DF raw data'!L68="","",'DF raw data'!L68) -> -4.71476e-06 | F63: =(1-$G$1*($B$49-$G$2))*B63 -> -2.0146252e-05 | G63: =(1-$G$1*($B$49-$G$2))*C63 -> 0.0002012485615 | H63: -4.73597642e-06 | J63: =F63*$G$3+J62 -> -1.689983052e-05 | K63: =J63*$G$3+K62 -> -1.186326752e-05 | L63: =G63*$G$3+L62 -> 0.0002025770128 | M63: =L63*$G$3+M62 -> 0.0001522648724 | N63: =(J63^2+L63^2)*$G$3+N62 -> 2.588200691e-08
A64: =IF('DF raw data'!I69="","",'DF raw data'!I69) -> -299 | B64: =IF('DF raw data'!J69="","",'DF raw data'!J69) -> -1.86466e-05 | C64: =IF('DF raw data'!K69="","",'DF raw data'!K69) -> 0.000211613 | D64: =IF('DF raw data'!L69="","",'DF raw data'!L69) -> -4.17758e-06 | F64: =(1-$G$1*($B$49-$G$2))*B64 -> -1.87305097e-05 | G64: 0.0002125652585 | H64: -4.19637911e-06 | J64: =F64*$G$3+J63 -> -2.626508537e-05 | K64: =J64*$G$3+K63 -> -2.499581021e-05 | L64: =G64*$G$3+L63 -> 0.000308859642 | M64: =L64*$G$3+M63 -> 0.0003066946934 | N64: =(J64^2+L64^2)*$G$3+N63 -> 7.392407349e-08
A65: =IF('DF raw data'!I70="","",'DF raw data'!I70) -> -298.5 | B65: =IF('DF raw data'!J70="","",'DF raw data'!J70) -> -1.21744e-05 | C65: =IF('DF raw data'!K70="","",'DF raw data'!K70) -> 0.000208029 | D65: =IF('DF raw data'!L70="","",'DF raw data'!L70) -> -4.19581e-06 | F65: -1.22291848e-05 | G65: 0.0002089651305 | H65: -4.214691145e-06 | J65: -3.237967777e-05 | K65: -4.11856491e-05 | L65: 0.0004133422073 | M65: 0.000513365797 | N65: 1.598741854e-07
A66: =IF('DF raw data'!I71="","",'DF raw data'!I71) -> -298 | B66: =IF('DF raw data'!J71="","",'DF raw data'!J71) -> -2.44135e-05 | C66: =IF('DF raw data'!K71="","",'DF raw data'!K71) -> 0.000217138 | D66: =IF('DF raw data'!L71="","",'DF raw data'!L71) -> -4.28528e-06 | F66: -2.452336075e-05 | G66: 0.000218115121 | H66: -4.30456376e-06 | J66: -4.464135815e-05 | K66: -6.350632817e-05 | L66: 0.0005223997677 | M66: 0.0007745656809 | N66: 2.973213695e-07
A67: =IF('DF raw data'!I72="","",'DF raw data'!I72) -> -297.5 | B67: =IF('DF raw data'!J72="","",'DF raw data'!J72) -> -1.31355e-05 | C67: =IF('DF raw data'!K72="","",'DF raw data'!K72) -> 0.000215122 | D67: =IF('DF raw data'!L72="","",'DF raw data'!L72) -> -4.30885e-06 | F67: -1.319460975e-05 | G67: 0.000216090049 | H67: -4.328239825e-06 | J67: -5.123866302e-05 | K67: -8.912565969e-05 | L67: 0.0006304447922 | M67: 0.001089788077 | N67: 4.973643878e-07
A68: =IF('DF raw data'!I73="","",'DF raw data'!I73) -> -297 | B68: =IF('DF raw data'!J73="","",'DF raw data'!J73) -> -2.34523e-05 | C68: =IF('DF raw data'!K73="","",'DF raw data'!K73) -> 0.000214315 | D68: =IF('DF raw data'!L73="","",'DF raw data'!L73) -> -4.0807e-06 | F68: -2.355783535e-05 | G68: 0.0002152794175 | H68: -4.09906315e-06 | J68: -6.30175807e-05 | K68: -0.00012063445 | L68: 0.000738084501 | M68: 0.001458830328 | N68: 7.717343609e-07
A69: =IF('DF raw data'!I74="","",'DF raw data'!I74) -> -296.5 | B69: =IF('DF raw data'!J74="","",'DF raw data'!J74) -> -1.9992e-05 | C69: =IF('DF raw data'!K74="","",'DF raw data'!K74) -> 0.00020936 | D69: =IF('DF raw data'!L74="","",'DF raw data'!L74) -> -3.67635e-06 | F69: -2.0081964e-05 | G69: 0.00021030212 | H69: -3.692893575e-06 | J69: -7.30585627e-05 | K69: -0.0001571637314 | L69: 0.000843235561 | M69: 0.001880448108 | N69: 1.129926243e-06
A70: =IF('DF raw data'!I75="","",'DF raw data'!I75) -> -296 | B70: =IF('DF raw data'!J75="","",'DF raw data'!J75) -> -1.49948e-05 | C70: =IF('DF raw data'!K75="","",'DF raw data'!K75) -> 0.000205635 | D70: =IF('DF raw data'!L75="","",'DF raw data'!L75) -> -3.28066e-06 | F70: -1.50622766e-05 | G70: 0.0002065603575 | H70: -3.29542297e-06 | J70: -8.0589701e-05 | K70: -0.0001974585819 | L70: 0.0009465157397 | M70: 0.002353705978 | N70: 1.581119616e-06
A71: =IF('DF raw data'!I76="","",'DF raw data'!I76) -> -295.5 | B71: =IF('DF raw data'!J76="","",'DF raw data'!J76) -> -1.89031e-05 | C71: =IF('DF raw data'!K76="","",'DF raw data'!K76) -> 0.000212299 | D71: =IF('DF raw data'!L76="","",'DF raw data'!L76) -> -3.0667e-06 | F71: -1.898816395e-05 | G71: 0.0002132543455 | H71: -3.08050015e-06 | J71: -9.008378297e-05 | K71: -0.0002425004734 | L71: 0.001053142913 | M71: 0.002880277434 | N71: 2.139732157e-06
A72: =IF('DF raw data'!I77="","",'DF raw data'!I77) -> -295 | B72: =IF('DF raw data'!J77="","",'DF raw data'!J77) -> -5.70343e-06 | C72: =IF('DF raw data'!K77="","",'DF raw data'!K77) -> 0.00020797 | D72: =IF('DF raw data'!L77="","",'DF raw data'!L77) -> -3.37797e-06 | F72: -5.729095435e-06 | G72: 0.000208905865 | H72: -3.393170865e-06 | J72: -9.294833069e-05 | K72: -0.0002889746387 | L72: 0.001157595845 | M72: 0.003459075357 | N72: 2.814065923e-06
A73: =IF('DF raw data'!I78="","",'DF raw data'!I78) -> -294.5 | B73: =IF('DF raw data'!J78="","",'DF raw data'!J78) -> -1.07648e-05 | C73: =IF('DF raw data'!K78="","",'DF raw data'!K78) -> 0.000209769 | D73: =IF('DF raw data'!L78="","",'DF raw data'!L78) -> -4.08097e-06 | F73: -1.08132416e-05 | G73: 0.0002107129605 | H73: -4.099334365e-06 | J73: -9.835495149e-05 | K73: -0.0003381521145 | L73: 0.001262952325 | M73: 0.004090551519 | N73: 3.61642706e-06
A74: =IF('DF raw data'!I79="","",'DF raw data'!I79) -> -294 | B74: =IF('DF raw data'!J79="","",'DF raw data'!J79) -> -7.94536e-06 | C74: =IF('DF raw data'!K79="","",'DF raw data'!K79) -> 0.000211423 | D74: =IF('DF raw data'!L79="","",'DF raw data'!L79) -> -4.57775e-06 | F74: -7.98111412e-06 | G74: 0.0002123744035 | H74: -4.598349875e-06 | J74: -0.0001023455086 | K74: -0.0003893248687 | L74: 0.001369139527 | M74: 0.004775121283 | N74: 4.558935883e-06
A75: =IF('DF raw data'!I80="","",'DF raw data'!I80) -> -293.5 | B75: =IF('DF raw data'!J80="","",'DF raw data'!J80) -> -1.68519e-05 | C75: =IF('DF raw data'!K80="","",'DF raw data'!K80) -> 0.000214494 | D75: =IF('DF raw data'!L80="","",'DF raw data'!L80) -> -4.43651e-06 | F75: -1.692773355e-05 | G75: 0.000215459223 | H75: -4.456474295e-06 | J75: -0.0001108093753 | K75: -0.0004447295564 | L75: 0.001476869138 | M75: 0.005513555852 | N75: 5.655646468e-06
A76: =IF('DF raw data'!I81="","",'DF raw data'!I81) -> -293 | B76: =IF('DF raw data'!J81="","",'DF raw data'!J81) -> -1.14059e-05 | C76: =IF('DF raw data'!K81="","",'DF raw data'!K81) -> 0.000214662 | D76: =IF('DF raw data'!L81="","",'DF raw data'!L81) -> -4.16211e-06 | F76: -1.145722655e-05 | G76: 0.000215627979 | H76: -4.180839495e-06 | J76: -0.0001165379886 | K76: -0.0005029985507 | L76: 0.001584683128 | M76: 0.006305897416 | N76: 6.918047328e-06
A77: =IF('DF raw data'!I82="","",'DF raw data'!I82) -> -292.5 | B77: =IF('DF raw data'!J82="","",'DF raw data'!J82) -> -1.35841e-05 | C77: =IF('DF raw data'!K82="","",'DF raw data'!K82) -> 0.000208454 | D77: =IF('DF raw data'!L82="","",'DF raw data'!L82) -> -3.99288e-06 | F77: -1.364522845e-05 | G77: 0.000209392043 | H77: -4.01084796e-06 | J77: -0.0001233606028 | K77: -0.0005646788521 | L77: 0.001689379149 | M77: 0.007150586991 | N77: 8.352657202e-06
A78: =IF('DF raw data'!I83="","",'DF raw data'!I83) -> -292 | B78: =IF('DF raw data'!J83="","",'DF raw data'!J83) -> -1.37769e-05 | C78: =IF('DF raw data'!K83="","",'DF raw data'!K83) -> 0.000205937 | D78: =IF('DF raw data'!L83="","",'DF raw data'!L83) -> -3.81888e-06 | F78: -1.383889605e-05 | G78: 0.0002068637165 | H78: -3.83606496e-06 | J78: -0.0001302800509 | K78: -0.0006298188775 | L78: 0.001792811008 | M78: 0.008046992495 | N78: 9.968229303e-06
A79: =IF('DF raw data'!I84="","",'DF raw data'!I84) -> -291.5 | B79: =IF('DF raw data'!J84="","",'DF raw data'!J84) -> -1.14614e-05 | C79: =IF('DF raw data'!K84="","",'DF raw data'!K84) -> 0.000204146 | D79: =IF('DF raw data'!L84="","",'DF raw data'!L84) -> -1.70801e-05 | F79: -1.15129763e-05 | G79: 0.000205064657 | H79: -1.715696045e-05 | J79: -0.000136036539 | K79: -0.000697837147 | L79: 0.001895343336 | M79: 0.008994664163 | N79: 1.177364545e-05
A80: =IF('DF raw data'!I85="","",'DF raw data'!I85) -> -291 | B80: =IF('DF raw data'!J85="","",'DF raw data'!J85) -> -9.15354e-06 | C80: =IF('DF raw data'!K85="","",'DF raw data'!K85) -> 0.000203192 | D80: =IF('DF raw data'!L85="","",'DF raw data'!L85) -> -1.89176e-05 | F80: -9.19473093e-06 | G80: 0.000204106364 | H80: -1.90027292e-05 | J80: -0.0001406339045 | K80: -0.0007681540993 | L80: 0.001997396518 | M80: 0.009993362422 | N80: 1.377833083e-05
A81: =IF('DF raw data'!I86="","",'DF raw data'!I86) -> -290.5 | B81: =IF('DF raw data'!J86="","",'DF raw data'!J86) -> -1.06928e-05 | C81: =IF('DF raw data'!K86="","",'DF raw data'!K86) -> 0.00019242 | D81: =IF('DF raw data'!L86="","",'DF raw data'!L86) -> -1.63104e-05 | F81: -1.07409176e-05 | G81: 0.00019328589 | H81: -1.63837968e-05 | J81: -0.0001460043633 | K81: -0.0008411562809 | L81: 0.002094039463 | M81: 0.01104038215 | N81: 1.59814901e-05
A82: =IF('DF raw data'!I87="","",'DF raw data'!I87) -> -290 | B82: =IF('DF raw data'!J87="","",'DF raw data'!J87) -> -8.25982e-06 | C82: =IF('DF raw data'!K87="","",'DF raw data'!K87) -> 0.000194115 | D82: =IF('DF raw data'!L87="","",'DF raw data'!L87) -> -1.37734e-05 | F82: -8.29698919e-06 | G82: 0.0001949885175 | H82: -1.38353803e-05 | J82: -0.0001501528579 | K82: -0.0009162327098 | L82: 0.002191533722 | M82: 0.01213614901 | N82: 1.839417307e-05
A83: =IF('DF raw data'!I88="","",'DF raw data'!I88) -> -289.5 | B83: =IF('DF raw data'!J88="","",'DF raw data'!J88) -> -5.70104e-06 | C83: =IF('DF raw data'!K88="","",'DF raw data'!K88) -> 0.000203283 | D83: =IF('DF raw data'!L88="","",'DF raw data'!L88) -> -6.82871e-06 | F83: -5.72669468e-06 | G83: 0.0002041977735 | H83: -6.859439195e-06 | J83: -0.0001530162052 | K83: -0.0009927408124 | L83: 0.002293632609 | M83: 0.01328296532 | N83: 2.103625532e-05
A84: =IF('DF raw data'!I89="","",'DF raw data'!I89) -> -289 | B84: =IF('DF raw data'!J89="","",'DF raw data'!J89) -> -1.58258e-05 | C84: =IF('DF raw data'!K89="","",'DF raw data'!K89) -> 0.000201804 | D84: =IF('DF raw data'!L89="","",'DF raw data'!L89) -> -5.88792e-06 | F84: -1.58970161e-05 | G84: 0.000202712118 | H84: -5.91441564e-06 | J84: -0.0001609647133 | K84: -0.001073223169 | L84: 0.002394988668 | M84: 0.01448045965 | N84: 2.39171955e-05
A85: =IF('DF raw data'!I90="","",'DF raw data'!I90) -> -288.5 | B85: =IF('DF raw data'!J90="","",'DF raw data'!J90) -> -1.12025e-05 | C85: =IF('DF raw data'!K90="","",'DF raw data'!K90) -> 0.000195568 | D85: =IF('DF raw data'!L90="","",'DF raw data'!L90) -> -2.07894e-05 | F85: -1.125291125e-05 | G85: 0.000196448056 | H85: -2.08829523e-05 | J85: -0.0001665911689 | K85: -0.001156518754 | L85: 0.002493212696 | M85: 0.015727066 | N85: 2.703912658e-05
A86: =IF('DF raw data'!I91="","",'DF raw data'!I91) -> -288 | B86: =IF('DF raw data'!J91="","",'DF raw data'!J91) -> -1.74222e-05 | C86: =IF('DF raw data'!K91="","",'DF raw data'!K91) -> 0.000190692 | D86: =IF('DF raw data'!L91="","",'DF raw data'!L91) -> -1.45082e-05 | F86: -1.75005999e-05 | G86: 0.000191550114 | H86: -1.45734869e-05 | J86: -0.0001753414688 | K86: -0.001244189488 | L86: 0.002588987753 | M86: 0.01702155988 | N86: 3.040592769e-05
A87: =IF('DF raw data'!I92="","",'DF raw data'!I92) -> -287.5 | B87: =IF('DF raw data'!J92="","",'DF raw data'!J92) -> -1.72863e-05 | C87: =IF('DF raw data'!K92="","",'DF raw data'!K92) -> 0.000193921 | D87: =IF('DF raw data'!L92="","",'DF raw data'!L92) -> -2.60829e-05 | F87: -1.736408835e-05 | G87: 0.0001947936445 | H87: -2.620027305e-05 | J87: -0.000184023513 | K87: -0.001336201244 | L87: 0.002686384575 | M87: 0.01836475216 | N87: 3.403119106e-05
A88: =IF('DF raw data'!I93="","",'DF raw data'!I93) -> -287 | B88: =IF('DF raw data'!J93="","",'DF raw data'!J93) -> -1.10149e-05 | C88: =IF('DF raw data'!K93="","",'DF raw data'!K93) -> 0.00019795 | D88: =IF('DF raw data'!L93="","",'DF raw data'!L93) -> -1.40134e-05 | F88: -1.106446705e-05 | G88: 0.000198840775 | H88: -1.40764603e-05 | J88: -0.0001895557465 | K88: -0.001430979118 | L88: 0.002785804962 | M88: 0.01975765465 | N88: 3.792951139e-05
A89: =IF('DF raw data'!I94="","",'DF raw data'!I94) -> -286.5 | B89: =IF('DF raw data'!J94="","",'DF raw data'!J94) -> -2.92174e-05 | C89: =IF('DF raw data'!K94="","",'DF raw data'!K94) -> 0.000194523 | D89: =IF('DF raw data'!L94="","",'DF raw data'!L94) -> -5.98364e-06 | F89: -2.93488783e-05 | G89: 0.0001953983535 | H89: -6.01056638e-06 | J89: -0.0002042301857 | K89: -0.001533094211 | L89: 0.002883504139 | M89: 0.02119940672 | N89: 4.210766444e-05
A90: =IF('DF raw data'!I95="","",'DF raw data'!I95) -> -286 | B90: =IF('DF raw data'!J95="","",'DF raw data'!J95) -> -1.90256e-05 | C90: =IF('DF raw data'!K95="","",'DF raw data'!K95) -> 0.000202747 | D90: =IF('DF raw data'!L95="","",'DF raw data'!L95) -> -1.21917e-05 | F90: -1.91112152e-05 | G90: 0.0002036593615 | H90: -1.224656265e-05 | J90: -0.0002137857933 | K90: -0.001639987107 | L90: 0.00298533382 | M90: 0.02269207363 | N90: 4.658662563e-05
A91: =IF('DF raw data'!I96="","",'DF raw data'!I96) -> -285.5 | B91: =IF('DF raw data'!J96="","",'DF raw data'!J96) -> -1.73605e-05 | C91: =IF('DF raw data'!K96="","",'DF raw data'!K96) -> 0.000210009 | D91: =IF('DF raw data'!L96="","",'DF raw data'!L96) -> -1.08066e-05 | F91: -1.743862225e-05 | G91: 0.0002109540405 | H91: -1.08552297e-05 | J91: -0.0002225051044 | K91: -0.001751239659 | L91: 0.00309081084 | M91: 0.02423747905 | N91: 5.138793571e-05
A92: =IF('DF raw data'!I97="","",'DF raw data'!I97) -> -285 | B92: =IF('DF raw data'!J97="","",'DF raw data'!J97) -> -1.99266e-05 | C92: =IF('DF raw data'!K97="","",'DF raw data'!K97) -> 0.000205841 | D92: =IF('DF raw data'!L97="","",'DF raw data'!L97) -> -6.01549e-06 | F92: -2.00162697e-05 | G92: 0.0002067672845 | H92: -6.042559705e-06 | J92: -0.0002325132393 | K92: -0.001867496279 | L92: 0.003194194482 | M92: 0.02583457629 | N92: 5.651640611e-05
A93: =IF('DF raw data'!I98="","",'DF raw data'!I98) -> -284.5 | B93: =IF('DF raw data'!J98="","",'DF raw data'!J98) -> -6.40007e-06 | C93: =IF('DF raw data'!K98="","",'DF raw data'!K98) -> 0.000200949 | D93: =IF('DF raw data'!L98="","",'DF raw data'!L98) -> -1.59719e-05 | F93: -6.428870315e-06 | G93: 0.0002018532705 | H93: -1.604377355e-05 | J93: -0.0002357276744 | K93: -0.001985360116 | L93: 0.003295121118 | M93: 0.02748213685 | N93: 6.197310147e-05
A94: =IF('DF raw data'!I99="","",'DF raw data'!I99) -> -284 | B94: =IF('DF raw data'!J99="","",'DF raw data'!J99) -> -1.39637e-05 | C94: =IF('DF raw data'!K99="","",'DF raw data'!K99) -> 0.000206256 | D94: =IF('DF raw data'!L99="","",'DF raw data'!L99) -> -1.18494e-05 | F94: -1.402653665e-05 | G94: 0.000207184152 | H94: -1.19027223e-05 | J94: -0.0002427409427 | K94: -0.002106730588 | L94: 0.003398713194 | M94: 0.02918149344 | N94: 6.777818874e-05
A95: =IF('DF raw data'!I100="","",'DF raw data'!I100) -> -283.5 | B95: =IF('DF raw data'!J100="","",'DF raw data'!J100) -> -1.31277e-05 | C95: =IF('DF raw data'!K100="","",'DF raw data'!K100) -> 0.000201315 | D95: =IF('DF raw data'!L100="","",'DF raw data'!L100) -> -1.65823e-05 | F95: -1.318677465e-05 | G95: 0.0002022209175 | H95: -1.665692035e-05 | J95: -0.0002493343301 | K95: -0.002231397753 | L95: 0.003499823652 | M95: 0.03093140527 | N95: 7.393365534e-05
A96: =IF('DF raw data'!I101="","",'DF raw data'!I101) -> -283 | B96: =IF('DF raw data'!J101="","",'DF raw data'!J101) -> -1.03765e-05 | C96: =IF('DF raw data'!K101="","",'DF raw data'!K101) -> 0.000190631 | D96: =IF('DF raw data'!L101="","",'DF raw data'!L101) -> -1.04035e-05 | F96: -1.042319425e-05 | G96: 0.0001914888395 | H96: -1.045031575e-05 | J96: -0.0002545459272 | K96: -0.002358670716 | L96: 0.003595568072 | M96: 0.0327291893 | N96: 8.043010704e-05
A97: =IF('DF raw data'!I102="","",'DF raw data'!I102) -> -282.5 | B97: =IF('DF raw data'!J102="","",'DF raw data'!J102) -> -1.44779e-05 | C97: =IF('DF raw data'!K102="","",'DF raw data'!K102) -> 0.0001957 | D97: =IF('DF raw data'!L102="","",'DF raw data'!L102) -> -9.58748e-06 | F97: -1.454305055e-05 | G97: 0.00019658065 | H97: -9.63062366e-06 | J97: -0.0002618174525 | K97: -0.002489579442 | L97: 0.003693858397 | M97: 0.0345761185 | N97: 8.728667616e-05
A98: =IF('DF raw data'!I103="","",'DF raw data'!I103) -> -282 | B98: =IF('DF raw data'!J103="","",'DF raw data'!J103) -> -1.06333e-05 | C98: =IF('DF raw data'!K103="","",'DF raw data'!K103) -> 0.000195299 | D98: =IF('DF raw data'!L103="","",'DF raw data'!L103) -> -9.56325e-06 | F98: -1.068114985e-05 | G98: 0.0001961778455 | H98: -9.606284625e-06 | J98: -0.0002671580274 | K98: -0.002623158456 | L98: 0.00379194732 | M98: 0.03647209216 | N98: 9.45117951e-05
A99: =IF('DF raw data'!I104="","",'DF raw data'!I104) -> -281.5 | B99: =IF('DF raw data'!J104="","",'DF raw data'!J104) -> -7.87423e-06 | C99: =IF('DF raw data'!K104="","",'DF raw data'!K104) -> 0.000200513 | D99: =IF('DF raw data'!L104="","",'DF raw data'!L104) -> -1.54493e-05 | F99: -7.909664035e-06 | G99: 0.0002014153085 | H99: -1.551882185e-05 | J99: -0.0002711128594 | K99: -0.002758714886 | L99: 0.003892654974 | M99: 0.03841841965 | N99: 0.0001021249276
A100: =IF('DF raw data'!I105="","",'DF raw data'!I105) -> -281 | B100: =IF('DF raw data'!J105="","",'DF raw data'!J105) -> -1.56293e-05 | C100: =IF('DF raw data'!K105="","",'DF raw data'!K105) -> 0.000203558 | D100: =IF('DF raw data'!L105="","",'DF raw data'!L105) -> -1.25632e-05 | F100: -1.569963185e-05 | G100: 0.000204474011 | H100: -1.26197344e-05 | J100: -0.0002789626753 | K100: -0.002898196223 | L100: 0.00399489198 | M100: 0.04041586564 | N100: 0.0001101434186
A101: =IF('DF raw data'!I106="","",'DF raw data'!I106) -> -280.5 | B101: =IF('DF raw data'!J106="","",'DF raw data'!J106) -> -1.08204e-05 | C101: =IF('DF raw data'!K106="","",'DF raw data'!K106) -> 0.00020407 | D101: =IF('DF raw data'!L106="","",'DF raw data'!L106) -> -1.72974e-05 | F101: -1.08690918e-05 | G101: 0.000204988315 | H101: -1.73752383e-05 | J101: -0.0002843972212 | K101: -0.003040394834 | L101: 0.004097386137 | M101: 0.04246455871 | N101: 0.0001185781461
A102: =IF('DF raw data'!I107="","",'DF raw data'!I107) -> -280 | B102: =IF('DF raw data'!J107="","",'DF raw data'!J107) -> -7.23785e-06 | C102: =IF('DF raw data'!K107="","",'DF raw data'!K107) -> 0.000204692 | D102: =IF('DF raw data'!L107="","",'DF raw data'!L107) -> -8.73462e-06 | F102: -7.270420325e-06 | G102: 0.000205613114 | H102: -8.77392579e-06 | J102: -0.0002880324314 | K102: -0.00318441105 | L102: 0.004200192694 | M102: 0.04456465506 | N102: 0.0001274404368
A103: =IF('DF raw data'!I108="","",'DF raw data'!I108) -> -279.5 | B103: =IF('DF raw data'!J108="","",'DF raw data'!J108) -> -1.68516e-05 | C103: =IF('DF raw data'!K108="","",'DF raw data'!K108) -> 0.000200686 | D103: =IF('DF raw data'!L108="","",'DF raw data'!L108) -> -5.13915e-06 | F103: -1.69274322e-05 | G103: 0.000201589087 | H103: -5.162276175e-06 | J103: -0.0002964961475 | K103: -0.003332659124 | L103: 0.004300987238 | M103: 0.04671514868 | N103: 0.0001367336374
A104: =IF('DF raw data'!I109="","",'DF raw data'!I109) -> -279 | B104: =IF('DF raw data'!J109="","",'DF raw data'!J109) -> -3.16396e-07 | C104: =IF('DF raw data'!K109="","",'DF raw data'!K109) -> 0.000207803 | D104: =IF('DF raw data'!L109="","",'DF raw data'!L109) -> -1.03887e-05 | F104: -3.17819782e-07 | G104: 0.0002087381135 | H104: -1.043544915e-05 | J104: -0.0002966550574 | K104: -0.003480986652 | L104: 0.004405356294 | M104: 0.04891782682 | N104: 0.0001464812215
A105: =IF('DF raw data'!I110="","",'DF raw data'!I110) -> -278.5 | B105: =IF('DF raw data'!J110="","",'DF raw data'!J110) -> -1.2037e-05 | C105: =IF('DF raw data'!K110="","",'DF raw data'!K110) -> 0.000207519 | D105: =IF('DF raw data'!L110="","",'DF raw data'!L110) -> -1.86425e-05 | F105: -1.20911665e-05 | G105: 0.0002084528355 | H105: -1.872639125e-05 | J105: -0.0003027006406 | K105: -0.003632336973 | L105: 0.004509582712 | M105: 0.05117261818 | N105: 0.0001566952035
A106: =IF('DF raw data'!I111="","",'DF raw data'!I111) -> -278 | B106: =IF('DF raw data'!J111="","",'DF raw data'!J111) -> -1.99864e-05 | C106: =IF('DF raw data'!K111="","",'DF raw data'!K111) -> 0.000202851 | D106: =IF('DF raw data'!L111="","",'DF raw data'!L111) -> -1.2714e-05 | F106: -2.00763388e-05 | G106: 0.0002037638295 | H106: -1.2771213e-05 | J106: -0.00031273881 | K106: -0.003788706378 | L106: 0.004611464627 | M106: 0.05347835049 | N106: 0.0001673769093
A107: =IF('DF raw data'!I112="","",'DF raw data'!I112) -> -277.5 | B107: =IF('DF raw data'!J112="","",'DF raw data'!J112) -> -1.93499e-05 | C107: =IF('DF raw data'!K112="","",'DF raw data'!K112) -> 0.000205603 | D107: =IF('DF raw data'!L112="","",'DF raw data'!L112) -> -5.87102e-06 | F107: -1.943697455e-05 | G107: 0.0002065282135 | H107: -5.89743959e-06 | J107: -0.0003224572973 | K107: -0.003949935026 | L107: 0.004714728734 | M107: 0.05583571486 | N107: 0.0001785432321
A108: =IF('DF raw data'!I113="","",'DF raw data'!I113) -> -277 | B108: =IF('DF raw data'!J113="","",'DF raw data'!J113) -> -1.18511e-05 | C108: =IF('DF raw data'!K113="","",'DF raw data'!K113) -> 0.000197865 | D108: =IF('DF raw data'!L113="","",'DF raw data'!L113) -> -9.18165e-06 | F108: -1.190442995e-05 | G108: 0.0001987553925 | H108: -9.222967425e-06 | J108: -0.0003284095123 | K108: -0.004114139782 | L108: 0.00481410643 | M108: 0.05824276807 | N108: 0.0001901849689
A109: =IF('DF raw data'!I114="","",'DF raw data'!I114) -> -276.5 | B109: =IF('DF raw data'!J114="","",'DF raw data'!J114) -> -9.41412e-06 | C109: =IF('DF raw data'!K114="","",'DF raw data'!K114) -> 0.000189994 | D109: =IF('DF raw data'!L114="","",'DF raw data'!L114) -> -1.21367e-05 | F109: -9.45648354e-06 | G109: 0.000190848973 | H109: -1.219131515e-05 | J109: -0.0003331377541 | K109: -0.004280708659 | L109: 0.004909530916 | M109: 0.06069753353 | N109: 0.0002022922062
A110: =IF('DF raw data'!I115="","",'DF raw data'!I115) -> -276 | B110: =IF('DF raw data'!J115="","",'DF raw data'!J115) -> -1.55665e-05 | C110: =IF('DF raw data'!K115="","",'DF raw data'!K115) -> 0.000196155 | D110: =IF('DF raw data'!L115="","",'DF raw data'!L115) -> -1.02886e-05 | F110: -1.563654925e-05 | G110: 0.0001970376975 | H110: -1.03348987e-05 | J110: -0.0003409560287 | K110: -0.004451186674 | L110: 0.005008049765 | M110: 0.06320155841 | N110: 0.0002148906129
A111: =IF('DF raw data'!I116="","",'DF raw data'!I116) -> -275.5 | B111: =IF('DF raw data'!J116="","",'DF raw data'!J116) -> -1.15257e-05 | C111: =IF('DF raw data'!K116="","",'DF raw data'!K116) -> 0.000201979 | D111: =IF('DF raw data'!L116="","",'DF raw data'!L116) -> -1.66871e-05 | F111: -1.157756565e-05 | G111: 0.0002028879055 | H111: -1.676219195e-05 | J111: -0.0003467448115 | K111: -0.004624559079 | L111: 0.005109493718 | M111: 0.06575630527 | N111: 0.0002280041919
A112: =IF('DF raw data'!I117="","",'DF raw data'!I117) -> -275 | B112: =IF('DF raw data'!J117="","",'DF raw data'!J117) -> -2.76046e-05 | C112: =IF('DF raw data'!K117="","",'DF raw data'!K117) -> 0.000200139 | D112: =IF('DF raw data'!L117="","",'DF raw data'!L117) -> -2.31584e-05 | F112: -2.77288207e-05 | G112: 0.0002010396255 | H112: -2.32626128e-05 | J112: -0.0003606092219 | K112: -0.00480486369 | L112: 0.005210013531 | M112: 0.06836131204 | N112: 0.0002416413319
A113: =IF('DF raw data'!I118="","",'DF raw data'!I118) -> -274.5 | B113: =IF('DF raw data'!J118="","",'DF raw data'!J118) -> -1.78084e-05 | C113: =IF('DF raw data'!K118="","",'DF raw data'!K118) -> 0.00019042 | D113: =IF('DF raw data'!L118="","",'DF raw data'!L118) -> -1.15801e-05 | F113: -1.78885378e-05 | G113: 0.00019127689 | H113: -1.163221045e-05 | J113: -0.0003695534908 | K113: -0.004989640436 | L113: 0.005305651976 | M113: 0.07101413803 | N113: 0.0002557845883
A114: =IF('DF raw data'!I119="","",'DF raw data'!I119) -> -274 | B114: =IF('DF raw data'!J119="","",'DF raw data'!J119) -> -2.23583e-05 | C114: =IF('DF raw data'!K119="","",'DF raw data'!K119) -> 0.000192978 | D114: =IF('DF raw data'!L119="","",'DF raw data'!L119) -> -1.10116e-05 | F114: -2.245891235e-05 | G114: 0.000193846401 | H114: -1.10611522e-05 | J114: -0.0003807829469 | K114: -0.005180031909 | L114: 0.005402575176 | M114: 0.07371542562 | N114: 0.0002704509953
A115: =IF('DF raw data'!I120="","",'DF raw data'!I120) -> -273.5 | B115: =IF('DF raw data'!J120="","",'DF raw data'!J120) -> -2.23591e-05 | C115: =IF('DF raw data'!K120="","",'DF raw data'!K120) -> 0.000202771 | D115: =IF('DF raw data'!L120="","",'DF raw data'!L120) -> -9.88017e-06 | F115: -2.245971595e-05 | G115: 0.0002036834695 | H115: -9.924630765e-06 | J115: -0.0003920128049 | K115: -0.005376038312 | L115: 0.005504416911 | M115: 0.07646763407 | N115: 0.0002856771351
A116: =IF('DF raw data'!I121="","",'DF raw data'!I121) -> -273 | B116: =IF('DF raw data'!J121="","",'DF raw data'!J121) -> -1.03108e-05 | C116: =IF('DF raw data'!K121="","",'DF raw data'!K121) -> 0.000191642 | D116: =IF('DF raw data'!L121="","",'DF raw data'!L121) -> -1.25641e-05 | F116: -1.03571986e-05 | G116: 0.000192504389 | H116: -1.262063845e-05 | J116: -0.0003971914042 | K116: -0.005574634014 | L116: 0.005600669105 | M116: 0.07926796862 | N116: 0.0003014397629
A117: =IF('DF raw data'!I122="","",'DF raw data'!I122) -> -272.5 | B117: =IF('DF raw data'!J122="","",'DF raw data'!J122) -> -1.69749e-05 | C117: =IF('DF raw data'!K122="","",'DF raw data'!K122) -> 0.000186059 | D117: =IF('DF raw data'!L122="","",'DF raw data'!L122) -> -1.26713e-05 | F117: -1.705128705e-05 | G117: 0.0001868962655 | H117: -1.272832085e-05 | J117: -0.0004057170477 | K117: -0.005777492538 | L117: 0.005694117238 | M117: 0.08211502724 | N117: 0.0003177335516
A118: =IF('DF raw data'!I123="","",'DF raw data'!I123) -> -272 | B118: =IF('DF raw data'!J123="","",'DF raw data'!J123) -> -3.12588e-05 | C118: =IF('DF raw data'!K123="","",'DF raw data'!K123) -> 0.000188133 | D118: =IF('DF raw data'!L123="","",'DF raw data'!L123) -> -2.02203e-05 | F118: -3.13994646e-05 | G118: 0.0001889795985 | H118: -2.031129135e-05 | J118: -0.00042141678 | K118: -0.005988200928 | L118: 0.005788607037 | M118: 0.08500933076 | N118: 0.0003345763333
A119: =IF('DF raw data'!I124="","",'DF raw data'!I124) -> -271.5 | B119: =IF('DF raw data'!J124="","",'DF raw data'!J124) -> -2.15945e-05 | C119: =IF('DF raw data'!K124="","",'DF raw data'!K124) -> 0.00020085 | D119: =IF('DF raw data'!L124="","",'DF raw data'!L124) -> -2.74432e-06 | F119: -2.169167525e-05 | G119: 0.000201753825 | H119: -2.75666944e-06 | J119: -0.0004322626177 | K119: -0.006204332236 | L119: 0.00588948395 | M119: 0.08795407274 | N119: 0.0003520127694
A120: =IF('DF raw data'!I125="","",'DF raw data'!I125) -> -271 | B120: =IF('DF raw data'!J125="","",'DF raw data'!J125) -> -1.36422e-05 | C120: =IF('DF raw data'!K125="","",'DF raw data'!K125) -> 0.000194635 | D120: =IF('DF raw data'!L125="","",'DF raw data'!L125) -> -1.35859e-05 | F120: -1.37035899e-05 | G120: 0.0001955108575 | H120: -1.364703655e-05 | J120: -0.0004391144126 | K120: -0.006423889443 | L120: 0.005987239379 | M120: 0.09094769243 | N120: 0.0003700326979
A121: =IF('DF raw data'!I126="","",'DF raw data'!I126) -> -270.5 | B121: =IF('DF raw data'!J126="","",'DF raw data'!J126) -> -2.07605e-05 | C121: =IF('DF raw data'!K126="","",'DF raw data'!K126) -> 0.000194893 | D121: =IF('DF raw data'!L126="","",'DF raw data'!L126) -> -4.5837e-06 | F121: -2.085392225e-05 | G121: 0.0001957700185 | H121: -4.60432665e-06 | J121: -0.0004495413737 | K121: -0.00664866013 | L121: 0.006085124388 | M121: 0.09399025462 | N121: 0.000388648111
A122: =IF('DF raw data'!I127="","",'DF raw data'!I127) -> -270 | B122: =IF('DF raw data'!J127="","",'DF raw data'!J127) -> -5.57261e-06 | C122: =IF('DF raw data'!K127="","",'DF raw data'!K127) -> 0.000189452 | D122: =IF('DF raw data'!L127="","",'DF raw data'!L127) -> -7.30823e-06 | F122: -5.597686745e-06 | G122: 0.000190304534 | H122: -7.341117035e-06 | J122: -0.0004523402171 | K122: -0.006874830238 | L122: 0.006180276655 | M122: 0.09708039295 | N122: 0.0004078483266
A123: =IF('DF raw data'!I128="","",'DF raw data'!I128) -> -269.5 | B123: =IF('DF raw data'!J128="","",'DF raw data'!J128) -> -5.75486e-06 | C123: =IF('DF raw data'!K128="","",'DF raw data'!K128) -> 0.000193769 | D123: =IF('DF raw data'!L128="","",'DF raw data'!L128) -> -2.28892e-05 | F123: -5.78075687e-06 | G123: 0.0001946409605 | H123: -2.29922014e-05 | J123: -0.0004552305955 | K123: -0.007102445536 | L123: 0.006277597135 | M123: 0.1002191915 | N123: 0.0004276560569
A124: =IF('DF raw data'!I129="","",'DF raw data'!I129) -> -269 | B124: =IF('DF raw data'!J129="","",'DF raw data'!J129) -> -3.71293e-06 | C124: =IF('DF raw data'!K129="","",'DF raw data'!K129) -> 0.000193556 | D124: =IF('DF raw data'!L129="","",'DF raw data'!L129) -> -9.93488e-06 | F124: -3.729638185e-06 | G124: 0.000194427002 | H124: -9.97958696e-06 | J124: -0.0004570954146 | K124: -0.007330993243 | L124: 0.006374810636 | M124: 0.1034065968 | N124: 0.0004480796304
A125: =IF('DF raw data'!I130="","",'DF raw data'!I130) -> -268.5 | B125: =IF('DF raw data'!J130="","",'DF raw data'!J130) -> -1.19737e-05 | C125: =IF('DF raw data'!K130="","",'DF raw data'!K130) -> 0.000198452 | D125: =IF('DF raw data'!L130="","",'DF raw data'!L130) -> -1.76893e-05 | F125: -1.202758165e-05 | G125: 0.000199345034 | H125: -1.776890185e-05 | J125: -0.0004631092055 | K125: -0.007562547846 | L125: 0.006474483153 | M125: 0.1066438384 | N125: 0.0004691463315
A126: =IF('DF raw data'!I131="","",'DF raw data'!I131) -> -268 | B126: =IF('DF raw data'!J131="","",'DF raw data'!J131) -> -1.47187e-05 | C126: =IF('DF raw data'!K131="","",'DF raw data'!K131) -> 0.000188571 | D126: =IF('DF raw data'!L131="","",'DF raw data'!L131) -> -3.339e-05 | F126: -1.478493415e-05 | G126: 0.0001894195695 | H126: -3.3540255e-05 | J126: -0.0004705016725 | K126: -0.007797798682 | L126: 0.006569192938 | M126: 0.1099284349 | N126: 0.0004908341653
A127: =IF('DF raw data'!I132="","",'DF raw data'!I132) -> -267.5 | B127: =IF('DF raw data'!J132="","",'DF raw data'!J132) -> -2.62023e-05 | C127: =IF('DF raw data'!K132="","",'DF raw data'!K132) -> 0.000194913 | D127: =IF('DF raw data'!L132="","",'DF raw data'!L132) -> -1.1614e-05 | F127: -2.632021035e-05 | G127: 0.0001957901085 | H127: -1.1666263e-05 | J127: -0.0004836617777 | K127: -0.008039629571 | L127: 0.006667087992 | M127: 0.1132619789 | N127: 0.0005131761608
A128: =IF('DF raw data'!I133="","",'DF raw data'!I133) -> -267 | B128: =IF('DF raw data'!J133="","",'DF raw data'!J133) -> -2.26834e-05 | C128: =IF('DF raw data'!K133="","",'DF raw data'!K133) -> 0.000197479 | D128: =IF('DF raw data'!L133="","",'DF raw data'!L133) -> -3.42059e-06 | F128: =(1-$G$1*($B$49-$G$2))*B128 -> -2.27854753e-05 | G128: 0.0001983676555 | H128: -3.435982655e-06 | J128: =F128*$G$3+J127 -> -0.0004950545154 | K128: =J128*$G$3+K127 -> -0.008287156829 | L128: =G128*$G$3+L127 -> 0.00676627182 | M128: =L128*$G$3+M127 -> 0.1166451148 | N128: =(J128^2+L128^2)*$G$3+N127 -> 0.0005361899175
A129: =IF('DF raw data'!I134="","",'DF raw data'!I134) -> -266.5 | B129: =IF('DF raw data'!J134="","",'DF raw data'!J134) -> -2.20343e-05 | C129: =IF('DF raw data'!K134="","",'DF raw data'!K134) -> 0.000203132 | D129: =IF('DF raw data'!L134="","",'DF raw data'!L134) -> -1.64666e-05 | F129: -2.213345435e-05 | G129: 0.000204046094 | H129: -1.65406997e-05 | J129: -0.0005061212425 | K129: -0.00854021745 | L129: 0.006868294867 | M129: 0.1200792622 | N129: 0.000559904734
A130: =IF('DF raw data'!I135="","",'DF raw data'!I135) -> -266 | B130: =IF('DF raw data'!J135="","",'DF raw data'!J135) -> -2.38852e-05 | C130: =IF('DF raw data'!K135="","",'DF raw data'!K135) -> 0.000194906 | D130: =IF('DF raw data'!L135="","",'DF raw data'!L135) -> -2.75303e-05 | F130: -2.39926834e-05 | G130: 0.000195783077 | H130: -2.765418635e-05 | J130: -0.0005181175842 | K130: -0.008799276242 | L130: 0.006966186405 | M130: 0.1235623554 | N130: 0.0005843028335
A131: =IF('DF raw data'!I136="","",'DF raw data'!I136) -> -265.5 | B131: =IF('DF raw data'!J136="","",'DF raw data'!J136) -> -1.89532e-07 | C131: =IF('DF raw data'!K136="","",'DF raw data'!K136) -> 0.000193322 | D131: =IF('DF raw data'!L136="","",'DF raw data'!L136) -> -8.41414e-06 | F131: -1.90384894e-07 | G131: 0.000194191949 | H131: -8.45200363e-06 | J131: -0.0005182127767 | K131: -0.009058382631 | L131: 0.00706328238 | M131: 0.1270939966 | N131: 0.0006093820847
A132: =IF('DF raw data'!I137="","",'DF raw data'!I137) -> -265 | B132: =IF('DF raw data'!J137="","",'DF raw data'!J137) -> -2.98508e-05 | C132: =IF('DF raw data'!K137="","",'DF raw data'!K137) -> 0.000186841 | D132: =IF('DF raw data'!L137="","",'DF raw data'!L137) -> -1.68643e-05 | F132: -2.99851286e-05 | G132: 0.0001876817845 | H132: -1.694018935e-05 | J132: -0.000533205341 | K132: -0.009324985301 | L132: 0.007157123272 | M132: 0.1306725582 | N132: 0.0006351364454
A133: =IF('DF raw data'!I138="","",'DF raw data'!I138) -> -264.5 | B133: =IF('DF raw data'!J138="","",'DF raw data'!J138) -> -1.10106e-05 | C133: =IF('DF raw data'!K138="","",'DF raw data'!K138) -> 0.000191947 | D133: =IF('DF raw data'!L138="","",'DF raw data'!L138) -> -2.07562e-05 | F133: -1.10601477e-05 | G133: 0.0001928107615 | H133: -2.08496029e-05 | J133: -0.0005387354148 | K133: -0.009594353008 | L133: 0.007253528653 | M133: 0.1342993226 | N133: 0.0006615884023
A134: =IF('DF raw data'!I139="","",'DF raw data'!I139) -> -264 | B134: =IF('DF raw data'!J139="","",'DF raw data'!J139) -> -3.09948e-05 | C134: =IF('DF raw data'!K139="","",'DF raw data'!K139) -> 0.000197366 | D134: =IF('DF raw data'!L139="","",'DF raw data'!L139) -> -3.12819e-05 | F134: -3.11342766e-05 | G134: 0.000198254147 | H134: -3.142266855e-05 | J134: -0.0005543025531 | K134: -0.009871504285 | L134: 0.007352655726 | M134: 0.1379756504 | N134: 0.0006887728011
A135: =IF('DF raw data'!I140="","",'DF raw data'!I140) -> -263.5 | B135: =IF('DF raw data'!J140="","",'DF raw data'!J140) -> -1.24812e-05 | C135: =IF('DF raw data'!K140="","",'DF raw data'!K140) -> 0.000208461 | D135: =IF('DF raw data'!L140="","",'DF raw data'!L140) -> -2.57895e-05 | F135: -1.25373654e-05 | G135: 0.0002093990745 | H135: -2.590555275e-05 | J135: -0.0005605712358 | K135: -0.0101517899 | L135: 0.007457355264 | M135: 0.1417043281 | N135: 0.0007167359949
A136: =IF('DF raw data'!I141="","",'DF raw data'!I141) -> -263 | B136: =IF('DF raw data'!J141="","",'DF raw data'!J141) -> -2.39512e-05 | C136: =IF('DF raw data'!K141="","",'DF raw data'!K141) -> 0.000210254 | D136: =IF('DF raw data'!L141="","",'DF raw data'!L141) -> -2.36926e-05 | F136: -2.40589804e-05 | G136: 0.000211200143 | H136: -2.37992167e-05 | J136: -0.000572600726 | K136: -0.01043809027 | L136: 0.007562955335 | M136: 0.1454858057 | N136: 0.0007454990774
A137: =IF('DF raw data'!I142="","",'DF raw data'!I142) -> -262.5 | B137: =IF('DF raw data'!J142="","",'DF raw data'!J142) -> -1.5243e-05 | C137: =IF('DF raw data'!K142="","",'DF raw data'!K142) -> 0.000204524 | D137: =IF('DF raw data'!L142="","",'DF raw data'!L142) -> -1.58839e-05 | F137: -1.53115935e-05 | G137: 0.000205444358 | H137: -1.595537755e-05 | J137: -0.0005802565228 | K137: -0.01072821853 | L137: 0.007665677514 | M137: 0.1493186445 | N137: 0.0007750487321
A138: =IF('DF raw data'!I143="","",'DF raw data'!I143) -> -262 | B138: =IF('DF raw data'!J143="","",'DF raw data'!J143) -> -3.64563e-05 | C138: =IF('DF raw data'!K143="","",'DF raw data'!K143) -> 0.000196211 | D138: =IF('DF raw data'!L143="","",'DF raw data'!L143) -> -7.16681e-06 | F138: -3.662035335e-05 | G138: 0.0001970939495 | H138: -7.199060645e-06 | J138: -0.0005985666994 | K138: -0.01102750188 | L138: 0.007764224489 | M138: 0.1532007567 | N138: 0.0008053694641
A139: =IF('DF raw data'!I144="","",'DF raw data'!I144) -> -261.5 | B139: =IF('DF raw data'!J144="","",'DF raw data'!J144) -> -9.92233e-06 | C139: =IF('DF raw data'!K144="","",'DF raw data'!K144) -> 0.000193524 | D139: =IF('DF raw data'!L144="","",'DF raw data'!L144) -> -1.92704e-05 | F139: -9.966980485e-06 | G139: 0.000194394858 | H139: -1.93571168e-05 | J139: -0.0006035501897 | K139: -0.01132927697 | L139: 0.007861421918 | M139: 0.1571314677 | N139: 0.0008364525778
A140: =IF('DF raw data'!I145="","",'DF raw data'!I145) -> -261 | B140: =IF('DF raw data'!J145="","",'DF raw data'!J145) -> -2.08196e-05 | C140: =IF('DF raw data'!K145="","",'DF raw data'!K145) -> 0.0001822 | D140: =IF('DF raw data'!L145="","",'DF raw data'!L145) -> -1.10014e-05 | F140: -2.09132882e-05 | G140: 0.0001830199 | H140: -1.10509063e-05 | J140: -0.0006140068338 | K140: -0.01163628039 | L140: 0.007952931868 | M140: 0.1611079336 | N140: 0.0008682656427
A141: =IF('DF raw data'!I146="","",'DF raw data'!I146) -> -260.5 | B141: =IF('DF raw data'!J146="","",'DF raw data'!J146) -> -1.22378e-05 | C141: =IF('DF raw data'!K146="","",'DF raw data'!K146) -> 0.000177237 | D141: =IF('DF raw data'!L146="","",'DF raw data'!L146) -> -6.14224e-06 | F141: -1.22928701e-05 | G141: 0.0001780345665 | H141: -6.16988008e-06 | J141: -0.0006201532688 | K141: -0.01194635702 | L141: 0.008041949151 | M141: 0.1651289082 | N141: 0.0009007944108
A142: =IF('DF raw data'!I147="","",'DF raw data'!I147) -> -260 | B142: =IF('DF raw data'!J147="","",'DF raw data'!J147) -> -1.88349e-05 | C142: =IF('DF raw data'!K147="","",'DF raw data'!K147) -> 0.000180287 | D142: =IF('DF raw data'!L147="","",'DF raw data'!L147) -> -8.39573e-06 | F142: -1.891965705e-05 | G142: 0.0001810982915 | H142: -8.433510785e-06 | J142: -0.0006296130974 | K142: -0.01226116357 | L142: 0.008132498297 | M142: 0.1691951574 | N142: 0.0009340613814
A143: =IF('DF raw data'!I148="","",'DF raw data'!I148) -> -259.5 | B143: =IF('DF raw data'!J148="","",'DF raw data'!J148) -> -6.087e-06 | C143: =IF('DF raw data'!K148="","",'DF raw data'!K148) -> 0.000180507 | D143: =IF('DF raw data'!L148="","",'DF raw data'!L148) -> -5.23873e-06 | F143: -6.1143915e-06 | G143: 0.0001813192815 | H143: -5.262304285e-06 | J143: -0.0006326702931 | K143: -0.01257749872 | L143: 0.008223157938 | M143: 0.1733067363 | N143: 0.0009680716805
A144: =IF('DF raw data'!I149="","",'DF raw data'!I149) -> -259 | B144: =IF('DF raw data'!J149="","",'DF raw data'!J149) -> -2.47282e-05 | C144: =IF('DF raw data'!K149="","",'DF raw data'!K149) -> 0.000190121 | D144: =IF('DF raw data'!L149="","",'DF raw data'!L149) -> -1.06432e-05 | F144: -2.48394769e-05 | G144: 0.0001909765445 | H144: -1.06910944e-05 | J144: -0.0006450900316 | K144: -0.01290004373 | L144: 0.00831864621 | M144: 0.1774660594 | N144: 0.001002879688
A145: =IF('DF raw data'!I150="","",'DF raw data'!I150) -> -258.5 | B145: =IF('DF raw data'!J150="","",'DF raw data'!J150) -> -1.14561e-06 | C145: =IF('DF raw data'!K150="","",'DF raw data'!K150) -> 0.00019032 | D145: =IF('DF raw data'!L150="","",'DF raw data'!L150) -> -1.64021e-05 | F145: -1.150765245e-06 | G145: 0.00019117644 | H145: -1.647590945e-05 | J145: -0.0006456654142 | K145: -0.01322287644 | L145: 0.00841423443 | M145: 0.1816731766 | N145: 0.001038487801
A146: =IF('DF raw data'!I151="","",'DF raw data'!I151) -> -258 | B146: =IF('DF raw data'!J151="","",'DF raw data'!J151) -> -1.40866e-05 | C146: =IF('DF raw data'!K151="","",'DF raw data'!K151) -> 0.000184193 | D146: =IF('DF raw data'!L151="","",'DF raw data'!L151) -> -1.93529e-05 | F146: -1.41499897e-05 | G146: 0.0001850218685 | H146: -1.943998805e-05 | J146: -0.000652740409 | K146: -0.01354924665 | L146: 0.008506745364 | M146: 0.1859265493 | N146: 0.001074883194
A147: =IF('DF raw data'!I152="","",'DF raw data'!I152) -> -257.5 | B147: =IF('DF raw data'!J152="","",'DF raw data'!J152) -> -2.29709e-06 | C147: =IF('DF raw data'!K152="","",'DF raw data'!K152) -> 0.000179833 | D147: =IF('DF raw data'!L152="","",'DF raw data'!L152) -> -1.92891e-05 | F147: -2.307426905e-06 | G147: 0.0001806422485 | H147: -1.937590095e-05 | J147: -0.0006538941225 | K147: -0.01387619371 | L147: 0.008597066488 | M147: 0.1902250826 | N147: 0.001112051759
A148: =IF('DF raw data'!I153="","",'DF raw data'!I153) -> -257 | B148: =IF('DF raw data'!J153="","",'DF raw data'!J153) -> -5.08363e-07 | C148: =IF('DF raw data'!K153="","",'DF raw data'!K153) -> 0.000182895 | D148: =IF('DF raw data'!L153="","",'DF raw data'!L153) -> -1.09479e-05 | F148: -5.106506335e-07 | G148: 0.0001837180275 | H148: -1.099716555e-05 | J148: -0.0006541494478 | K148: -0.01420326843 | L148: 0.008688925502 | M148: 0.1945695453 | N148: 0.001150014428
A149: =IF('DF raw data'!I154="","",'DF raw data'!I154) -> -256.5 | B149: =IF('DF raw data'!J154="","",'DF raw data'!J154) -> -2.74732e-06 | C149: =IF('DF raw data'!K154="","",'DF raw data'!K154) -> 0.000188001 | D149: =IF('DF raw data'!L154="","",'DF raw data'!L154) -> -1.6852e-05 | F149: -2.75968294e-06 | G149: 0.0001888470045 | H149: -1.6927834e-05 | J149: -0.0006555292893 | K149: -0.01453103308 | L149: 0.008783349005 | M149: 0.1989612198 | N149: 0.001188802897
A150: =IF('DF raw data'!I155="","",'DF raw data'!I155) -> -256 | B150: =IF('DF raw data'!J155="","",'DF raw data'!J155) -> -1.57614e-05 | C150: =IF('DF raw data'!K155="","",'DF raw data'!K155) -> 0.000184689 | D150: =IF('DF raw data'!L155="","",'DF raw data'!L155) -> -5.444e-06 | F150: -1.58323263e-05 | G150: 0.0001855201005 | H150: -5.468498e-06 | J150: -0.0006634454524 | K150: -0.0148627558 | L150: 0.008876109055 | M150: 0.2033992744 | N150: 0.001228415633
A151: =IF('DF raw data'!I156="","",'DF raw data'!I156) -> -255.5 | B151: =IF('DF raw data'!J156="","",'DF raw data'!J156) -> -1.29317e-05 | C151: =IF('DF raw data'!K156="","",'DF raw data'!K156) -> 0.000177866 | D151: =IF('DF raw data'!L156="","",'DF raw data'!L156) -> -2.2938e-05 | F151: -1.298989265e-05 | G151: 0.000178666397 | H151: -2.3041221e-05 | J151: -0.0006699403988 | K151: -0.015197726 | L151: 0.008965442253 | M151: 0.2078819955 | N151: 0.001268829621
A152: =IF('DF raw data'!I157="","",'DF raw data'!I157) -> -255 | B152: =IF('DF raw data'!J157="","",'DF raw data'!J157) -> -3.21588e-05 | C152: =IF('DF raw data'!K157="","",'DF raw data'!K157) -> 0.000180925 | D152: =IF('DF raw data'!L157="","",'DF raw data'!L157) -> -1.35205e-05 | F152: -3.23035146e-05 | G152: 0.0001817391625 | H152: -1.358134225e-05 | J152: -0.0006860921561 | K152: -0.01554077208 | L152: 0.009056311834 | M152: 0.2124101514 | N152: 0.001310073374
A153: =IF('DF raw data'!I158="","",'DF raw data'!I158) -> -254.5 | B153: =IF('DF raw data'!J158="","",'DF raw data'!J158) -> -8.51172e-06 | C153: =IF('DF raw data'!K158="","",'DF raw data'!K158) -> 0.000184799 | D153: =IF('DF raw data'!L158="","",'DF raw data'!L158) -> -2.09302e-05 | F153: -8.55002274e-06 | G153: 0.0001856305955 | H153: -2.10243859e-05 | J153: -0.0006903671674 | K153: -0.01588595566 | L153: 0.009149127132 | M153: 0.216984715 | N153: 0.001352164941
A154: =IF('DF raw data'!I159="","",'DF raw data'!I159) -> -254 | B154: =IF('DF raw data'!J159="","",'DF raw data'!J159) -> -1.33927e-05 | C154: =IF('DF raw data'!K159="","",'DF raw data'!K159) -> 0.000186099 | D154: =IF('DF raw data'!L159="","",'DF raw data'!L159) -> -2.30319e-06 | F154: -1.345296715e-05 | G154: 0.0001869364455 | H154: -2.313554355e-06 | J154: -0.000697093651 | K154: -0.01623450249 | L154: 0.009242595355 | M154: 0.2216060126 | N154: 0.001395120695
A155: =IF('DF raw data'!I160="","",'DF raw data'!I160) -> -253.5 | B155: =IF('DF raw data'!J160="","",'DF raw data'!J160) -> -4.67093e-06 | C155: =IF('DF raw data'!K160="","",'DF raw data'!K160) -> 0.000183169 | D155: =IF('DF raw data'!L160="","",'DF raw data'!L160) -> -1.48074e-05 | F155: -4.691949185e-06 | G155: 0.0001839932605 | H155: -1.48740333e-05 | J155: -0.0006994396256 | K155: -0.0165842223 | L155: 0.009334591985 | M155: 0.2262733086 | N155: 0.001438932607
A156: =IF('DF raw data'!I161="","",'DF raw data'!I161) -> -253 | B156: =IF('DF raw data'!J161="","",'DF raw data'!J161) -> -2.20381e-05 | C156: =IF('DF raw data'!K161="","",'DF raw data'!K161) -> 0.000177536 | D156: =IF('DF raw data'!L161="","",'DF raw data'!L161) -> -8.8969e-06 | F156: -2.213727145e-05 | G156: 0.000178334912 | H156: -8.93693605e-06 | J156: -0.0007105082613 | K156: -0.01693947643 | L156: 0.009423759441 | M156: 0.2309851884 | N156: 0.001483588639
A157: =IF('DF raw data'!I162="","",'DF raw data'!I162) -> -252.5 | B157: =IF('DF raw data'!J162="","",'DF raw data'!J162) -> -3.89739e-06 | C157: =IF('DF raw data'!K162="","",'DF raw data'!K162) -> 0.000179641 | D157: =IF('DF raw data'!L162="","",'DF raw data'!L162) -> -2.19812e-05 | F157: -3.914928255e-06 | G157: 0.0001804493845 | H157: -2.20801154e-05 | J157: -0.0007124657254 | K157: -0.01729570929 | L157: 0.009513984133 | M157: 0.2357421804 | N157: 0.00152910039
A158: =IF('DF raw data'!I163="","",'DF raw data'!I163) -> -252 | B158: =IF('DF raw data'!J163="","",'DF raw data'!J163) -> -1.83839e-05 | C158: =IF('DF raw data'!K163="","",'DF raw data'!K163) -> 0.000179385 | D158: =IF('DF raw data'!L163="","",'DF raw data'!L163) -> -1.2143e-05 | F158: -1.846662755e-05 | G158: 0.0001801922325 | H158: -1.21976435e-05 | J158: -0.0007216990392 | K158: -0.01765655881 | L158: 0.00960408025 | M158: 0.2405442205 | N158: 0.001575479993
A159: =IF('DF raw data'!I164="","",'DF raw data'!I164) -> -251.5 | B159: =IF('DF raw data'!J164="","",'DF raw data'!J164) -> -1.20376e-05 | C159: =IF('DF raw data'!K164="","",'DF raw data'!K164) -> 0.000184199 | D159: =IF('DF raw data'!L164="","",'DF raw data'!L164) -> -1.86804e-05 | F159: -1.20917692e-05 | G159: 0.0001850278955 | H159: -1.87644618e-05 | J159: -0.0007277449238 | K159: -0.01802043128 | L159: 0.009696594198 | M159: 0.2453925176 | N159: 0.001622756769
A160: =IF('DF raw data'!I165="","",'DF raw data'!I165) -> -251 | B160: =IF('DF raw data'!J165="","",'DF raw data'!J165) -> -2.21107e-05 | C160: =IF('DF raw data'!K165="","",'DF raw data'!K165) -> 0.000193378 | D160: =IF('DF raw data'!L165="","",'DF raw data'!L165) -> 4.65921e-06 | F160: -2.221019815e-05 | G160: 0.000194248201 | H160: 4.680176445e-06 | J160: -0.0007388500229 | K160: -0.01838985629 | L160: 0.009793718298 | M160: 0.2502893768 | N160: 0.001670988178
A161: =IF('DF raw data'!I166="","",'DF raw data'!I166) -> -250.5 | B161: =IF('DF raw data'!J166="","",'DF raw data'!J166) -> -1.00618e-05 | C161: =IF('DF raw data'!K166="","",'DF raw data'!K166) -> 0.000193072 | D161: =IF('DF raw data'!L166="","",'DF raw data'!L166) -> -2.19189e-06 | F161: -1.01070781e-05 | G161: 0.000193940824 | H161: -2.201753505e-06 | J161: -0.0007439035619 | K161: -0.01876180807 | L161: 0.00989068871 | M161: 0.2552347211 | N161: 0.001720177735
A162: =IF('DF raw data'!I167="","",'DF raw data'!I167) -> -250 | B162: =IF('DF raw data'!J167="","",'DF raw data'!J167) -> -1.02504e-05 | C162: =IF('DF raw data'!K167="","",'DF raw data'!K167) -> 0.000189302 | D162: =IF('DF raw data'!L167="","",'DF raw data'!L167) -> -6.23961e-06 | F162: -1.02965268e-05 | G162: 0.000190153859 | H162: -6.267688245e-06 | J162: -0.0007490518253 | K162: -0.01913633398 | L162: 0.00998576564 | M162: 0.260227604 | N162: 0.001770316032
A163: =IF('DF raw data'!I168="","",'DF raw data'!I168) -> -249.5 | B163: =IF('DF raw data'!J168="","",'DF raw data'!J168) -> 2.05925e-06 | C163: =IF('DF raw data'!K168="","",'DF raw data'!K168) -> 0.000179475 | D163: =IF('DF raw data'!L168="","",'DF raw data'!L168) -> -1.80749e-05 | F163: 2.068516625e-06 | G163: 0.0001802826375 | H163: -1.815623705e-05 | J163: -0.000748017567 | K163: -0.01951034276 | L163: 0.01007590696 | M163: 0.2652655574 | N163: 0.001821357748
A164: =IF('DF raw data'!I169="","",'DF raw data'!I169) -> -249 | B164: =IF('DF raw data'!J169="","",'DF raw data'!J169) -> -1.35808e-05 | C164: =IF('DF raw data'!K169="","",'DF raw data'!K169) -> 0.000179447 | D164: =IF('DF raw data'!L169="","",'DF raw data'!L169) -> -8.07102e-06 | F164: -1.36419136e-05 | G164: 0.0001802545115 | H164: -8.10733959e-06 | J164: -0.0007548385238 | K164: -0.01988776203 | L164: 0.01016603421 | M164: 0.2703485746 | N164: 0.001873316765
A165: =IF('DF raw data'!I170="","",'DF raw data'!I170) -> -248.5 | B165: =IF('DF raw data'!J170="","",'DF raw data'!J170) -> -1.32583e-05 | C165: =IF('DF raw data'!K170="","",'DF raw data'!K170) -> 0.000179632 | D165: =IF('DF raw data'!L170="","",'DF raw data'!L170) -> -1.38542e-05 | F165: -1.331796235e-05 | G165: 0.000180440344 | H165: -1.39165439e-05 | J165: -0.000761497505 | K165: -0.02026851078 | L165: 0.01025625439 | M165: 0.2754767017 | N165: 0.001926202081
A166: =IF('DF raw data'!I171="","",'DF raw data'!I171) -> -248 | B166: =IF('DF raw data'!J171="","",'DF raw data'!J171) -> -1.69092e-05 | C166: =IF('DF raw data'!K171="","",'DF raw data'!K171) -> 0.000182327 | D166: =IF('DF raw data'!L171="","",'DF raw data'!L171) -> -1.33877e-05 | F166: -1.69852914e-05 | G166: 0.0001831474715 | H166: -1.344794465e-05 | J166: -0.0007699901507 | K166: -0.02065350585 | L166: 0.01034782812 | M166: 0.2806506158 | N166: 0.001980037297
A167: =IF('DF raw data'!I172="","",'DF raw data'!I172) -> -247.5 | B167: =IF('DF raw data'!J172="","",'DF raw data'!J172) -> -8.89953e-06 | C167: =IF('DF raw data'!K172="","",'DF raw data'!K172) -> 0.000183167 | D167: =IF('DF raw data'!L172="","",'DF raw data'!L172) -> -1.58807e-05 | F167: -8.939577885e-06 | G167: 0.0001839912515 | H167: -1.595216315e-05 | J167: -0.0007744599396 | K167: -0.02104073582 | L167: 0.01043982375 | M167: 0.2858705277 | N167: 0.002034832151
A168: =IF('DF raw data'!I173="","",'DF raw data'!I173) -> -247 | B168: =IF('DF raw data'!J173="","",'DF raw data'!J173) -> -2.50461e-05 | C168: =IF('DF raw data'!K173="","",'DF raw data'!K173) -> 0.000180647 | D168: =IF('DF raw data'!L173="","",'DF raw data'!L173) -> -1.41623e-05 | F168: -2.515880745e-05 | G168: 0.0001814599115 | H168: -1.422603035e-05 | J168: -0.0007870393434 | K168: -0.0214342555 | L168: 0.0105305537 | M168: 0.2911358045 | N168: 0.002090588147
A169: =IF('DF raw data'!I174="","",'DF raw data'!I174) -> -246.5 | B169: =IF('DF raw data'!J174="","",'DF raw data'!J174) -> -1.56298e-05 | C169: =IF('DF raw data'!K174="","",'DF raw data'!K174) -> 0.000179725 | D169: =IF('DF raw data'!L174="","",'DF raw data'!L174) -> -1.28165e-05 | F169: -1.57001341e-05 | G169: 0.0001805337625 | H169: -1.287417425e-05 | J169: -0.0007948894104 | K169: -0.0218317002 | L169: 0.01062082058 | M169: 0.2964462148 | N169: 0.002147304986
A170: =IF('DF raw data'!I175="","",'DF raw data'!I175) -> -246 | B170: =IF('DF raw data'!J175="","",'DF raw data'!J175) -> -2.2167e-05 | C170: =IF('DF raw data'!K175="","",'DF raw data'!K175) -> 0.000173654 | D170: =IF('DF raw data'!L175="","",'DF raw data'!L175) -> -7.66274e-06 | F170: -2.22667515e-05 | G170: 0.000174435443 | H170: -7.69722233e-06 | J170: -0.0008060227862 | K170: -0.02223471159 | L170: 0.01070803831 | M170: 0.301800234 | N170: 0.002204960865
A171: =IF('DF raw data'!I176="","",'DF raw data'!I176) -> -245.5 | B171: =IF('DF raw data'!J176="","",'DF raw data'!J176) -> -1.5756e-05 | C171: =IF('DF raw data'!K176="","",'DF raw data'!K176) -> 0.000175645 | D171: =IF('DF raw data'!L176="","",'DF raw data'!L176) -> -1.58433e-05 | F171: -1.5826902e-05 | G171: 0.0001764354025 | H171: -1.591459485e-05 | J171: -0.0008139362372 | K171: -0.02264167971 | L171: 0.01079625601 | M171: 0.307198362 | N171: 0.002263571683
A172: =IF('DF raw data'!I177="","",'DF raw data'!I177) -> -245 | B172: =IF('DF raw data'!J177="","",'DF raw data'!J177) -> -1.2043e-05 | C172: =IF('DF raw data'!K177="","",'DF raw data'!K177) -> 0.000169009 | D172: =IF('DF raw data'!L177="","",'DF raw data'!L177) -> -8.61679e-06 | F172: -1.20971935e-05 | G172: 0.0001697695405 | H172: -8.655565555e-06 | J172: -0.0008199848339 | K172: -0.02305167213 | L172: 0.01088114078 | M172: 0.3126389324 | N172: 0.002323107483
A173: =IF('DF raw data'!I178="","",'DF raw data'!I178) -> -244.5 | B173: =IF('DF raw data'!J178="","",'DF raw data'!J178) -> -4.6052e-06 | C173: =IF('DF raw data'!K178="","",'DF raw data'!K178) -> 0.000163008 | D173: =IF('DF raw data'!L178="","",'DF raw data'!L178) -> -1.75494e-05 | F173: -4.6259234e-06 | G173: 0.000163741536 | H173: -1.76283723e-05 | J173: -0.0008222977956 | K173: -0.02346282103 | L173: 0.01096301155 | M173: 0.3181204381 | N173: 0.002383539381
A174: =IF('DF raw data'!I179="","",'DF raw data'!I179) -> -244 | B174: =IF('DF raw data'!J179="","",'DF raw data'!J179) -> -1.12602e-05 | C174: =IF('DF raw data'!K179="","",'DF raw data'!K179) -> 0.00017661 | D174: =IF('DF raw data'!L179="","",'DF raw data'!L179) -> -3.0211e-05 | F174: -1.13108709e-05 | G174: 0.000177404745 | H174: -3.03469495e-05 | J174: -0.0008279532311 | K174: -0.02387679764 | L174: 0.01105171392 | M174: 0.3236462951 | N174: 0.002444952324
A175: =IF('DF raw data'!I180="","",'DF raw data'!I180) -> -243.5 | B175: =IF('DF raw data'!J180="","",'DF raw data'!J180) -> 1.92734e-06 | C175: =IF('DF raw data'!K180="","",'DF raw data'!K180) -> 0.000182425 | D175: =IF('DF raw data'!L180="","",'DF raw data'!L180) -> -1.23216e-05 | F175: 1.93601303e-06 | G175: 0.0001832459125 | H175: -1.23770472e-05 | J175: -0.0008269852246 | K175: -0.02429029026 | L175: 0.01114333687 | M175: 0.3292179635 | N175: 0.002507381255
A176: =IF('DF raw data'!I181="","",'DF raw data'!I181) -> -243 | B176: =IF('DF raw data'!J181="","",'DF raw data'!J181) -> -2.99129e-05 | C176: =IF('DF raw data'!K181="","",'DF raw data'!K181) -> 0.000177234 | D176: =IF('DF raw data'!L181="","",'DF raw data'!L181) -> -1.88302e-05 | F176: -3.004750805e-05 | G176: 0.000178031553 | H176: -1.89149359e-05 | J176: -0.0008420089786 | K176: -0.02471129474 | L176: 0.01123235265 | M176: 0.3348341399 | N176: 0.002570818617
A177: =IF('DF raw data'!I182="","",'DF raw data'!I182) -> -242.5 | B177: =IF('DF raw data'!J182="","",'DF raw data'!J182) -> -7.17704e-06 | C177: =IF('DF raw data'!K182="","",'DF raw data'!K182) -> 0.000174097 | D177: =IF('DF raw data'!L182="","",'DF raw data'!L182) -> -3.85018e-06 | F177: -7.20933668e-06 | G177: 0.0001748804365 | H177: -3.86750581e-06 | J177: -0.0008456136469 | K177: -0.02513410157 | L177: 0.01131979287 | M177: 0.3404940363 | N177: 0.002635245004
A178: =IF('DF raw data'!I183="","",'DF raw data'!I183) -> -242 | B178: =IF('DF raw data'!J183="","",'DF raw data'!J183) -> -2.57566e-05 | C178: =IF('DF raw data'!K183="","",'DF raw data'!K183) -> 0.000175611 | D178: =IF('DF raw data'!L183="","",'DF raw data'!L183) -> -5.89516e-06 | F178: -2.58725047e-05 | G178: 0.0001764012495 | H178: -5.92168822e-06 | J178: -0.0008585498993 | K178: -0.02556337652 | L178: 0.01140799349 | M178: 0.346198033 | N178: 0.002700684716
A179: =IF('DF raw data'!I184="","",'DF raw data'!I184) -> -241.5 | B179: =IF('DF raw data'!J184="","",'DF raw data'!J184) -> -1.29362e-05 | C179: =IF('DF raw data'!K184="","",'DF raw data'!K184) -> 0.000185302 | D179: =IF('DF raw data'!L184="","",'DF raw data'!L184) -> -1.59256e-05 | F179: -1.29944129e-05 | G179: 0.000186135859 | H179: -1.59972652e-05 | J179: -0.0008650471057 | K179: -0.02599590007 | L179: 0.01150106142 | M179: 0.3519485638 | N179: 0.002767196076
A180: =IF('DF raw data'!I185="","",'DF raw data'!I185) -> -241 | B180: =IF('DF raw data'!J185="","",'DF raw data'!J185) -> -2.00512e-05 | C180: =IF('DF raw data'!K185="","",'DF raw data'!K185) -> 0.00018079 | D180: =IF('DF raw data'!L185="","",'DF raw data'!L185) -> -1.01382e-05 | F180: -2.01414304e-05 | G180: 0.000181603555 | H180: -1.01838219e-05 | J180: -0.0008751178209 | K180: -0.02643345898 | L180: 0.0115918632 | M180: 0.3577444954 | N180: 0.002834764638
A181: =IF('DF raw data'!I186="","",'DF raw data'!I186) -> -240.5 | B181: =IF('DF raw data'!J186="","",'DF raw data'!J186) -> -1.85172e-05 | C181: =IF('DF raw data'!K186="","",'DF raw data'!K186) -> 0.000178517 | D181: =IF('DF raw data'!L186="","",'DF raw data'!L186) -> -6.48001e-06 | F181: -1.86005274e-05 | G181: 0.0001793203265 | H181: -6.509170045e-06 | J181: -0.0008844180846 | K181: -0.02687566802 | L181: 0.01168152336 | M181: 0.363585257 | N181: 0.002903384729
A182: =IF('DF raw data'!I187="","",'DF raw data'!I187) -> -240 | B182: =IF('DF raw data'!J187="","",'DF raw data'!J187) -> -1.66627e-05 | C182: =IF('DF raw data'!K187="","",'DF raw data'!K187) -> 0.000176904 | D182: =IF('DF raw data'!L187="","",'DF raw data'!L187) -> 1.00247e-06 | F182: -1.673768215e-05 | G182: 0.000177700068 | H182: 1.006981115e-06 | J182: -0.0008927869257 | K182: -0.02732206149 | L182: 0.0117703734 | M182: 0.3694704437 | N182: 0.002973054109
A183: =IF('DF raw data'!I188="","",'DF raw data'!I188) -> -239.5 | B183: =IF('DF raw data'!J188="","",'DF raw data'!J188) -> -1.82548e-05 | C183: =IF('DF raw data'!K188="","",'DF raw data'!K188) -> 0.000185828 | D183: =IF('DF raw data'!L188="","",'DF raw data'!L188) -> -1.58034e-05 | F183: -1.83369466e-05 | G183: 0.000186664226 | H183: -1.58745153e-05 | J183: -0.000901955399 | K183: -0.02777303919 | L183: 0.01186370551 | M183: 0.3754022965 | N183: 0.003043834625
A184: =IF('DF raw data'!I189="","",'DF raw data'!I189) -> -239 | B184: =IF('DF raw data'!J189="","",'DF raw data'!J189) -> -1.70407e-05 | C184: =IF('DF raw data'!K189="","",'DF raw data'!K189) -> 0.000190816 | D184: =IF('DF raw data'!L189="","",'DF raw data'!L189) -> -8.8812e-06 | F184: -1.711738315e-05 | G184: 0.000191674672 | H184: -8.9211654e-06 | J184: -0.0009105140906 | K184: -0.02822829623 | L184: 0.01195954285 | M184: 0.3813820679 | N184: 0.003115764475
A185: =IF('DF raw data'!I190="","",'DF raw data'!I190) -> -238.5 | B185: =IF('DF raw data'!J190="","",'DF raw data'!J190) -> -1.88354e-05 | C185: =IF('DF raw data'!K190="","",'DF raw data'!K190) -> 0.000181196 | D185: =IF('DF raw data'!L190="","",'DF raw data'!L190) -> -9.5346e-06 | F185: -1.89201593e-05 | G185: 0.000182011382 | H185: -9.5775057e-06 | J185: -0.0009199741702 | K185: -0.02868828332 | L185: 0.01205054854 | M185: 0.3874073422 | N185: 0.003188795511
A186: =IF('DF raw data'!I191="","",'DF raw data'!I191) -> -238 | B186: =IF('DF raw data'!J191="","",'DF raw data'!J191) -> -1.11491e-05 | C186: =IF('DF raw data'!K191="","",'DF raw data'!K191) -> 0.000183827 | D186: =IF('DF raw data'!L191="","",'DF raw data'!L191) -> -4.06592e-06 | F186: -1.119927095e-05 | G186: 0.0001846542215 | H186: -4.08421664e-06 | J186: -0.0009255738057 | K186: -0.02915107022 | L186: 0.01214287565 | M186: 0.39347878 | N186: 0.003262948569
A187: =IF('DF raw data'!I192="","",'DF raw data'!I192) -> -237.5 | B187: =IF('DF raw data'!J192="","",'DF raw data'!J192) -> -1.56939e-05 | C187: =IF('DF raw data'!K192="","",'DF raw data'!K192) -> 0.000179329 | D187: =IF('DF raw data'!L192="","",'DF raw data'!L192) -> -1.21498e-05 | F187: -1.576452255e-05 | G187: 0.0001801359805 | H187: -1.22044741e-05 | J187: -0.000933456067 | K187: -0.02961779825 | L187: 0.01223294364 | M187: 0.3995952518 | N187: 0.003338206694
A188: =IF('DF raw data'!I193="","",'DF raw data'!I193) -> -237 | B188: =IF('DF raw data'!J193="","",'DF raw data'!J193) -> -1.44764e-05 | C188: =IF('DF raw data'!K193="","",'DF raw data'!K193) -> 0.000188094 | D188: =IF('DF raw data'!L193="","",'DF raw data'!L193) -> -1.12842e-05 | F188: -1.45415438e-05 | G188: 0.000188940423 | H188: -1.13349789e-05 | J188: -0.0009407268389 | K188: -0.03008816167 | L188: 0.01232741385 | M188: 0.4057589588 | N188: 0.003414631744
A189: =IF('DF raw data'!I194="","",'DF raw data'!I194) -> -236.5 | B189: =IF('DF raw data'!J194="","",'DF raw data'!J194) -> -2.74208e-05 | C189: =IF('DF raw data'!K194="","",'DF raw data'!K194) -> 0.000187396 | D189: =IF('DF raw data'!L194="","",'DF raw data'!L194) -> -1.08402e-05 | F189: -2.75441936e-05 | G189: 0.000188239282 | H189: -1.08889809e-05 | J189: -0.0009544989357 | K189: -0.03056541114 | L189: 0.01242153349 | M189: 0.4119697255 | N189: 0.003492234525
A190: =IF('DF raw data'!I195="","",'DF raw data'!I195) -> -236 | B190: =IF('DF raw data'!J195="","",'DF raw data'!J195) -> -2.74768e-05 | C190: =IF('DF raw data'!K195="","",'DF raw data'!K195) -> 0.000188858 | D190: =IF('DF raw data'!L195="","",'DF raw data'!L195) -> -2.13849e-05 | F190: -2.76004456e-05 | G190: 0.000189707861 | H190: -2.148113205e-05 | J190: -0.0009682991585 | K190: -0.03104956072 | L190: 0.01251638742 | M190: 0.4182279192 | N190: 0.003571033304
A191: =IF('DF raw data'!I196="","",'DF raw data'!I196) -> -235.5 | B191: =IF('DF raw data'!J196="","",'DF raw data'!J196) -> -2.07599e-05 | C191: =IF('DF raw data'!K196="","",'DF raw data'!K196) -> 0.000183373 | D191: =IF('DF raw data'!L196="","",'DF raw data'!L196) -> -5.98568e-06 | F191: -2.085331955e-05 | G191: 0.0001841981785 | H191: -6.01261556e-06 | J191: -0.0009787258182 | K191: -0.03153892363 | L191: 0.01260848651 | M191: 0.4245321625 | N191: 0.003650999222
A192: =IF('DF raw data'!I197="","",'DF raw data'!I197) -> -235 | B192: =IF('DF raw data'!J197="","",'DF raw data'!J197) -> -1.96602e-05 | C192: =IF('DF raw data'!K197="","",'DF raw data'!K197) -> 0.000185741 | D192: =IF('DF raw data'!L197="","",'DF raw data'!L197) -> -2.0956e-05 | F192: =(1-$G$1*($B$49-$G$2))*B192 -> -1.97486709e-05 | G192: 0.0001865768345 | H192: -2.1050302e-05 | J192: =F192*$G$3+J191 -> -0.0009886001537 | K192: =J192*$G$3+K191 -> -0.03203322371 | L192: =G192*$G$3+L191 -> 0.01270177493 | M192: =L192*$G$3+M191 -> 0.4308830499 | N192: =(J192^2+L192^2)*$G$3+N191 -> 0.00373215543
A193: =IF('DF raw data'!I198="","",'DF raw data'!I198) -> -234.5 | B193: =IF('DF raw data'!J198="","",'DF raw data'!J198) -> -2.62648e-05 | C193: =IF('DF raw data'!K198="","",'DF raw data'!K198) -> 0.000188545 | D193: =IF('DF raw data'!L198="","",'DF raw data'!L198) -> -1.46308e-05 | F193: -2.63829916e-05 | G193: 0.0001893934525 | H193: -1.46966386e-05 | J193: -0.001001791649 | K193: -0.03253411953 | L193: 0.01279647165 | M193: 0.4372812858 | N193: 0.003814532067
A194: =IF('DF raw data'!I199="","",'DF raw data'!I199) -> -234 | B194: =IF('DF raw data'!J199="","",'DF raw data'!J199) -> -2.42189e-05 | C194: =IF('DF raw data'!K199="","",'DF raw data'!K199) -> 0.000185277 | D194: =IF('DF raw data'!L199="","",'DF raw data'!L199) -> -6.4237e-06 | F194: -2.432788505e-05 | G194: 0.0001861107465 | H194: -6.45260665e-06 | J194: -0.001013955592 | K194: -0.03304109733 | L194: 0.01288952703 | M194: 0.4437260493 | N194: 0.003898116074
A195: =IF('DF raw data'!I200="","",'DF raw data'!I200) -> -233.5 | B195: =IF('DF raw data'!J200="","",'DF raw data'!J200) -> -3.04992e-05 | C195: =IF('DF raw data'!K200="","",'DF raw data'!K200) -> 0.000187565 | D195: =IF('DF raw data'!L200="","",'DF raw data'!L200) -> -6.41285e-06 | F195: -3.06364464e-05 | G195: 0.0001884090425 | H195: -6.441707825e-06 | J195: -0.001029273815 | K195: -0.03355573423 | L195: 0.01298373155 | M195: 0.450217915 | N195: 0.003982934418
A196: =IF('DF raw data'!I201="","",'DF raw data'!I201) -> -233 | B196: =IF('DF raw data'!J201="","",'DF raw data'!J201) -> -2.30616e-05 | C196: =IF('DF raw data'!K201="","",'DF raw data'!K201) -> 0.000191803 | D196: =IF('DF raw data'!L201="","",'DF raw data'!L201) -> -1.27291e-05 | F196: -2.31653772e-05 | G196: 0.0001926661135 | H196: -1.278638095e-05 | J196: -0.001040856504 | K196: -0.03407616249 | L196: 0.01308006461 | M196: 0.4567579474 | N196: 0.004069020155
A197: =IF('DF raw data'!I202="","",'DF raw data'!I202) -> -232.5 | B197: =IF('DF raw data'!J202="","",'DF raw data'!J202) -> -3.44755e-05 | C197: =IF('DF raw data'!K202="","",'DF raw data'!K202) -> 0.000191027 | D197: =IF('DF raw data'!L202="","",'DF raw data'!L202) -> -2.6219e-07 | F197: -3.463063975e-05 | G197: 0.0001918866215 | H197: -2.63369855e-07 | J197: -0.001058171824 | K197: -0.0346052484 | L197: 0.01317600792 | M197: 0.4633459513 | N197: 0.004156383611
A198: =IF('DF raw data'!I203="","",'DF raw data'!I203) -> -232 | B198: =IF('DF raw data'!J203="","",'DF raw data'!J203) -> -2.96724e-05 | C198: =IF('DF raw data'!K203="","",'DF raw data'!K203) -> 0.00017973 | D198: =IF('DF raw data'!L203="","",'DF raw data'!L203) -> 4.0379e-06 | F198: -2.98059258e-05 | G198: 0.000180538785 | H198: 4.05607055e-06 | J198: -0.001073074787 | K198: -0.03514178579 | L198: 0.01326627731 | M198: 0.46997909 | N198: 0.004244956412
A199: =IF('DF raw data'!I204="","",'DF raw data'!I204) -> -231.5 | B199: =IF('DF raw data'!J204="","",'DF raw data'!J204) -> -2.7485e-05 | C199: =IF('DF raw data'!K204="","",'DF raw data'!K204) -> 0.000177655 | D199: =IF('DF raw data'!L204="","",'DF raw data'!L204) -> -9.84855e-06 | F199: -2.76086825e-05 | G199: 0.0001784544475 | H199: -9.892868475e-06 | J199: -0.001086879128 | K199: -0.03568522535 | L199: 0.01335550453 | M199: 0.4766568422 | N199: 0.004334731816
A200: =IF('DF raw data'!I205="","",'DF raw data'!I205) -> -231 | B200: =IF('DF raw data'!J205="","",'DF raw data'!J205) -> -2.23004e-05 | C200: =IF('DF raw data'!K205="","",'DF raw data'!K205) -> 0.000178273 | D200: =IF('DF raw data'!L205="","",'DF raw data'!L205) -> -1.13367e-06 | F200: -2.24007518e-05 | G200: 0.0001790752285 | H200: -1.138771515e-06 | J200: -0.001098079504 | K200: -0.03623426511 | L200: 0.01344504215 | M200: 0.4833793633 | N200: 0.004425719284
A201: =IF('DF raw data'!I206="","",'DF raw data'!I206) -> -230.5 | B201: =IF('DF raw data'!J206="","",'DF raw data'!J206) -> -2.88241e-05 | C201: =IF('DF raw data'!K206="","",'DF raw data'!K206) -> 0.000177634 | D201: =IF('DF raw data'!L206="","",'DF raw data'!L206) -> -1.97904e-05 | F201: -2.895380845e-05 | G201: 0.000178433353 | H201: -1.98794568e-05 | J201: -0.001112556408 | K201: -0.03679054331 | L201: 0.01353425882 | M201: 0.4901464927 | N201: 0.004517926256
... 1061 more rows

Sheet 10 y=0.1
A1: =IF('DF raw data'!M1="","",'DF raw data'!M1) -> Number of header lines | B1: =IF('DF raw data'!N1="","",'DF raw data'!N1) -> 54 | C1: =IF('DF raw data'!O1="","",'DF raw data'!O1) ->  | D1: =IF('DF raw data'!P1="","",'DF raw data'!P1) ->  | F1: T_coeff | G1: -0.001 | H1: /degC | J1: ='10 y=-0.2'!J1 -> IBy total | K1: ='10 y=-0.2'!K1 -> 0.3055504883 | L1: ='10 y=-0.2'!L1 -> muTm | R1: ='10 y=-0.2'!R1 -> DF ref | S1: ='10 y=-0.2'!S1 -> 1
A2: =IF('DF raw data'!M2="","",'DF raw data'!M2) -> Measured by | B2: =IF('DF raw data'!N2="","",'DF raw data'!N2) -> Danfysik | C2: =IF('DF raw data'!O2="","",'DF raw data'!O2) ->  | D2: =IF('DF raw data'!P2="","",'DF raw data'!P2) ->  | F2: Tcorr | G2: 20 | H2: degC | J2: JBy total | K2: =K1262 -> -12.46406453 | L2: muTm^2 | M2: =M1262 -> 38.54593174
A3: =IF('DF raw data'!M3="","",'DF raw data'!M3) -> Operator | B3: =IF('DF raw data'!N3="","",'DF raw data'!N3) -> PMHA | C3: =IF('DF raw data'!O3="","",'DF raw data'!O3) ->  | D3: =IF('DF raw data'!P3="","",'DF raw data'!P3) ->  | F3: Step | G3: =A63-A62 -> 0.5 | H3: mm | J3: PI total | K3: =N1262 -> 10686.95788 | L3: T^2mm^3
A4: =IF('DF raw data'!M4="","",'DF raw data'!M4) -> Data-time | B4: =IF('DF raw data'!N4="","",'DF raw data'!N4) -> 13-09-2024, 11:20:37 | C4: =IF('DF raw data'!O4="","",'DF raw data'!O4) ->  | D4: =IF('DF raw data'!P4="","",'DF raw data'!P4) -> 
A5: =IF('DF raw data'!M5="","",'DF raw data'!M5) -> Project | B5: =IF('DF raw data'!N5="","",'DF raw data'!N5) -> 504314 | C5: =IF('DF raw data'!O5="","",'DF raw data'!O5) ->  | D5: =IF('DF raw data'!P5="","",'DF raw data'!P5) -> 
A6: =IF('DF raw data'!M6="","",'DF raw data'!M6) -> Magnet type | B6: =IF('DF raw data'!N6="","",'DF raw data'!N6) -> Dipole | C6: =IF('DF raw data'!O6="","",'DF raw data'!O6) ->  | D6: =IF('DF raw data'!P6="","",'DF raw data'!P6) -> 
A7: =IF('DF raw data'!M7="","",'DF raw data'!M7) -> Magnet nr. | B7: =IF('DF raw data'!N7="","",'DF raw data'!N7) -> 2410096 | C7: =IF('DF raw data'!O7="","",'DF raw data'!O7) ->  | D7: =IF('DF raw data'!P7="","",'DF raw data'!P7) -> 
A8: =IF('DF raw data'!M8="","",'DF raw data'!M8) -> Meas. number | B8: =IF('DF raw data'!N8="","",'DF raw data'!N8) -> 454 | C8: =IF('DF raw data'!O8="","",'DF raw data'!O8) ->  | D8: =IF('DF raw data'!P8="","",'DF raw data'!P8) -> 
A9: =IF('DF raw data'!M9="","",'DF raw data'!M9) -> Add. info | B9: =IF('DF raw data'!N9="","",'DF raw data'!N9) -> Y-alignment scan 4) | C9: =IF('DF raw data'!O9="","",'DF raw data'!O9) ->  | D9: =IF('DF raw data'!P9="","",'DF raw data'!P9) -> 
A10: =IF('DF raw data'!M10="","",'DF raw data'!M10) -> Device | B10: =IF('DF raw data'!N10="","",'DF raw data'!N10) -> (HAL) HALL-PROBE | C10: =IF('DF raw data'!O10="","",'DF raw data'!O10) ->  | D10: =IF('DF raw data'!P10="","",'DF raw data'!P10) -> 
A11: =IF('DF raw data'!M11="","",'DF raw data'!M11) -> Goal | B11: =IF('DF raw data'!N11="","",'DF raw data'!N11) -> (AXI) AXis Integral (Line, EFB) | C11: =IF('DF raw data'!O11="","",'DF raw data'!O11) ->  | D11: =IF('DF raw data'!P11="","",'DF raw data'!P11) -> 
A12: =IF('DF raw data'!M12="","",'DF raw data'!M12) -> Power supply mode | B12: =IF('DF raw data'!N12="","",'DF raw data'!N12) -> (PM) Permanent Magnet (no MPS in use) | C12: =IF('DF raw data'!O12="","",'DF raw data'!O12) ->  | D12: =IF('DF raw data'!P12="","",'DF raw data'!P12) -> 
A13: =IF('DF raw data'!M13="","",'DF raw data'!M13) -> Data format | B13: =IF('DF raw data'!N13="","",'DF raw data'!N13) -> Raw data text file | C13: =IF('DF raw data'!O13="","",'DF raw data'!O13) ->  | D13: =IF('DF raw data'!P13="","",'DF raw data'!P13) -> 
A14: =IF('DF raw data'!M14="","",'DF raw data'!M14) -> Direction of the pos. x-axis | B14: =IF('DF raw data'!N14="","",'DF raw data'!N14) -> See test program | C14: =IF('DF raw data'!O14="","",'DF raw data'!O14) ->  | D14: =IF('DF raw data'!P14="","",'DF raw data'!P14) -> 
A15: =IF('DF raw data'!M15="","",'DF raw data'!M15) -> Direction of the pos. y-axis | B15: =IF('DF raw data'!N15="","",'DF raw data'!N15) -> Vertical up | C15: =IF('DF raw data'!O15="","",'DF raw data'!O15) ->  | D15: =IF('DF raw data'!P15="","",'DF raw data'!P15) -> 
A16: =IF('DF raw data'!M16="","",'DF raw data'!M16) -> Direction of the pos. z-axis | B16: =IF('DF raw data'!N16="","",'DF raw data'!N16) -> See test program | C16: =IF('DF raw data'!O16="","",'DF raw data'!O16) ->  | D16: =IF('DF raw data'!P16="","",'DF raw data'!P16) -> 
A17: =IF('DF raw data'!M17="","",'DF raw data'!M17) -> Mapper type | B17: =IF('DF raw data'!N17="","",'DF raw data'!N17) -> Precision Hall Mapper | C17: =IF('DF raw data'!O17="","",'DF raw data'!O17) ->  | D17: =IF('DF raw data'!P17="","",'DF raw data'!P17) -> 
A18: =IF('DF raw data'!M18="","",'DF raw data'!M18) -> Mapper Danfysik Reg. Number | B18: =IF('DF raw data'!N18="","",'DF raw data'!N18) -> 2033-D (mapper 1) | C18: =IF('DF raw data'!O18="","",'DF raw data'!O18) ->  | D18: =IF('DF raw data'!P18="","",'DF raw data'!P18) -> 
A19: =IF('DF raw data'!M19="","",'DF raw data'!M19) -> Measurement consept | B19: =IF('DF raw data'!N19="","",'DF raw data'!N19) -> Square line grid | C19: =IF('DF raw data'!O19="","",'DF raw data'!O19) ->  | D19: =IF('DF raw data'!P19="","",'DF raw data'!P19) -> 
A20: =IF('DF raw data'!M20="","",'DF raw data'!M20) -> Mode | B20: =IF('DF raw data'!N20="","",'DF raw data'!N20) -> On-the-fly measurement | C20: =IF('DF raw data'!O20="","",'DF raw data'!O20) ->  | D20: =IF('DF raw data'!P20="","",'DF raw data'!P20) -> 
A21: =IF('DF raw data'!M21="","",'DF raw data'!M21) ->  | B21: =IF('DF raw data'!N21="","",'DF raw data'!N21) ->  | C21: =IF('DF raw data'!O21="","",'DF raw data'!O21) ->  | D21: =IF('DF raw data'!P21="","",'DF raw data'!P21) -> 
A22: =IF('DF raw data'!M22="","",'DF raw data'!M22) -> Probe Name | B22: =IF('DF raw data'!N22="","",'DF raw data'!N22) -> ID12_By | C22: =IF('DF raw data'!O22="","",'DF raw data'!O22) ->  | D22: =IF('DF raw data'!P22="","",'DF raw data'!P22) -> 
A23: =IF('DF raw data'!M23="","",'DF raw data'!M23) -> Probe Type | B23: =IF('DF raw data'!N23="","",'DF raw data'!N23) -> DF_ID_3D_Bxyz | C23: =IF('DF raw data'!O23="","",'DF raw data'!O23) ->  | D23: =IF('DF raw data'!P23="","",'DF raw data'!P23) -> 
A24: =IF('DF raw data'!M24="","",'DF raw data'!M24) -> Probe Danfysik Reg. Number | B24: =IF('DF raw data'!N24="","",'DF raw data'!N24) -> 2277 | C24: =IF('DF raw data'!O24="","",'DF raw data'!O24) ->  | D24: =IF('DF raw data'!P24="","",'DF raw data'!P24) -> 
A25: =IF('DF raw data'!M25="","",'DF raw data'!M25) -> Probe Axis | B25: =IF('DF raw data'!N25="","",'DF raw data'!N25) -> By | C25: =IF('DF raw data'!O25="","",'DF raw data'!O25) ->  | D25: =IF('DF raw data'!P25="","",'DF raw data'!P25) -> 
A26: =IF('DF raw data'!M26="","",'DF raw data'!M26) -> Probe Current Supply | B26: =IF('DF raw data'!N26="","",'DF raw data'!N26) -> 1825-D | C26: =IF('DF raw data'!O26="","",'DF raw data'!O26) ->  | D26: =IF('DF raw data'!P26="","",'DF raw data'!P26) -> 
A27: =IF('DF raw data'!M27="","",'DF raw data'!M27) -> Probe Gain Correction | B27: =IF('DF raw data'!N27="","",'DF raw data'!N27) -> 0.99619 | C27: =IF('DF raw data'!O27="","",'DF raw data'!O27) ->  | D27: =IF('DF raw data'!P27="","",'DF raw data'!P27) -> 
A28: =IF('DF raw data'!M28="","",'DF raw data'!M28) -> Probe Offset Correction | B28: =IF('DF raw data'!N28="","",'DF raw data'!N28) -> 0.002767 | C28: =IF('DF raw data'!O28="","",'DF raw data'!O28) ->  | D28: =IF('DF raw data'!P28="","",'DF raw data'!P28) -> 
A29: =IF('DF raw data'!M29="","",'DF raw data'!M29) -> DVM Number | B29: =IF('DF raw data'!N29="","",'DF raw data'!N29) -> 2 | C29: =IF('DF raw data'!O29="","",'DF raw data'!O29) ->  | D29: =IF('DF raw data'!P29="","",'DF raw data'!P29) -> 
A30: =IF('DF raw data'!M30="","",'DF raw data'!M30) -> DVM Type | B30: =IF('DF raw data'!N30="","",'DF raw data'!N30) -> K2701 | C30: =IF('DF raw data'!O30="","",'DF raw data'!O30) ->  | D30: =IF('DF raw data'!P30="","",'DF raw data'!P30) -> 
A31: =IF('DF raw data'!M31="","",'DF raw data'!M31) -> DVM Danfysik Reg. Number | B31: =IF('DF raw data'!N31="","",'DF raw data'!N31) -> 1743-D | C31: =IF('DF raw data'!O31="","",'DF raw data'!O31) ->  | D31: =IF('DF raw data'!P31="","",'DF raw data'!P31) -> 
A32: =IF('DF raw data'!M32="","",'DF raw data'!M32) -> Probe Name | B32: =IF('DF raw data'!N32="","",'DF raw data'!N32) -> ID12_Bx | C32: =IF('DF raw data'!O32="","",'DF raw data'!O32) ->  | D32: =IF('DF raw data'!P32="","",'DF raw data'!P32) -> 
A33: =IF('DF raw data'!M33="","",'DF raw data'!M33) -> Probe Type | B33: =IF('DF raw data'!N33="","",'DF raw data'!N33) -> DF_ID_3D_Bxyz | C33: =IF('DF raw data'!O33="","",'DF raw data'!O33) ->  | D33: =IF('DF raw data'!P33="","",'DF raw data'!P33) -> 
A34: =IF('DF raw data'!M34="","",'DF raw data'!M34) -> Probe Danfysik Reg. Number | B34: =IF('DF raw data'!N34="","",'DF raw data'!N34) -> 2277 | C34: =IF('DF raw data'!O34="","",'DF raw data'!O34) ->  | D34: =IF('DF raw data'!P34="","",'DF raw data'!P34) -> 
A35: =IF('DF raw data'!M35="","",'DF raw data'!M35) -> Probe Axis | B35: =IF('DF raw data'!N35="","",'DF raw data'!N35) -> Bx | C35: =IF('DF raw data'!O35="","",'DF raw data'!O35) ->  | D35: =IF('DF raw data'!P35="","",'DF raw data'!P35) -> 
A36: =IF('DF raw data'!M36="","",'DF raw data'!M36) -> Probe Current Supply | B36: =IF('DF raw data'!N36="","",'DF raw data'!N36) -> 1825-D | C36: =IF('DF raw data'!O36="","",'DF raw data'!O36) ->  | D36: =IF('DF raw data'!P36="","",'DF raw data'!P36) -> 
A37: =IF('DF raw data'!M37="","",'DF raw data'!M37) -> Probe Gain Correction | B37: =IF('DF raw data'!N37="","",'DF raw data'!N37) -> 1 | C37: =IF('DF raw data'!O37="","",'DF raw data'!O37) ->  | D37: =IF('DF raw data'!P37="","",'DF raw data'!P37) -> 
A38: =IF('DF raw data'!M38="","",'DF raw data'!M38) -> Probe Offset Correction | B38: =IF('DF raw data'!N38="","",'DF raw data'!N38) -> -0.17549 | C38: =IF('DF raw data'!O38="","",'DF raw data'!O38) ->  | D38: =IF('DF raw data'!P38="","",'DF raw data'!P38) -> 
A39: =IF('DF raw data'!M39="","",'DF raw data'!M39) -> DVM Number | B39: =IF('DF raw data'!N39="","",'DF raw data'!N39) -> 3 | C39: =IF('DF raw data'!O39="","",'DF raw data'!O39) ->  | D39: =IF('DF raw data'!P39="","",'DF raw data'!P39) -> 
A40: =IF('DF raw data'!M40="","",'DF raw data'!M40) -> DVM Type | B40: =IF('DF raw data'!N40="","",'DF raw data'!N40) -> K2701 | C40: =IF('DF raw data'!O40="","",'DF raw data'!O40) ->  | D40: =IF('DF raw data'!P40="","",'DF raw data'!P40) -> 
A41: =IF('DF raw data'!M41="","",'DF raw data'!M41) -> DVM Danfysik Reg. Number | B41: =IF('DF raw data'!N41="","",'DF raw data'!N41) -> 1744-D | C41: =IF('DF raw data'!O41="","",'DF raw data'!O41) ->  | D41: =IF('DF raw data'!P41="","",'DF raw data'!P41) -> 
A42: =IF('DF raw data'!M42="","",'DF raw data'!M42) -> Probe Name | B42: =IF('DF raw data'!N42="","",'DF raw data'!N42) -> ID12_Bz | C42: =IF('DF raw data'!O42="","",'DF raw data'!O42) ->  | D42: =IF('DF raw data'!P42="","",'DF raw data'!P42) -> 
A43: =IF('DF raw data'!M43="","",'DF raw data'!M43) -> Probe Type | B43: =IF('DF raw data'!N43="","",'DF raw data'!N43) -> DF_ID_3D_Bxyz | C43: =IF('DF raw data'!O43="","",'DF raw data'!O43) ->  | D43: =IF('DF raw data'!P43="","",'DF raw data'!P43) -> 
A44: =IF('DF raw data'!M44="","",'DF raw data'!M44) -> Probe Danfysik Reg. Number | B44: =IF('DF raw data'!N44="","",'DF raw data'!N44) -> 2277 | C44: =IF('DF raw data'!O44="","",'DF raw data'!O44) ->  | D44: =IF('DF raw data'!P44="","",'DF raw data'!P44) -> 
A45: =IF('DF raw data'!M45="","",'DF raw data'!M45) -> Probe Axis | B45: =IF('DF raw data'!N45="","",'DF raw data'!N45) -> Bz | C45: =IF('DF raw data'!O45="","",'DF raw data'!O45) ->  | D45: =IF('DF raw data'!P45="","",'DF raw data'!P45) -> 
A46: =IF('DF raw data'!M46="","",'DF raw data'!M46) -> Probe Current Supply | B46: =IF('DF raw data'!N46="","",'DF raw data'!N46) -> 1825-D | C46: =IF('DF raw data'!O46="","",'DF raw data'!O46) ->  | D46: =IF('DF raw data'!P46="","",'DF raw data'!P46) -> 
A47: =IF('DF raw data'!M47="","",'DF raw data'!M47) -> Probe Gain Correction | B47: =IF('DF raw data'!N47="","",'DF raw data'!N47) -> 1 | C47: =IF('DF raw data'!O47="","",'DF raw data'!O47) ->  | D47: =IF('DF raw data'!P47="","",'DF raw data'!P47) -> 
A48: =IF('DF raw data'!M53="","",'DF raw data'!M53) -> PS-Gap: | B48: =IF('DF raw data'!N53="","",'DF raw data'!N53) -> 10 | C48: =IF('DF raw data'!O53="","",'DF raw data'!O53) ->  | D48: =IF('DF raw data'!P53="","",'DF raw data'!P53) -> 
A49: =IF('DF raw data'!M54="","",'DF raw data'!M54) -> PS-Temperature: | B49: =IF('DF raw data'!N54="","",'DF raw data'!N54) -> 24.5 | C49: =IF('DF raw data'!O54="","",'DF raw data'!O54) ->  | D49: =IF('DF raw data'!P54="","",'DF raw data'!P54) -> 
A50: =IF('DF raw data'!M55="","",'DF raw data'!M55) -> PS-Encoder: | B50: =IF('DF raw data'!N55="","",'DF raw data'!N55) -> 19.73485 | C50: =IF('DF raw data'!O55="","",'DF raw data'!O55) ->  | D50: =IF('DF raw data'!P55="","",'DF raw data'!P55) -> 
A51: =IF('DF raw data'!M56="","",'DF raw data'!M56) ->  | B51: =IF('DF raw data'!N56="","",'DF raw data'!N56) ->  | C51: =IF('DF raw data'!O56="","",'DF raw data'!O56) ->  | D51: =IF('DF raw data'!P56="","",'DF raw data'!P56) -> 
A52: =IF('DF raw data'!M57="","",'DF raw data'!M57) -> Monitor-Index | B52: =IF('DF raw data'!N57="","",'DF raw data'!N57) -> [1,1,4] | C52: =IF('DF raw data'!O57="","",'DF raw data'!O57) ->  | D52: =IF('DF raw data'!P57="","",'DF raw data'!P57) -> 
A53: =IF('DF raw data'!M58="","",'DF raw data'!M58) ->  | B53: =IF('DF raw data'!N58="","",'DF raw data'!N58) ->  | C53: =IF('DF raw data'!O58="","",'DF raw data'!O58) ->  | D53: =IF('DF raw data'!P58="","",'DF raw data'!P58) -> 
A54: =IF('DF raw data'!M59="","",'DF raw data'!M59) -> Time [s] | B54: =IF('DF raw data'!N59="","",'DF raw data'!N59) -> Y [mm] | C54: =IF('DF raw data'!O59="","",'DF raw data'!O59) -> X [mm] | D54: =IF('DF raw data'!P59="","",'DF raw data'!P59) -> Nominal current [A]
A55: =IF('DF raw data'!M60="","",'DF raw data'!M60) ->  | B55: =IF('DF raw data'!N60="","",'DF raw data'!N60) ->  | C55: =IF('DF raw data'!O60="","",'DF raw data'!O60) ->  | D55: =IF('DF raw data'!P60="","",'DF raw data'!P60) -> 
A56: =IF('DF raw data'!M61="","",'DF raw data'!M61) -> 208.4 | B56: =IF('DF raw data'!N61="","",'DF raw data'!N61) -> 31.86 | C56: =IF('DF raw data'!O61="","",'DF raw data'!O61) -> 302.3 | D56: =IF('DF raw data'!P61="","",'DF raw data'!P61) -> 0
A57: =IF('DF raw data'!M62="","",'DF raw data'!M62) ->  | B57: =IF('DF raw data'!N62="","",'DF raw data'!N62) ->  | C57: =IF('DF raw data'!O62="","",'DF raw data'!O62) ->  | D57: =IF('DF raw data'!P62="","",'DF raw data'!P62) -> 
A58: =IF('DF raw data'!M63="","",'DF raw data'!M63) -> Measurement-Index | B58: =IF('DF raw data'!N63="","",'DF raw data'!N63) -> [1,1,1201,2] | C58: =IF('DF raw data'!O63="","",'DF raw data'!O63) ->  | D58: =IF('DF raw data'!P63="","",'DF raw data'!P63) -> 
A59: =IF('DF raw data'!M64="","",'DF raw data'!M64) ->  | B59: =IF('DF raw data'!N64="","",'DF raw data'!N64) ->  | C59: =IF('DF raw data'!O64="","",'DF raw data'!O64) ->  | D59: =IF('DF raw data'!P64="","",'DF raw data'!P64) -> 
A60: =IF('DF raw data'!M65="","",'DF raw data'!M65) -> Z [mm] | B60: By [T] | C60: Bx [T] | D60: Bz [T] | F60: By_corr | G60: Bx_corr | H60: Bz_corr | J60: Iy | K60: Jy | L60: Ix | M60: Jx | N60: PI
A62: =IF('DF raw data'!M67="","",'DF raw data'!M67) -> -300 | B62: =IF('DF raw data'!N67="","",'DF raw data'!N67) -> -6.78506e-06 | C62: =IF('DF raw data'!O67="","",'DF raw data'!O67) -> 0.00023362 | D62: =IF('DF raw data'!P67="","",'DF raw data'!P67) -> -3.06119e-05 | F62: =(1-$G$1*($B$49))*B62 -> -6.95129397e-06 | G62: =(1-$G$1*($B$49-$G$2))*C62 -> 0.00023467129 | H62: =(1-$G$1*($B$49-$G$2))*D62 -> -3.074965355e-05 | J62: =F62*$G$3 -> -3.475646985e-06 | K62: =J62*$G$3 -> -1.737823492e-06 | L62: =G62*$G$3 -> 0.000117335645 | M62: =L62*$G$3 -> 5.86678225e-05 | N62: =(J62^2+L62^2)*$G$3 -> 6.889866855e-09
A63: =IF('DF raw data'!M68="","",'DF raw data'!M68) -> -299.5 | B63: =IF('DF raw data'!N68="","",'DF raw data'!N68) -> -2.11373e-05 | C63: =IF('DF raw data'!O68="","",'DF raw data'!O68) -> 0.000237696 | D63: =IF('DF raw data'!P68="","",'DF raw data'!P68) -> -2.99097e-05 | F63: =(1-$G$1*($B$49-$G$2))*B63 -> -2.123241785e-05 | G63: =(1-$G$1*($B$49-$G$2))*C63 -> 0.000238765632 | H63: -3.004429365e-05 | J63: =F63*$G$3+J62 -> -1.409185591e-05 | K63: =J63*$G$3+K62 -> -8.783751447e-06 | L63: =G63*$G$3+L62 -> 0.000236718461 | M63: =L63*$G$3+M62 -> 0.000177027053 | N63: =(J63^2+L63^2)*$G$3+N62 -> 3.500697195e-08
A64: =IF('DF raw data'!M69="","",'DF raw data'!M69) -> -299 | B64: =IF('DF raw data'!N69="","",'DF raw data'!N69) -> -1.28727e-05 | C64: =IF('DF raw data'!O69="","",'DF raw data'!O69) -> 0.000238271 | D64: =IF('DF raw data'!P69="","",'DF raw data'!P69) -> -2.88255e-05 | F64: =(1-$G$1*($B$49-$G$2))*B64 -> -1.293062715e-05 | G64: 0.0002393432195 | H64: -2.895521475e-05 | J64: =F64*$G$3+J63 -> -2.055716948e-05 | K64: =J64*$G$3+K63 -> -1.906233619e-05 | L64: =G64*$G$3+L63 -> 0.0003563900707 | M64: =L64*$G$3+M63 -> 0.0003552220884 | N64: =(J64^2+L64^2)*$G$3+N63 -> 9.872521182e-08
A65: =IF('DF raw data'!M70="","",'DF raw data'!M70) -> -298.5 | B65: =IF('DF raw data'!N70="","",'DF raw data'!N70) -> -2.069e-05 | C65: =IF('DF raw data'!O70="","",'DF raw data'!O70) -> 0.000237727 | D65: =IF('DF raw data'!P70="","",'DF raw data'!P70) -> -2.82494e-05 | F65: -2.0783105e-05 | G65: 0.0002387967715 | H65: -2.83765223e-05 | J65: -3.094872198e-05 | K65: -3.453669718e-05 | L65: 0.0004757884565 | M65: 0.0005931163166 | N65: 2.123914512e-07
A66: =IF('DF raw data'!M71="","",'DF raw data'!M71) -> -298 | B66: =IF('DF raw data'!N71="","",'DF raw data'!N71) -> -1.19123e-05 | C66: =IF('DF raw data'!O71="","",'DF raw data'!O71) -> 0.000248609 | D66: =IF('DF raw data'!P71="","",'DF raw data'!P71) -> -2.79725e-05 | F66: -1.196590535e-05 | G66: 0.0002497277405 | H66: -2.809837625e-05 | J66: -3.693167466e-05 | K66: -5.300253451e-05 | L66: 0.0006006523268 | M66: 0.00089344248 | N66: 3.934650343e-07
A67: =IF('DF raw data'!M72="","",'DF raw data'!M72) -> -297.5 | B67: =IF('DF raw data'!N72="","",'DF raw data'!N72) -> -1.85119e-05 | C67: =IF('DF raw data'!O72="","",'DF raw data'!O72) -> 0.000248432 | D67: =IF('DF raw data'!P72="","",'DF raw data'!P72) -> -2.74195e-05 | F67: -1.859520355e-05 | G67: 0.000249549944 | H67: -2.754288775e-05 | J67: -4.622927643e-05 | K67: -7.611717273e-05 | L67: 0.0007254272988 | M67: 0.001256156129 | N67: 6.576559902e-07
A68: =IF('DF raw data'!M73="","",'DF raw data'!M73) -> -297 | B68: =IF('DF raw data'!N73="","",'DF raw data'!N73) -> -1.15922e-05 | C68: =IF('DF raw data'!O73="","",'DF raw data'!O73) -> 0.000236509 | D68: =IF('DF raw data'!P73="","",'DF raw data'!P73) -> -2.73418e-05 | F68: -1.16443649e-05 | G68: 0.0002375732905 | H68: -2.74648381e-05 | J68: -5.205145888e-05 | K68: -0.0001021429022 | L68: 0.000844213944 | M68: 0.001678263101 | N68: 1.015359259e-06
A69: =IF('DF raw data'!M74="","",'DF raw data'!M74) -> -296.5 | B69: =IF('DF raw data'!N74="","",'DF raw data'!N74) -> 3.59355e-06 | C69: =IF('DF raw data'!O74="","",'DF raw data'!O74) -> 0.000232921 | D69: =IF('DF raw data'!P74="","",'DF raw data'!P74) -> -2.82632e-05 | F69: 3.609720975e-06 | G69: 0.0002339691445 | H69: -2.83903844e-05 | J69: -5.02465984e-05 | K69: -0.0001272662014 | L69: 0.0009611985163 | M69: 0.002158862359 | N69: 1.478572913e-06
A70: =IF('DF raw data'!M75="","",'DF raw data'!M75) -> -296 | B70: =IF('DF raw data'!N75="","",'DF raw data'!N75) -> -1.79344e-05 | C70: =IF('DF raw data'!O75="","",'DF raw data'!O75) -> 0.000237862 | D70: =IF('DF raw data'!P75="","",'DF raw data'!P75) -> -2.90212e-05 | F70: -1.80151048e-05 | G70: 0.000238932379 | H70: -2.91517954e-05 | J70: -5.92541508e-05 | K70: -0.0001568932768 | L70: 0.001080664706 | M70: 0.002699194712 | N70: 2.064246543e-06
A71: =IF('DF raw data'!M76="","",'DF raw data'!M76) -> -295.5 | B71: =IF('DF raw data'!N76="","",'DF raw data'!N76) -> -3.58208e-06 | C71: =IF('DF raw data'!O76="","",'DF raw data'!O76) -> 0.000241179 | D71: =IF('DF raw data'!P76="","",'DF raw data'!P76) -> -2.89248e-05 | F71: -3.59819936e-06 | G71: 0.0002422643055 | H71: -2.90549616e-05 | J71: -6.105325048e-05 | K71: -0.000187419902 | L71: 0.001201796859 | M71: 0.003300093142 | N71: 2.788268138e-06
A72: =IF('DF raw data'!M77="","",'DF raw data'!M77) -> -295 | B72: =IF('DF raw data'!N77="","",'DF raw data'!N77) -> -2.32528e-05 | C72: =IF('DF raw data'!O77="","",'DF raw data'!O77) -> 0.000248374 | D72: =IF('DF raw data'!P77="","",'DF raw data'!P77) -> -2.83168e-05 | F72: -2.33574376e-05 | G72: 0.000249491683 | H72: -2.84442256e-05 | J72: -7.273196928e-05 | K72: -0.0002237858866 | L72: 0.0013265427 | M72: 0.003963364492 | N72: 3.670770875e-06
A73: =IF('DF raw data'!M78="","",'DF raw data'!M78) -> -294.5 | B73: =IF('DF raw data'!N78="","",'DF raw data'!N78) -> -1.33995e-06 | C73: =IF('DF raw data'!O78="","",'DF raw data'!O78) -> 0.000251487 | D73: =IF('DF raw data'!P78="","",'DF raw data'!P78) -> -2.82511e-05 | F73: -1.345979775e-06 | G73: 0.0002526186915 | H73: -2.837822995e-05 | J73: -7.340495916e-05 | K73: -0.0002604883662 | L73: 0.001452852046 | M73: 0.004689790515 | N73: 4.728854552e-06
A74: =IF('DF raw data'!M79="","",'DF raw data'!M79) -> -294 | B74: =IF('DF raw data'!N79="","",'DF raw data'!N79) -> -1.65894e-05 | C74: =IF('DF raw data'!O79="","",'DF raw data'!O79) -> 0.000243898 | D74: =IF('DF raw data'!P79="","",'DF raw data'!P79) -> -2.81951e-05 | F74: -1.66640523e-05 | G74: 0.000244995541 | H74: -2.832197795e-05 | J74: -8.173698531e-05 | K74: -0.0003013568589 | L74: 0.001575349816 | M74: 0.005477465423 | N74: 5.973058541e-06
A75: =IF('DF raw data'!M80="","",'DF raw data'!M80) -> -293.5 | B75: =IF('DF raw data'!N80="","",'DF raw data'!N80) -> -9.99006e-06 | C75: =IF('DF raw data'!O80="","",'DF raw data'!O80) -> 0.000244973 | D75: =IF('DF raw data'!P80="","",'DF raw data'!P80) -> -2.77832e-05 | F75: -1.003501527e-05 | G75: 0.0002460753785 | H75: -2.79082244e-05 | J75: -8.675449295e-05 | K75: -0.0003447341054 | L75: 0.001698387506 | M75: 0.006326659175 | N75: 7.419081772e-06
A76: =IF('DF raw data'!M81="","",'DF raw data'!M81) -> -293 | B76: =IF('DF raw data'!N81="","",'DF raw data'!N81) -> -9.28556e-06 | C76: =IF('DF raw data'!O81="","",'DF raw data'!O81) -> 0.000244582 | D76: =IF('DF raw data'!P81="","",'DF raw data'!P81) -> -2.75927e-05 | F76: -9.32734502e-06 | G76: 0.000245682619 | H76: -2.771686715e-05 | J76: -9.141816546e-05 | K76: -0.0003904431881 | L76: 0.001821228815 | M76: 0.007237273583 | N76: 9.081697611e-06
A77: =IF('DF raw data'!M82="","",'DF raw data'!M82) -> -292.5 | B77: =IF('DF raw data'!N82="","",'DF raw data'!N82) -> 9.66657e-07 | C77: =IF('DF raw data'!O82="","",'DF raw data'!O82) -> 0.000238148 | D77: =IF('DF raw data'!P82="","",'DF raw data'!P82) -> -2.84052e-05 | F77: 9.710069565e-07 | G77: 0.000239219666 | H77: -2.85330234e-05 | J77: -9.093266198e-05 | K77: -0.0004359095191 | L77: 0.001940838648 | M77: 0.008207692907 | N77: 1.096925931e-05
A78: =IF('DF raw data'!M83="","",'DF raw data'!M83) -> -292 | B78: =IF('DF raw data'!N83="","",'DF raw data'!N83) -> -8.83575e-06 | C78: =IF('DF raw data'!O83="","",'DF raw data'!O83) -> 0.000232525 | D78: =IF('DF raw data'!P83="","",'DF raw data'!P83) -> -2.94331e-05 | F78: -8.875510875e-06 | G78: 0.0002335713625 | H78: -2.956554895e-05 | J78: -9.537041742e-05 | K78: -0.0004835947278 | L78: 0.002057624329 | M78: 0.009236505072 | N78: 1.309071601e-05
A79: =IF('DF raw data'!M84="","",'DF raw data'!M84) -> -291.5 | B79: =IF('DF raw data'!N84="","",'DF raw data'!N84) -> -7.81628e-06 | C79: =IF('DF raw data'!O84="","",'DF raw data'!O84) -> 0.00023202 | D79: =IF('DF raw data'!P84="","",'DF raw data'!P84) -> -2.07105e-05 | F79: -7.85145326e-06 | G79: 0.00023306409 | H79: -2.080369725e-05 | J79: -9.929614405e-05 | K79: -0.0005332427998 | L79: 0.002174156374 | M79: 0.01032358326 | N79: 1.545912384e-05
A80: =IF('DF raw data'!M85="","",'DF raw data'!M85) -> -291 | B80: =IF('DF raw data'!N85="","",'DF raw data'!N85) -> -2.58265e-05 | C80: =IF('DF raw data'!O85="","",'DF raw data'!O85) -> 0.000234428 | D80: =IF('DF raw data'!P85="","",'DF raw data'!P85) -> -1.14711e-05 | F80: -2.594271925e-05 | G80: 0.000235482926 | H80: -1.152271995e-05 | J80: -0.0001122675037 | K80: -0.0005893765517 | L80: 0.002291897837 | M80: 0.01146953218 | N80: 1.809182369e-05
A81: =IF('DF raw data'!M86="","",'DF raw data'!M86) -> -290.5 | B81: =IF('DF raw data'!N86="","",'DF raw data'!N86) -> -3.46696e-06 | C81: =IF('DF raw data'!O86="","",'DF raw data'!O86) -> 0.000233262 | D81: =IF('DF raw data'!P86="","",'DF raw data'!P86) -> -8.86261e-06 | F81: -3.48256132e-06 | G81: 0.000234311679 | H81: -8.902491745e-06 | J81: -0.0001140087843 | K81: -0.0006463809438 | L81: 0.002409053677 | M81: 0.01267405902 | N81: 2.10000925e-05
A82: =IF('DF raw data'!M87="","",'DF raw data'!M87) -> -290 | B82: =IF('DF raw data'!N87="","",'DF raw data'!N87) -> -7.94484e-06 | C82: =IF('DF raw data'!O87="","",'DF raw data'!O87) -> 0.00023831 | D82: =IF('DF raw data'!P87="","",'DF raw data'!P87) -> -2.00699e-05 | F82: -7.98059178e-06 | G82: 0.000239382395 | H82: -2.016021455e-05 | J82: -0.0001179990802 | K82: -0.0007053804839 | L82: 0.002528744874 | M82: 0.01393843145 | N82: 2.420432971e-05
A83: =IF('DF raw data'!M88="","",'DF raw data'!M88) -> -289.5 | B83: =IF('DF raw data'!N88="","",'DF raw data'!N88) -> -9.23474e-06 | C83: =IF('DF raw data'!O88="","",'DF raw data'!O88) -> 0.000233142 | D83: =IF('DF raw data'!P88="","",'DF raw data'!P88) -> -6.93834e-06 | F83: -9.27629633e-06 | G83: 0.000234191139 | H83: -6.96956253e-06 | J83: -0.0001226372284 | K83: -0.0007666990981 | L83: 0.002645840444 | M83: 0.01526135167 | N83: 2.771208548e-05
A84: =IF('DF raw data'!M89="","",'DF raw data'!M89) -> -289 | B84: =IF('DF raw data'!N89="","",'DF raw data'!N89) -> -2.41618e-05 | C84: =IF('DF raw data'!O89="","",'DF raw data'!O89) -> 0.00023039 | D84: =IF('DF raw data'!P89="","",'DF raw data'!P89) -> -9.85317e-06 | F84: -2.42705281e-05 | G84: 0.000231426755 | H84: -9.897509265e-06 | J84: -0.0001347724924 | K84: -0.0008340853443 | L84: 0.002761553821 | M84: 0.01664212859 | N84: 3.153425705e-05
A85: =IF('DF raw data'!M90="","",'DF raw data'!M90) -> -288.5 | B85: =IF('DF raw data'!N90="","",'DF raw data'!N90) -> -1.03823e-05 | C85: =IF('DF raw data'!O90="","",'DF raw data'!O90) -> 0.000229082 | D85: =IF('DF raw data'!P90="","",'DF raw data'!P90) -> -1.57868e-05 | F85: -1.042902035e-05 | G85: 0.000230112869 | H85: -1.58578406e-05 | J85: -0.0001399870026 | K85: -0.0009040788457 | L85: 0.002876610256 | M85: 0.01808043371 | N85: 3.568149851e-05
A86: =IF('DF raw data'!M91="","",'DF raw data'!M91) -> -288 | B86: =IF('DF raw data'!N91="","",'DF raw data'!N91) -> -5.96722e-06 | C86: =IF('DF raw data'!O91="","",'DF raw data'!O91) -> 0.000228038 | D86: =IF('DF raw data'!P91="","",'DF raw data'!P91) -> -6.70701e-06 | F86: -5.99407249e-06 | G86: 0.000229064171 | H86: -6.737191545e-06 | J86: -0.0001429840389 | K86: -0.0009755708651 | L86: 0.002991142341 | M86: 0.01957600488 | N86: 4.016518698e-05
A87: =IF('DF raw data'!M92="","",'DF raw data'!M92) -> -287.5 | B87: =IF('DF raw data'!N92="","",'DF raw data'!N92) -> 3.19697e-07 | C87: =IF('DF raw data'!O92="","",'DF raw data'!O92) -> 0.00023022 | D87: =IF('DF raw data'!P92="","",'DF raw data'!P92) -> -1.87476e-05 | F87: 3.211356365e-07 | G87: 0.00023125599 | H87: -1.88319642e-05 | J87: -0.000142823471 | K87: -0.001046982601 | L87: 0.003106770336 | M87: 0.02112939005 | N87: 4.500139721e-05
A88: =IF('DF raw data'!M93="","",'DF raw data'!M93) -> -287 | B88: =IF('DF raw data'!N93="","",'DF raw data'!N93) -> 1.65632e-06 | C88: =IF('DF raw data'!O93="","",'DF raw data'!O93) -> 0.000229599 | D88: =IF('DF raw data'!P93="","",'DF raw data'!P93) -> -4.91178e-06 | F88: 1.66377344e-06 | G88: 0.0002306321955 | H88: -4.93388301e-06 | J88: -0.0001419915843 | K88: -0.001117978393 | L88: 0.003222086434 | M88: 0.02274043327 | N88: 5.020239851e-05
A89: =IF('DF raw data'!M94="","",'DF raw data'!M94) -> -286.5 | B89: =IF('DF raw data'!N94="","",'DF raw data'!N94) -> -5.32536e-06 | C89: =IF('DF raw data'!O94="","",'DF raw data'!O94) -> 0.000229593 | D89: =IF('DF raw data'!P94="","",'DF raw data'!P94) -> -8.48805e-06 | F89: -5.34932412e-06 | G89: 0.0002306261685 | H89: -8.526246225e-06 | J89: -0.0001446662464 | K89: -0.001190311516 | L89: 0.003337399518 | M89: 0.02440913303 | N89: 5.578198045e-05
A90: =IF('DF raw data'!M95="","",'DF raw data'!M95) -> -286 | B90: =IF('DF raw data'!N95="","",'DF raw data'!N95) -> -1.34046e-05 | C90: =IF('DF raw data'!O95="","",'DF raw data'!O95) -> 0.000237639 | D90: =IF('DF raw data'!P95="","",'DF raw data'!P95) -> 1.10079e-06 | F90: -1.34649207e-05 | G90: 0.0002387083755 | H90: 1.105743555e-06 | J90: -0.0001513987067 | K90: -0.001266010869 | L90: 0.003456753706 | M90: 0.02613750988 | N90: 6.176801432e-05
A91: =IF('DF raw data'!M96="","",'DF raw data'!M96) -> -285.5 | B91: =IF('DF raw data'!N96="","",'DF raw data'!N96) -> -6.86781e-06 | C91: =IF('DF raw data'!O96="","",'DF raw data'!O96) -> 0.000246056 | D91: =IF('DF raw data'!P96="","",'DF raw data'!P96) -> -1.1137e-06 | F91: -6.898715145e-06 | G91: 0.000247163252 | H91: -1.11871165e-06 | J91: -0.0001548480643 | K91: -0.001343434901 | L91: 0.003580335332 | M91: 0.02792767755 | N91: 6.818940383e-05
A92: =IF('DF raw data'!M97="","",'DF raw data'!M97) -> -285 | B92: =IF('DF raw data'!N97="","",'DF raw data'!N97) -> -9.81047e-06 | C92: =IF('DF raw data'!O97="","",'DF raw data'!O97) -> 0.000254723 | D92: =IF('DF raw data'!P97="","",'DF raw data'!P97) -> -8.55724e-06 | F92: -9.854617115e-06 | G92: 0.0002558692535 | H92: -8.59574758e-06 | J92: -0.0001597753729 | K92: -0.001423322588 | L92: 0.003708269959 | M92: 0.02978181253 | N92: 7.507780096e-05
A93: =IF('DF raw data'!M98="","",'DF raw data'!M98) -> -284.5 | B93: =IF('DF raw data'!N98="","",'DF raw data'!N98) -> -1.55702e-05 | C93: =IF('DF raw data'!O98="","",'DF raw data'!O98) -> 0.000245499 | D93: =IF('DF raw data'!P98="","",'DF raw data'!P98) -> -1.9017e-05 | F93: -1.56402659e-05 | G93: 0.0002466037455 | H93: -1.91025765e-05 | J93: -0.0001675955058 | K93: -0.001507120341 | L93: 0.003831571832 | M93: 0.03169759844 | N93: 8.243231643e-05
A94: =IF('DF raw data'!M99="","",'DF raw data'!M99) -> -284 | B94: =IF('DF raw data'!N99="","",'DF raw data'!N99) -> -2.05259e-06 | C94: =IF('DF raw data'!O99="","",'DF raw data'!O99) -> 0.000237138 | D94: =IF('DF raw data'!P99="","",'DF raw data'!P99) -> -1.63202e-05 | F94: -2.061826655e-06 | G94: 0.000238205121 | H94: -1.63936409e-05 | J94: -0.0001686264191 | K94: -0.00159143355 | L94: 0.003950674392 | M94: 0.03367293564 | N94: 9.025044794e-05
A95: =IF('DF raw data'!M100="","",'DF raw data'!M100) -> -283.5 | B95: =IF('DF raw data'!N100="","",'DF raw data'!N100) -> -9.41844e-06 | C95: =IF('DF raw data'!O100="","",'DF raw data'!O100) -> 0.000235915 | D95: =IF('DF raw data'!P100="","",'DF raw data'!P100) -> -2.02807e-05 | F95: -9.46082298e-06 | G95: 0.0002369766175 | H95: -2.037196315e-05 | J95: -0.0001733568306 | K95: -0.001678111966 | L95: 0.004069162701 | M95: 0.03570751699 | N95: 9.854451678e-05
A96: =IF('DF raw data'!M101="","",'DF raw data'!M101) -> -283 | B96: =IF('DF raw data'!N101="","",'DF raw data'!N101) -> -1.89642e-05 | C96: =IF('DF raw data'!O101="","",'DF raw data'!O101) -> 0.000241447 | D96: =IF('DF raw data'!P101="","",'DF raw data'!P101) -> -2.1904e-05 | F96: -1.90495389e-05 | G96: 0.0002425335115 | H96: -2.2002568e-05 | J96: -0.0001828816001 | K96: -0.001769552766 | L96: 0.004190429457 | M96: 0.03780273172 | N96: 0.0001073410891
A97: =IF('DF raw data'!M102="","",'DF raw data'!M102) -> -282.5 | B97: =IF('DF raw data'!N102="","",'DF raw data'!N102) -> -1.36507e-05 | C97: =IF('DF raw data'!O102="","",'DF raw data'!O102) -> 0.000245661 | D97: =IF('DF raw data'!P102="","",'DF raw data'!P102) -> -1.46087e-05 | F97: -1.371212815e-05 | G97: 0.0002467664745 | H97: -1.467443915e-05 | J97: -0.0001897376642 | K97: -0.001864421598 | L97: 0.004313812694 | M97: 0.03995963806 | N97: 0.0001166635793
A98: =IF('DF raw data'!M103="","",'DF raw data'!M103) -> -282 | B98: =IF('DF raw data'!N103="","",'DF raw data'!N103) -> -7.43118e-06 | C98: =IF('DF raw data'!O103="","",'DF raw data'!O103) -> 0.000243422 | D98: =IF('DF raw data'!P103="","",'DF raw data'!P103) -> -2.17827e-05 | F98: -7.46462031e-06 | G98: 0.000244517399 | H98: -2.188072215e-05 | J98: -0.0001934699743 | K98: -0.001961156585 | L98: 0.004436071393 | M98: 0.04217767376 | N98: 0.0001265216593
A99: =IF('DF raw data'!M104="","",'DF raw data'!M104) -> -281.5 | B99: =IF('DF raw data'!N104="","",'DF raw data'!N104) -> -1.2946e-05 | C99: =IF('DF raw data'!O104="","",'DF raw data'!O104) -> 0.000239644 | D99: =IF('DF raw data'!P104="","",'DF raw data'!P104) -> -1.4773e-05 | F99: -1.3004257e-05 | G99: 0.000240722398 | H99: -1.48394785e-05 | J99: -0.0001999721028 | K99: -0.002061142636 | L99: 0.004556432592 | M99: 0.04445589006 | N99: 0.0001369221927
A100: =IF('DF raw data'!M105="","",'DF raw data'!M105) -> -281 | B100: =IF('DF raw data'!N105="","",'DF raw data'!N105) -> -2.95762e-06 | C100: =IF('DF raw data'!O105="","",'DF raw data'!O105) -> 0.000241305 | D100: =IF('DF raw data'!P105="","",'DF raw data'!P105) -> -3.90675e-06 | F100: -2.97092929e-06 | G100: 0.0002423908725 | H100: -3.924330375e-06 | J100: -0.0002014575675 | K100: -0.00216187142 | L100: 0.004677628029 | M100: 0.04679470407 | N100: 0.0001478825873
A101: =IF('DF raw data'!M106="","",'DF raw data'!M106) -> -280.5 | B101: =IF('DF raw data'!N106="","",'DF raw data'!N106) -> -1.25002e-05 | C101: =IF('DF raw data'!O106="","",'DF raw data'!O106) -> 0.000239985 | D101: =IF('DF raw data'!P106="","",'DF raw data'!P106) -> -1.03903e-05 | F101: -1.25564509e-05 | G101: 0.0002410649325 | H101: -1.043705635e-05 | J101: -0.0002077357929 | K101: -0.002265739317 | L101: 0.004798160495 | M101: 0.04919378432 | N101: 0.0001594153364
A102: =IF('DF raw data'!M107="","",'DF raw data'!M107) -> -280 | B102: =IF('DF raw data'!N107="","",'DF raw data'!N107) -> -1.69211e-05 | C102: =IF('DF raw data'!O107="","",'DF raw data'!O107) -> 0.000241852 | D102: =IF('DF raw data'!P107="","",'DF raw data'!P107) -> -1.04785e-05 | F102: -1.699724495e-05 | G102: 0.000242940334 | H102: -1.052565325e-05 | J102: -0.0002162344154 | K102: -0.002373856524 | L102: 0.004919630662 | M102: 0.05165359965 | N102: 0.000171540098
A103: =IF('DF raw data'!M108="","",'DF raw data'!M108) -> -279.5 | B103: =IF('DF raw data'!N108="","",'DF raw data'!N108) -> -1.06332e-05 | C103: =IF('DF raw data'!O108="","",'DF raw data'!O108) -> 0.000239941 | D103: =IF('DF raw data'!P108="","",'DF raw data'!P108) -> -2.40657e-05 | F103: -1.06810494e-05 | G103: 0.0002410207345 | H103: -2.417399565e-05 | J103: -0.0002215749401 | K103: -0.002484643994 | L103: 0.005040141029 | M103: 0.05417367016 | N103: 0.0001842661565
A104: =IF('DF raw data'!M109="","",'DF raw data'!M109) -> -279 | B104: =IF('DF raw data'!N109="","",'DF raw data'!N109) -> -1.65348e-05 | C104: =IF('DF raw data'!O109="","",'DF raw data'!O109) -> 0.00023824 | D104: =IF('DF raw data'!P109="","",'DF raw data'!P109) -> -1.34437e-05 | F104: -1.66092066e-05 | G104: 0.00023931208 | H104: -1.350419665e-05 | J104: -0.0002298795434 | K104: -0.002599583766 | L104: 0.005159797069 | M104: 0.0567535687 | N104: 0.0001976043317
A105: =IF('DF raw data'!M110="","",'DF raw data'!M110) -> -278.5 | B105: =IF('DF raw data'!N110="","",'DF raw data'!N110) -> -1.83311e-05 | C105: =IF('DF raw data'!O110="","",'DF raw data'!O110) -> 0.000244033 | D105: =IF('DF raw data'!P110="","",'DF raw data'!P110) -> -1.01438e-05 | F105: -1.841358995e-05 | G105: 0.0002451311485 | H105: -1.01894471e-05 | J105: -0.0002390863384 | K105: -0.002719126935 | L105: 0.005282362643 | M105: 0.05939475002 | N105: 0.0002115845904
A106: =IF('DF raw data'!M111="","",'DF raw data'!M111) -> -278 | B106: =IF('DF raw data'!N111="","",'DF raw data'!N111) -> -5.96606e-06 | C106: =IF('DF raw data'!O111="","",'DF raw data'!O111) -> 0.00024536 | D106: =IF('DF raw data'!P111="","",'DF raw data'!P111) -> -8.5049e-06 | F106: -5.99290727e-06 | G106: 0.00024646412 | H106: -8.54317205e-06 | J106: -0.000242082792 | K106: -0.002840168331 | L106: 0.005405594703 | M106: 0.06209754737 | N106: 0.0002262241195
A107: =IF('DF raw data'!M112="","",'DF raw data'!M112) -> -277.5 | B107: =IF('DF raw data'!N112="","",'DF raw data'!N112) -> -3.02205e-06 | C107: =IF('DF raw data'!O112="","",'DF raw data'!O112) -> 0.000244368 | D107: =IF('DF raw data'!P112="","",'DF raw data'!P112) -> -3.55906e-06 | F107: -3.035649225e-06 | G107: 0.000245467656 | H107: -3.57507577e-06 | J107: -0.0002436006166 | K107: -0.002961968639 | L107: 0.005528328531 | M107: 0.06486171164 | N107: 0.0002415349983
A108: =IF('DF raw data'!M113="","",'DF raw data'!M113) -> -277 | B108: =IF('DF raw data'!N113="","",'DF raw data'!N113) -> -1.95537e-05 | C108: =IF('DF raw data'!O113="","",'DF raw data'!O113) -> 0.000243697 | D108: =IF('DF raw data'!P113="","",'DF raw data'!P113) -> -1.89663e-06 | F108: -1.964169165e-05 | G108: 0.0002447936365 | H108: -1.905164835e-06 | J108: -0.0002534214624 | K108: -0.003088679371 | L108: 0.00565072535 | M108: 0.06768707431 | N108: 0.000257532458
A109: =IF('DF raw data'!M114="","",'DF raw data'!M114) -> -276.5 | B109: =IF('DF raw data'!N114="","",'DF raw data'!N114) -> -2.95113e-06 | C109: =IF('DF raw data'!O114="","",'DF raw data'!O114) -> 0.000239253 | D109: =IF('DF raw data'!P114="","",'DF raw data'!P114) -> -1.39147e-05 | F109: -2.964410085e-06 | G109: 0.0002403296385 | H109: -1.397731615e-05 | J109: -0.0002549036675 | K109: -0.003216131204 | L109: 0.005770890169 | M109: 0.0705725194 | N109: 0.0002742165326
A110: =IF('DF raw data'!M115="","",'DF raw data'!M115) -> -276 | B110: =IF('DF raw data'!N115="","",'DF raw data'!N115) -> -1.37784e-05 | C110: =IF('DF raw data'!O115="","",'DF raw data'!O115) -> 0.000223677 | D110: =IF('DF raw data'!P115="","",'DF raw data'!P115) -> -1.53876e-05 | F110: -1.38404028e-05 | G110: 0.0002246835465 | H110: -1.54568442e-05 | J110: -0.0002618238689 | K110: -0.003347043139 | L110: 0.005883231942 | M110: 0.07351413537 | N110: 0.0002915570176
A111: =IF('DF raw data'!M116="","",'DF raw data'!M116) -> -275.5 | B111: =IF('DF raw data'!N116="","",'DF raw data'!N116) -> -1.4161e-05 | C111: =IF('DF raw data'!O116="","",'DF raw data'!O116) -> 0.000229223 | D111: =IF('DF raw data'!P116="","",'DF raw data'!P116) -> -1.81612e-05 | F111: -1.42247245e-05 | G111: 0.0002302545035 | H111: -1.82429254e-05 | J111: -0.0002689362311 | K111: -0.003481511254 | L111: 0.005998359194 | M111: 0.07651331496 | N111: 0.0003095833374
A112: =IF('DF raw data'!M117="","",'DF raw data'!M117) -> -275 | B112: =IF('DF raw data'!N117="","",'DF raw data'!N117) -> -8.85194e-06 | C112: =IF('DF raw data'!O117="","",'DF raw data'!O117) -> 0.000236742 | D112: =IF('DF raw data'!P117="","",'DF raw data'!P117) -> -4.50123e-06 | F112: -8.89177373e-06 | G112: 0.000237807339 | H112: -4.521485535e-06 | J112: -0.000273382118 | K112: -0.003618202313 | L112: 0.006117262863 | M112: 0.0795719464 | N112: 0.0003283311588
A113: =IF('DF raw data'!M118="","",'DF raw data'!M118) -> -274.5 | B113: =IF('DF raw data'!N118="","",'DF raw data'!N118) -> -1.75661e-05 | C113: =IF('DF raw data'!O118="","",'DF raw data'!O118) -> 0.000230674 | D113: =IF('DF raw data'!P118="","",'DF raw data'!P118) -> -4.21185e-06 | F113: -1.764514745e-05 | G113: 0.000231712033 | H113: -4.230803325e-06 | J113: -0.0002822046917 | K113: -0.003759304659 | L113: 0.00623311888 | M113: 0.08268850584 | N113: 0.000347796864
A114: =IF('DF raw data'!M119="","",'DF raw data'!M119) -> -274 | B114: =IF('DF raw data'!N119="","",'DF raw data'!N119) -> -6.79592e-06 | C114: =IF('DF raw data'!O119="","",'DF raw data'!O119) -> 0.000232792 | D114: =IF('DF raw data'!P119="","",'DF raw data'!P119) -> -1.34173e-05 | F114: -6.82650164e-06 | G114: 0.000233839564 | H114: -1.347767785e-05 | J114: -0.0002856179425 | K114: -0.00390211363 | L114: 0.006350038662 | M114: 0.08586352517 | N114: 0.0003679991483
A115: =IF('DF raw data'!M120="","",'DF raw data'!M120) -> -273.5 | B115: =IF('DF raw data'!N120="","",'DF raw data'!N120) -> -2.06362e-05 | C115: =IF('DF raw data'!O120="","",'DF raw data'!O120) -> 0.00023447 | D115: =IF('DF raw data'!P120="","",'DF raw data'!P120) -> -1.24356e-05 | F115: -2.07290629e-05 | G115: 0.000235525115 | H115: -1.24915602e-05 | J115: -0.000295982474 | K115: -0.004050104867 | L115: 0.006467801219 | M115: 0.08909742578 | N115: 0.0003889591774
A116: =IF('DF raw data'!M121="","",'DF raw data'!M121) -> -273 | B116: =IF('DF raw data'!N121="","",'DF raw data'!N121) -> -3.14609e-05 | C116: =IF('DF raw data'!O121="","",'DF raw data'!O121) -> 0.000244348 | D116: =IF('DF raw data'!P121="","",'DF raw data'!P121) -> -1.78262e-05 | F116: -3.160247405e-05 | G116: 0.000245447566 | H116: -1.79064179e-05 | J116: -0.000311783711 | K116: -0.004205996723 | L116: 0.006590525002 | M116: 0.09239268828 | N116: 0.0004107252919
A117: =IF('DF raw data'!M122="","",'DF raw data'!M122) -> -272.5 | B117: =IF('DF raw data'!N122="","",'DF raw data'!N122) -> -2.03784e-05 | C117: =IF('DF raw data'!O122="","",'DF raw data'!O122) -> 0.000245301 | D117: =IF('DF raw data'!P122="","",'DF raw data'!P122) -> -1.4718e-05 | F117: -2.04701028e-05 | G117: 0.0002464048545 | H117: -1.4784231e-05 | J117: -0.0003220187624 | K117: -0.004367006104 | L117: 0.00671372743 | M117: 0.09574955199 | N117: 0.0004333142079
A118: =IF('DF raw data'!M123="","",'DF raw data'!M123) -> -272 | B118: =IF('DF raw data'!N123="","",'DF raw data'!N123) -> -1.6211e-05 | C118: =IF('DF raw data'!O123="","",'DF raw data'!O123) -> 0.000243655 | D118: =IF('DF raw data'!P123="","",'DF raw data'!P123) -> -1.89683e-05 | F118: -1.62839495e-05 | G118: 0.0002447514475 | H118: -1.905365735e-05 | J118: -0.0003301607372 | K118: -0.004532086473 | L118: 0.006836103153 | M118: 0.09916760357 | N118: 0.0004567348641
A119: =IF('DF raw data'!M124="","",'DF raw data'!M124) -> -271.5 | B119: =IF('DF raw data'!N124="","",'DF raw data'!N124) -> -1.86544e-05 | C119: =IF('DF raw data'!O124="","",'DF raw data'!O124) -> 0.000236904 | D119: =IF('DF raw data'!P124="","",'DF raw data'!P124) -> -5.45849e-06 | F119: -1.87383448e-05 | G119: 0.000237970068 | H119: -5.483053205e-06 | J119: -0.0003395299096 | K119: -0.004701851428 | L119: 0.006955088187 | M119: 0.1026451477 | N119: 0.0004809791302
A120: =IF('DF raw data'!M125="","",'DF raw data'!M125) -> -271 | B120: =IF('DF raw data'!N125="","",'DF raw data'!N125) -> -9.23015e-06 | C120: =IF('DF raw data'!O125="","",'DF raw data'!O125) -> 0.000235048 | D120: =IF('DF raw data'!P125="","",'DF raw data'!P125) -> -1.4085e-05 | F120: -9.271685675e-06 | G120: 0.000236105716 | H120: -1.41483825e-05 | J120: -0.0003441657524 | K120: -0.004873934304 | L120: 0.007073141045 | M120: 0.1061817182 | N120: 0.0005060530174
A121: =IF('DF raw data'!M126="","",'DF raw data'!M126) -> -270.5 | B121: =IF('DF raw data'!N126="","",'DF raw data'!N126) -> -1.53169e-05 | C121: =IF('DF raw data'!O126="","",'DF raw data'!O126) -> 0.000237801 | D121: =IF('DF raw data'!P126="","",'DF raw data'!P126) -> -1.45688e-05 | F121: -1.538582605e-05 | G121: 0.0002388711045 | H121: -1.46343596e-05 | J121: -0.0003518586654 | K121: -0.005049863636 | L121: 0.007192576598 | M121: 0.1097780065 | N121: 0.0005319814987
A122: =IF('DF raw data'!M127="","",'DF raw data'!M127) -> -270 | B122: =IF('DF raw data'!N127="","",'DF raw data'!N127) -> -9.29842e-06 | C122: =IF('DF raw data'!O127="","",'DF raw data'!O127) -> 0.000245981 | D122: =IF('DF raw data'!P127="","",'DF raw data'!P127) -> -7.81287e-06 | F122: -9.34026289e-06 | G122: 0.0002470879145 | H122: -7.848027915e-06 | J122: -0.0003565287969 | K122: -0.005228128035 | L122: 0.007316120555 | M122: 0.1134360668 | N122: 0.0005588078651
A123: =IF('DF raw data'!M128="","",'DF raw data'!M128) -> -269.5 | B123: =IF('DF raw data'!N128="","",'DF raw data'!N128) -> -2.0385e-05 | C123: =IF('DF raw data'!O128="","",'DF raw data'!O128) -> 0.000239604 | D123: =IF('DF raw data'!P128="","",'DF raw data'!P128) -> -4.50076e-06 | F123: -2.04767325e-05 | G123: 0.000240682218 | H123: -4.52101342e-06 | J123: -0.0003667671631 | K123: -0.005411511616 | L123: 0.007436461664 | M123: 0.1171542976 | N123: 0.0005865256052
A124: =IF('DF raw data'!M129="","",'DF raw data'!M129) -> -269 | B124: =IF('DF raw data'!N129="","",'DF raw data'!N129) -> -9.9368e-06 | C124: =IF('DF raw data'!O129="","",'DF raw data'!O129) -> 0.00023859 | D124: =IF('DF raw data'!P129="","",'DF raw data'!P129) -> -1.13895e-05 | F124: -9.9815156e-06 | G124: 0.000239663655 | H124: -1.144075275e-05 | J124: -0.0003717579209 | K124: -0.005597390577 | L124: 0.007556293491 | M124: 0.1209324443 | N124: 0.0006151434929
A125: =IF('DF raw data'!M130="","",'DF raw data'!M130) -> -268.5 | B125: =IF('DF raw data'!N130="","",'DF raw data'!N130) -> -1.87132e-05 | C125: =IF('DF raw data'!O130="","",'DF raw data'!O130) -> 0.000240338 | D125: =IF('DF raw data'!P130="","",'DF raw data'!P130) -> -1.37292e-05 | F125: -1.87974094e-05 | G125: 0.000241419521 | H125: -1.37909814e-05 | J125: -0.0003811566256 | K125: -0.00578796889 | L125: 0.007677003252 | M125: 0.124770946 | N125: 0.0006446843225
A126: =IF('DF raw data'!M131="","",'DF raw data'!M131) -> -268 | B126: =IF('DF raw data'!N131="","",'DF raw data'!N131) -> -1.53253e-05 | C126: =IF('DF raw data'!O131="","",'DF raw data'!O131) -> 0.000241496 | D126: =IF('DF raw data'!P131="","",'DF raw data'!P131) -> -1.58611e-06 | F126: -1.539426385e-05 | G126: 0.000242582732 | H126: -1.593247495e-06 | J126: -0.0003888537575 | K126: -0.005982395768 | L126: 0.007798294618 | M126: 0.1286700933 | N126: 0.0006751666256
A127: =IF('DF raw data'!M132="","",'DF raw data'!M132) -> -267.5 | B127: =IF('DF raw data'!N132="","",'DF raw data'!N132) -> -1.43589e-05 | C127: =IF('DF raw data'!O132="","",'DF raw data'!O132) -> 0.000239633 | D127: =IF('DF raw data'!P132="","",'DF raw data'!P132) -> -9.55966e-06 | F127: -1.442351505e-05 | G127: 0.0002407113485 | H127: -9.60267847e-06 | J127: -0.0003960655151 | K127: -0.006180428526 | L127: 0.007918650292 | M127: 0.1326294184 | N127: 0.0007065975708
A128: =IF('DF raw data'!M133="","",'DF raw data'!M133) -> -267 | B128: =IF('DF raw data'!N133="","",'DF raw data'!N133) -> -2.23702e-05 | C128: =IF('DF raw data'!O133="","",'DF raw data'!O133) -> 0.00024578 | D128: =IF('DF raw data'!P133="","",'DF raw data'!P133) -> -6.26626e-06 | F128: =(1-$G$1*($B$49-$G$2))*B128 -> -2.24708659e-05 | G128: 0.00024688601 | H128: -6.29445817e-06 | J128: =F128*$G$3+J127 -> -0.000407300948 | K128: =J128*$G$3+K127 -> -0.006384079 | L128: =G128*$G$3+L127 -> 0.008042093297 | M128: =L128*$G$3+M127 -> 0.1366504651 | N128: =(J128^2+L128^2)*$G$3+N127 -> 0.0007390181501
A129: =IF('DF raw data'!M134="","",'DF raw data'!M134) -> -266.5 | B129: =IF('DF raw data'!N134="","",'DF raw data'!N134) -> -1.24323e-05 | C129: =IF('DF raw data'!O134="","",'DF raw data'!O134) -> 0.000232225 | D129: =IF('DF raw data'!P134="","",'DF raw data'!P134) -> -1.663e-05 | F129: -1.248824535e-05 | G129: 0.0002332700125 | H129: -1.6704835e-05 | J129: -0.0004135450707 | K129: -0.006590851535 | L129: 0.008158728303 | M129: 0.1407298292 | N129: 0.0007723860836
A130: =IF('DF raw data'!M135="","",'DF raw data'!M135) -> -266 | B130: =IF('DF raw data'!N135="","",'DF raw data'!N135) -> -7.63011e-06 | C130: =IF('DF raw data'!O135="","",'DF raw data'!O135) -> 0.000231662 | D130: =IF('DF raw data'!P135="","",'DF raw data'!P135) -> -1.13116e-05 | F130: -7.664445495e-06 | G130: 0.000232704479 | H130: -1.13625022e-05 | J130: -0.0004173772934 | K130: -0.006799540182 | L130: 0.008275080543 | M130: 0.1448673695 | N130: 0.0008067116645
A131: =IF('DF raw data'!M136="","",'DF raw data'!M136) -> -265.5 | B131: =IF('DF raw data'!N136="","",'DF raw data'!N136) -> -1.80076e-05 | C131: =IF('DF raw data'!O136="","",'DF raw data'!O136) -> 0.000234763 | D131: =IF('DF raw data'!P136="","",'DF raw data'!P136) -> -1.48201e-05 | F131: -1.80886342e-05 | G131: 0.0002358194335 | H131: -1.488679045e-05 | J131: -0.0004264216105 | K131: -0.007012750987 | L131: 0.00839299026 | M131: 0.1490638646 | N131: 0.000842023725
A132: =IF('DF raw data'!M137="","",'DF raw data'!M137) -> -265 | B132: =IF('DF raw data'!N137="","",'DF raw data'!N137) -> -1.5251e-05 | C132: =IF('DF raw data'!O137="","",'DF raw data'!O137) -> 0.000234789 | D132: =IF('DF raw data'!P137="","",'DF raw data'!P137) -> -1.72857e-05 | F132: -1.53196295e-05 | G132: 0.0002358455505 | H132: -1.736348565e-05 | J132: -0.0004340814253 | K132: -0.0072297917 | L132: 0.008510913035 | M132: 0.1533193211 | N132: 0.0008783357586
A133: =IF('DF raw data'!M138="","",'DF raw data'!M138) -> -264.5 | B133: =IF('DF raw data'!N138="","",'DF raw data'!N138) -> -2.60281e-05 | C133: =IF('DF raw data'!O138="","",'DF raw data'!O138) -> 0.000232315 | D133: =IF('DF raw data'!P138="","",'DF raw data'!P138) -> 3.04811e-06 | F133: -2.614522645e-05 | G133: 0.0002333604175 | H133: 3.061826495e-06 | J133: -0.0004471540385 | K133: -0.007453368719 | L133: 0.008627593244 | M133: 0.1576331178 | N133: 0.0009156534146
A134: =IF('DF raw data'!M139="","",'DF raw data'!M139) -> -264 | B134: =IF('DF raw data'!N139="","",'DF raw data'!N139) -> -1.97343e-05 | C134: =IF('DF raw data'!O139="","",'DF raw data'!O139) -> 0.000231875 | D134: =IF('DF raw data'!P139="","",'DF raw data'!P139) -> -2.0445e-05 | F134: -1.982310435e-05 | G134: 0.0002329184375 | H134: -2.05370025e-05 | J134: -0.0004570655907 | K134: -0.007681901515 | L134: 0.008744052462 | M134: 0.162005144 | N134: 0.0009539870958
A135: =IF('DF raw data'!M140="","",'DF raw data'!M140) -> -263.5 | B135: =IF('DF raw data'!N140="","",'DF raw data'!N140) -> -1.55768e-05 | C135: =IF('DF raw data'!O140="","",'DF raw data'!O140) -> 0.000237883 | D135: =IF('DF raw data'!P140="","",'DF raw data'!P140) -> -8.56853e-06 | F135: -1.56468956e-05 | G135: 0.0002389534735 | H135: -8.607088385e-06 | J135: -0.0004648890385 | K135: -0.007914346034 | L135: 0.008863529199 | M135: 0.1664369086 | N135: 0.0009933762316
A136: =IF('DF raw data'!M141="","",'DF raw data'!M141) -> -263 | B136: =IF('DF raw data'!N141="","",'DF raw data'!N141) -> -1.57712e-05 | C136: =IF('DF raw data'!O141="","",'DF raw data'!O141) -> 0.000247492 | D136: =IF('DF raw data'!P141="","",'DF raw data'!P141) -> -5.78924e-06 | F136: -1.58421704e-05 | G136: 0.000248605714 | H136: -5.81529158e-06 | J136: -0.0004728101237 | K136: -0.008150751096 | L136: 0.008987832056 | M136: 0.1709308246 | N136: 0.001033878569
A137: =IF('DF raw data'!M142="","",'DF raw data'!M142) -> -262.5 | B137: =IF('DF raw data'!N142="","",'DF raw data'!N142) -> -2.53831e-05 | C137: =IF('DF raw data'!O142="","",'DF raw data'!O142) -> 0.000239713 | D137: =IF('DF raw data'!P142="","",'DF raw data'!P142) -> -3.39036e-06 | F137: -2.549732395e-05 | G137: 0.0002407917085 | H137: -3.40561662e-06 | J137: -0.0004855587857 | K137: -0.008393530488 | L137: 0.00910822791 | M137: 0.1754849386 | N137: 0.00107547636
A138: =IF('DF raw data'!M143="","",'DF raw data'!M143) -> -262 | B138: =IF('DF raw data'!N143="","",'DF raw data'!N143) -> -1.5833e-05 | C138: =IF('DF raw data'!O143="","",'DF raw data'!O143) -> 0.000238899 | D138: =IF('DF raw data'!P143="","",'DF raw data'!P143) -> -9.61298e-06 | F138: -1.59042485e-05 | G138: 0.0002399740455 | H138: -9.65623841e-06 | J138: -0.0004935109099 | K138: -0.008640285943 | L138: 0.009228214933 | M138: 0.180099046 | N138: 0.001118178112
A139: =IF('DF raw data'!M144="","",'DF raw data'!M144) -> -261.5 | B139: =IF('DF raw data'!N144="","",'DF raw data'!N144) -> -1.50647e-05 | C139: =IF('DF raw data'!O144="","",'DF raw data'!O144) -> 0.000241118 | D139: =IF('DF raw data'!P144="","",'DF raw data'!P144) -> -7.72763e-06 | F139: -1.513249115e-05 | G139: 0.000242203031 | H139: -7.762404335e-06 | J139: -0.0005010771555 | K139: -0.008890824521 | L139: 0.009349316449 | M139: 0.1847737043 | N139: 0.001162008511
A140: =IF('DF raw data'!M145="","",'DF raw data'!M145) -> -261 | B140: =IF('DF raw data'!N145="","",'DF raw data'!N145) -> -9.68403e-06 | C140: =IF('DF raw data'!O145="","",'DF raw data'!O145) -> 0.000236044 | D140: =IF('DF raw data'!P145="","",'DF raw data'!P145) -> -6.34609e-06 | F140: -9.727608135e-06 | G140: 0.000237106198 | H140: -6.374647405e-06 | J140: -0.0005059409596 | K140: -0.009143795001 | L140: 0.009467869548 | M140: 0.189507639 | N140: 0.001206956776
A141: =IF('DF raw data'!M146="","",'DF raw data'!M146) -> -260.5 | B141: =IF('DF raw data'!N146="","",'DF raw data'!N146) -> -2.8775e-05 | C141: =IF('DF raw data'!O146="","",'DF raw data'!O146) -> 0.000231384 | D141: =IF('DF raw data'!P146="","",'DF raw data'!P146) -> -9.13659e-06 | F141: -2.89044875e-05 | G141: 0.000232425228 | H141: -9.177704655e-06 | J141: -0.0005203932033 | K141: -0.009403991603 | L141: 0.009584082161 | M141: 0.1942996801 | N141: 0.001253019496
A142: =IF('DF raw data'!M147="","",'DF raw data'!M147) -> -260 | B142: =IF('DF raw data'!N147="","",'DF raw data'!N147) -> -2.05793e-05 | C142: =IF('DF raw data'!O147="","",'DF raw data'!O147) -> 0.000228686 | D142: =IF('DF raw data'!P147="","",'DF raw data'!P147) -> -2.42239e-06 | F142: -2.067190685e-05 | G142: 0.000229715087 | H142: -2.433290755e-06 | J142: -0.0005307291567 | K142: -0.009669356181 | L142: 0.009698939705 | M142: 0.19914915 | N142: 0.001300195048
A143: =IF('DF raw data'!M148="","",'DF raw data'!M148) -> -259.5 | B143: =IF('DF raw data'!N148="","",'DF raw data'!N148) -> -1.49472e-05 | C143: =IF('DF raw data'!O148="","",'DF raw data'!O148) -> 0.000225499 | D143: =IF('DF raw data'!P148="","",'DF raw data'!P148) -> 8.69782e-06 | F143: -1.50144624e-05 | G143: 0.0002265137455 | H143: 8.73696019e-06 | J143: -0.0005382363879 | K143: -0.009938474375 | L143: 0.009812196578 | M143: 0.2040552483 | N143: 0.001348479498
A144: =IF('DF raw data'!M149="","",'DF raw data'!M149) -> -259 | B144: =IF('DF raw data'!N149="","",'DF raw data'!N149) -> -1.14759e-05 | C144: =IF('DF raw data'!O149="","",'DF raw data'!O149) -> 0.000225153 | D144: =IF('DF raw data'!P149="","",'DF raw data'!P149) -> -9.67351e-06 | F144: -1.152754155e-05 | G144: 0.0002261661885 | H144: -9.717040795e-06 | J144: -0.0005440001587 | K144: -0.01021047445 | L144: 0.009925279672 | M144: 0.2090178881 | N144: 0.001397883054
A145: =IF('DF raw data'!M150="","",'DF raw data'!M150) -> -258.5 | B145: =IF('DF raw data'!N150="","",'DF raw data'!N150) -> -3.40455e-06 | C145: =IF('DF raw data'!O150="","",'DF raw data'!O150) -> 0.000223451 | D145: =IF('DF raw data'!P150="","",'DF raw data'!P150) -> -6.4004e-06 | F145: -3.419870475e-06 | G145: 0.0002244565295 | H145: -6.4292018e-06 | J145: -0.0005457100939 | K145: -0.0104833295 | L145: 0.01003750794 | M145: 0.2140366421 | N145: 0.001448407737
A146: =IF('DF raw data'!M151="","",'DF raw data'!M151) -> -258 | B146: =IF('DF raw data'!N151="","",'DF raw data'!N151) -> -7.50414e-06 | C146: =IF('DF raw data'!O151="","",'DF raw data'!O151) -> 0.000224474 | D146: =IF('DF raw data'!P151="","",'DF raw data'!P151) -> -8.17912e-06 | F146: -7.53790863e-06 | G146: 0.000225484133 | H146: -8.21592604e-06 | J146: -0.0005494790483 | K146: -0.01075806903 | L146: 0.01015025 | M146: 0.2191117671 | N146: 0.001500072488
